Workbook

Sheet po مرسي علم
A1: مـنـتـج تــام | B1: زيـوت خــام
A2: الايمان 737 | B2: أحمد ع القوى 2691
A3: محرم 1619 | B3: المستقبل 1317
A6: جمعية 1220 | B6: الامين 2546 | D6: 2019-11-01
A7: الاسراء 1630 | B7: المؤسسة 2631
C8: علي السستم الغردقه | H8: 1248 | I8: استكمال
C10: م | D10: القيمة + 14 % | E10: القيمة بالجنيه | F10: سعر الطن | G10: الكمية | H10: جهة الوصول | I10: رقم Shipment | J10: نوع السيارة | K10: الميزان
B11: 1 | G11: الاجمالى
C47: 1 | D47: =E47*1.14 -> 3823.47222 | E47: =F47*G47 -> 3353.923 | F47: 457 | G47: 7.339 | H47: الغردقه | I47: 153826 | J47: 5طن | K47: 80
C48: 2 | D48: =E48*1.14 -> 0 | E48: =F48*G48 -> 0 | J48: 5طن
C49: 3 | D49: =E49*1.14 -> 0 | E49: =F49*G49 -> 0 | J49: 5طن
C50: **** | D50: =SUM(D47:D49) -> 3823.47222 | E50: =SUM(E47:E49) -> 3353.923 | G50: =SUM(G47:G49) -> 7.339 | H50: الاجماليات | K50: =SUM(K47:K49) -> 80
D51: 16428.35 | F51: =E50*14% -> 469.54922 | G51: 14%ضريبة مبيعات
D52: =#REF!-D51 ->  | F52: =E50*3/100 -> 100.61769 | G52: 3%خصم واضافة
F53: =E50+F51-F52 -> 3722.85453 | G53: اجمالى المستحق
D54: مكان التعتيق الفعلي مرسي علم
C56: م | D56: القيمة + 14 % | E56: القيمة بالجنيه | F56: سعر الطن | G56: الكمية | H56: جهة الوصول | I56: رقم Shipment | J56: نوع السيارة | K56: الميزان
G57: الاجمالى
C58: 1 | D58: =E58*1.14 -> 6350.14314 | E58: =F58*G58 -> 5570.301 | F58: 759 | G58: 7.339 | H58: الغردقه | I58: 153826 | J58: 5طن
C59: 2 | D59: =E59*1.14 -> 0 | E59: =F59*G59 -> 0 | J59: 5طن
C60: 3 | D60: =E60*1.14 -> 0 | E60: =F60*G60 -> 0 | J60: 5طن
C61: **** | D61: =SUM(D58:D60) -> 6350.14314 | E61: =SUM(E58:E60) -> 5570.301 | G61: =SUM(G58:G60) -> 7.339 | H61: الاجماليات
D62: مطلوب استكمال فرق نولون بقيمه/ 2460 جنيه
F65: =E61*14% -> 779.84214 | G65: 14%ضريبة مبيعات
F66: =E61*3/100 -> 167.10903 | G66: 3%خصم واضافة
F67: =E61+F65-F66 -> 6183.03411 | G67: اجمالى المستحق

Sheet 1 (2)
E1: رقم 1
A4: قيمه شيكات تعتيق نقل بتاريخ 2019/12/06
A5: م | B5: اسم السائق | C5: العميل | D5: رقم المستند | E5: الفرع | F5: التاريخ | G5: الفاتوره | H5: المبلغ | I5: السياره
A6: 1 | B6: احمد عز الدين | C6: كارفور | D6: 4521 | E6: سوبر ماركت | F6: 2019-11-28 | G6: 80347525 | H6: 50 | I6: 5طن
A7: 2 | B7: احمد عز الدين | C7: كارفور | D7: 381 | E7: سوبر ماركت | F7: 2019-11-27 | G7: 80347068 | H7: 50 | I7: 5طن
A8: 3 | B8: احمد عز الدين | C8: كارفور | D8: 4568 | E8: سوبر ماركت | F8: 2019-11-26 | G8: 80347520 | H8: 50 | I8: 5طن
A9: 4 | B9: احمد عز الدين | C9: كارفور | D9: 1071 | E9: سوبر ماركت | F9: 2019-11-25 | G9: 80346099 | H9: 50 | I9: 5طن
A10: 5 | B10: احمد عز الدين | C10: كارفور | D10: 1564 | E10: سوبر ماركت | F10: 2019-11-24 | G10: 80345758 | H10: 50 | I10: 5طن
A11: 6 | B11: احمد عز الدين | C11: لولو | D11: 1802 | E11: سوبر ماركت | F11: 2019-11-23 | G11: 80345327 | H11: 50 | I11: 5طن
A12: 7 | B12: ابراهيم حسن | C12: جوميا | D12: 1694 | E12: سوبر ماركت | F12: 2019-11-23 | G12: 80345321 | H12: 50 | I12: 5طن
A13: 8 | B13: عيد محمد | C13: الشركة العامة | D13: 2943 | E13: سوبر ماركت | F13: 2019-05-15 | G13: 80277286 | H13: 35 | I13: 5طن
A14: 9 | B14: احمد علي | C14: الشركة العامة | D14: 102 | E14: سوبر ماركت | F14: 2019-10-06 | G14: 80327759 | H14: 35 | I14: 5طن
A15: 10 | B15: محمد حمدي | C15: الاهرام للمعادن | D15: 1297 | E15: سوبر ماركت | F15: 2019-09-19 | G15: 276899 | H15: 35 | I15: 5طن
A16: 11 | B16: عيد محمد | C16: الفرجاني | D16: 1952 | E16: سوبر ماركت | F16: 2019-11-23 | G16: 80345339 | H16: 50 | I16: 5طن
A17: 12 | B17: محمد احمد | C17: ايمدج | D17: 1957 | E17: سوبر ماركت | F17: 2019-11-28 | G17: 80347619 | H17: 50 | I17: 5طن
A18: 13 | B18: احمد محمد | C18: كارفور | D18: 493 | E18: سوبر ماركت | F18: 2019-11-23 | G18: 80345520 | H18: 50 | I18: 5طن
A19: 14 | B19: حسن حامد | C19: الرايه | D19: 3885 | E19: سوبر ماركت | F19: 2019-08-26 | G19: 80311354 | H19: 50 | I19: 5طن
A20: 15 | B20: احمد محمد | C20: الشركة العامة | D20: 1310 | E20: سوبر ماركت | F20: 2019-04-16 | G20: 80265489 | H20: 100 | I20: 5طن
A21: 16 | B21: محمد حمدي | C21: الرايه | D21: 3884 | E21: سوبر ماركت | F21: 2019-08-26 | G21: 80311348 | H21: 50 | I21: 5طن
A22: 17 | B22: عبدالعظيم محمد | C22: الفرجاني | D22: 1541 | E22: سوبر ماركت | F22: 2019-07-30 | G22: 80303133 | H22: 50 | I22: 5طن
A23: 18 | B23: احمد علي | C23: اللولو | D23: 885 | E23: سوبر ماركت | F23: 2019-10-12 | G23: 80329945 | H23: 50 | I23: 5طن
A24: 19 | B24: احمد علي | C24: الفرجاني | D24: 870 | E24: سوبر ماركت | F24: 2019-10-09 | G24: 80328645 | H24: 50 | I24: 5طن
A25: 20 | B25: عيد محمد | C25: اسواق بدر | D25: 1007 | E25: سوبر ماركت | F25: 2019-07-10 | G25: 80295517 | H25: 50 | I25: 5طن
A26: 21 | B26: حسن حامد | C26: كارفور | D26: 80 | E26: سوبر ماركت | F26: 2019-09-07 | G26: 80316282 | H26: 50 | I26: 5طن
A27: 22 | B27: عبدالمنعم حسني | C27: الشركة العامة | D27: 2749 | E27: سوبر ماركت | F27: 2019-05-31 | G27: 80283296 | H27: 200 | I27: 5طن
A28: 23 | B28: عبدالمنعم حسني | C28: الشركة العامة | D28: 2726 | E28: سوبر ماركت | F28: 2019-05-26 | G28: 80281249 | H28: 200 | I28: 5طن
A29: 24 | B29: السيد صادق | C29: الشركة العامة | D29: 3945 | E29: سوبر ماركت | F29: 2019-11-24 | G29: 80345626 | H29: 35 | I29: 5طن
A30: 25 | B30: محمد السيد | C30: الشركة العامة | D30: 3944 | E30: سوبر ماركت | F30: 2019-11-23 | G30: 80345607 | H30: 35 | I30: 5طن
A31: 26 | B31: هيثم سيف | C31: الشركة العامة | D31: 3943 | E31: سوبر ماركت | F31: 2019-11-20 | G31: 80344203 | H31: 35 | I31: 5طن
A32: 27 | B32: ابراهيم حسن | C32: الشركة العامة | D32: 3942 | E32: سوبر ماركت | F32: 2019-11-20 | G32: 80344160 | H32: 35 | I32: 5طن
A33: 28 | B33: رمضان حمدي | C33: الشركة العامة | D33: 3939 | E33: سوبر ماركت | F33: 2019-11-19 | G33: 80343701 | H33: 35 | I33: 5طن
A34: 29 | B34: محمد السيد | C34: الشركة العامة | D34: 3935 | E34: سوبر ماركت | F34: 2019-11-18 | G34: 80343447 | H34: 35 | I34: 5طن
A35: 30 | B35: احمد علي | C35: الشركة العامة | D35: 3932 | E35: سوبر ماركت | F35: 2019-11-18 | G35: 80343446 | H35: 35 | I35: 5طن
B36: الاجمالي | H36: =SUM(H6:H35) -> 1700 | I36: جنيه
G39: تنفيذى شحن وتوزيع

Sheet فاتوره
C7: 2019-12-06 | H7: 1310
C9: م | D9: القيمة + 14 % | E9: القيمة بالجنيه | F9: سعر الطن | G9: الكمية | H9: جهة الوصول | I9: رقم Shipment | J9: نوع السيارة | K9: الميزان
B10: 1 | G10: الاجمالى
C46: 1 | D46: =E46*1.14 -> 1157.9436 | E46: =F46*G46 -> 1015.74 | F46: 198 | G46: 5.13 | H46: البحيرة | I46: 156595 | J46: 5 طن | K46: 65
C47: 2 | D47: =E47*1.14 -> 1234.8765 | E47: 1083.225 | F47: 165 | G47: 6.565 | H47: كفر الشيخ | I47: 159528 | J47: 5 طن | K47: 80
C48: 3 | D48: 1615.92948 | E48: 1417.482 | F48: 198 | G48: 7.159 | H48: البحيرة | I48: 159440 | J48: 5 طن | K48: 80
C49: 4 | D49: 1036.21896 | E49: 908.964 | F49: 126 | G49: 7.214 | H49: القاهره | I49: 158713 | J49: 5 طن | K49: 65
C50: 5 | D50: 1164.79044 | E50: 1021.746 | F50: 137 | G50: 7.458 | H50: الجيزه | I50: 158991 | J50: 5 طن | K50: 0
C51: 6 | D51: 1901.1552 | E51: 1667.68 | F51: 280 | G51: 5.956 | H51: الاسكندريه | I51: 158820 | J51: 5 طن | K51: 80
C52: 7 | D52: 885.82788 | E52: 777.042 | F52: 126 | G52: 6.167 | H52: القاهره | I52: 159495 | J52: 5 طن | K52: 75
C53: 8 | D53: 3705.7296 | E53: 3250.64 | F53: 454 | G53: 7.16 | H53: مرسي مطروح | I53: 159195 | J53: 5 طن | K53: 80
C54: 9 | D54: 1201.8051 | E54: 1054.215 | F54: 137 | G54: 7.695 | H54: القليوبيه | I54: 159491 | J54: 5 طن | K54: 0
C55: 10 | D55: 885.82788 | E55: 777.042 | F55: 126 | G55: 6.167 | H55: القاهره | I55: 159496 | J55: 5 طن | K55: 65
C56: 11 | D56: 785.42352 | E56: 688.968 | F56: 126 | G56: 5.468 | H56: القاهره | I56: 159098 | J56: 5 طن | K56: 65
C57: 12 | D57: 293.55 | E57: 257.5 | F57: 50 | G57: 5.15 | H57: العاشر | I57: 159382 | J57: 5 طن | K57: 0
C58: 13 | D58: 931.93632 | E58: 817.488 | F58: 126 | G58: 6.488 | H58: القاهره | I58: 159076 | J58: 5 طن | K58: 65
C59: 14 | D59: 2154.6 | E59: 1890 | F59: 280 | G59: 6.75 | H59: الاسكندريه | I59: 158644 | J59: 5 طن | K59: 65
C60: 15 | D60: 1637.496 | E60: 1436.4 | F60: 280 | G60: 5.13 | H60: الاسكندريه | I60: 159073 | J60: 5 طن | K60: 80
C61: 16 | D61: 1534.0752 | E61: 1345.68 | F61: 280 | G61: 4.806 | H61: الاسكندريه | I61: 156138 | J61: 5 طن | K61: 80
C62: 17 | D62: 1491.55776 | E62: =F62*G62 -> 1308.384 | F62: 198 | G62: 6.608 | H62: البحيرة | I62: 159252 | J62: 5 طن | K62: 50
C63: 18 | D63: 1001.889 | E63: 878.85 | F63: 126 | G63: 6.975 | H63: القاهره | I63: 159674 | J63: 5 طن | K63: 75
D64: =SUM(D46:D63) -> 24620.63244 | E64: =SUM(E46:E63) -> 21597.046 | F64: ---------- | G64: =SUM(G46:G63) -> 114.046 | H64: الاجماليات | K64: =SUM(K46:K63) -> 1070
F65: =E64*14% -> 3023.58644 | G65: 14%ضريبة مبيعات
F67: =E64*3/100 -> 647.91138 | G67: 3%خصم واضافة
F69: =E64+F65-F67 -> 23972.72106 | G69: اجمالى المستحق
D70: 16428.35
D71: =D65-D70 -> -16428.35

Sheet فاتوره تكميليه
H1: P.O.
C7: 2019-12-06 | H7: 1319 | I7: استكمال
C8: م | D8: القيمة + 14 % | E8: القيمة بالجنيه | F8: سعر الطن | G8: الكمية | H8: جهة الوصول | I8: رقم Shipment | J8: نوع السيارة | K8: الميزان
G9: الاجمالى
C44: 1 | D44: =E44*1.14 -> 600.12792 | E44: =F44*G44 -> 526.428 | F44: 126 | G44: 4.178 | H44: القاهره | I44: 159429 | J44: 5 طن | K44: 75
C45: 2 | D45: 727.64262 | E45: 638.283 | F45: 137 | G45: 4.659 | H45: القليوبيه | I45: 159204 | J45: 5 طن | K45: 75
C46: 3 | D46: 576.77274 | E46: 505.941 | F46: 137 | G46: 3.693 | H46: الجيزه | I46: 159386 | J46: 5 طن | K46: 65
C47: 4 | D47: 687.60468 | E47: 603.162 | F47: 126 | G47: 4.787 | H47: القاهره | I47: 159433 | J47: 5 طن | K47: 65
C48: 5 | D48: 1372.8792 | E48: 1204.28 | F48: 280 | G48: 4.301 | H48: الاسكندريه | I48: 158894 | J48: 5 طن | K48: 100
C49: 6 | D49: =E49*1.14 -> 728.26734 | E49: =F49*G49 -> 638.831 | F49: 137 | G49: 4.663 | H49: القليوبيه | I49: 159203 | J49: 5 طن | K49: 75
C50: 7 | D50: 97.64328 | E50: 85.652 | F50: 161 | G50: 0.532 | H50: اكتوبر | I50: 159605 | J50: 5 طن | K50: 75
C51: 8 | D51: 165.00246 | E51: 144.739 | F51: 161 | G51: 0.899 | H51: اكتوبر | I51: 159609 | J51: 5 طن | K51: 0
C52: 9 | D52: 136.00314 | E52: 119.301 | F52: 161 | G52: 0.741 | H52: اكتوبر | I52: 159606 | J52: 5 طن | K52: 0
C53: 10 | D53: 477.45936 | E53: 418.824 | F53: 126 | G53: 3.324 | H53: القاهره | I53: 159482 | J53: 5 طن | K53: 75
C54: 11 | D54: =E54*1.14 -> 224.50932 | E54: =F54*G54 -> 196.938 | F54: 126 | G54: 1.563 | H54: القاهره | I54: 159483 | J54: 5 طن | K54: 0
C55: 12 | D55: =E55*1.14 -> 307.04988 | E55: =F55*G55 -> 269.342 | F55: 137 | G55: 1.966 | H55: القليوبيه | I55: 159587 | J55: 5 طن | K55: 80
C56: 13 | D56: =E56*1.14 -> 467.44674 | E56: =F56*G56 -> 410.041 | F56: 137 | G56: 2.993 | H56: القليوبيه | I56: 159588 | J56: 5 طن | K56: 0
D57: =SUM(D44:D56) -> 6568.40868 | E57: =SUM(E44:E56) -> 5761.762 | G57: =SUM(G44:G56) -> 38.299 | H57: الاجماليات | K57: =SUM(K44:K56) -> 685
D58: 16428.35 | F58: =E57*14% -> 806.64668 | G58: 14%ضريبة مبيعات | I58: استكمال
D59: =#REF!-D58 ->  | F59: =E57*3/100 -> 172.85286 | G59: 3%خصم واضافة
F60: =E57+F58-F59 -> 6395.55582 | G60: اجمالى المستحق
H61: P.O.
C67: =C7 -> 2019-12-06 | H67: =H7 -> 1319 | I67: استكمال
C68: م | D68: القيمة + 14 % | E68: القيمة بالجنيه | F68: سعر الطن | G68: الكمية | H68: جهة الوصول | I68: رقم Shipment | J68: نوع السيارة | K68: الميزان
G69: الاجمالى
C70: 1 | D70: =E70*1.14 -> 118.07208 | E70: =F70*G70 -> 103.572 | F70: =F44 -> 126 | G70: =5-G44 -> 0.822 | H70: =H44 -> القاهره | I70: 159429 | J70: 5 طن
C71: 2 | D71: 53.25738 | E71: 46.717 | F71: 137 | G71: 0.341 | H71: القليوبيه | I71: 159204 | J71: 5 طن
C72: 3 | D72: 204.12726 | E72: =F72*G72 -> 179.059 | F72: 137 | G72: 1.307 | H72: الجيزه | I72: 159386 | J72: 5 طن
C73: 4 | D73: 30.59532 | E73: =F73*G73 -> 26.838 | F73: 126 | G73: 0.213 | H73: القاهره | I73: 159433 | J73: 5 طن
C74: 5 | D74: 223.1208 | E74: =F74*G74 -> 195.72 | F74: 280 | G74: 0.699 | H74: الاسكندريه | I74: 158894 | J74: 5 طن
C75: 6 | D75: 52.63266 | E75: =F75*G75 -> 46.169 | F75: 137 | G75: 0.337 | H75: القليوبيه | I75: 159203 | J75: 5 طن
C76: 7 | D76: 519.05112 | E76: 455.308 | F76: 161 | G76: =5-(G50+G51+G52) -> 2.828 | H76: اكتوبر | I76: 159605 | J76: 5 طن
C77: 8 | D77: 0 | E77: 0 | F77: 161 | H77: اكتوبر | I77: 159609 | J77: 5 طن
C78: 9 | D78: 0 | E78: =F78*G78 -> 0 | F78: 161 | H78: اكتوبر | I78: 159606 | J78: 5 طن
C79: 10 | D79: =E79*1.14 -> 16.23132 | E79: =F79*G79 -> 14.238 | F79: 126 | G79: =5-(G53+G54) -> 0.113 | H79: القاهره | I79: 159482 | J79: 5 طن
C80: 11 | D80: =E80*1.14 -> 0 | E80: =F80*G80 -> 0 | F80: 126 | H80: القاهره | I80: 159483 | J80: 5 طن
C81: 12 | D81: =E81*1.14 -> 6.40338 | E81: =F81*G81 -> 5.617 | F81: 137 | G81: =5-(G55+G56) -> 0.041 | H81: القليوبيه | I81: 159587 | J81: 5 طن
C82: 13 | D82: 0 | E82: =F82*G82 -> 0 | F82: 137 | H82: القليوبيه | I82: 159588 | J82: 5 طن
D83: =SUM(D70:D82) -> 1223.49132 | E83: =SUM(E70:E82) -> 1073.238 | G83: =SUM(G70:G82) -> 6.701 | H83: الاجماليات | K83: =SUM(K70:K82) -> 0
F84: =E83*14% -> 150.25332 | G84: 14%ضريبة مبيعات
F85: =E83*3/100 -> 32.19714 | G85: 3%خصم واضافة
F86: =E83+F84-F85 -> 1191.29418 | G86: اجمالى المستحق

Sheet data
B1: =NOW() -> 2020-01-04T13:09:39.570 | E1: المستحق بالجنيه | G1: =(X2+M2+L2)-(J2+N2) ->  | I1: =CurrText(G1,1,"جنيه","جنيهات",1,"قرش","قروش",2) -> 
E2: اجماليات | G2: =SUBTOTAL(9,#REF!) ->  | H2: =SUBTOTAL(9,#REF!) ->  | I2: =SUBTOTAL(9,#REF!) ->  | J2: =SUBTOTAL(9,#REF!) ->  | L2: =SUBTOTAL(9,#REF!) ->  | M2: =SUBTOTAL(9,#REF!) ->  | N2: =SUBTOTAL(9,#REF!) ->  | O2: =SUBTOTAL(9,#REF!) ->  | X2: =SUBTOTAL(9,#REF!) -> 
A3: عمود1 | B3: رقم النقلة | C3: م | D3: التاريخ | E3: السائق | F3: السياره | G3: مكان التحميل | H3: مكان التعتيق | I3: نوع النقله | J3: عهدة | K3: سولار | L3: سلفه | M3: زيت | N3: خصم | O3: كاويتش | P3: صيانه | Q3: نوع الشحن | R3: مصروفات اخري | S3: ايردات اخري | T3: المحافظة | U3: ملاحظات | V3: نوع السيارة | W3: مقاول | X3: شيك | Y3: رقم الشيك | Z3: كارتات | AA3: ميزان طريق | AB3: رقم Shipment | AC3: الوزن | AD3: السعر | AE3: القيمه | AF3: ت اخر محاسبة | AG3: رقم الفاتوره | AH3: مسلسل الفاتوره | AI3: تاريخ الفاتورة | AM3: =IFERROR(INDEX($E$5:$E$7001,MATCH(0,COUNTIF($AM$2:$AM2,$E$5:$E$7001),0)),"") -> يوسف علي | AN3: =IFERROR(INDEX($F$5:$F$7001,MATCH(0,COUNTIF($AN$2:$AN2,$F$5:$F$7001),0)),"") -> 3751
A4: 1 | B4: 2 | C4: 3 | D4: 4 | E4: 5 | F4: 6 | G4: 7 | H4: 8 | I4: 9 | J4: 10 | K4: 11 | L4: 12 | M4: 13 | N4: 14 | O4: 15 | P4: 16 | Q4: 17 | R4: 18 | S4: 19 | T4: 20 | U4: 21 | V4: 22 | W4: 23 | X4: 24 | Y4: 25 | Z4: 26 | AA4: 27 | AB4: 28 | AC4: 29 | AD4: 30 | AE4: 31 | AF4: 32 | AG4: 33 | AH4: 34 | AI4: 35
A5: =IF(AJ5=حساب_سائق!$N$2,COUNTIFS($AJ$5:AJ5,AJ5),"") -> 1 | B5: =الجدول1[[#This Row],[التاريخ]]&الجدول1[[#This Row],[م]] -> 438311 | C5: 1 | D5: 2020-01-01 | E5: يوسف علي | F5: 3751 | G5: ارما | H5: اسكندريه | J5: 500 | Q5: 5 طن | T5: الاسكندريه | AB5: 2345 | AC5: 5.7 | AD5: =VLOOKUP(الجدول1[[#This Row],[المحافظة]],nnn!$A$4:$D$37,HLOOKUP(الجدول1[[#This Row],[نوع الشحن]],nnn!$A$2:$D$3,2,),) -> 215 | AE5: =IF(ROUND(الجدول1[[#This Row],[الوزن]]*1,2)<5,5*الجدول1[[#This Row],[السعر]],ROUND(الجدول1[[#This Row],[السعر]]*الجدول1[[#This Row],[الوزن]],2)) -> 1225.5 | AJ5: =AND(F5=حساب_سائق!$K$2,D5>=حساب_سائق!$G$2,D5<=حساب_سائق!$G$3) -> TRUE | AM5: =IFERROR(INDEX($E$5:$E$7001,MATCH(0,COUNTIF($AM$2:$AM3,$E$5:$E$7001),0)),"") -> احمد رافت | AN5: =IFERROR(INDEX($F$5:$F$7001,MATCH(0,COUNTIF($AN$2:$AN3,$F$5:$F$7001),0)),"") -> 891
A6: =IF(AJ6=حساب_سائق!$N$2,COUNTIFS($AJ$5:AJ6,AJ6),"") ->  | B6: =الجدول1[[#This Row],[التاريخ]]&الجدول1[[#This Row],[م]] -> 438312 | C6: 2 | D6: 2020-01-01 | E6: احمد رافت | F6: 891 | G6: ارما | H6: اسكندريه | I6: لفه | J6: 500 | L6: 500 | Q6: 5 طن | T6: الاسكندريه | V6: جامبو | W6: عباد الرحمن | AC6: 3.5 | AD6: =VLOOKUP(الجدول1[[#This Row],[المحافظة]],nnn!$A$4:$D$37,HLOOKUP(الجدول1[[#This Row],[نوع الشحن]],nnn!$A$2:$D$3,2,),) -> 215 | AE6: =IF(ROUND(الجدول1[[#This Row],[الوزن]]*1,2)<5,5*الجدول1[[#This Row],[السعر]],ROUND(الجدول1[[#This Row],[السعر]]*الجدول1[[#This Row],[الوزن]],2)) -> 1075 | AJ6: =AND(F6=حساب_سائق!$K$2,D6>=حساب_سائق!$G$2,D6<=حساب_سائق!$G$3) -> FALSE | AM6: =IFERROR(INDEX($E$5:$E$7001,MATCH(0,COUNTIF($AM$2:$AM5,$E$5:$E$7001),0)),"") -> حمدي سيد | AN6: =IFERROR(INDEX($F$5:$F$7001,MATCH(0,COUNTIF($AN$2:$AN5,$F$5:$F$7001),0)),"") -> 7918
A7: =IF(AJ7=حساب_سائق!$N$2,COUNTIFS($AJ$5:AJ7,AJ7),"") ->  | B7: =الجدول1[[#This Row],[التاريخ]]&الجدول1[[#This Row],[م]] -> 438313 | C7: 3 | D7: 2020-01-01 | E7: حمدي سيد | F7: 7918 | G7: ارما | H7: اسكندريه | J7: 600 | Q7: 5 طن | T7: الاسكندريه | AC7: 7 | AD7: =VLOOKUP(الجدول1[[#This Row],[المحافظة]],nnn!$A$4:$D$37,HLOOKUP(الجدول1[[#This Row],[نوع الشحن]],nnn!$A$2:$D$3,2,),) -> 215 | AE7: =IF(ROUND(الجدول1[[#This Row],[الوزن]]*1,2)<5,5*الجدول1[[#This Row],[السعر]],ROUND(الجدول1[[#This Row],[السعر]]*الجدول1[[#This Row],[الوزن]],2)) -> 1505 | AJ7: =AND(F7=حساب_سائق!$K$2,D7>=حساب_سائق!$G$2,D7<=حساب_سائق!$G$3) -> FALSE | AM7: =IFERROR(INDEX($E$5:$E$7001,MATCH(0,COUNTIF($AM$2:$AM6,$E$5:$E$7001),0)),"") -> حامد رفعت | AN7: =IFERROR(INDEX($F$5:$F$7001,MATCH(0,COUNTIF($AN$2:$AN6,$F$5:$F$7001),0)),"") -> 0
A8: =IF(AJ8=حساب_سائق!$N$2,COUNTIFS($AJ$5:AJ8,AJ8),"") ->  | B8: =الجدول1[[#This Row],[التاريخ]]&الجدول1[[#This Row],[م]] -> 438314 | C8: 4 | D8: 2020-01-01 | E8: حامد رفعت | G8: ارما | H8: اسكندريه | J8: 150 | K8: 1000 | Q8: 5 طن | T8: الاسكندريه | AD8: =VLOOKUP(الجدول1[[#This Row],[المحافظة]],nnn!$A$4:$D$37,HLOOKUP(الجدول1[[#This Row],[نوع الشحن]],nnn!$A$2:$D$3,2,),) -> 215 | AE8: =IF(ROUND(الجدول1[[#This Row],[الوزن]]*1,2)<5,5*الجدول1[[#This Row],[السعر]],ROUND(الجدول1[[#This Row],[السعر]]*الجدول1[[#This Row],[الوزن]],2)) -> 1075 | AJ8: =AND(F8=حساب_سائق!$K$2,D8>=حساب_سائق!$G$2,D8<=حساب_سائق!$G$3) -> FALSE | AM8: =IFERROR(INDEX($E$5:$E$7001,MATCH(0,COUNTIF($AM$2:$AM7,$E$5:$E$7001),0)),"") -> السيد صديق | AN8: =IFERROR(INDEX($F$5:$F$7001,MATCH(0,COUNTIF($AN$2:$AN7,$F$5:$F$7001),0)),"") -> 9562
A9: =IF(AJ9=حساب_سائق!$N$2,COUNTIFS($AJ$5:AJ9,AJ9),"") ->  | B9: =الجدول1[[#This Row],[التاريخ]]&الجدول1[[#This Row],[م]] -> 438315 | C9: 5 | D9: 2020-01-01 | E9: السيد صديق | G9: ارما | H9: اسكندريه | J9: 150 | Q9: 5 طن | T9: الاسكندريه | AD9: =VLOOKUP(الجدول1[[#This Row],[المحافظة]],nnn!$A$4:$D$37,HLOOKUP(الجدول1[[#This Row],[نوع الشحن]],nnn!$A$2:$D$3,2,),) -> 215 | AE9: =IF(ROUND(الجدول1[[#This Row],[الوزن]]*1,2)<5,5*الجدول1[[#This Row],[السعر]],ROUND(الجدول1[[#This Row],[السعر]]*الجدول1[[#This Row],[الوزن]],2)) -> 1075 | AJ9: =AND(F9=حساب_سائق!$K$2,D9>=حساب_سائق!$G$2,D9<=حساب_سائق!$G$3) -> FALSE | AM9: =IFERROR(INDEX($E$5:$E$7001,MATCH(0,COUNTIF($AM$2:$AM8,$E$5:$E$7001),0)),"") -> ابراهيم حسن | AN9: =IFERROR(INDEX($F$5:$F$7001,MATCH(0,COUNTIF($AN$2:$AN8,$F$5:$F$7001),0)),"") -> 1328
A10: =IF(AJ10=حساب_سائق!$N$2,COUNTIFS($AJ$5:AJ10,AJ10),"") ->  | B10: =الجدول1[[#This Row],[التاريخ]]&الجدول1[[#This Row],[م]] -> 438316 | C10: 6 | D10: 2020-01-01 | E10: ابراهيم حسن | F10: 9562 | G10: ارما | H10: بحيره | J10: 1000 | Q10: 5 طن | AD10: =VLOOKUP(الجدول1[[#This Row],[المحافظة]],nnn!$A$4:$D$37,HLOOKUP(الجدول1[[#This Row],[نوع الشحن]],nnn!$A$2:$D$3,2,),) ->  | AE10: =IF(ROUND(الجدول1[[#This Row],[الوزن]]*1,2)<5,5*الجدول1[[#This Row],[السعر]],ROUND(الجدول1[[#This Row],[السعر]]*الجدول1[[#This Row],[الوزن]],2)) ->  | AJ10: =AND(F10=حساب_سائق!$K$2,D10>=حساب_سائق!$G$2,D10<=حساب_سائق!$G$3) -> FALSE | AM10: =IFERROR(INDEX($E$5:$E$7001,MATCH(0,COUNTIF($AM$2:$AM9,$E$5:$E$7001),0)),"") -> رمضان حمدي | AN10: =IFERROR(INDEX($F$5:$F$7001,MATCH(0,COUNTIF($AN$2:$AN9,$F$5:$F$7001),0)),"") -> 4158
A11: =IF(AJ11=حساب_سائق!$N$2,COUNTIFS($AJ$5:AJ11,AJ11),"") ->  | B11: =الجدول1[[#This Row],[التاريخ]]&الجدول1[[#This Row],[م]] -> 438317 | C11: 7 | D11: 2020-01-01 | E11: رمضان حمدي | G11: ارما | H11: الماظه | J11: 100 | Q11: 5 طن | AD11: =VLOOKUP(الجدول1[[#This Row],[المحافظة]],nnn!$A$4:$D$37,HLOOKUP(الجدول1[[#This Row],[نوع الشحن]],nnn!$A$2:$D$3,2,),) ->  | AE11: =IF(ROUND(الجدول1[[#This Row],[الوزن]]*1,2)<5,5*الجدول1[[#This Row],[السعر]],ROUND(الجدول1[[#This Row],[السعر]]*الجدول1[[#This Row],[الوزن]],2)) ->  | AJ11: =AND(F11=حساب_سائق!$K$2,D11>=حساب_سائق!$G$2,D11<=حساب_سائق!$G$3) -> FALSE | AM11: =IFERROR(INDEX($E$5:$E$7001,MATCH(0,COUNTIF($AM$2:$AM10,$E$5:$E$7001),0)),"") -> رمضان محمود | AN11: =IFERROR(INDEX($F$5:$F$7001,MATCH(0,COUNTIF($AN$2:$AN10,$F$5:$F$7001),0)),"") -> 4612
A12: =IF(AJ12=حساب_سائق!$N$2,COUNTIFS($AJ$5:AJ12,AJ12),"") ->  | B12: =الجدول1[[#This Row],[التاريخ]]&الجدول1[[#This Row],[م]] -> 438318 | C12: 8 | D12: 2020-01-01 | E12: رمضان محمود | G12: ارما | H12: اسكندريه | J12: 200 | Q12: 5 طن | AD12: =VLOOKUP(الجدول1[[#This Row],[المحافظة]],nnn!$A$4:$D$37,HLOOKUP(الجدول1[[#This Row],[نوع الشحن]],nnn!$A$2:$D$3,2,),) ->  | AE12: =IF(ROUND(الجدول1[[#This Row],[الوزن]]*1,2)<5,5*الجدول1[[#This Row],[السعر]],ROUND(الجدول1[[#This Row],[السعر]]*الجدول1[[#This Row],[الوزن]],2)) ->  | AJ12: =AND(F12=حساب_سائق!$K$2,D12>=حساب_سائق!$G$2,D12<=حساب_سائق!$G$3) -> FALSE | AM12: =IFERROR(INDEX($E$5:$E$7001,MATCH(0,COUNTIF($AM$2:$AM11,$E$5:$E$7001),0)),"") -> محمود احمد | AN12: =IFERROR(INDEX($F$5:$F$7001,MATCH(0,COUNTIF($AN$2:$AN11,$F$5:$F$7001),0)),"") -> 2843
A13: =IF(AJ13=حساب_سائق!$N$2,COUNTIFS($AJ$5:AJ13,AJ13),"") ->  | B13: =الجدول1[[#This Row],[التاريخ]]&الجدول1[[#This Row],[م]] -> 438319 | C13: 9 | D13: 2020-01-01 | E13: محمود احمد | G13: ارما | H13: الاشراف | J13: 400 | Q13: 5 طن | AD13: =VLOOKUP(الجدول1[[#This Row],[المحافظة]],nnn!$A$4:$D$37,HLOOKUP(الجدول1[[#This Row],[نوع الشحن]],nnn!$A$2:$D$3,2,),) ->  | AE13: =IF(ROUND(الجدول1[[#This Row],[الوزن]]*1,2)<5,5*الجدول1[[#This Row],[السعر]],ROUND(الجدول1[[#This Row],[السعر]]*الجدول1[[#This Row],[الوزن]],2)) ->  | AJ13: =AND(F13=حساب_سائق!$K$2,D13>=حساب_سائق!$G$2,D13<=حساب_سائق!$G$3) -> FALSE | AM13: =IFERROR(INDEX($E$5:$E$7001,MATCH(0,COUNTIF($AM$2:$AM12,$E$5:$E$7001),0)),"") -> ناصر عبدالمحسن | AN13: =IFERROR(INDEX($F$5:$F$7001,MATCH(0,COUNTIF($AN$2:$AN12,$F$5:$F$7001),0)),"") -> 
A14: =IF(AJ14=حساب_سائق!$N$2,COUNTIFS($AJ$5:AJ14,AJ14),"") ->  | B14: =الجدول1[[#This Row],[التاريخ]]&الجدول1[[#This Row],[م]] -> 4383110 | C14: 10 | D14: 2020-01-01 | E14: ناصر عبدالمحسن | G14: ارما | H14: فيستيفال | J14: 400 | Q14: 5 طن | AD14: =VLOOKUP(الجدول1[[#This Row],[المحافظة]],nnn!$A$4:$D$37,HLOOKUP(الجدول1[[#This Row],[نوع الشحن]],nnn!$A$2:$D$3,2,),) ->  | AE14: =IF(ROUND(الجدول1[[#This Row],[الوزن]]*1,2)<5,5*الجدول1[[#This Row],[السعر]],ROUND(الجدول1[[#This Row],[السعر]]*الجدول1[[#This Row],[الوزن]],2)) ->  | AJ14: =AND(F14=حساب_سائق!$K$2,D14>=حساب_سائق!$G$2,D14<=حساب_سائق!$G$3) -> FALSE | AM14: =IFERROR(INDEX($E$5:$E$7001,MATCH(0,COUNTIF($AM$2:$AM13,$E$5:$E$7001),0)),"") -> محمد فتحي | AN14: =IFERROR(INDEX($F$5:$F$7001,MATCH(0,COUNTIF($AN$2:$AN13,$F$5:$F$7001),0)),"") -> 
A15: =IF(AJ15=حساب_سائق!$N$2,COUNTIFS($AJ$5:AJ15,AJ15),"") ->  | B15: =الجدول1[[#This Row],[التاريخ]]&الجدول1[[#This Row],[م]] -> 4383111 | C15: 11 | D15: 2020-01-01 | E15: محمد فتحي | G15: ارما | H15: الاشراف | J15: 300 | Q15: 5 طن | AD15: =VLOOKUP(الجدول1[[#This Row],[المحافظة]],nnn!$A$4:$D$37,HLOOKUP(الجدول1[[#This Row],[نوع الشحن]],nnn!$A$2:$D$3,2,),) ->  | AE15: =IF(ROUND(الجدول1[[#This Row],[الوزن]]*1,2)<5,5*الجدول1[[#This Row],[السعر]],ROUND(الجدول1[[#This Row],[السعر]]*الجدول1[[#This Row],[الوزن]],2)) ->  | AJ15: =AND(F15=حساب_سائق!$K$2,D15>=حساب_سائق!$G$2,D15<=حساب_سائق!$G$3) -> FALSE | AM15: =IFERROR(INDEX($E$5:$E$7001,MATCH(0,COUNTIF($AM$2:$AM14,$E$5:$E$7001),0)),"") -> محمد شوقي | AN15: =IFERROR(INDEX($F$5:$F$7001,MATCH(0,COUNTIF($AN$2:$AN14,$F$5:$F$7001),0)),"") -> 
A16: =IF(AJ16=حساب_سائق!$N$2,COUNTIFS($AJ$5:AJ16,AJ16),"") ->  | B16: =الجدول1[[#This Row],[التاريخ]]&الجدول1[[#This Row],[م]] -> 4383112 | C16: 12 | D16: 2020-01-01 | E16: محمد شوقي | F16: 1328 | G16: ارما | H16: الماظه | J16: 600 | Q16: 5 طن | AD16: =VLOOKUP(الجدول1[[#This Row],[المحافظة]],nnn!$A$4:$D$37,HLOOKUP(الجدول1[[#This Row],[نوع الشحن]],nnn!$A$2:$D$3,2,),) ->  | AE16: =IF(ROUND(الجدول1[[#This Row],[الوزن]]*1,2)<5,5*الجدول1[[#This Row],[السعر]],ROUND(الجدول1[[#This Row],[السعر]]*الجدول1[[#This Row],[الوزن]],2)) ->  | AJ16: =AND(F16=حساب_سائق!$K$2,D16>=حساب_سائق!$G$2,D16<=حساب_سائق!$G$3) -> FALSE | AM16: =IFERROR(INDEX($E$5:$E$7001,MATCH(0,COUNTIF($AM$2:$AM15,$E$5:$E$7001),0)),"") -> علي محمد | AN16: =IFERROR(INDEX($F$5:$F$7001,MATCH(0,COUNTIF($AN$2:$AN15,$F$5:$F$7001),0)),"") -> 
A17: =IF(AJ17=حساب_سائق!$N$2,COUNTIFS($AJ$5:AJ17,AJ17),"") ->  | B17: =الجدول1[[#This Row],[التاريخ]]&الجدول1[[#This Row],[م]] -> 4383113 | C17: 13 | D17: 2020-01-01 | E17: علي محمد | F17: 4158 | G17: ارما | H17: اسكندريه | J17: 700 | Q17: 5 طن | AD17: =VLOOKUP(الجدول1[[#This Row],[المحافظة]],nnn!$A$4:$D$37,HLOOKUP(الجدول1[[#This Row],[نوع الشحن]],nnn!$A$2:$D$3,2,),) ->  | AE17: =IF(ROUND(الجدول1[[#This Row],[الوزن]]*1,2)<5,5*الجدول1[[#This Row],[السعر]],ROUND(الجدول1[[#This Row],[السعر]]*الجدول1[[#This Row],[الوزن]],2)) ->  | AJ17: =AND(F17=حساب_سائق!$K$2,D17>=حساب_سائق!$G$2,D17<=حساب_سائق!$G$3) -> FALSE | AM17: =IFERROR(INDEX($E$5:$E$7001,MATCH(0,COUNTIF($AM$2:$AM16,$E$5:$E$7001),0)),"") -> احمد عزالدين | AN17: =IFERROR(INDEX($F$5:$F$7001,MATCH(0,COUNTIF($AN$2:$AN16,$F$5:$F$7001),0)),"") -> 
A18: =IF(AJ18=حساب_سائق!$N$2,COUNTIFS($AJ$5:AJ18,AJ18),"") ->  | B18: =الجدول1[[#This Row],[التاريخ]]&الجدول1[[#This Row],[م]] -> 4383114 | C18: 14 | D18: 2020-01-01 | E18: احمد عزالدين | G18: ارما | H18: مونجنيز | J18: 100 | K18: 1000 | Q18: 5 طن | AD18: =VLOOKUP(الجدول1[[#This Row],[المحافظة]],nnn!$A$4:$D$37,HLOOKUP(الجدول1[[#This Row],[نوع الشحن]],nnn!$A$2:$D$3,2,),) ->  | AE18: =IF(ROUND(الجدول1[[#This Row],[الوزن]]*1,2)<5,5*الجدول1[[#This Row],[السعر]],ROUND(الجدول1[[#This Row],[السعر]]*الجدول1[[#This Row],[الوزن]],2)) ->  | AJ18: =AND(F18=حساب_سائق!$K$2,D18>=حساب_سائق!$G$2,D18<=حساب_سائق!$G$3) -> FALSE | AM18: =IFERROR(INDEX($E$5:$E$7001,MATCH(0,COUNTIF($AM$2:$AM17,$E$5:$E$7001),0)),"") -> امين احمد | AN18: =IFERROR(INDEX($F$5:$F$7001,MATCH(0,COUNTIF($AN$2:$AN17,$F$5:$F$7001),0)),"") -> 
A19: =IF(AJ19=حساب_سائق!$N$2,COUNTIFS($AJ$5:AJ19,AJ19),"") ->  | B19: =الجدول1[[#This Row],[التاريخ]]&الجدول1[[#This Row],[م]] -> 4383115 | C19: 15 | D19: 2020-01-01 | E19: امين احمد | F19: 4612 | G19: ارما | H19: كرداسه | J19: 300 | Q19: 5 طن | AD19: =VLOOKUP(الجدول1[[#This Row],[المحافظة]],nnn!$A$4:$D$37,HLOOKUP(الجدول1[[#This Row],[نوع الشحن]],nnn!$A$2:$D$3,2,),) ->  | AE19: =IF(ROUND(الجدول1[[#This Row],[الوزن]]*1,2)<5,5*الجدول1[[#This Row],[السعر]],ROUND(الجدول1[[#This Row],[السعر]]*الجدول1[[#This Row],[الوزن]],2)) ->  | AJ19: =AND(F19=حساب_سائق!$K$2,D19>=حساب_سائق!$G$2,D19<=حساب_سائق!$G$3) -> FALSE | AM19: =IFERROR(INDEX($E$5:$E$7001,MATCH(0,COUNTIF($AM$2:$AM18,$E$5:$E$7001),0)),"") -> محمود رضا | AN19: =IFERROR(INDEX($F$5:$F$7001,MATCH(0,COUNTIF($AN$2:$AN18,$F$5:$F$7001),0)),"") -> 
A20: =IF(AJ20=حساب_سائق!$N$2,COUNTIFS($AJ$5:AJ20,AJ20),"") ->  | B20: =الجدول1[[#This Row],[التاريخ]]&الجدول1[[#This Row],[م]] -> 4383116 | C20: 16 | D20: 2020-01-01 | E20: محمود رضا | F20: 2843 | G20: ارما | H20: فوكس | J20: 300 | Q20: 5 طن | AD20: =VLOOKUP(الجدول1[[#This Row],[المحافظة]],nnn!$A$4:$D$37,HLOOKUP(الجدول1[[#This Row],[نوع الشحن]],nnn!$A$2:$D$3,2,),) ->  | AE20: =IF(ROUND(الجدول1[[#This Row],[الوزن]]*1,2)<5,5*الجدول1[[#This Row],[السعر]],ROUND(الجدول1[[#This Row],[السعر]]*الجدول1[[#This Row],[الوزن]],2)) ->  | AJ20: =AND(F20=حساب_سائق!$K$2,D20>=حساب_سائق!$G$2,D20<=حساب_سائق!$G$3) -> FALSE | AM20: =IFERROR(INDEX($E$5:$E$7001,MATCH(0,COUNTIF($AM$2:$AM19,$E$5:$E$7001),0)),"") -> محمود يوسف | AN20: =IFERROR(INDEX($F$5:$F$7001,MATCH(0,COUNTIF($AN$2:$AN19,$F$5:$F$7001),0)),"") -> 
A21: =IF(AJ21=حساب_سائق!$N$2,COUNTIFS($AJ$5:AJ21,AJ21),"") ->  | B21: =الجدول1[[#This Row],[التاريخ]]&الجدول1[[#This Row],[م]] -> 4383117 | C21: 17 | D21: 2020-01-01 | E21: محمود يوسف | G21: ارما | H21: فوكس | J21: 300 | Q21: 5 طن | AD21: =VLOOKUP(الجدول1[[#This Row],[المحافظة]],nnn!$A$4:$D$37,HLOOKUP(الجدول1[[#This Row],[نوع الشحن]],nnn!$A$2:$D$3,2,),) ->  | AE21: =IF(ROUND(الجدول1[[#This Row],[الوزن]]*1,2)<5,5*الجدول1[[#This Row],[السعر]],ROUND(الجدول1[[#This Row],[السعر]]*الجدول1[[#This Row],[الوزن]],2)) ->  | AJ21: =AND(F21=حساب_سائق!$K$2,D21>=حساب_سائق!$G$2,D21<=حساب_سائق!$G$3) -> FALSE | AM21: =IFERROR(INDEX($E$5:$E$7001,MATCH(0,COUNTIF($AM$2:$AM20,$E$5:$E$7001),0)),"") -> محمود عبدالعظيم | AN21: =IFERROR(INDEX($F$5:$F$7001,MATCH(0,COUNTIF($AN$2:$AN20,$F$5:$F$7001),0)),"") -> 
A22: =IF(AJ22=حساب_سائق!$N$2,COUNTIFS($AJ$5:AJ22,AJ22),"") ->  | B22: =الجدول1[[#This Row],[التاريخ]]&الجدول1[[#This Row],[م]] -> 4383118 | C22: 18 | D22: 2020-01-01 | E22: محمود عبدالعظيم | G22: ارما | H22: السويس | J22: 300 | Q22: 5 طن | AD22: =VLOOKUP(الجدول1[[#This Row],[المحافظة]],nnn!$A$4:$D$37,HLOOKUP(الجدول1[[#This Row],[نوع الشحن]],nnn!$A$2:$D$3,2,),) ->  | AE22: =IF(ROUND(الجدول1[[#This Row],[الوزن]]*1,2)<5,5*الجدول1[[#This Row],[السعر]],ROUND(الجدول1[[#This Row],[السعر]]*الجدول1[[#This Row],[الوزن]],2)) ->  | AJ22: =AND(F22=حساب_سائق!$K$2,D22>=حساب_سائق!$G$2,D22<=حساب_سائق!$G$3) -> FALSE | AM22: =IFERROR(INDEX($E$5:$E$7001,MATCH(0,COUNTIF($AM$2:$AM21,$E$5:$E$7001),0)),"") -> احمد محرم | AN22: =IFERROR(INDEX($F$5:$F$7001,MATCH(0,COUNTIF($AN$2:$AN21,$F$5:$F$7001),0)),"") -> 
A23: =IF(AJ23=حساب_سائق!$N$2,COUNTIFS($AJ$5:AJ23,AJ23),"") ->  | B23: =الجدول1[[#This Row],[التاريخ]]&الجدول1[[#This Row],[م]] -> 4383119 | C23: 19 | D23: 2020-01-01 | E23: احمد محرم | G23: ارما | H23: الراعي | J23: 300 | Q23: 5 طن | AD23: =VLOOKUP(الجدول1[[#This Row],[المحافظة]],nnn!$A$4:$D$37,HLOOKUP(الجدول1[[#This Row],[نوع الشحن]],nnn!$A$2:$D$3,2,),) ->  | AE23: =IF(ROUND(الجدول1[[#This Row],[الوزن]]*1,2)<5,5*الجدول1[[#This Row],[السعر]],ROUND(الجدول1[[#This Row],[السعر]]*الجدول1[[#This Row],[الوزن]],2)) ->  | AJ23: =AND(F23=حساب_سائق!$K$2,D23>=حساب_سائق!$G$2,D23<=حساب_سائق!$G$3) -> FALSE | AM23: =IFERROR(INDEX($E$5:$E$7001,MATCH(0,COUNTIF($AM$2:$AM22,$E$5:$E$7001),0)),"") -> وليد رمضان | AN23: =IFERROR(INDEX($F$5:$F$7001,MATCH(0,COUNTIF($AN$2:$AN22,$F$5:$F$7001),0)),"") -> 
A24: =IF(AJ24=حساب_سائق!$N$2,COUNTIFS($AJ$5:AJ24,AJ24),"") ->  | B24: =الجدول1[[#This Row],[التاريخ]]&الجدول1[[#This Row],[م]] -> 4383120 | C24: 20 | D24: 2020-01-01 | E24: وليد رمضان | G24: ارما | H24: الغردقه | J24: 1800 | Q24: 5 طن | AD24: =VLOOKUP(الجدول1[[#This Row],[المحافظة]],nnn!$A$4:$D$37,HLOOKUP(الجدول1[[#This Row],[نوع الشحن]],nnn!$A$2:$D$3,2,),) ->  | AE24: =IF(ROUND(الجدول1[[#This Row],[الوزن]]*1,2)<5,5*الجدول1[[#This Row],[السعر]],ROUND(الجدول1[[#This Row],[السعر]]*الجدول1[[#This Row],[الوزن]],2)) ->  | AJ24: =AND(F24=حساب_سائق!$K$2,D24>=حساب_سائق!$G$2,D24<=حساب_سائق!$G$3) -> FALSE | AM24: =IFERROR(INDEX($E$5:$E$7001,MATCH(0,COUNTIF($AM$2:$AM23,$E$5:$E$7001),0)),"") -> محمود حمدي | AN24: =IFERROR(INDEX($F$5:$F$7001,MATCH(0,COUNTIF($AN$2:$AN23,$F$5:$F$7001),0)),"") -> 
A25: =IF(AJ25=حساب_سائق!$N$2,COUNTIFS($AJ$5:AJ25,AJ25),"") ->  | B25: =الجدول1[[#This Row],[التاريخ]]&الجدول1[[#This Row],[م]] -> 4383121 | C25: 21 | D25: 2020-01-01 | E25: محمود حمدي | G25: ارما | H25: الفيصل | J25: 300 | Q25: 5 طن | AD25: =VLOOKUP(الجدول1[[#This Row],[المحافظة]],nnn!$A$4:$D$37,HLOOKUP(الجدول1[[#This Row],[نوع الشحن]],nnn!$A$2:$D$3,2,),) ->  | AE25: =IF(ROUND(الجدول1[[#This Row],[الوزن]]*1,2)<5,5*الجدول1[[#This Row],[السعر]],ROUND(الجدول1[[#This Row],[السعر]]*الجدول1[[#This Row],[الوزن]],2)) ->  | AJ25: =AND(F25=حساب_سائق!$K$2,D25>=حساب_سائق!$G$2,D25<=حساب_سائق!$G$3) -> FALSE | AM25: =IFERROR(INDEX($E$5:$E$7001,MATCH(0,COUNTIF($AM$2:$AM24,$E$5:$E$7001),0)),"") -> اسامه عبدالحليم | AN25: =IFERROR(INDEX($F$5:$F$7001,MATCH(0,COUNTIF($AN$2:$AN24,$F$5:$F$7001),0)),"") -> 
A26: =IF(AJ26=حساب_سائق!$N$2,COUNTIFS($AJ$5:AJ26,AJ26),"") ->  | B26: =الجدول1[[#This Row],[التاريخ]]&الجدول1[[#This Row],[م]] -> 4383122 | C26: 22 | D26: 2020-01-01 | E26: اسامه عبدالحليم | G26: ارما | H26: يثرب | J26: 300 | Q26: 5 طن | AD26: =VLOOKUP(الجدول1[[#This Row],[المحافظة]],nnn!$A$4:$D$37,HLOOKUP(الجدول1[[#This Row],[نوع الشحن]],nnn!$A$2:$D$3,2,),) ->  | AE26: =IF(ROUND(الجدول1[[#This Row],[الوزن]]*1,2)<5,5*الجدول1[[#This Row],[السعر]],ROUND(الجدول1[[#This Row],[السعر]]*الجدول1[[#This Row],[الوزن]],2)) ->  | AJ26: =AND(F26=حساب_سائق!$K$2,D26>=حساب_سائق!$G$2,D26<=حساب_سائق!$G$3) -> FALSE | AM26: =IFERROR(INDEX($E$5:$E$7001,MATCH(0,COUNTIF($AM$2:$AM25,$E$5:$E$7001),0)),"") -> نبيل لطفي | AN26: =IFERROR(INDEX($F$5:$F$7001,MATCH(0,COUNTIF($AN$2:$AN25,$F$5:$F$7001),0)),"") -> 
A27: =IF(AJ27=حساب_سائق!$N$2,COUNTIFS($AJ$5:AJ27,AJ27),"") ->  | B27: =الجدول1[[#This Row],[التاريخ]]&الجدول1[[#This Row],[م]] -> 4383123 | C27: 23 | D27: 2020-01-01 | E27: نبيل لطفي | G27: ارما | H27: السويس | J27: 350 | Q27: 5 طن | AD27: =VLOOKUP(الجدول1[[#This Row],[المحافظة]],nnn!$A$4:$D$37,HLOOKUP(الجدول1[[#This Row],[نوع الشحن]],nnn!$A$2:$D$3,2,),) ->  | AE27: =IF(ROUND(الجدول1[[#This Row],[الوزن]]*1,2)<5,5*الجدول1[[#This Row],[السعر]],ROUND(الجدول1[[#This Row],[السعر]]*الجدول1[[#This Row],[الوزن]],2)) ->  | AJ27: =AND(F27=حساب_سائق!$K$2,D27>=حساب_سائق!$G$2,D27<=حساب_سائق!$G$3) -> FALSE | AM27: =IFERROR(INDEX($E$5:$E$7001,MATCH(0,COUNTIF($AM$2:$AM26,$E$5:$E$7001),0)),"") -> اسلام احمد | AN27: =IFERROR(INDEX($F$5:$F$7001,MATCH(0,COUNTIF($AN$2:$AN26,$F$5:$F$7001),0)),"") -> 
A28: =IF(AJ28=حساب_سائق!$N$2,COUNTIFS($AJ$5:AJ28,AJ28),"") ->  | B28: =الجدول1[[#This Row],[التاريخ]]&الجدول1[[#This Row],[م]] -> 4383124 | C28: 24 | D28: 2020-01-01 | E28: اسلام احمد | G28: ارما | H28: البدرشين | J28: 300 | Q28: 5 طن | AD28: =VLOOKUP(الجدول1[[#This Row],[المحافظة]],nnn!$A$4:$D$37,HLOOKUP(الجدول1[[#This Row],[نوع الشحن]],nnn!$A$2:$D$3,2,),) ->  | AE28: =IF(ROUND(الجدول1[[#This Row],[الوزن]]*1,2)<5,5*الجدول1[[#This Row],[السعر]],ROUND(الجدول1[[#This Row],[السعر]]*الجدول1[[#This Row],[الوزن]],2)) ->  | AJ28: =AND(F28=حساب_سائق!$K$2,D28>=حساب_سائق!$G$2,D28<=حساب_سائق!$G$3) -> FALSE | AM28: =IFERROR(INDEX($E$5:$E$7001,MATCH(0,COUNTIF($AM$2:$AM27,$E$5:$E$7001),0)),"") -> محمد الشبراوي | AN28: =IFERROR(INDEX($F$5:$F$7001,MATCH(0,COUNTIF($AN$2:$AN27,$F$5:$F$7001),0)),"") -> 
A29: =IF(AJ29=حساب_سائق!$N$2,COUNTIFS($AJ$5:AJ29,AJ29),"") ->  | B29: =الجدول1[[#This Row],[التاريخ]]&الجدول1[[#This Row],[م]] -> 4383125 | C29: 25 | D29: 2020-01-01 | E29: محمد الشبراوي | G29: ارما | H29: بور سعيد | J29: 400 | Q29: 5 طن | AD29: =VLOOKUP(الجدول1[[#This Row],[المحافظة]],nnn!$A$4:$D$37,HLOOKUP(الجدول1[[#This Row],[نوع الشحن]],nnn!$A$2:$D$3,2,),) ->  | AE29: =IF(ROUND(الجدول1[[#This Row],[الوزن]]*1,2)<5,5*الجدول1[[#This Row],[السعر]],ROUND(الجدول1[[#This Row],[السعر]]*الجدول1[[#This Row],[الوزن]],2)) ->  | AJ29: =AND(F29=حساب_سائق!$K$2,D29>=حساب_سائق!$G$2,D29<=حساب_سائق!$G$3) -> FALSE | AM29: =IFERROR(INDEX($E$5:$E$7001,MATCH(0,COUNTIF($AM$2:$AM28,$E$5:$E$7001),0)),"") -> امين متولي | AN29: =IFERROR(INDEX($F$5:$F$7001,MATCH(0,COUNTIF($AN$2:$AN28,$F$5:$F$7001),0)),"") -> 
A30: =IF(AJ30=حساب_سائق!$N$2,COUNTIFS($AJ$5:AJ30,AJ30),"") ->  | B30: =الجدول1[[#This Row],[التاريخ]]&الجدول1[[#This Row],[م]] -> 4383126 | C30: 26 | D30: 2020-01-01 | E30: امين متولي | G30: ارما | H30: بور سعيد | J30: 600 | Q30: 5 طن | AD30: =VLOOKUP(الجدول1[[#This Row],[المحافظة]],nnn!$A$4:$D$37,HLOOKUP(الجدول1[[#This Row],[نوع الشحن]],nnn!$A$2:$D$3,2,),) ->  | AE30: =IF(ROUND(الجدول1[[#This Row],[الوزن]]*1,2)<5,5*الجدول1[[#This Row],[السعر]],ROUND(الجدول1[[#This Row],[السعر]]*الجدول1[[#This Row],[الوزن]],2)) ->  | AJ30: =AND(F30=حساب_سائق!$K$2,D30>=حساب_سائق!$G$2,D30<=حساب_سائق!$G$3) -> FALSE | AM30: =IFERROR(INDEX($E$5:$E$7001,MATCH(0,COUNTIF($AM$2:$AM29,$E$5:$E$7001),0)),"") -> محمد عبدالحليم | AN30: =IFERROR(INDEX($F$5:$F$7001,MATCH(0,COUNTIF($AN$2:$AN29,$F$5:$F$7001),0)),"") -> 
A31: =IF(AJ31=حساب_سائق!$N$2,COUNTIFS($AJ$5:AJ31,AJ31),"") ->  | B31: =الجدول1[[#This Row],[التاريخ]]&الجدول1[[#This Row],[م]] -> 4383127 | C31: 27 | D31: 2020-01-01 | E31: محمد عبدالحليم | G31: ارما | H31: المعادي | J31: 300 | Q31: 5 طن | AD31: =VLOOKUP(الجدول1[[#This Row],[المحافظة]],nnn!$A$4:$D$37,HLOOKUP(الجدول1[[#This Row],[نوع الشحن]],nnn!$A$2:$D$3,2,),) ->  | AE31: =IF(ROUND(الجدول1[[#This Row],[الوزن]]*1,2)<5,5*الجدول1[[#This Row],[السعر]],ROUND(الجدول1[[#This Row],[السعر]]*الجدول1[[#This Row],[الوزن]],2)) ->  | AJ31: =AND(F31=حساب_سائق!$K$2,D31>=حساب_سائق!$G$2,D31<=حساب_سائق!$G$3) -> FALSE | AM31: =IFERROR(INDEX($E$5:$E$7001,MATCH(0,COUNTIF($AM$2:$AM30,$E$5:$E$7001),0)),"") -> هيثم سيف النصر | AN31: =IFERROR(INDEX($F$5:$F$7001,MATCH(0,COUNTIF($AN$2:$AN30,$F$5:$F$7001),0)),"") -> 
A32: =IF(AJ32=حساب_سائق!$N$2,COUNTIFS($AJ$5:AJ32,AJ32),"") ->  | B32: =الجدول1[[#This Row],[التاريخ]]&الجدول1[[#This Row],[م]] -> 4383128 | C32: 28 | D32: 2020-01-01 | E32: هيثم سيف النصر | G32: ارما | H32: قاهره | J32: 100 | K32: 1000 | Q32: 5 طن | AD32: =VLOOKUP(الجدول1[[#This Row],[المحافظة]],nnn!$A$4:$D$37,HLOOKUP(الجدول1[[#This Row],[نوع الشحن]],nnn!$A$2:$D$3,2,),) ->  | AE32: =IF(ROUND(الجدول1[[#This Row],[الوزن]]*1,2)<5,5*الجدول1[[#This Row],[السعر]],ROUND(الجدول1[[#This Row],[السعر]]*الجدول1[[#This Row],[الوزن]],2)) ->  | AJ32: =AND(F32=حساب_سائق!$K$2,D32>=حساب_سائق!$G$2,D32<=حساب_سائق!$G$3) -> FALSE | AM32: =IFERROR(INDEX($E$5:$E$7001,MATCH(0,COUNTIF($AM$2:$AM31,$E$5:$E$7001),0)),"") -> محمد مسعود | AN32: =IFERROR(INDEX($F$5:$F$7001,MATCH(0,COUNTIF($AN$2:$AN31,$F$5:$F$7001),0)),"") -> 
A33: =IF(AJ33=حساب_سائق!$N$2,COUNTIFS($AJ$5:AJ33,AJ33),"") ->  | B33: =الجدول1[[#This Row],[التاريخ]]&الجدول1[[#This Row],[م]] -> 4383129 | C33: 29 | D33: 2020-01-01 | E33: محمد مسعود | G33: ارما | H33: حلوان | J33: 400 | Q33: 5 طن | AD33: =VLOOKUP(الجدول1[[#This Row],[المحافظة]],nnn!$A$4:$D$37,HLOOKUP(الجدول1[[#This Row],[نوع الشحن]],nnn!$A$2:$D$3,2,),) ->  | AE33: =IF(ROUND(الجدول1[[#This Row],[الوزن]]*1,2)<5,5*الجدول1[[#This Row],[السعر]],ROUND(الجدول1[[#This Row],[السعر]]*الجدول1[[#This Row],[الوزن]],2)) ->  | AJ33: =AND(F33=حساب_سائق!$K$2,D33>=حساب_سائق!$G$2,D33<=حساب_سائق!$G$3) -> FALSE | AM33: =IFERROR(INDEX($E$5:$E$7001,MATCH(0,COUNTIF($AM$2:$AM32,$E$5:$E$7001),0)),"") -> محمد احمد كامل | AN33: =IFERROR(INDEX($F$5:$F$7001,MATCH(0,COUNTIF($AN$2:$AN32,$F$5:$F$7001),0)),"") -> 
A34: =IF(AJ34=حساب_سائق!$N$2,COUNTIFS($AJ$5:AJ34,AJ34),"") ->  | B34: =الجدول1[[#This Row],[التاريخ]]&الجدول1[[#This Row],[م]] -> 438321 | C34: 1 | D34: 2020-01-02 | E34: محمد احمد كامل | G34: ارما | H34: كرداسه | Q34: 5 طن | AD34: =VLOOKUP(الجدول1[[#This Row],[المحافظة]],nnn!$A$4:$D$37,HLOOKUP(الجدول1[[#This Row],[نوع الشحن]],nnn!$A$2:$D$3,2,),) ->  | AE34: =IF(ROUND(الجدول1[[#This Row],[الوزن]]*1,2)<5,5*الجدول1[[#This Row],[السعر]],ROUND(الجدول1[[#This Row],[السعر]]*الجدول1[[#This Row],[الوزن]],2)) ->  | AJ34: =AND(F34=حساب_سائق!$K$2,D34>=حساب_سائق!$G$2,D34<=حساب_سائق!$G$3) -> FALSE | AM34: =IFERROR(INDEX($E$5:$E$7001,MATCH(0,COUNTIF($AM$2:$AM33,$E$5:$E$7001),0)),"") -> احمد جميل | AN34: =IFERROR(INDEX($F$5:$F$7001,MATCH(0,COUNTIF($AN$2:$AN33,$F$5:$F$7001),0)),"") -> 
A35: =IF(AJ35=حساب_سائق!$N$2,COUNTIFS($AJ$5:AJ35,AJ35),"") ->  | B35: =الجدول1[[#This Row],[التاريخ]]&الجدول1[[#This Row],[م]] -> 438322 | C35: 2 | D35: 2020-01-02 | E35: احمد جميل | G35: ارما | H35: الحرمين | J35: 500 | Q35: 5 طن | AD35: =VLOOKUP(الجدول1[[#This Row],[المحافظة]],nnn!$A$4:$D$37,HLOOKUP(الجدول1[[#This Row],[نوع الشحن]],nnn!$A$2:$D$3,2,),) ->  | AE35: =IF(ROUND(الجدول1[[#This Row],[الوزن]]*1,2)<5,5*الجدول1[[#This Row],[السعر]],ROUND(الجدول1[[#This Row],[السعر]]*الجدول1[[#This Row],[الوزن]],2)) ->  | AJ35: =AND(F35=حساب_سائق!$K$2,D35>=حساب_سائق!$G$2,D35<=حساب_سائق!$G$3) -> FALSE | AM35: =IFERROR(INDEX($E$5:$E$7001,MATCH(0,COUNTIF($AM$2:$AM34,$E$5:$E$7001),0)),"") -> عبدالحكيم مرزوق | AN35: =IFERROR(INDEX($F$5:$F$7001,MATCH(0,COUNTIF($AN$2:$AN34,$F$5:$F$7001),0)),"") -> 
A36: =IF(AJ36=حساب_سائق!$N$2,COUNTIFS($AJ$5:AJ36,AJ36),"") ->  | B36: =الجدول1[[#This Row],[التاريخ]]&الجدول1[[#This Row],[م]] -> 438323 | C36: 3 | D36: 2020-01-02 | E36: عبدالحكيم مرزوق | G36: ارما | H36: اسكندريه | J36: 600 | Q36: 5 طن | AD36: =VLOOKUP(الجدول1[[#This Row],[المحافظة]],nnn!$A$4:$D$37,HLOOKUP(الجدول1[[#This Row],[نوع الشحن]],nnn!$A$2:$D$3,2,),) ->  | AE36: =IF(ROUND(الجدول1[[#This Row],[الوزن]]*1,2)<5,5*الجدول1[[#This Row],[السعر]],ROUND(الجدول1[[#This Row],[السعر]]*الجدول1[[#This Row],[الوزن]],2)) ->  | AJ36: =AND(F36=حساب_سائق!$K$2,D36>=حساب_سائق!$G$2,D36<=حساب_سائق!$G$3) -> FALSE | AM36: =IFERROR(INDEX($E$5:$E$7001,MATCH(0,COUNTIF($AM$2:$AM35,$E$5:$E$7001),0)),"") -> ابراهيم محمد ابراهيم | AN36: =IFERROR(INDEX($F$5:$F$7001,MATCH(0,COUNTIF($AN$2:$AN35,$F$5:$F$7001),0)),"") -> 
A37: =IF(AJ37=حساب_سائق!$N$2,COUNTIFS($AJ$5:AJ37,AJ37),"") ->  | B37: =الجدول1[[#This Row],[التاريخ]]&الجدول1[[#This Row],[م]] -> 438324 | C37: 4 | D37: 2020-01-02 | E37: هيثم سيف النصر | G37: ارما | H37: اسكندريه | J37: 200 | Q37: 5 طن | AD37: =VLOOKUP(الجدول1[[#This Row],[المحافظة]],nnn!$A$4:$D$37,HLOOKUP(الجدول1[[#This Row],[نوع الشحن]],nnn!$A$2:$D$3,2,),) ->  | AE37: =IF(ROUND(الجدول1[[#This Row],[الوزن]]*1,2)<5,5*الجدول1[[#This Row],[السعر]],ROUND(الجدول1[[#This Row],[السعر]]*الجدول1[[#This Row],[الوزن]],2)) ->  | AJ37: =AND(F37=حساب_سائق!$K$2,D37>=حساب_سائق!$G$2,D37<=حساب_سائق!$G$3) -> FALSE | AM37: =IFERROR(INDEX($E$5:$E$7001,MATCH(0,COUNTIF($AM$2:$AM36,$E$5:$E$7001),0)),"") -> محمد علي | AN37: =IFERROR(INDEX($F$5:$F$7001,MATCH(0,COUNTIF($AN$2:$AN36,$F$5:$F$7001),0)),"") -> 
A38: =IF(AJ38=حساب_سائق!$N$2,COUNTIFS($AJ$5:AJ38,AJ38),"") ->  | B38: =الجدول1[[#This Row],[التاريخ]]&الجدول1[[#This Row],[م]] -> 438325 | C38: 5 | D38: 2020-01-02 | E38: ابراهيم محمد ابراهيم | G38: ارما | H38: طنطا | J38: 800 | Q38: 5 طن | AD38: =VLOOKUP(الجدول1[[#This Row],[المحافظة]],nnn!$A$4:$D$37,HLOOKUP(الجدول1[[#This Row],[نوع الشحن]],nnn!$A$2:$D$3,2,),) ->  | AE38: =IF(ROUND(الجدول1[[#This Row],[الوزن]]*1,2)<5,5*الجدول1[[#This Row],[السعر]],ROUND(الجدول1[[#This Row],[السعر]]*الجدول1[[#This Row],[الوزن]],2)) ->  | AJ38: =AND(F38=حساب_سائق!$K$2,D38>=حساب_سائق!$G$2,D38<=حساب_سائق!$G$3) -> FALSE | AM38: =IFERROR(INDEX($E$5:$E$7001,MATCH(0,COUNTIF($AM$2:$AM37,$E$5:$E$7001),0)),"") -> محمد بسيوني | AN38: =IFERROR(INDEX($F$5:$F$7001,MATCH(0,COUNTIF($AN$2:$AN37,$F$5:$F$7001),0)),"") -> 
A39: =IF(AJ39=حساب_سائق!$N$2,COUNTIFS($AJ$5:AJ39,AJ39),"") ->  | B39: =الجدول1[[#This Row],[التاريخ]]&الجدول1[[#This Row],[م]] -> 438326 | C39: 6 | D39: 2020-01-02 | E39: محمد علي | G39: ارما | H39: اسكندريه | J39: 1000 | Q39: 5 طن | AD39: =VLOOKUP(الجدول1[[#This Row],[المحافظة]],nnn!$A$4:$D$37,HLOOKUP(الجدول1[[#This Row],[نوع الشحن]],nnn!$A$2:$D$3,2,),) ->  | AE39: =IF(ROUND(الجدول1[[#This Row],[الوزن]]*1,2)<5,5*الجدول1[[#This Row],[السعر]],ROUND(الجدول1[[#This Row],[السعر]]*الجدول1[[#This Row],[الوزن]],2)) ->  | AJ39: =AND(F39=حساب_سائق!$K$2,D39>=حساب_سائق!$G$2,D39<=حساب_سائق!$G$3) -> FALSE | AM39: =IFERROR(INDEX($E$5:$E$7001,MATCH(0,COUNTIF($AM$2:$AM38,$E$5:$E$7001),0)),"") -> اسلام محمد | AN39: =IFERROR(INDEX($F$5:$F$7001,MATCH(0,COUNTIF($AN$2:$AN38,$F$5:$F$7001),0)),"") -> 
A40: =IF(AJ40=حساب_سائق!$N$2,COUNTIFS($AJ$5:AJ40,AJ40),"") ->  | B40: =الجدول1[[#This Row],[التاريخ]]&الجدول1[[#This Row],[م]] -> 438327 | C40: 7 | D40: 2020-01-02 | E40: محمود يوسف | G40: ارما | H40: ترست | J40: 1500 | Q40: 5 طن | AD40: =VLOOKUP(الجدول1[[#This Row],[المحافظة]],nnn!$A$4:$D$37,HLOOKUP(الجدول1[[#This Row],[نوع الشحن]],nnn!$A$2:$D$3,2,),) ->  | AE40: =IF(ROUND(الجدول1[[#This Row],[الوزن]]*1,2)<5,5*الجدول1[[#This Row],[السعر]],ROUND(الجدول1[[#This Row],[السعر]]*الجدول1[[#This Row],[الوزن]],2)) ->  | AJ40: =AND(F40=حساب_سائق!$K$2,D40>=حساب_سائق!$G$2,D40<=حساب_سائق!$G$3) -> FALSE | AM40: =IFERROR(INDEX($E$5:$E$7001,MATCH(0,COUNTIF($AM$2:$AM39,$E$5:$E$7001),0)),"") -> ابراهيم رزق | AN40: =IFERROR(INDEX($F$5:$F$7001,MATCH(0,COUNTIF($AN$2:$AN39,$F$5:$F$7001),0)),"") -> 
A41: =IF(AJ41=حساب_سائق!$N$2,COUNTIFS($AJ$5:AJ41,AJ41),"") ->  | B41: =الجدول1[[#This Row],[التاريخ]]&الجدول1[[#This Row],[م]] -> 438328 | C41: 8 | D41: 2020-01-02 | E41: محمد بسيوني | G41: ارما | H41: ترست | J41: 1000 | Q41: 5 طن | AD41: =VLOOKUP(الجدول1[[#This Row],[المحافظة]],nnn!$A$4:$D$37,HLOOKUP(الجدول1[[#This Row],[نوع الشحن]],nnn!$A$2:$D$3,2,),) ->  | AE41: =IF(ROUND(الجدول1[[#This Row],[الوزن]]*1,2)<5,5*الجدول1[[#This Row],[السعر]],ROUND(الجدول1[[#This Row],[السعر]]*الجدول1[[#This Row],[الوزن]],2)) ->  | AJ41: =AND(F41=حساب_سائق!$K$2,D41>=حساب_سائق!$G$2,D41<=حساب_سائق!$G$3) -> FALSE | AM41: =IFERROR(INDEX($E$5:$E$7001,MATCH(0,COUNTIF($AM$2:$AM40,$E$5:$E$7001),0)),"") -> سامح مبروك | AN41: =IFERROR(INDEX($F$5:$F$7001,MATCH(0,COUNTIF($AN$2:$AN40,$F$5:$F$7001),0)),"") -> 
A42: =IF(AJ42=حساب_سائق!$N$2,COUNTIFS($AJ$5:AJ42,AJ42),"") ->  | B42: =الجدول1[[#This Row],[التاريخ]]&الجدول1[[#This Row],[م]] -> 438329 | C42: 9 | D42: 2020-01-02 | E42: محمود رضا | G42: ارما | H42: داندي | J42: 1000 | Q42: 5 طن | AD42: =VLOOKUP(الجدول1[[#This Row],[المحافظة]],nnn!$A$4:$D$37,HLOOKUP(الجدول1[[#This Row],[نوع الشحن]],nnn!$A$2:$D$3,2,),) ->  | AE42: =IF(ROUND(الجدول1[[#This Row],[الوزن]]*1,2)<5,5*الجدول1[[#This Row],[السعر]],ROUND(الجدول1[[#This Row],[السعر]]*الجدول1[[#This Row],[الوزن]],2)) ->  | AJ42: =AND(F42=حساب_سائق!$K$2,D42>=حساب_سائق!$G$2,D42<=حساب_سائق!$G$3) -> FALSE | AM42: =IFERROR(INDEX($E$5:$E$7001,MATCH(0,COUNTIF($AM$2:$AM41,$E$5:$E$7001),0)),"") -> محمود عفيفي | AN42: =IFERROR(INDEX($F$5:$F$7001,MATCH(0,COUNTIF($AN$2:$AN41,$F$5:$F$7001),0)),"") -> 
A43: =IF(AJ43=حساب_سائق!$N$2,COUNTIFS($AJ$5:AJ43,AJ43),"") ->  | B43: =الجدول1[[#This Row],[التاريخ]]&الجدول1[[#This Row],[م]] -> 4383210 | C43: 10 | D43: 2020-01-02 | E43: اسلام محمد | G43: ارما | H43: مول مصر | J43: 500 | Q43: 5 طن | AD43: =VLOOKUP(الجدول1[[#This Row],[المحافظة]],nnn!$A$4:$D$37,HLOOKUP(الجدول1[[#This Row],[نوع الشحن]],nnn!$A$2:$D$3,2,),) ->  | AE43: =IF(ROUND(الجدول1[[#This Row],[الوزن]]*1,2)<5,5*الجدول1[[#This Row],[السعر]],ROUND(الجدول1[[#This Row],[السعر]]*الجدول1[[#This Row],[الوزن]],2)) ->  | AJ43: =AND(F43=حساب_سائق!$K$2,D43>=حساب_سائق!$G$2,D43<=حساب_سائق!$G$3) -> FALSE | AM43: =IFERROR(INDEX($E$5:$E$7001,MATCH(0,COUNTIF($AM$2:$AM42,$E$5:$E$7001),0)),"") -> محمد عبدالحكيم | AN43: =IFERROR(INDEX($F$5:$F$7001,MATCH(0,COUNTIF($AN$2:$AN42,$F$5:$F$7001),0)),"") -> 
A44: =IF(AJ44=حساب_سائق!$N$2,COUNTIFS($AJ$5:AJ44,AJ44),"") ->  | B44: =الجدول1[[#This Row],[التاريخ]]&الجدول1[[#This Row],[م]] -> 4383211 | C44: 11 | D44: 2020-01-02 | E44: محمد شوقي | G44: ارما | H44: اسكندريه | J44: 400 | Q44: 5 طن | AD44: =VLOOKUP(الجدول1[[#This Row],[المحافظة]],nnn!$A$4:$D$37,HLOOKUP(الجدول1[[#This Row],[نوع الشحن]],nnn!$A$2:$D$3,2,),) ->  | AE44: =IF(ROUND(الجدول1[[#This Row],[الوزن]]*1,2)<5,5*الجدول1[[#This Row],[السعر]],ROUND(الجدول1[[#This Row],[السعر]]*الجدول1[[#This Row],[الوزن]],2)) ->  | AJ44: =AND(F44=حساب_سائق!$K$2,D44>=حساب_سائق!$G$2,D44<=حساب_سائق!$G$3) -> FALSE | AM44: =IFERROR(INDEX($E$5:$E$7001,MATCH(0,COUNTIF($AM$2:$AM43,$E$5:$E$7001),0)),"") -> هاني سامي | AN44: =IFERROR(INDEX($F$5:$F$7001,MATCH(0,COUNTIF($AN$2:$AN43,$F$5:$F$7001),0)),"") -> 
A45: =IF(AJ45=حساب_سائق!$N$2,COUNTIFS($AJ$5:AJ45,AJ45),"") ->  | B45: =الجدول1[[#This Row],[التاريخ]]&الجدول1[[#This Row],[م]] -> 4383212 | C45: 12 | D45: 2020-01-02 | E45: ابراهيم رزق | G45: ارما | H45: كفر الشيخ | J45: 2000 | Q45: 5 طن | V45: جرار | AD45: =VLOOKUP(الجدول1[[#This Row],[المحافظة]],nnn!$A$4:$D$37,HLOOKUP(الجدول1[[#This Row],[نوع الشحن]],nnn!$A$2:$D$3,2,),) ->  | AE45: =IF(ROUND(الجدول1[[#This Row],[الوزن]]*1,2)<5,5*الجدول1[[#This Row],[السعر]],ROUND(الجدول1[[#This Row],[السعر]]*الجدول1[[#This Row],[الوزن]],2)) ->  | AJ45: =AND(F45=حساب_سائق!$K$2,D45>=حساب_سائق!$G$2,D45<=حساب_سائق!$G$3) -> FALSE | AM45: =IFERROR(INDEX($E$5:$E$7001,MATCH(0,COUNTIF($AM$2:$AM44,$E$5:$E$7001),0)),"") -> 0 | AN45: =IFERROR(INDEX($F$5:$F$7001,MATCH(0,COUNTIF($AN$2:$AN44,$F$5:$F$7001),0)),"") -> 
A46: =IF(AJ46=حساب_سائق!$N$2,COUNTIFS($AJ$5:AJ46,AJ46),"") ->  | B46: =الجدول1[[#This Row],[التاريخ]]&الجدول1[[#This Row],[م]] -> 4383213 | C46: 13 | D46: 2020-01-02 | E46: سامح مبروك | G46: ارما | H46: بحيره | J46: 1000 | Q46: 5 طن | AD46: =VLOOKUP(الجدول1[[#This Row],[المحافظة]],nnn!$A$4:$D$37,HLOOKUP(الجدول1[[#This Row],[نوع الشحن]],nnn!$A$2:$D$3,2,),) ->  | AE46: =IF(ROUND(الجدول1[[#This Row],[الوزن]]*1,2)<5,5*الجدول1[[#This Row],[السعر]],ROUND(الجدول1[[#This Row],[السعر]]*الجدول1[[#This Row],[الوزن]],2)) ->  | AJ46: =AND(F46=حساب_سائق!$K$2,D46>=حساب_سائق!$G$2,D46<=حساب_سائق!$G$3) -> FALSE | AM46: =IFERROR(INDEX($E$5:$E$7001,MATCH(0,COUNTIF($AM$2:$AM45,$E$5:$E$7001),0)),"") ->  | AN46: =IFERROR(INDEX($F$5:$F$7001,MATCH(0,COUNTIF($AN$2:$AN45,$F$5:$F$7001),0)),"") -> 
A47: =IF(AJ47=حساب_سائق!$N$2,COUNTIFS($AJ$5:AJ47,AJ47),"") ->  | B47: =الجدول1[[#This Row],[التاريخ]]&الجدول1[[#This Row],[م]] -> 4383214 | C47: 14 | D47: 2020-01-02 | E47: محمود عفيفي | G47: ارما | H47: اسكندريه | J47: 600 | Q47: 5 طن | AD47: =VLOOKUP(الجدول1[[#This Row],[المحافظة]],nnn!$A$4:$D$37,HLOOKUP(الجدول1[[#This Row],[نوع الشحن]],nnn!$A$2:$D$3,2,),) ->  | AE47: =IF(ROUND(الجدول1[[#This Row],[الوزن]]*1,2)<5,5*الجدول1[[#This Row],[السعر]],ROUND(الجدول1[[#This Row],[السعر]]*الجدول1[[#This Row],[الوزن]],2)) ->  | AJ47: =AND(F47=حساب_سائق!$K$2,D47>=حساب_سائق!$G$2,D47<=حساب_سائق!$G$3) -> FALSE | AM47: =IFERROR(INDEX($E$5:$E$7001,MATCH(0,COUNTIF($AM$2:$AM46,$E$5:$E$7001),0)),"") ->  | AN47: =IFERROR(INDEX($F$5:$F$7001,MATCH(0,COUNTIF($AN$2:$AN46,$F$5:$F$7001),0)),"") -> 
A48: =IF(AJ48=حساب_سائق!$N$2,COUNTIFS($AJ$5:AJ48,AJ48),"") ->  | B48: =الجدول1[[#This Row],[التاريخ]]&الجدول1[[#This Row],[م]] -> 4383215 | C48: 15 | D48: 2020-01-02 | E48: نبيل لطفي | G48: ارما | H48: بحيره | J48: 1000 | Q48: 5 طن | AD48: =VLOOKUP(الجدول1[[#This Row],[المحافظة]],nnn!$A$4:$D$37,HLOOKUP(الجدول1[[#This Row],[نوع الشحن]],nnn!$A$2:$D$3,2,),) ->  | AE48: =IF(ROUND(الجدول1[[#This Row],[الوزن]]*1,2)<5,5*الجدول1[[#This Row],[السعر]],ROUND(الجدول1[[#This Row],[السعر]]*الجدول1[[#This Row],[الوزن]],2)) ->  | AJ48: =AND(F48=حساب_سائق!$K$2,D48>=حساب_سائق!$G$2,D48<=حساب_سائق!$G$3) -> FALSE | AM48: =IFERROR(INDEX($E$5:$E$7001,MATCH(0,COUNTIF($AM$2:$AM47,$E$5:$E$7001),0)),"") ->  | AN48: =IFERROR(INDEX($F$5:$F$7001,MATCH(0,COUNTIF($AN$2:$AN47,$F$5:$F$7001),0)),"") -> 
A49: =IF(AJ49=حساب_سائق!$N$2,COUNTIFS($AJ$5:AJ49,AJ49),"") ->  | B49: =الجدول1[[#This Row],[التاريخ]]&الجدول1[[#This Row],[م]] -> 4383216 | C49: 16 | D49: 2020-01-02 | E49: محمود عبدالعظيم | G49: ارما | H49: بحيره | J49: 500 | Q49: 5 طن | AD49: =VLOOKUP(الجدول1[[#This Row],[المحافظة]],nnn!$A$4:$D$37,HLOOKUP(الجدول1[[#This Row],[نوع الشحن]],nnn!$A$2:$D$3,2,),) ->  | AE49: =IF(ROUND(الجدول1[[#This Row],[الوزن]]*1,2)<5,5*الجدول1[[#This Row],[السعر]],ROUND(الجدول1[[#This Row],[السعر]]*الجدول1[[#This Row],[الوزن]],2)) ->  | AJ49: =AND(F49=حساب_سائق!$K$2,D49>=حساب_سائق!$G$2,D49<=حساب_سائق!$G$3) -> FALSE | AM49: =IFERROR(INDEX($E$5:$E$7001,MATCH(0,COUNTIF($AM$2:$AM48,$E$5:$E$7001),0)),"") ->  | AN49: =IFERROR(INDEX($F$5:$F$7001,MATCH(0,COUNTIF($AN$2:$AN48,$F$5:$F$7001),0)),"") -> 
A50: =IF(AJ50=حساب_سائق!$N$2,COUNTIFS($AJ$5:AJ50,AJ50),"") ->  | B50: =الجدول1[[#This Row],[التاريخ]]&الجدول1[[#This Row],[م]] -> 4383217 | C50: 17 | D50: 2020-01-02 | E50: اسلام احمد | G50: ارما | H50: باسوس | J50: 1000 | Q50: 5 طن | AD50: =VLOOKUP(الجدول1[[#This Row],[المحافظة]],nnn!$A$4:$D$37,HLOOKUP(الجدول1[[#This Row],[نوع الشحن]],nnn!$A$2:$D$3,2,),) ->  | AE50: =IF(ROUND(الجدول1[[#This Row],[الوزن]]*1,2)<5,5*الجدول1[[#This Row],[السعر]],ROUND(الجدول1[[#This Row],[السعر]]*الجدول1[[#This Row],[الوزن]],2)) ->  | AJ50: =AND(F50=حساب_سائق!$K$2,D50>=حساب_سائق!$G$2,D50<=حساب_سائق!$G$3) -> FALSE | AM50: =IFERROR(INDEX($E$5:$E$7001,MATCH(0,COUNTIF($AM$2:$AM49,$E$5:$E$7001),0)),"") ->  | AN50: =IFERROR(INDEX($F$5:$F$7001,MATCH(0,COUNTIF($AN$2:$AN49,$F$5:$F$7001),0)),"") -> 
A51: =IF(AJ51=حساب_سائق!$N$2,COUNTIFS($AJ$5:AJ51,AJ51),"") ->  | B51: =الجدول1[[#This Row],[التاريخ]]&الجدول1[[#This Row],[م]] -> 4383218 | C51: 18 | D51: 2020-01-02 | E51: محمد عبدالحكيم | G51: ارما | H51: بحيره | J51: 1000 | Q51: 5 طن | AD51: =VLOOKUP(الجدول1[[#This Row],[المحافظة]],nnn!$A$4:$D$37,HLOOKUP(الجدول1[[#This Row],[نوع الشحن]],nnn!$A$2:$D$3,2,),) ->  | AE51: =IF(ROUND(الجدول1[[#This Row],[الوزن]]*1,2)<5,5*الجدول1[[#This Row],[السعر]],ROUND(الجدول1[[#This Row],[السعر]]*الجدول1[[#This Row],[الوزن]],2)) ->  | AJ51: =AND(F51=حساب_سائق!$K$2,D51>=حساب_سائق!$G$2,D51<=حساب_سائق!$G$3) -> FALSE | AM51: =IFERROR(INDEX($E$5:$E$7001,MATCH(0,COUNTIF($AM$2:$AM50,$E$5:$E$7001),0)),"") ->  | AN51: =IFERROR(INDEX($F$5:$F$7001,MATCH(0,COUNTIF($AN$2:$AN50,$F$5:$F$7001),0)),"") -> 
A52: =IF(AJ52=حساب_سائق!$N$2,COUNTIFS($AJ$5:AJ52,AJ52),"") ->  | B52: =الجدول1[[#This Row],[التاريخ]]&الجدول1[[#This Row],[م]] -> 4383219 | C52: 19 | D52: 2020-01-02 | E52: علي محمد | G52: ارما | H52: اسكندريه | J52: 200 | Q52: 5 طن | AD52: =VLOOKUP(الجدول1[[#This Row],[المحافظة]],nnn!$A$4:$D$37,HLOOKUP(الجدول1[[#This Row],[نوع الشحن]],nnn!$A$2:$D$3,2,),) ->  | AE52: =IF(ROUND(الجدول1[[#This Row],[الوزن]]*1,2)<5,5*الجدول1[[#This Row],[السعر]],ROUND(الجدول1[[#This Row],[السعر]]*الجدول1[[#This Row],[الوزن]],2)) ->  | AJ52: =AND(F52=حساب_سائق!$K$2,D52>=حساب_سائق!$G$2,D52<=حساب_سائق!$G$3) -> FALSE | AM52: =IFERROR(INDEX($E$5:$E$7001,MATCH(0,COUNTIF($AM$2:$AM51,$E$5:$E$7001),0)),"") ->  | AN52: =IFERROR(INDEX($F$5:$F$7001,MATCH(0,COUNTIF($AN$2:$AN51,$F$5:$F$7001),0)),"") -> 
A53: =IF(AJ53=حساب_سائق!$N$2,COUNTIFS($AJ$5:AJ53,AJ53),"") ->  | B53: =الجدول1[[#This Row],[التاريخ]]&الجدول1[[#This Row],[م]] -> 4383220 | C53: 20 | D53: 2020-01-02 | E53: محمود احمد | L53: 500 | Q53: 5 طن | AD53: =VLOOKUP(الجدول1[[#This Row],[المحافظة]],nnn!$A$4:$D$37,HLOOKUP(الجدول1[[#This Row],[نوع الشحن]],nnn!$A$2:$D$3,2,),) ->  | AE53: =IF(ROUND(الجدول1[[#This Row],[الوزن]]*1,2)<5,5*الجدول1[[#This Row],[السعر]],ROUND(الجدول1[[#This Row],[السعر]]*الجدول1[[#This Row],[الوزن]],2)) ->  | AJ53: =AND(F53=حساب_سائق!$K$2,D53>=حساب_سائق!$G$2,D53<=حساب_سائق!$G$3) -> FALSE | AM53: =IFERROR(INDEX($E$5:$E$7001,MATCH(0,COUNTIF($AM$2:$AM52,$E$5:$E$7001),0)),"") ->  | AN53: =IFERROR(INDEX($F$5:$F$7001,MATCH(0,COUNTIF($AN$2:$AN52,$F$5:$F$7001),0)),"") -> 
A54: =IF(AJ54=حساب_سائق!$N$2,COUNTIFS($AJ$5:AJ54,AJ54),"") ->  | B54: =الجدول1[[#This Row],[التاريخ]]&الجدول1[[#This Row],[م]] -> 4383221 | C54: 21 | D54: 2020-01-02 | E54: هاني سامي | L54: 500 | Q54: 5 طن | AD54: =VLOOKUP(الجدول1[[#This Row],[المحافظة]],nnn!$A$4:$D$37,HLOOKUP(الجدول1[[#This Row],[نوع الشحن]],nnn!$A$2:$D$3,2,),) ->  | AE54: =IF(ROUND(الجدول1[[#This Row],[الوزن]]*1,2)<5,5*الجدول1[[#This Row],[السعر]],ROUND(الجدول1[[#This Row],[السعر]]*الجدول1[[#This Row],[الوزن]],2)) ->  | AJ54: =AND(F54=حساب_سائق!$K$2,D54>=حساب_سائق!$G$2,D54<=حساب_سائق!$G$3) -> FALSE | AM54: =IFERROR(INDEX($E$5:$E$7001,MATCH(0,COUNTIF($AM$2:$AM53,$E$5:$E$7001),0)),"") ->  | AN54: =IFERROR(INDEX($F$5:$F$7001,MATCH(0,COUNTIF($AN$2:$AN53,$F$5:$F$7001),0)),"") -> 
A55: =IF(AJ55=حساب_سائق!$N$2,COUNTIFS($AJ$5:AJ55,AJ55),"") ->  | B55: =الجدول1[[#This Row],[التاريخ]]&الجدول1[[#This Row],[م]] -> 4383222 | C55: 22 | D55: 2020-01-02 | E55: محمد فتحي | L55: 500 | Q55: 5 طن | AD55: =VLOOKUP(الجدول1[[#This Row],[المحافظة]],nnn!$A$4:$D$37,HLOOKUP(الجدول1[[#This Row],[نوع الشحن]],nnn!$A$2:$D$3,2,),) ->  | AE55: =IF(ROUND(الجدول1[[#This Row],[الوزن]]*1,2)<5,5*الجدول1[[#This Row],[السعر]],ROUND(الجدول1[[#This Row],[السعر]]*الجدول1[[#This Row],[الوزن]],2)) ->  | AJ55: =AND(F55=حساب_سائق!$K$2,D55>=حساب_سائق!$G$2,D55<=حساب_سائق!$G$3) -> FALSE | AM55: =IFERROR(INDEX($E$5:$E$7001,MATCH(0,COUNTIF($AM$2:$AM54,$E$5:$E$7001),0)),"") ->  | AN55: =IFERROR(INDEX($F$5:$F$7001,MATCH(0,COUNTIF($AN$2:$AN54,$F$5:$F$7001),0)),"") -> 
AJ56: =AND(F56=حساب_سائق!$K$2,D56>=حساب_سائق!$G$2,D56<=حساب_سائق!$G$3) -> FALSE | AM56: =IFERROR(INDEX($E$5:$E$7001,MATCH(0,COUNTIF($AM$2:$AM55,$E$5:$E$7001),0)),"") ->  | AN56: =IFERROR(INDEX($F$5:$F$7001,MATCH(0,COUNTIF($AN$2:$AN55,$F$5:$F$7001),0)),"") -> 
AJ57: =AND(F57=حساب_سائق!$K$2,D57>=حساب_سائق!$G$2,D57<=حساب_سائق!$G$3) -> FALSE | AM57: =IFERROR(INDEX($E$5:$E$7001,MATCH(0,COUNTIF($AM$2:$AM56,$E$5:$E$7001),0)),"") ->  | AN57: =IFERROR(INDEX($F$5:$F$7001,MATCH(0,COUNTIF($AN$2:$AN56,$F$5:$F$7001),0)),"") -> 
AJ58: =AND(F58=حساب_سائق!$K$2,D58>=حساب_سائق!$G$2,D58<=حساب_سائق!$G$3) -> FALSE | AM58: =IFERROR(INDEX($E$5:$E$7001,MATCH(0,COUNTIF($AM$2:$AM57,$E$5:$E$7001),0)),"") ->  | AN58: =IFERROR(INDEX($F$5:$F$7001,MATCH(0,COUNTIF($AN$2:$AN57,$F$5:$F$7001),0)),"") -> 
AJ59: =AND(F59=حساب_سائق!$K$2,D59>=حساب_سائق!$G$2,D59<=حساب_سائق!$G$3) -> FALSE | AM59: =IFERROR(INDEX($E$5:$E$7001,MATCH(0,COUNTIF($AM$2:$AM58,$E$5:$E$7001),0)),"") ->  | AN59: =IFERROR(INDEX($F$5:$F$7001,MATCH(0,COUNTIF($AN$2:$AN58,$F$5:$F$7001),0)),"") -> 
AJ60: =AND(F60=حساب_سائق!$K$2,D60>=حساب_سائق!$G$2,D60<=حساب_سائق!$G$3) -> FALSE | AM60: =IFERROR(INDEX($E$5:$E$7001,MATCH(0,COUNTIF($AM$2:$AM59,$E$5:$E$7001),0)),"") ->  | AN60: =IFERROR(INDEX($F$5:$F$7001,MATCH(0,COUNTIF($AN$2:$AN59,$F$5:$F$7001),0)),"") -> 
AJ61: =AND(F61=حساب_سائق!$K$2,D61>=حساب_سائق!$G$2,D61<=حساب_سائق!$G$3) -> FALSE | AM61: =IFERROR(INDEX($E$5:$E$7001,MATCH(0,COUNTIF($AM$2:$AM60,$E$5:$E$7001),0)),"") ->  | AN61: =IFERROR(INDEX($F$5:$F$7001,MATCH(0,COUNTIF($AN$2:$AN60,$F$5:$F$7001),0)),"") -> 
AJ62: =AND(F62=حساب_سائق!$K$2,D62>=حساب_سائق!$G$2,D62<=حساب_سائق!$G$3) -> FALSE | AM62: =IFERROR(INDEX($E$5:$E$7001,MATCH(0,COUNTIF($AM$2:$AM61,$E$5:$E$7001),0)),"") ->  | AN62: =IFERROR(INDEX($F$5:$F$7001,MATCH(0,COUNTIF($AN$2:$AN61,$F$5:$F$7001),0)),"") -> 
AJ63: =AND(F63=حساب_سائق!$K$2,D63>=حساب_سائق!$G$2,D63<=حساب_سائق!$G$3) -> FALSE | AM63: =IFERROR(INDEX($E$5:$E$7001,MATCH(0,COUNTIF($AM$2:$AM62,$E$5:$E$7001),0)),"") ->  | AN63: =IFERROR(INDEX($F$5:$F$7001,MATCH(0,COUNTIF($AN$2:$AN62,$F$5:$F$7001),0)),"") -> 
AJ64: =AND(F64=حساب_سائق!$K$2,D64>=حساب_سائق!$G$2,D64<=حساب_سائق!$G$3) -> FALSE | AM64: =IFERROR(INDEX($E$5:$E$7001,MATCH(0,COUNTIF($AM$2:$AM63,$E$5:$E$7001),0)),"") ->  | AN64: =IFERROR(INDEX($F$5:$F$7001,MATCH(0,COUNTIF($AN$2:$AN63,$F$5:$F$7001),0)),"") -> 
AJ65: =AND(F65=حساب_سائق!$K$2,D65>=حساب_سائق!$G$2,D65<=حساب_سائق!$G$3) -> FALSE | AM65: =IFERROR(INDEX($E$5:$E$7001,MATCH(0,COUNTIF($AM$2:$AM64,$E$5:$E$7001),0)),"") ->  | AN65: =IFERROR(INDEX($F$5:$F$7001,MATCH(0,COUNTIF($AN$2:$AN64,$F$5:$F$7001),0)),"") -> 
AJ66: =AND(F66=حساب_سائق!$K$2,D66>=حساب_سائق!$G$2,D66<=حساب_سائق!$G$3) -> FALSE | AM66: =IFERROR(INDEX($E$5:$E$7001,MATCH(0,COUNTIF($AM$2:$AM65,$E$5:$E$7001),0)),"") ->  | AN66: =IFERROR(INDEX($F$5:$F$7001,MATCH(0,COUNTIF($AN$2:$AN65,$F$5:$F$7001),0)),"") -> 
AJ67: =AND(F67=حساب_سائق!$K$2,D67>=حساب_سائق!$G$2,D67<=حساب_سائق!$G$3) -> FALSE | AM67: =IFERROR(INDEX($E$5:$E$7001,MATCH(0,COUNTIF($AM$2:$AM66,$E$5:$E$7001),0)),"") ->  | AN67: =IFERROR(INDEX($F$5:$F$7001,MATCH(0,COUNTIF($AN$2:$AN66,$F$5:$F$7001),0)),"") -> 
AJ68: =AND(F68=حساب_سائق!$K$2,D68>=حساب_سائق!$G$2,D68<=حساب_سائق!$G$3) -> FALSE | AM68: =IFERROR(INDEX($E$5:$E$7001,MATCH(0,COUNTIF($AM$2:$AM67,$E$5:$E$7001),0)),"") ->  | AN68: =IFERROR(INDEX($F$5:$F$7001,MATCH(0,COUNTIF($AN$2:$AN67,$F$5:$F$7001),0)),"") -> 
AJ69: =AND(F69=حساب_سائق!$K$2,D69>=حساب_سائق!$G$2,D69<=حساب_سائق!$G$3) -> FALSE | AM69: =IFERROR(INDEX($E$5:$E$7001,MATCH(0,COUNTIF($AM$2:$AM68,$E$5:$E$7001),0)),"") ->  | AN69: =IFERROR(INDEX($F$5:$F$7001,MATCH(0,COUNTIF($AN$2:$AN68,$F$5:$F$7001),0)),"") -> 
AJ70: =AND(F70=حساب_سائق!$K$2,D70>=حساب_سائق!$G$2,D70<=حساب_سائق!$G$3) -> FALSE | AM70: =IFERROR(INDEX($E$5:$E$7001,MATCH(0,COUNTIF($AM$2:$AM69,$E$5:$E$7001),0)),"") ->  | AN70: =IFERROR(INDEX($F$5:$F$7001,MATCH(0,COUNTIF($AN$2:$AN69,$F$5:$F$7001),0)),"") -> 
AJ71: =AND(F71=حساب_سائق!$K$2,D71>=حساب_سائق!$G$2,D71<=حساب_سائق!$G$3) -> FALSE | AM71: =IFERROR(INDEX($E$5:$E$7001,MATCH(0,COUNTIF($AM$2:$AM70,$E$5:$E$7001),0)),"") ->  | AN71: =IFERROR(INDEX($F$5:$F$7001,MATCH(0,COUNTIF($AN$2:$AN70,$F$5:$F$7001),0)),"") -> 
AJ72: =AND(F72=حساب_سائق!$K$2,D72>=حساب_سائق!$G$2,D72<=حساب_سائق!$G$3) -> FALSE | AM72: =IFERROR(INDEX($E$5:$E$7001,MATCH(0,COUNTIF($AM$2:$AM71,$E$5:$E$7001),0)),"") ->  | AN72: =IFERROR(INDEX($F$5:$F$7001,MATCH(0,COUNTIF($AN$2:$AN71,$F$5:$F$7001),0)),"") -> 
AJ73: =AND(F73=حساب_سائق!$K$2,D73>=حساب_سائق!$G$2,D73<=حساب_سائق!$G$3) -> FALSE | AM73: =IFERROR(INDEX($E$5:$E$7001,MATCH(0,COUNTIF($AM$2:$AM72,$E$5:$E$7001),0)),"") ->  | AN73: =IFERROR(INDEX($F$5:$F$7001,MATCH(0,COUNTIF($AN$2:$AN72,$F$5:$F$7001),0)),"") -> 
AJ74: =AND(F74=حساب_سائق!$K$2,D74>=حساب_سائق!$G$2,D74<=حساب_سائق!$G$3) -> FALSE | AM74: =IFERROR(INDEX($E$5:$E$7001,MATCH(0,COUNTIF($AM$2:$AM73,$E$5:$E$7001),0)),"") ->  | AN74: =IFERROR(INDEX($F$5:$F$7001,MATCH(0,COUNTIF($AN$2:$AN73,$F$5:$F$7001),0)),"") -> 
AJ75: =AND(F75=حساب_سائق!$K$2,D75>=حساب_سائق!$G$2,D75<=حساب_سائق!$G$3) -> FALSE | AM75: =IFERROR(INDEX($E$5:$E$7001,MATCH(0,COUNTIF($AM$2:$AM74,$E$5:$E$7001),0)),"") ->  | AN75: =IFERROR(INDEX($F$5:$F$7001,MATCH(0,COUNTIF($AN$2:$AN74,$F$5:$F$7001),0)),"") -> 
AJ76: =AND(F76=حساب_سائق!$K$2,D76>=حساب_سائق!$G$2,D76<=حساب_سائق!$G$3) -> FALSE | AM76: =IFERROR(INDEX($E$5:$E$7001,MATCH(0,COUNTIF($AM$2:$AM75,$E$5:$E$7001),0)),"") ->  | AN76: =IFERROR(INDEX($F$5:$F$7001,MATCH(0,COUNTIF($AN$2:$AN75,$F$5:$F$7001),0)),"") -> 
AJ77: =AND(F77=حساب_سائق!$K$2,D77>=حساب_سائق!$G$2,D77<=حساب_سائق!$G$3) -> FALSE | AM77: =IFERROR(INDEX($E$5:$E$7001,MATCH(0,COUNTIF($AM$2:$AM76,$E$5:$E$7001),0)),"") ->  | AN77: =IFERROR(INDEX($F$5:$F$7001,MATCH(0,COUNTIF($AN$2:$AN76,$F$5:$F$7001),0)),"") -> 
AJ78: =AND(F78=حساب_سائق!$K$2,D78>=حساب_سائق!$G$2,D78<=حساب_سائق!$G$3) -> FALSE | AM78: =IFERROR(INDEX($E$5:$E$7001,MATCH(0,COUNTIF($AM$2:$AM77,$E$5:$E$7001),0)),"") ->  | AN78: =IFERROR(INDEX($F$5:$F$7001,MATCH(0,COUNTIF($AN$2:$AN77,$F$5:$F$7001),0)),"") -> 
AJ79: =AND(F79=حساب_سائق!$K$2,D79>=حساب_سائق!$G$2,D79<=حساب_سائق!$G$3) -> FALSE | AM79: =IFERROR(INDEX($E$5:$E$7001,MATCH(0,COUNTIF($AM$2:$AM78,$E$5:$E$7001),0)),"") ->  | AN79: =IFERROR(INDEX($F$5:$F$7001,MATCH(0,COUNTIF($AN$2:$AN78,$F$5:$F$7001),0)),"") -> 
AJ80: =AND(F80=حساب_سائق!$K$2,D80>=حساب_سائق!$G$2,D80<=حساب_سائق!$G$3) -> FALSE | AM80: =IFERROR(INDEX($E$5:$E$7001,MATCH(0,COUNTIF($AM$2:$AM79,$E$5:$E$7001),0)),"") ->  | AN80: =IFERROR(INDEX($F$5:$F$7001,MATCH(0,COUNTIF($AN$2:$AN79,$F$5:$F$7001),0)),"") -> 
AJ81: =AND(F81=حساب_سائق!$K$2,D81>=حساب_سائق!$G$2,D81<=حساب_سائق!$G$3) -> FALSE | AM81: =IFERROR(INDEX($E$5:$E$7001,MATCH(0,COUNTIF($AM$2:$AM80,$E$5:$E$7001),0)),"") ->  | AN81: =IFERROR(INDEX($F$5:$F$7001,MATCH(0,COUNTIF($AN$2:$AN80,$F$5:$F$7001),0)),"") -> 
AJ82: =AND(F82=حساب_سائق!$K$2,D82>=حساب_سائق!$G$2,D82<=حساب_سائق!$G$3) -> FALSE | AM82: =IFERROR(INDEX($E$5:$E$7001,MATCH(0,COUNTIF($AM$2:$AM81,$E$5:$E$7001),0)),"") ->  | AN82: =IFERROR(INDEX($F$5:$F$7001,MATCH(0,COUNTIF($AN$2:$AN81,$F$5:$F$7001),0)),"") -> 
AJ83: =AND(F83=حساب_سائق!$K$2,D83>=حساب_سائق!$G$2,D83<=حساب_سائق!$G$3) -> FALSE | AM83: =IFERROR(INDEX($E$5:$E$7001,MATCH(0,COUNTIF($AM$2:$AM82,$E$5:$E$7001),0)),"") ->  | AN83: =IFERROR(INDEX($F$5:$F$7001,MATCH(0,COUNTIF($AN$2:$AN82,$F$5:$F$7001),0)),"") -> 
AJ84: =AND(F84=حساب_سائق!$K$2,D84>=حساب_سائق!$G$2,D84<=حساب_سائق!$G$3) -> FALSE | AM84: =IFERROR(INDEX($E$5:$E$7001,MATCH(0,COUNTIF($AM$2:$AM83,$E$5:$E$7001),0)),"") ->  | AN84: =IFERROR(INDEX($F$5:$F$7001,MATCH(0,COUNTIF($AN$2:$AN83,$F$5:$F$7001),0)),"") -> 
AJ85: =AND(F85=حساب_سائق!$K$2,D85>=حساب_سائق!$G$2,D85<=حساب_سائق!$G$3) -> FALSE | AM85: =IFERROR(INDEX($E$5:$E$7001,MATCH(0,COUNTIF($AM$2:$AM84,$E$5:$E$7001),0)),"") ->  | AN85: =IFERROR(INDEX($F$5:$F$7001,MATCH(0,COUNTIF($AN$2:$AN84,$F$5:$F$7001),0)),"") -> 
AJ86: =AND(F86=حساب_سائق!$K$2,D86>=حساب_سائق!$G$2,D86<=حساب_سائق!$G$3) -> FALSE | AM86: =IFERROR(INDEX($E$5:$E$7001,MATCH(0,COUNTIF($AM$2:$AM85,$E$5:$E$7001),0)),"") ->  | AN86: =IFERROR(INDEX($F$5:$F$7001,MATCH(0,COUNTIF($AN$2:$AN85,$F$5:$F$7001),0)),"") -> 
AJ87: =AND(F87=حساب_سائق!$K$2,D87>=حساب_سائق!$G$2,D87<=حساب_سائق!$G$3) -> FALSE | AM87: =IFERROR(INDEX($E$5:$E$7001,MATCH(0,COUNTIF($AM$2:$AM86,$E$5:$E$7001),0)),"") ->  | AN87: =IFERROR(INDEX($F$5:$F$7001,MATCH(0,COUNTIF($AN$2:$AN86,$F$5:$F$7001),0)),"") -> 
AJ88: =AND(F88=حساب_سائق!$K$2,D88>=حساب_سائق!$G$2,D88<=حساب_سائق!$G$3) -> FALSE | AM88: =IFERROR(INDEX($E$5:$E$7001,MATCH(0,COUNTIF($AM$2:$AM87,$E$5:$E$7001),0)),"") ->  | AN88: =IFERROR(INDEX($F$5:$F$7001,MATCH(0,COUNTIF($AN$2:$AN87,$F$5:$F$7001),0)),"") -> 
AJ89: =AND(F89=حساب_سائق!$K$2,D89>=حساب_سائق!$G$2,D89<=حساب_سائق!$G$3) -> FALSE | AM89: =IFERROR(INDEX($E$5:$E$7001,MATCH(0,COUNTIF($AM$2:$AM88,$E$5:$E$7001),0)),"") ->  | AN89: =IFERROR(INDEX($F$5:$F$7001,MATCH(0,COUNTIF($AN$2:$AN88,$F$5:$F$7001),0)),"") -> 
AJ90: =AND(F90=حساب_سائق!$K$2,D90>=حساب_سائق!$G$2,D90<=حساب_سائق!$G$3) -> FALSE | AM90: =IFERROR(INDEX($E$5:$E$7001,MATCH(0,COUNTIF($AM$2:$AM89,$E$5:$E$7001),0)),"") ->  | AN90: =IFERROR(INDEX($F$5:$F$7001,MATCH(0,COUNTIF($AN$2:$AN89,$F$5:$F$7001),0)),"") -> 
AJ91: =AND(F91=حساب_سائق!$K$2,D91>=حساب_سائق!$G$2,D91<=حساب_سائق!$G$3) -> FALSE | AM91: =IFERROR(INDEX($E$5:$E$7001,MATCH(0,COUNTIF($AM$2:$AM90,$E$5:$E$7001),0)),"") ->  | AN91: =IFERROR(INDEX($F$5:$F$7001,MATCH(0,COUNTIF($AN$2:$AN90,$F$5:$F$7001),0)),"") -> 
AJ92: =AND(F92=حساب_سائق!$K$2,D92>=حساب_سائق!$G$2,D92<=حساب_سائق!$G$3) -> FALSE | AM92: =IFERROR(INDEX($E$5:$E$7001,MATCH(0,COUNTIF($AM$2:$AM91,$E$5:$E$7001),0)),"") ->  | AN92: =IFERROR(INDEX($F$5:$F$7001,MATCH(0,COUNTIF($AN$2:$AN91,$F$5:$F$7001),0)),"") -> 
AJ93: =AND(F93=حساب_سائق!$K$2,D93>=حساب_سائق!$G$2,D93<=حساب_سائق!$G$3) -> FALSE | AM93: =IFERROR(INDEX($E$5:$E$7001,MATCH(0,COUNTIF($AM$2:$AM92,$E$5:$E$7001),0)),"") ->  | AN93: =IFERROR(INDEX($F$5:$F$7001,MATCH(0,COUNTIF($AN$2:$AN92,$F$5:$F$7001),0)),"") -> 
AJ94: =AND(F94=حساب_سائق!$K$2,D94>=حساب_سائق!$G$2,D94<=حساب_سائق!$G$3) -> FALSE | AM94: =IFERROR(INDEX($E$5:$E$7001,MATCH(0,COUNTIF($AM$2:$AM93,$E$5:$E$7001),0)),"") ->  | AN94: =IFERROR(INDEX($F$5:$F$7001,MATCH(0,COUNTIF($AN$2:$AN93,$F$5:$F$7001),0)),"") -> 
AJ95: =AND(F95=حساب_سائق!$K$2,D95>=حساب_سائق!$G$2,D95<=حساب_سائق!$G$3) -> FALSE | AM95: =IFERROR(INDEX($E$5:$E$7001,MATCH(0,COUNTIF($AM$2:$AM94,$E$5:$E$7001),0)),"") ->  | AN95: =IFERROR(INDEX($F$5:$F$7001,MATCH(0,COUNTIF($AN$2:$AN94,$F$5:$F$7001),0)),"") -> 
AJ96: =AND(F96=حساب_سائق!$K$2,D96>=حساب_سائق!$G$2,D96<=حساب_سائق!$G$3) -> FALSE | AM96: =IFERROR(INDEX($E$5:$E$7001,MATCH(0,COUNTIF($AM$2:$AM95,$E$5:$E$7001),0)),"") ->  | AN96: =IFERROR(INDEX($F$5:$F$7001,MATCH(0,COUNTIF($AN$2:$AN95,$F$5:$F$7001),0)),"") -> 
AJ97: =AND(F97=حساب_سائق!$K$2,D97>=حساب_سائق!$G$2,D97<=حساب_سائق!$G$3) -> FALSE | AM97: =IFERROR(INDEX($E$5:$E$7001,MATCH(0,COUNTIF($AM$2:$AM96,$E$5:$E$7001),0)),"") ->  | AN97: =IFERROR(INDEX($F$5:$F$7001,MATCH(0,COUNTIF($AN$2:$AN96,$F$5:$F$7001),0)),"") -> 
AJ98: =AND(F98=حساب_سائق!$K$2,D98>=حساب_سائق!$G$2,D98<=حساب_سائق!$G$3) -> FALSE | AM98: =IFERROR(INDEX($E$5:$E$7001,MATCH(0,COUNTIF($AM$2:$AM97,$E$5:$E$7001),0)),"") ->  | AN98: =IFERROR(INDEX($F$5:$F$7001,MATCH(0,COUNTIF($AN$2:$AN97,$F$5:$F$7001),0)),"") -> 
AJ99: =AND(F99=حساب_سائق!$K$2,D99>=حساب_سائق!$G$2,D99<=حساب_سائق!$G$3) -> FALSE | AM99: =IFERROR(INDEX($E$5:$E$7001,MATCH(0,COUNTIF($AM$2:$AM98,$E$5:$E$7001),0)),"") ->  | AN99: =IFERROR(INDEX($F$5:$F$7001,MATCH(0,COUNTIF($AN$2:$AN98,$F$5:$F$7001),0)),"") -> 
AJ100: =AND(F100=حساب_سائق!$K$2,D100>=حساب_سائق!$G$2,D100<=حساب_سائق!$G$3) -> FALSE | AM100: =IFERROR(INDEX($E$5:$E$7001,MATCH(0,COUNTIF($AM$2:$AM99,$E$5:$E$7001),0)),"") ->  | AN100: =IFERROR(INDEX($F$5:$F$7001,MATCH(0,COUNTIF($AN$2:$AN99,$F$5:$F$7001),0)),"") -> 
AJ101: =AND(F101=حساب_سائق!$K$2,D101>=حساب_سائق!$G$2,D101<=حساب_سائق!$G$3) -> FALSE | AM101: =IFERROR(INDEX($E$5:$E$7001,MATCH(0,COUNTIF($AM$2:$AM100,$E$5:$E$7001),0)),"") ->  | AN101: =IFERROR(INDEX($F$5:$F$7001,MATCH(0,COUNTIF($AN$2:$AN100,$F$5:$F$7001),0)),"") -> 
AJ102: =AND(F102=حساب_سائق!$K$2,D102>=حساب_سائق!$G$2,D102<=حساب_سائق!$G$3) -> FALSE | AM102: =IFERROR(INDEX($E$5:$E$7001,MATCH(0,COUNTIF($AM$2:$AM101,$E$5:$E$7001),0)),"") ->  | AN102: =IFERROR(INDEX($F$5:$F$7001,MATCH(0,COUNTIF($AN$2:$AN101,$F$5:$F$7001),0)),"") -> 
AJ103: =AND(F103=حساب_سائق!$K$2,D103>=حساب_سائق!$G$2,D103<=حساب_سائق!$G$3) -> FALSE | AM103: =IFERROR(INDEX($E$5:$E$7001,MATCH(0,COUNTIF($AM$2:$AM102,$E$5:$E$7001),0)),"") ->  | AN103: =IFERROR(INDEX($F$5:$F$7001,MATCH(0,COUNTIF($AN$2:$AN102,$F$5:$F$7001),0)),"") -> 
AJ104: =AND(F104=حساب_سائق!$K$2,D104>=حساب_سائق!$G$2,D104<=حساب_سائق!$G$3) -> FALSE | AM104: =IFERROR(INDEX($E$5:$E$7001,MATCH(0,COUNTIF($AM$2:$AM103,$E$5:$E$7001),0)),"") ->  | AN104: =IFERROR(INDEX($F$5:$F$7001,MATCH(0,COUNTIF($AN$2:$AN103,$F$5:$F$7001),0)),"") -> 
AJ105: =AND(F105=حساب_سائق!$K$2,D105>=حساب_سائق!$G$2,D105<=حساب_سائق!$G$3) -> FALSE | AM105: =IFERROR(INDEX($E$5:$E$7001,MATCH(0,COUNTIF($AM$2:$AM104,$E$5:$E$7001),0)),"") ->  | AN105: =IFERROR(INDEX($F$5:$F$7001,MATCH(0,COUNTIF($AN$2:$AN104,$F$5:$F$7001),0)),"") -> 
AJ106: =AND(F106=حساب_سائق!$K$2,D106>=حساب_سائق!$G$2,D106<=حساب_سائق!$G$3) -> FALSE | AM106: =IFERROR(INDEX($E$5:$E$7001,MATCH(0,COUNTIF($AM$2:$AM105,$E$5:$E$7001),0)),"") ->  | AN106: =IFERROR(INDEX($F$5:$F$7001,MATCH(0,COUNTIF($AN$2:$AN105,$F$5:$F$7001),0)),"") -> 
AJ107: =AND(F107=حساب_سائق!$K$2,D107>=حساب_سائق!$G$2,D107<=حساب_سائق!$G$3) -> FALSE | AM107: =IFERROR(INDEX($E$5:$E$7001,MATCH(0,COUNTIF($AM$2:$AM106,$E$5:$E$7001),0)),"") ->  | AN107: =IFERROR(INDEX($F$5:$F$7001,MATCH(0,COUNTIF($AN$2:$AN106,$F$5:$F$7001),0)),"") -> 
AJ108: =AND(F108=حساب_سائق!$K$2,D108>=حساب_سائق!$G$2,D108<=حساب_سائق!$G$3) -> FALSE | AM108: =IFERROR(INDEX($E$5:$E$7001,MATCH(0,COUNTIF($AM$2:$AM107,$E$5:$E$7001),0)),"") ->  | AN108: =IFERROR(INDEX($F$5:$F$7001,MATCH(0,COUNTIF($AN$2:$AN107,$F$5:$F$7001),0)),"") -> 
AJ109: =AND(F109=حساب_سائق!$K$2,D109>=حساب_سائق!$G$2,D109<=حساب_سائق!$G$3) -> FALSE | AM109: =IFERROR(INDEX($E$5:$E$7001,MATCH(0,COUNTIF($AM$2:$AM108,$E$5:$E$7001),0)),"") ->  | AN109: =IFERROR(INDEX($F$5:$F$7001,MATCH(0,COUNTIF($AN$2:$AN108,$F$5:$F$7001),0)),"") -> 
AJ110: =AND(F110=حساب_سائق!$K$2,D110>=حساب_سائق!$G$2,D110<=حساب_سائق!$G$3) -> FALSE | AM110: =IFERROR(INDEX($E$5:$E$7001,MATCH(0,COUNTIF($AM$2:$AM109,$E$5:$E$7001),0)),"") ->  | AN110: =IFERROR(INDEX($F$5:$F$7001,MATCH(0,COUNTIF($AN$2:$AN109,$F$5:$F$7001),0)),"") -> 
AJ111: =AND(F111=حساب_سائق!$K$2,D111>=حساب_سائق!$G$2,D111<=حساب_سائق!$G$3) -> FALSE | AM111: =IFERROR(INDEX($E$5:$E$7001,MATCH(0,COUNTIF($AM$2:$AM110,$E$5:$E$7001),0)),"") -> 
AJ112: =AND(F112=حساب_سائق!$K$2,D112>=حساب_سائق!$G$2,D112<=حساب_سائق!$G$3) -> FALSE | AM112: =IFERROR(INDEX($E$5:$E$7001,MATCH(0,COUNTIF($AM$2:$AM111,$E$5:$E$7001),0)),"") -> 
AJ113: =AND(F113=حساب_سائق!$K$2,D113>=حساب_سائق!$G$2,D113<=حساب_سائق!$G$3) -> FALSE | AM113: =IFERROR(INDEX($E$5:$E$7001,MATCH(0,COUNTIF($AM$2:$AM112,$E$5:$E$7001),0)),"") -> 
AJ114: =AND(F114=حساب_سائق!$K$2,D114>=حساب_سائق!$G$2,D114<=حساب_سائق!$G$3) -> FALSE | AM114: =IFERROR(INDEX($E$5:$E$7001,MATCH(0,COUNTIF($AM$2:$AM113,$E$5:$E$7001),0)),"") -> 
AJ115: =AND(F115=حساب_سائق!$K$2,D115>=حساب_سائق!$G$2,D115<=حساب_سائق!$G$3) -> FALSE | AM115: =IFERROR(INDEX($E$5:$E$7001,MATCH(0,COUNTIF($AM$2:$AM114,$E$5:$E$7001),0)),"") -> 
AJ116: =AND(F116=حساب_سائق!$K$2,D116>=حساب_سائق!$G$2,D116<=حساب_سائق!$G$3) -> FALSE | AM116: =IFERROR(INDEX($E$5:$E$7001,MATCH(0,COUNTIF($AM$2:$AM115,$E$5:$E$7001),0)),"") -> 
AJ117: =AND(F117=حساب_سائق!$K$2,D117>=حساب_سائق!$G$2,D117<=حساب_سائق!$G$3) -> FALSE | AM117: =IFERROR(INDEX($E$5:$E$7001,MATCH(0,COUNTIF($AM$2:$AM116,$E$5:$E$7001),0)),"") -> 
AJ118: =AND(F118=حساب_سائق!$K$2,D118>=حساب_سائق!$G$2,D118<=حساب_سائق!$G$3) -> FALSE | AM118: =IFERROR(INDEX($E$5:$E$7001,MATCH(0,COUNTIF($AM$2:$AM117,$E$5:$E$7001),0)),"") -> 
AJ119: =AND(F119=حساب_سائق!$K$2,D119>=حساب_سائق!$G$2,D119<=حساب_سائق!$G$3) -> FALSE | AM119: =IFERROR(INDEX($E$5:$E$7001,MATCH(0,COUNTIF($AM$2:$AM118,$E$5:$E$7001),0)),"") -> 
AJ120: =AND(F120=حساب_سائق!$K$2,D120>=حساب_سائق!$G$2,D120<=حساب_سائق!$G$3) -> FALSE | AM120: =IFERROR(INDEX($E$5:$E$7001,MATCH(0,COUNTIF($AM$2:$AM119,$E$5:$E$7001),0)),"") -> 
AJ121: =AND(F121=حساب_سائق!$K$2,D121>=حساب_سائق!$G$2,D121<=حساب_سائق!$G$3) -> FALSE | AM121: =IFERROR(INDEX($E$5:$E$7001,MATCH(0,COUNTIF($AM$2:$AM120,$E$5:$E$7001),0)),"") -> 
AJ122: =AND(F122=حساب_سائق!$K$2,D122>=حساب_سائق!$G$2,D122<=حساب_سائق!$G$3) -> FALSE | AM122: =IFERROR(INDEX($E$5:$E$7001,MATCH(0,COUNTIF($AM$2:$AM121,$E$5:$E$7001),0)),"") -> 
AJ123: =AND(F123=حساب_سائق!$K$2,D123>=حساب_سائق!$G$2,D123<=حساب_سائق!$G$3) -> FALSE | AM123: =IFERROR(INDEX($E$5:$E$7001,MATCH(0,COUNTIF($AM$2:$AM122,$E$5:$E$7001),0)),"") -> 
AJ124: =AND(F124=حساب_سائق!$K$2,D124>=حساب_سائق!$G$2,D124<=حساب_سائق!$G$3) -> FALSE | AM124: =IFERROR(INDEX($E$5:$E$7001,MATCH(0,COUNTIF($AM$2:$AM123,$E$5:$E$7001),0)),"") -> 
AJ125: =AND(F125=حساب_سائق!$K$2,D125>=حساب_سائق!$G$2,D125<=حساب_سائق!$G$3) -> FALSE | AM125: =IFERROR(INDEX($E$5:$E$7001,MATCH(0,COUNTIF($AM$2:$AM124,$E$5:$E$7001),0)),"") -> 
AJ126: =AND(F126=حساب_سائق!$K$2,D126>=حساب_سائق!$G$2,D126<=حساب_سائق!$G$3) -> FALSE | AM126: =IFERROR(INDEX($E$5:$E$7001,MATCH(0,COUNTIF($AM$2:$AM125,$E$5:$E$7001),0)),"") -> 
AJ127: =AND(F127=حساب_سائق!$K$2,D127>=حساب_سائق!$G$2,D127<=حساب_سائق!$G$3) -> FALSE | AM127: =IFERROR(INDEX($E$5:$E$7001,MATCH(0,COUNTIF($AM$2:$AM126,$E$5:$E$7001),0)),"") -> 
AJ128: =AND(F128=حساب_سائق!$K$2,D128>=حساب_سائق!$G$2,D128<=حساب_سائق!$G$3) -> FALSE | AM128: =IFERROR(INDEX($E$5:$E$7001,MATCH(0,COUNTIF($AM$2:$AM127,$E$5:$E$7001),0)),"") -> 
AJ129: =AND(F129=حساب_سائق!$K$2,D129>=حساب_سائق!$G$2,D129<=حساب_سائق!$G$3) -> FALSE | AM129: =IFERROR(INDEX($E$5:$E$7001,MATCH(0,COUNTIF($AM$2:$AM128,$E$5:$E$7001),0)),"") -> 
AJ130: =AND(F130=حساب_سائق!$K$2,D130>=حساب_سائق!$G$2,D130<=حساب_سائق!$G$3) -> FALSE | AM130: =IFERROR(INDEX($E$5:$E$7001,MATCH(0,COUNTIF($AM$2:$AM129,$E$5:$E$7001),0)),"") -> 
AJ131: =AND(F131=حساب_سائق!$K$2,D131>=حساب_سائق!$G$2,D131<=حساب_سائق!$G$3) -> FALSE | AM131: =IFERROR(INDEX($E$5:$E$7001,MATCH(0,COUNTIF($AM$2:$AM130,$E$5:$E$7001),0)),"") -> 
AJ132: =AND(F132=حساب_سائق!$K$2,D132>=حساب_سائق!$G$2,D132<=حساب_سائق!$G$3) -> FALSE | AM132: =IFERROR(INDEX($E$5:$E$7001,MATCH(0,COUNTIF($AM$2:$AM131,$E$5:$E$7001),0)),"") -> 
AJ133: =AND(F133=حساب_سائق!$K$2,D133>=حساب_سائق!$G$2,D133<=حساب_سائق!$G$3) -> FALSE | AM133: =IFERROR(INDEX($E$5:$E$7001,MATCH(0,COUNTIF($AM$2:$AM132,$E$5:$E$7001),0)),"") -> 
AJ134: =AND(F134=حساب_سائق!$K$2,D134>=حساب_سائق!$G$2,D134<=حساب_سائق!$G$3) -> FALSE | AM134: =IFERROR(INDEX($E$5:$E$7001,MATCH(0,COUNTIF($AM$2:$AM133,$E$5:$E$7001),0)),"") -> 
AJ135: =AND(F135=حساب_سائق!$K$2,D135>=حساب_سائق!$G$2,D135<=حساب_سائق!$G$3) -> FALSE | AM135: =IFERROR(INDEX($E$5:$E$7001,MATCH(0,COUNTIF($AM$2:$AM134,$E$5:$E$7001),0)),"") -> 
AJ136: =AND(F136=حساب_سائق!$K$2,D136>=حساب_سائق!$G$2,D136<=حساب_سائق!$G$3) -> FALSE | AM136: =IFERROR(INDEX($E$5:$E$7001,MATCH(0,COUNTIF($AM$2:$AM135,$E$5:$E$7001),0)),"") -> 
AJ137: =AND(F137=حساب_سائق!$K$2,D137>=حساب_سائق!$G$2,D137<=حساب_سائق!$G$3) -> FALSE | AM137: =IFERROR(INDEX($E$5:$E$7001,MATCH(0,COUNTIF($AM$2:$AM136,$E$5:$E$7001),0)),"") -> 
AJ138: =AND(F138=حساب_سائق!$K$2,D138>=حساب_سائق!$G$2,D138<=حساب_سائق!$G$3) -> FALSE | AM138: =IFERROR(INDEX($E$5:$E$7001,MATCH(0,COUNTIF($AM$2:$AM137,$E$5:$E$7001),0)),"") -> 
AJ139: =AND(F139=حساب_سائق!$K$2,D139>=حساب_سائق!$G$2,D139<=حساب_سائق!$G$3) -> FALSE | AM139: =IFERROR(INDEX($E$5:$E$7001,MATCH(0,COUNTIF($AM$2:$AM138,$E$5:$E$7001),0)),"") -> 
AJ140: =AND(F140=حساب_سائق!$K$2,D140>=حساب_سائق!$G$2,D140<=حساب_سائق!$G$3) -> FALSE | AM140: =IFERROR(INDEX($E$5:$E$7001,MATCH(0,COUNTIF($AM$2:$AM139,$E$5:$E$7001),0)),"") -> 
AJ141: =AND(F141=حساب_سائق!$K$2,D141>=حساب_سائق!$G$2,D141<=حساب_سائق!$G$3) -> FALSE | AM141: =IFERROR(INDEX($E$5:$E$7001,MATCH(0,COUNTIF($AM$2:$AM140,$E$5:$E$7001),0)),"") -> 
AJ142: =AND(F142=حساب_سائق!$K$2,D142>=حساب_سائق!$G$2,D142<=حساب_سائق!$G$3) -> FALSE | AM142: =IFERROR(INDEX($E$5:$E$7001,MATCH(0,COUNTIF($AM$2:$AM141,$E$5:$E$7001),0)),"") -> 
AJ143: =AND(F143=حساب_سائق!$K$2,D143>=حساب_سائق!$G$2,D143<=حساب_سائق!$G$3) -> FALSE | AM143: =IFERROR(INDEX($E$5:$E$7001,MATCH(0,COUNTIF($AM$2:$AM142,$E$5:$E$7001),0)),"") -> 
AJ144: =AND(F144=حساب_سائق!$K$2,D144>=حساب_سائق!$G$2,D144<=حساب_سائق!$G$3) -> FALSE | AM144: =IFERROR(INDEX($E$5:$E$7001,MATCH(0,COUNTIF($AM$2:$AM143,$E$5:$E$7001),0)),"") -> 
AJ145: =AND(F145=حساب_سائق!$K$2,D145>=حساب_سائق!$G$2,D145<=حساب_سائق!$G$3) -> FALSE | AM145: =IFERROR(INDEX($E$5:$E$7001,MATCH(0,COUNTIF($AM$2:$AM144,$E$5:$E$7001),0)),"") -> 
AJ146: =AND(F146=حساب_سائق!$K$2,D146>=حساب_سائق!$G$2,D146<=حساب_سائق!$G$3) -> FALSE | AM146: =IFERROR(INDEX($E$5:$E$7001,MATCH(0,COUNTIF($AM$2:$AM145,$E$5:$E$7001),0)),"") -> 
AJ147: =AND(F147=حساب_سائق!$K$2,D147>=حساب_سائق!$G$2,D147<=حساب_سائق!$G$3) -> FALSE | AM147: =IFERROR(INDEX($E$5:$E$7001,MATCH(0,COUNTIF($AM$2:$AM146,$E$5:$E$7001),0)),"") -> 
AJ148: =AND(F148=حساب_سائق!$K$2,D148>=حساب_سائق!$G$2,D148<=حساب_سائق!$G$3) -> FALSE | AM148: =IFERROR(INDEX($E$5:$E$7001,MATCH(0,COUNTIF($AM$2:$AM147,$E$5:$E$7001),0)),"") -> 
AJ149: =AND(F149=حساب_سائق!$K$2,D149>=حساب_سائق!$G$2,D149<=حساب_سائق!$G$3) -> FALSE | AM149: =IFERROR(INDEX($E$5:$E$7001,MATCH(0,COUNTIF($AM$2:$AM148,$E$5:$E$7001),0)),"") -> 
AJ150: =AND(F150=حساب_سائق!$K$2,D150>=حساب_سائق!$G$2,D150<=حساب_سائق!$G$3) -> FALSE | AM150: =IFERROR(INDEX($E$5:$E$7001,MATCH(0,COUNTIF($AM$2:$AM149,$E$5:$E$7001),0)),"") -> 
AJ151: =AND(F151=حساب_سائق!$K$2,D151>=حساب_سائق!$G$2,D151<=حساب_سائق!$G$3) -> FALSE | AM151: =IFERROR(INDEX($E$5:$E$7001,MATCH(0,COUNTIF($AM$2:$AM150,$E$5:$E$7001),0)),"") -> 
AJ152: =AND(F152=حساب_سائق!$K$2,D152>=حساب_سائق!$G$2,D152<=حساب_سائق!$G$3) -> FALSE | AM152: =IFERROR(INDEX($E$5:$E$7001,MATCH(0,COUNTIF($AM$2:$AM151,$E$5:$E$7001),0)),"") -> 
AJ153: =AND(F153=حساب_سائق!$K$2,D153>=حساب_سائق!$G$2,D153<=حساب_سائق!$G$3) -> FALSE | AM153: =IFERROR(INDEX($E$5:$E$7001,MATCH(0,COUNTIF($AM$2:$AM152,$E$5:$E$7001),0)),"") -> 
AJ154: =AND(F154=حساب_سائق!$K$2,D154>=حساب_سائق!$G$2,D154<=حساب_سائق!$G$3) -> FALSE | AM154: =IFERROR(INDEX($E$5:$E$7001,MATCH(0,COUNTIF($AM$2:$AM153,$E$5:$E$7001),0)),"") -> 
AJ155: =AND(F155=حساب_سائق!$K$2,D155>=حساب_سائق!$G$2,D155<=حساب_سائق!$G$3) -> FALSE | AM155: =IFERROR(INDEX($E$5:$E$7001,MATCH(0,COUNTIF($AM$2:$AM154,$E$5:$E$7001),0)),"") -> 
AJ156: =AND(F156=حساب_سائق!$K$2,D156>=حساب_سائق!$G$2,D156<=حساب_سائق!$G$3) -> FALSE | AM156: =IFERROR(INDEX($E$5:$E$7001,MATCH(0,COUNTIF($AM$2:$AM155,$E$5:$E$7001),0)),"") -> 
AJ157: =AND(F157=حساب_سائق!$K$2,D157>=حساب_سائق!$G$2,D157<=حساب_سائق!$G$3) -> FALSE | AM157: =IFERROR(INDEX($E$5:$E$7001,MATCH(0,COUNTIF($AM$2:$AM156,$E$5:$E$7001),0)),"") -> 
AJ158: =AND(F158=حساب_سائق!$K$2,D158>=حساب_سائق!$G$2,D158<=حساب_سائق!$G$3) -> FALSE | AM158: =IFERROR(INDEX($E$5:$E$7001,MATCH(0,COUNTIF($AM$2:$AM157,$E$5:$E$7001),0)),"") -> 
AJ159: =AND(F159=حساب_سائق!$K$2,D159>=حساب_سائق!$G$2,D159<=حساب_سائق!$G$3) -> FALSE | AM159: =IFERROR(INDEX($E$5:$E$7001,MATCH(0,COUNTIF($AM$2:$AM158,$E$5:$E$7001),0)),"") -> 
AJ160: =AND(F160=حساب_سائق!$K$2,D160>=حساب_سائق!$G$2,D160<=حساب_سائق!$G$3) -> FALSE | AM160: =IFERROR(INDEX($E$5:$E$7001,MATCH(0,COUNTIF($AM$2:$AM159,$E$5:$E$7001),0)),"") -> 
AJ161: =AND(F161=حساب_سائق!$K$2,D161>=حساب_سائق!$G$2,D161<=حساب_سائق!$G$3) -> FALSE | AM161: =IFERROR(INDEX($E$5:$E$7001,MATCH(0,COUNTIF($AM$2:$AM160,$E$5:$E$7001),0)),"") -> 
AJ162: =AND(F162=حساب_سائق!$K$2,D162>=حساب_سائق!$G$2,D162<=حساب_سائق!$G$3) -> FALSE | AM162: =IFERROR(INDEX($E$5:$E$7001,MATCH(0,COUNTIF($AM$2:$AM161,$E$5:$E$7001),0)),"") -> 
AJ163: =AND(F163=حساب_سائق!$K$2,D163>=حساب_سائق!$G$2,D163<=حساب_سائق!$G$3) -> FALSE | AM163: =IFERROR(INDEX($E$5:$E$7001,MATCH(0,COUNTIF($AM$2:$AM162,$E$5:$E$7001),0)),"") -> 
AJ164: =AND(F164=حساب_سائق!$K$2,D164>=حساب_سائق!$G$2,D164<=حساب_سائق!$G$3) -> FALSE | AM164: =IFERROR(INDEX($E$5:$E$7001,MATCH(0,COUNTIF($AM$2:$AM163,$E$5:$E$7001),0)),"") -> 
AJ165: =AND(F165=حساب_سائق!$K$2,D165>=حساب_سائق!$G$2,D165<=حساب_سائق!$G$3) -> FALSE | AM165: =IFERROR(INDEX($E$5:$E$7001,MATCH(0,COUNTIF($AM$2:$AM164,$E$5:$E$7001),0)),"") -> 
AJ166: =AND(F166=حساب_سائق!$K$2,D166>=حساب_سائق!$G$2,D166<=حساب_سائق!$G$3) -> FALSE | AM166: =IFERROR(INDEX($E$5:$E$7001,MATCH(0,COUNTIF($AM$2:$AM165,$E$5:$E$7001),0)),"") -> 
AJ167: =AND(F167=حساب_سائق!$K$2,D167>=حساب_سائق!$G$2,D167<=حساب_سائق!$G$3) -> FALSE | AM167: =IFERROR(INDEX($E$5:$E$7001,MATCH(0,COUNTIF($AM$2:$AM166,$E$5:$E$7001),0)),"") -> 
AJ168: =AND(F168=حساب_سائق!$K$2,D168>=حساب_سائق!$G$2,D168<=حساب_سائق!$G$3) -> FALSE | AM168: =IFERROR(INDEX($E$5:$E$7001,MATCH(0,COUNTIF($AM$2:$AM167,$E$5:$E$7001),0)),"") -> 
AJ169: =AND(F169=حساب_سائق!$K$2,D169>=حساب_سائق!$G$2,D169<=حساب_سائق!$G$3) -> FALSE | AM169: =IFERROR(INDEX($E$5:$E$7001,MATCH(0,COUNTIF($AM$2:$AM168,$E$5:$E$7001),0)),"") -> 
AJ170: =AND(F170=حساب_سائق!$K$2,D170>=حساب_سائق!$G$2,D170<=حساب_سائق!$G$3) -> FALSE | AM170: =IFERROR(INDEX($E$5:$E$7001,MATCH(0,COUNTIF($AM$2:$AM169,$E$5:$E$7001),0)),"") -> 
AJ171: =AND(F171=حساب_سائق!$K$2,D171>=حساب_سائق!$G$2,D171<=حساب_سائق!$G$3) -> FALSE | AM171: =IFERROR(INDEX($E$5:$E$7001,MATCH(0,COUNTIF($AM$2:$AM170,$E$5:$E$7001),0)),"") -> 
AJ172: =AND(F172=حساب_سائق!$K$2,D172>=حساب_سائق!$G$2,D172<=حساب_سائق!$G$3) -> FALSE | AM172: =IFERROR(INDEX($E$5:$E$7001,MATCH(0,COUNTIF($AM$2:$AM171,$E$5:$E$7001),0)),"") -> 
AJ173: =AND(F173=حساب_سائق!$K$2,D173>=حساب_سائق!$G$2,D173<=حساب_سائق!$G$3) -> FALSE | AM173: =IFERROR(INDEX($E$5:$E$7001,MATCH(0,COUNTIF($AM$2:$AM172,$E$5:$E$7001),0)),"") -> 
AJ174: =AND(F174=حساب_سائق!$K$2,D174>=حساب_سائق!$G$2,D174<=حساب_سائق!$G$3) -> FALSE | AM174: =IFERROR(INDEX($E$5:$E$7001,MATCH(0,COUNTIF($AM$2:$AM173,$E$5:$E$7001),0)),"") -> 
AJ175: =AND(F175=حساب_سائق!$K$2,D175>=حساب_سائق!$G$2,D175<=حساب_سائق!$G$3) -> FALSE | AM175: =IFERROR(INDEX($E$5:$E$7001,MATCH(0,COUNTIF($AM$2:$AM174,$E$5:$E$7001),0)),"") -> 
AJ176: =AND(F176=حساب_سائق!$K$2,D176>=حساب_سائق!$G$2,D176<=حساب_سائق!$G$3) -> FALSE | AM176: =IFERROR(INDEX($E$5:$E$7001,MATCH(0,COUNTIF($AM$2:$AM175,$E$5:$E$7001),0)),"") -> 
AJ177: =AND(F177=حساب_سائق!$K$2,D177>=حساب_سائق!$G$2,D177<=حساب_سائق!$G$3) -> FALSE | AM177: =IFERROR(INDEX($E$5:$E$7001,MATCH(0,COUNTIF($AM$2:$AM176,$E$5:$E$7001),0)),"") -> 
AJ178: =AND(F178=حساب_سائق!$K$2,D178>=حساب_سائق!$G$2,D178<=حساب_سائق!$G$3) -> FALSE | AM178: =IFERROR(INDEX($E$5:$E$7001,MATCH(0,COUNTIF($AM$2:$AM177,$E$5:$E$7001),0)),"") -> 
AJ179: =AND(F179=حساب_سائق!$K$2,D179>=حساب_سائق!$G$2,D179<=حساب_سائق!$G$3) -> FALSE | AM179: =IFERROR(INDEX($E$5:$E$7001,MATCH(0,COUNTIF($AM$2:$AM178,$E$5:$E$7001),0)),"") -> 
AJ180: =AND(F180=حساب_سائق!$K$2,D180>=حساب_سائق!$G$2,D180<=حساب_سائق!$G$3) -> FALSE | AM180: =IFERROR(INDEX($E$5:$E$7001,MATCH(0,COUNTIF($AM$2:$AM179,$E$5:$E$7001),0)),"") -> 
AJ181: =AND(F181=حساب_سائق!$K$2,D181>=حساب_سائق!$G$2,D181<=حساب_سائق!$G$3) -> FALSE | AM181: =IFERROR(INDEX($E$5:$E$7001,MATCH(0,COUNTIF($AM$2:$AM180,$E$5:$E$7001),0)),"") -> 
AJ182: =AND(F182=حساب_سائق!$K$2,D182>=حساب_سائق!$G$2,D182<=حساب_سائق!$G$3) -> FALSE | AM182: =IFERROR(INDEX($E$5:$E$7001,MATCH(0,COUNTIF($AM$2:$AM181,$E$5:$E$7001),0)),"") -> 
AJ183: =AND(F183=حساب_سائق!$K$2,D183>=حساب_سائق!$G$2,D183<=حساب_سائق!$G$3) -> FALSE | AM183: =IFERROR(INDEX($E$5:$E$7001,MATCH(0,COUNTIF($AM$2:$AM182,$E$5:$E$7001),0)),"") -> 
AJ184: =AND(F184=حساب_سائق!$K$2,D184>=حساب_سائق!$G$2,D184<=حساب_سائق!$G$3) -> FALSE | AM184: =IFERROR(INDEX($E$5:$E$7001,MATCH(0,COUNTIF($AM$2:$AM183,$E$5:$E$7001),0)),"") -> 
AJ185: =AND(F185=حساب_سائق!$K$2,D185>=حساب_سائق!$G$2,D185<=حساب_سائق!$G$3) -> FALSE | AM185: =IFERROR(INDEX($E$5:$E$7001,MATCH(0,COUNTIF($AM$2:$AM184,$E$5:$E$7001),0)),"") -> 
AJ186: =AND(F186=حساب_سائق!$K$2,D186>=حساب_سائق!$G$2,D186<=حساب_سائق!$G$3) -> FALSE | AM186: =IFERROR(INDEX($E$5:$E$7001,MATCH(0,COUNTIF($AM$2:$AM185,$E$5:$E$7001),0)),"") -> 
AJ187: =AND(F187=حساب_سائق!$K$2,D187>=حساب_سائق!$G$2,D187<=حساب_سائق!$G$3) -> FALSE | AM187: =IFERROR(INDEX($E$5:$E$7001,MATCH(0,COUNTIF($AM$2:$AM186,$E$5:$E$7001),0)),"") -> 
AJ188: =AND(F188=حساب_سائق!$K$2,D188>=حساب_سائق!$G$2,D188<=حساب_سائق!$G$3) -> FALSE | AM188: =IFERROR(INDEX($E$5:$E$7001,MATCH(0,COUNTIF($AM$2:$AM187,$E$5:$E$7001),0)),"") -> 
AJ189: =AND(F189=حساب_سائق!$K$2,D189>=حساب_سائق!$G$2,D189<=حساب_سائق!$G$3) -> FALSE | AM189: =IFERROR(INDEX($E$5:$E$7001,MATCH(0,COUNTIF($AM$2:$AM188,$E$5:$E$7001),0)),"") -> 
AJ190: =AND(F190=حساب_سائق!$K$2,D190>=حساب_سائق!$G$2,D190<=حساب_سائق!$G$3) -> FALSE | AM190: =IFERROR(INDEX($E$5:$E$7001,MATCH(0,COUNTIF($AM$2:$AM189,$E$5:$E$7001),0)),"") -> 
AJ191: =AND(F191=حساب_سائق!$K$2,D191>=حساب_سائق!$G$2,D191<=حساب_سائق!$G$3) -> FALSE | AM191: =IFERROR(INDEX($E$5:$E$7001,MATCH(0,COUNTIF($AM$2:$AM190,$E$5:$E$7001),0)),"") -> 
AJ192: =AND(F192=حساب_سائق!$K$2,D192>=حساب_سائق!$G$2,D192<=حساب_سائق!$G$3) -> FALSE | AM192: =IFERROR(INDEX($E$5:$E$7001,MATCH(0,COUNTIF($AM$2:$AM191,$E$5:$E$7001),0)),"") -> 
AJ193: =AND(F193=حساب_سائق!$K$2,D193>=حساب_سائق!$G$2,D193<=حساب_سائق!$G$3) -> FALSE | AM193: =IFERROR(INDEX($E$5:$E$7001,MATCH(0,COUNTIF($AM$2:$AM192,$E$5:$E$7001),0)),"") -> 
AJ194: =AND(F194=حساب_سائق!$K$2,D194>=حساب_سائق!$G$2,D194<=حساب_سائق!$G$3) -> FALSE | AM194: =IFERROR(INDEX($E$5:$E$7001,MATCH(0,COUNTIF($AM$2:$AM193,$E$5:$E$7001),0)),"") -> 
AJ195: =AND(F195=حساب_سائق!$K$2,D195>=حساب_سائق!$G$2,D195<=حساب_سائق!$G$3) -> FALSE | AM195: =IFERROR(INDEX($E$5:$E$7001,MATCH(0,COUNTIF($AM$2:$AM194,$E$5:$E$7001),0)),"") -> 
AJ196: =AND(F196=حساب_سائق!$K$2,D196>=حساب_سائق!$G$2,D196<=حساب_سائق!$G$3) -> FALSE | AM196: =IFERROR(INDEX($E$5:$E$7001,MATCH(0,COUNTIF($AM$2:$AM195,$E$5:$E$7001),0)),"") -> 
AJ197: =AND(F197=حساب_سائق!$K$2,D197>=حساب_سائق!$G$2,D197<=حساب_سائق!$G$3) -> FALSE | AM197: =IFERROR(INDEX($E$5:$E$7001,MATCH(0,COUNTIF($AM$2:$AM196,$E$5:$E$7001),0)),"") -> 
AJ198: =AND(F198=حساب_سائق!$K$2,D198>=حساب_سائق!$G$2,D198<=حساب_سائق!$G$3) -> FALSE | AM198: =IFERROR(INDEX($E$5:$E$7001,MATCH(0,COUNTIF($AM$2:$AM197,$E$5:$E$7001),0)),"") -> 
AJ199: =AND(F199=حساب_سائق!$K$2,D199>=حساب_سائق!$G$2,D199<=حساب_سائق!$G$3) -> FALSE | AM199: =IFERROR(INDEX($E$5:$E$7001,MATCH(0,COUNTIF($AM$2:$AM198,$E$5:$E$7001),0)),"") -> 
AJ200: =AND(F200=حساب_سائق!$K$2,D200>=حساب_سائق!$G$2,D200<=حساب_سائق!$G$3) -> FALSE | AM200: =IFERROR(INDEX($E$5:$E$7001,MATCH(0,COUNTIF($AM$2:$AM199,$E$5:$E$7001),0)),"") -> 
... 2439 more rows

Sheet nnn
A1: سعر السائق | F1: سعر المصنع | N1: العناوين | P1: كود التفقيط | W1: بيان السيارات
B2: 5 طن | C2: فرداني | D2: تريلا | F2: المحافظة | G2: 5 طن | H2: فرداني | I2: تريلا | K2: 5 طن | W2: م | X2: الرقم | Y2: الحروف | Z2: السائق | AA2: المقاول | AB2: النوع | AC2: الموديل | AD2: شاسيه | AE2: موتور | AF2: الماركه | AG2: تاريخ الترخيص | AH2: تاريخ انتهاء الرخصه | AI2: الحموله | AJ2: الوزن | AK2: المرور
B3: 2 | C3: 3 | D3: 4 | G3: 2 | H3: 3 | I3: 4 | K3: فرداني | Y3: 2 | Z3: 3 | AA3: 4 | AB3: 5 | AC3: 6 | AD3: 7 | AE3: 8 | AF3: 9 | AG3: 10 | AH3: 11 | AI3: 12 | AJ3: 13 | AK3: 14
A4: القاهره | B4: 100 | C4: 95 | D4: 80 | E4: 1 | F4: القاهره | G4: 126 | H4: 105 | I4: 92 | K4: تريلا | W4: 1 | X4: 7293 | Y4: ر ن ب | Z4: رمضان محمود | AA4: عباد الرحمن | AB4: جامبو | AI4: 5 طن
A5: الجيزه | B5: 110 | C5: 95 | D5: 80 | E5: 2 | F5: الجيزه | G5: 137 | H5: 105 | I5: 92 | W5: 2 | X5: 59162 | Y5: شرقيه | Z5: حامد رفعت | AA5: عباد الرحمن | AB5: جامبو | AI5: 5 طن
A6: القليوبيه | B6: 110 | C6: 95 | D6: 80 | E6: 3 | F6: القليوبيه | G6: 137 | H6: 105 | I6: 92 | W6: 3 | X6: 1328 | Y6: ر ع ب | Z6: رمضان حمدي | AA6: عباد الرحمن | AB6: جامبو | AI6: 5 طن
A7: الشرقيه | B7: 100 | C7: 85 | D7: 80 | E7: 4 | F7: الشرقيه | G7: 114 | H7: 97 | I7: 92 | W7: 4 | X7: 4217 | Y7: ر ب ع | Z7: السيد صديق | AA7: عباد الرحمن | AB7: جامبو | AI7: 5 طن
A8: الاسماعيليه | B8: 105 | C8: 95 | D8: 80 | E8: 5 | F8: الاسماعيليه | G8: 161 | H8: 105 | I8: 92 | K8: القيمه | L8: =#REF! ->  | N8: عهده | O8: =P7 -> 0 | P8: صافي المبلغ المستحق | W8: 5 | X8: 9562 | Y8: ر ه ب | Z8: هيثم سيف النصر | AA8: عباد الرحمن | AB8: جامبو | AI8: 5 طن
A9: السويس | B9: 120 | C9: 95 | D9: 80 | E9: 6 | F9: السويس | G9: 183 | H9: 119 | I9: 105 | K9: الميزان | L9: =R7 -> 0 | N9: خصم | O9: =S7 -> 0 | W9: 6 | X9: 3751 | Y9: ر ب ع | Z9: ابراهيم ابراهيم | AA9: عباد الرحمن | AB9: جامبو | AI9: 5 طن
A10: اكتوبر | B10: 120 | C10: 100 | D10: 90 | E10: 7 | F10: اكتوبر | G10: 161 | H10: 108 | I10: 102 | K10: شيكات | L10: =Q7 -> 0 | N10: أخري | W10: 7 | X10: 1279 | Y10: ر ف ب | Z10: محمد عادل | AA10: عباد الرحمن | AB10: جامبو | AI10: 5 طن
A11: العريش | B11: 0 | C11: 170 | D11: 175 | E11: 8 | F11: العريش | G11: 334 | H11: 255 | I11: 212 | K11: أخري | T11: =L12-O12 ->  | W11: 8 | X11: 7918 | Y11: د ب ع | Z11: احمد عز الدين | AA11: عباد الرحمن | AB11: جامبو | AI11: 5 طن
A12: شرم الشيخ | B12: 375 | C12: 280 | D12: 240 | E12: 9 | F12: شرم الشيخ | G12: 468 | H12: 375 | I12: 375 | K12: اجمالي | L12: =SUM(L8:L11) ->  | N12: اجمالي | O12: =SUM(O8:O11) -> 0 | R12: =NoToTxt(T11,"جنية","قرش") ->  | W12: 9 | X12: 6718 | Y12: ع ل م | AA12: عباد الرحمن | AB12: جامبو | AI12: 5 طن
A13: مرسي مطروح | B13: 365 | C13: 280 | D13: 195 | E13: 10 | F13: مطروح | G13: 454 | H13: 362 | I13: 255
A14: بور سعيد | B14: 135 | C14: 115 | D14: 100 | E14: 11 | F14: بور سعيد | G14: 174 | H14: 160 | I14: 130
A15: كفر الشيخ | B15: 145 | C15: 120 | D15: 120 | E15: 12 | F15: كفر الشيخ | G15: 165 | H15: 134 | I15: 137
A16: المنوفيه | B16: 120 | C16: 110 | D16: 80 | E16: 13 | F16: المنوفيه | G16: 138 | H16: 118 | I16: 114
A17: طنطا | B17: 130 | C17: 117 | D17: 95 | E17: 14 | F17: طنطا | G17: 151 | H17: 140 | I17: 136
A18: المنصورة | B18: 125 | C18: 117 | D18: 105 | E18: 15 | F18: المنصوره | G18: 138 | H18: 143 | I18: 137
A19: المحلة | B19: 135 | C19: 117 | D19: 95 | E19: 16 | F19: المحله | G19: 161 | H19: 129 | I19: 124
A20: البحيرة | B20: 165 | C20: 125 | D20: 120 | E20: 17 | F20: البحيره | G20: 198 | H20: 149 | I20: 143
A21: الاسكندريه | B21: 215 | C21: 150 | D21: 140 | E21: 18 | F21: الاسكندريه | G21: 280 | H21: 171 | I21: 164
A22: الفيوم | B22: 215 | C22: 150 | D22: 135 | E22: 19 | F22: الفيوم | G22: 278 | H22: 180 | I22: 170
A23: بني سويف | B23: 215 | C23: 150 | D23: 135 | E23: 20 | F23: بني سويف | G23: 291 | H23: 188 | I23: 177
A24: دمياط | B24: 205 | C24: 150 | D24: 135 | E24: 21 | F24: دمياط | G24: 267 | H24: 170 | I24: 163
A25: الغردقه | B25: 360 | C25: 310 | D25: 245 | E25: 22 | F25: الغردقه | G25: 457 | H25: 361 | I25: 323
A26: الوادي الجديد | B26: 550 | C26: 660 | D26: 240 | E26: 23 | F26: الوادي الجديد | G26: 727 | H26: 760 | I26: 342
A27: المنيا | B27: 235 | C27: 0 | D27: 140 | E27: 24 | F27: المنيا | G27: 290 | H27: 287 | I27: 291
A28: اسيوط | B28: 275 | C28: 0 | D28: 180 | E28: 25 | F28: اسيوط | G28: 325 | H28: 258 | I28: 222
A29: سوهاج | B29: 380 | C29: 0 | D29: 220 | E29: 26 | F29: سوهاج | G29: 425 | H29: 448 | I29: 256
A30: قنا | B30: 440 | C30: 0 | D30: 245 | E30: 27 | F30: قنا | G30: 559 | H30: 583 | I30: 295
A31: ارمنت | B31: 0 | C31: 0 | D31: 275 | E31: 28 | F31: ارمنت | G31: 727 | H31: 677 | I31: 365
A32: مرسي علم | B32: 525 | C32: 0 | D32: 0 | E32: 29 | F32: مرسي علم | G32: 759 | H32: 700 | I32: 342
A33: اسوان | B33: 0 | C33: 600 | D33: 250 | E33: 30 | F33: اسوان | G33: 727 | H33: 670 | I33: 374
A34: الاقصر | B34: 0 | C34: 660 | D34: 250 | E34: 31 | F34: الاقصر | G34: 727 | H34: 677 | I34: 366
A35: العاشر | B35: 40 | C35: 35 | D35: 30 | E35: 32 | F35: العاشر | G35: 50 | H35: 45 | I35: 35
A36: سيدي براني | E36: 33 | F36: سيدي براني | G36: 752 | H36: 700 | I36: 336
A37: داخلي المصنع | E37: 34 | F37: داخلي المصنع | G37: 183 | H37: 353 | I37: 1501
A42: Function NoToTxt(TheNo As Double, MyCur As String, MySubCur As String) As String Dim MyArry1(0 To 9) As String Dim MyArry2(0 To 9) As String Dim MyArry3(0 To 9) As String Dim Myno As String Dim GetNo As String Dim RdNo As String Dim My100 As String Dim My10 As String Dim My1 As String Dim My11 As String Dim My12 As String Dim GetTxt As String Dim Mybillion As String Dim MyMillion As String Dim MyThou As String Dim MyHun As String Dim MyFraction As String Dim MyAnd As String Dim I As Integer Dim ReMark As String If TheNo > 999999999999.99 Then Exit Function If TheNo < 0 Then TheNo = TheNo * -1 ReMark = "يتبقى لكم " Else ReMark = "فقط " End If If TheNo = 0 Then NoToTxt = "صفر" Exit Function End If MyAnd = " و" MyArry1(0) = "" MyArry1(1) = "مائة" MyArry1(2) = "مائتان" MyArry1(3) = "ثلاثمائة" MyArry1(4) = "أربعمائة" MyArry1(5) = "خمسمائة" MyArry1(6) = "ستمائة" MyArry1(7) = "سبعمائة" MyArry1(8) = "ثمانمائة" MyArry1(9) = "تسعمائة" MyArry2(0) = "" MyArry2(1) = " عشر" MyArry2(2) = "عشرون" MyArry2(3) = "ثلاثون" MyArry2(4) = "أربعون" MyArry2(5) = "خمسون" MyArry2(6) = "ستون" MyArry2(7) = "سبعون" MyArry2(8) = "ثمانون" MyArry2(9) = "تسعون" MyArry3(0) = "" MyArry3(1) = "واحد" MyArry3(2) = "اثنان" MyArry3(3) = "ثلاثة" MyArry3(4) = "أربعة" MyArry3(5) = "خمسة" MyArry3(6) = "ستة" MyArry3(7) = "سبعة" MyArry3(8) = "ثمانية" MyArry3(9) = "تسعة" '====================== GetNo = Format(TheNo, "000000000000.00") I = 0 Do While I < 15 If I < 12 Then Myno = Mid$(GetNo, I + 1, 3) Else Myno = "0" + Mid$(GetNo, I + 2, 2) End If If (Mid$(Myno, 1, 3)) > 0 Then RdNo = Mid$(Myno, 1, 1) My100 = MyArry1(RdNo) RdNo = Mid$(Myno, 3, 1) My1 = MyArry3(RdNo) RdNo = Mid$(Myno, 2, 1) My10 = MyArry2(RdNo) If Mid$(Myno, 2, 2) = 11 Then My11 = "إحدى عشر" If Mid$(Myno, 2, 2) = 12 Then My12 = "إثنى عشر" If Mid$(Myno, 2, 2) = 10 Then My10 = "عشرة" If ((Mid$(Myno, 1, 1)) > 0) And ((Mid$(Myno, 2, 2)) > 0) Then My100 = My100 + MyAnd If ((Mid$(Myno, 3, 1)) > 0) And ((Mid$(Myno, 2, 1)) > 1) Then My1 = My1 + MyAnd GetTxt = My100 + My1 + My10 If ((Mid$(Myno, 3, 1)) = 1) And ((Mid$(Myno, 2, 1)) = 1) Then GetTxt = My100 + My11 If ((Mid$(Myno, 1, 1)) = 0) Then GetTxt = My11 End If If ((Mid$(Myno, 3, 1)) = 2) And ((Mid$(Myno, 2, 1)) = 1) Then GetTxt = My100 + My12 If ((Mid$(Myno, 1, 1)) = 0) Then GetTxt = My12 End If If (I = 0) And (GetTxt <> "") Then If ((Mid$(Myno, 1, 3)) > 10) Then Mybillion = GetTxt + " مليار" Else Mybillion = GetTxt + " مليارات" If ((Mid$(Myno, 1, 3)) = 2) Then Mybillion = " مليار" If ((Mid$(Myno, 1, 3)) = 2) Then Mybillion = " ملياران" End If End If If (I = 3) And (GetTxt <> "") Then If ((Mid$(Myno, 1, 3)) > 10) Then MyMillion = GetTxt + " مليون" Else MyMillion = GetTxt + " ملايين" If ((Mid$(Myno, 1, 3)) = 1) Then MyMillion = " مليون" If ((Mid$(Myno, 1, 3)) = 2) Then MyMillion = " مليونان" End If End If If (I = 6) And (GetTxt <> "") Then If ((Mid$(Myno, 1, 3)) > 10) Then MyThou = GetTxt + " ألف" Else MyThou = GetTxt + " آلاف" If ((Mid$(Myno, 3, 1)) = 1) Then MyThou = " ألف" If ((Mid$(Myno, 3, 1)) = 2) Then MyThou = " ألفان" End If End If If (I = 9) And (GetTxt <> "") Then MyHun = GetTxt If (I = 12) And (GetTxt <> "") Then MyFraction = GetTxt End If I = I + 3 Loop If (Mybillion <> "") Then If (MyMillion <> "") Or (MyThou <> "") Or (MyHun <> "") Then Mybillion = Mybillion + MyAnd End If If (MyMillion <> "") Then If (MyThou <> "") Or (MyHun <> "") Then MyMillion = MyMillion + MyAnd End If If (MyThou <> "") Then If (MyHun <> "") Then MyThou = MyThou + MyAnd End If If MyFraction <> "" Then If (Mybillion <> "") Or (MyMillion <> "") Or (MyThou <> "") Or (MyHun <> "") Then NoToTxt = ReMark + Mybillion + MyMillion + MyThou + MyHun + " " + MyCur + MyAnd + MyFraction + " " + MySubCur Else NoToTxt = ReMark + MyFraction + " " + MySubCur End If Else NoToTxt = ReMark + Mybillion + MyMillion + MyThou + MyHun + " " + MyCur End If End Function

Sheet حساب_سائق
A1: التاريخ | B1: =NOW() -> 2020-01-04T13:09:39.570 | G1: فترة الحساب
A2: اسم السائق | F2: من | G2: 2020-01-01 | J2: رقم السيارة | K2: 3751 | N2: TRUE
A3: اجمالي مستحقات | B3: =SUBTOTAL(9,$E$7:$E$500)+SUBTOTAL(9,$F$7:$F$500)+SUBTOTAL(9,$G$7:$G$500)+SUBTOTAL(9,$H$7:$H$500) -> 1225.5 | F3: الي | G3: 2020-01-02
A4: اجمالي مصروفات | B4: =SUBTOTAL(9,$I$7:$I$500)+SUBTOTAL(9,$J$7:$J$500)+SUBTOTAL(9,$K$7:$K$500)+SUBTOTAL(9,$L$7:$L$500) -> 500
A5: صافي المستحق | B5: =B3-B4 -> 725.5 | D5: =CurrText($B$5,1,"جنيه","جنيهات",1,"قرش","قروش",2) -> УИЪгЗЖЙ жОгУ жЪФСжд جنيه жОгУжд قرش ЭЮШ бЗЫнС
A6: التاريخ | B6: السياره | C6: المحافظة | D6: الوزن | E6: القيمه | F6: ميزان | G6: شيكات | H6: اخري | I6: عهده | J6: خصم | K6: سلفه | L6: اخري | M6: ملاحظات
A7: =IFERROR(VLOOKUP(ROW()-6,data!$A$5:$AI$2227,4,0),"") -> 2020-01-01 | B7: =IFERROR(VLOOKUP(ROW()-6,data!$A$5:$AI$2227,6,0),"") -> 3751 | C7: =IFERROR(VLOOKUP(ROW()-6,data!$A$5:$AI$2227,20,0),"") -> الاسكندريه | D7: =IFERROR(VLOOKUP(ROW()-6,data!$A$5:$AI$2227,29,0),"") -> 5.7 | E7: =IFERROR(VLOOKUP(ROW()-6,data!$A$5:$AI$2227,31,0),"") -> 1225.5 | F7: =IFERROR(VLOOKUP(ROW()-6,data!$A$5:$AI$2227,27,0),"") -> 0 | G7: =IFERROR(VLOOKUP(ROW()-6,data!$A$5:$AI$2227,24,0),"") -> 0 | H7: =IFERROR(VLOOKUP(ROW()-6,data!$A$5:$AI$2227,19,0),"") -> 0 | I7: =IFERROR(VLOOKUP(ROW()-6,data!$A$5:$AI$2227,10,0),"") -> 500 | J7: =IFERROR(VLOOKUP(ROW()-6,data!$A$5:$AI$2227,14,0),"") -> 0 | K7: =IFERROR(VLOOKUP(ROW()-6,data!$A$5:$AI$2227,12,0),"") -> 0 | L7: =IFERROR(VLOOKUP(ROW()-6,data!$A$5:$AI$2227,18,0),"") -> 0 | M7: =IFERROR(VLOOKUP(ROW()-6,data!$A$5:$AI$2227,21,0),"") -> 0
A8: =IFERROR(VLOOKUP(ROW()-6,data!$A$5:$AI$2227,4,0),"") ->  | B8: =IFERROR(VLOOKUP(ROW()-6,data!$A$5:$AI$2227,6,0),"") ->  | C8: =IFERROR(VLOOKUP(ROW()-6,data!$A$5:$AI$2227,20,0),"") ->  | D8: =IFERROR(VLOOKUP(ROW()-6,data!$A$5:$AI$2227,29,0),"") ->  | E8: =IFERROR(VLOOKUP(ROW()-6,data!$A$5:$AI$2227,31,0),"") ->  | F8: =IFERROR(VLOOKUP(ROW()-6,data!$A$5:$AI$2227,27,0),"") ->  | G8: =IFERROR(VLOOKUP(ROW()-6,data!$A$5:$AI$2227,24,0),"") ->  | H8: =IFERROR(VLOOKUP(ROW()-6,data!$A$5:$AI$2227,19,0),"") ->  | I8: =IFERROR(VLOOKUP(ROW()-6,data!$A$5:$AI$2227,10,0),"") ->  | J8: =IFERROR(VLOOKUP(ROW()-6,data!$A$5:$AI$2227,14,0),"") ->  | K8: =IFERROR(VLOOKUP(ROW()-6,data!$A$5:$AI$2227,12,0),"") ->  | L8: =IFERROR(VLOOKUP(ROW()-6,data!$A$5:$AI$2227,18,0),"") ->  | M8: =IFERROR(VLOOKUP(ROW()-6,data!$A$5:$AI$2227,21,0),"") -> 
A9: =IFERROR(VLOOKUP(ROW()-6,data!$A$5:$AI$2227,4,0),"") ->  | B9: =IFERROR(VLOOKUP(ROW()-6,data!$A$5:$AI$2227,6,0),"") ->  | C9: =IFERROR(VLOOKUP(ROW()-6,data!$A$5:$AI$2227,20,0),"") ->  | D9: =IFERROR(VLOOKUP(ROW()-6,data!$A$5:$AI$2227,29,0),"") ->  | E9: =IFERROR(VLOOKUP(ROW()-6,data!$A$5:$AI$2227,31,0),"") ->  | F9: =IFERROR(VLOOKUP(ROW()-6,data!$A$5:$AI$2227,27,0),"") ->  | G9: =IFERROR(VLOOKUP(ROW()-6,data!$A$5:$AI$2227,24,0),"") ->  | H9: =IFERROR(VLOOKUP(ROW()-6,data!$A$5:$AI$2227,19,0),"") ->  | I9: =IFERROR(VLOOKUP(ROW()-6,data!$A$5:$AI$2227,10,0),"") ->  | J9: =IFERROR(VLOOKUP(ROW()-6,data!$A$5:$AI$2227,14,0),"") ->  | K9: =IFERROR(VLOOKUP(ROW()-6,data!$A$5:$AI$2227,12,0),"") ->  | L9: =IFERROR(VLOOKUP(ROW()-6,data!$A$5:$AI$2227,18,0),"") ->  | M9: =IFERROR(VLOOKUP(ROW()-6,data!$A$5:$AI$2227,21,0),"") -> 
A10: =IFERROR(VLOOKUP(ROW()-6,data!$A$5:$AI$2227,4,0),"") ->  | B10: =IFERROR(VLOOKUP(ROW()-6,data!$A$5:$AI$2227,6,0),"") ->  | C10: =IFERROR(VLOOKUP(ROW()-6,data!$A$5:$AI$2227,20,0),"") ->  | D10: =IFERROR(VLOOKUP(ROW()-6,data!$A$5:$AI$2227,29,0),"") ->  | E10: =IFERROR(VLOOKUP(ROW()-6,data!$A$5:$AI$2227,31,0),"") ->  | F10: =IFERROR(VLOOKUP(ROW()-6,data!$A$5:$AI$2227,27,0),"") ->  | G10: =IFERROR(VLOOKUP(ROW()-6,data!$A$5:$AI$2227,24,0),"") ->  | H10: =IFERROR(VLOOKUP(ROW()-6,data!$A$5:$AI$2227,19,0),"") ->  | I10: =IFERROR(VLOOKUP(ROW()-6,data!$A$5:$AI$2227,10,0),"") ->  | J10: =IFERROR(VLOOKUP(ROW()-6,data!$A$5:$AI$2227,14,0),"") ->  | K10: =IFERROR(VLOOKUP(ROW()-6,data!$A$5:$AI$2227,12,0),"") ->  | L10: =IFERROR(VLOOKUP(ROW()-6,data!$A$5:$AI$2227,18,0),"") ->  | M10: =IFERROR(VLOOKUP(ROW()-6,data!$A$5:$AI$2227,21,0),"") -> 
A11: =IFERROR(VLOOKUP(ROW()-6,data!$A$5:$AI$2227,4,0),"") ->  | B11: =IFERROR(VLOOKUP(ROW()-6,data!$A$5:$AI$2227,6,0),"") ->  | C11: =IFERROR(VLOOKUP(ROW()-6,data!$A$5:$AI$2227,20,0),"") ->  | D11: =IFERROR(VLOOKUP(ROW()-6,data!$A$5:$AI$2227,29,0),"") ->  | E11: =IFERROR(VLOOKUP(ROW()-6,data!$A$5:$AI$2227,31,0),"") ->  | F11: =IFERROR(VLOOKUP(ROW()-6,data!$A$5:$AI$2227,27,0),"") ->  | G11: =IFERROR(VLOOKUP(ROW()-6,data!$A$5:$AI$2227,24,0),"") ->  | H11: =IFERROR(VLOOKUP(ROW()-6,data!$A$5:$AI$2227,19,0),"") ->  | I11: =IFERROR(VLOOKUP(ROW()-6,data!$A$5:$AI$2227,10,0),"") ->  | J11: =IFERROR(VLOOKUP(ROW()-6,data!$A$5:$AI$2227,14,0),"") ->  | K11: =IFERROR(VLOOKUP(ROW()-6,data!$A$5:$AI$2227,12,0),"") ->  | L11: =IFERROR(VLOOKUP(ROW()-6,data!$A$5:$AI$2227,18,0),"") ->  | M11: =IFERROR(VLOOKUP(ROW()-6,data!$A$5:$AI$2227,21,0),"") -> 
A12: =IFERROR(VLOOKUP(ROW()-6,data!$A$5:$AI$2227,4,0),"") ->  | B12: =IFERROR(VLOOKUP(ROW()-6,data!$A$5:$AI$2227,6,0),"") ->  | C12: =IFERROR(VLOOKUP(ROW()-6,data!$A$5:$AI$2227,20,0),"") ->  | D12: =IFERROR(VLOOKUP(ROW()-6,data!$A$5:$AI$2227,29,0),"") ->  | E12: =IFERROR(VLOOKUP(ROW()-6,data!$A$5:$AI$2227,31,0),"") ->  | F12: =IFERROR(VLOOKUP(ROW()-6,data!$A$5:$AI$2227,27,0),"") ->  | G12: =IFERROR(VLOOKUP(ROW()-6,data!$A$5:$AI$2227,24,0),"") ->  | H12: =IFERROR(VLOOKUP(ROW()-6,data!$A$5:$AI$2227,19,0),"") ->  | I12: =IFERROR(VLOOKUP(ROW()-6,data!$A$5:$AI$2227,10,0),"") ->  | J12: =IFERROR(VLOOKUP(ROW()-6,data!$A$5:$AI$2227,14,0),"") ->  | K12: =IFERROR(VLOOKUP(ROW()-6,data!$A$5:$AI$2227,12,0),"") ->  | L12: =IFERROR(VLOOKUP(ROW()-6,data!$A$5:$AI$2227,18,0),"") ->  | M12: =IFERROR(VLOOKUP(ROW()-6,data!$A$5:$AI$2227,21,0),"") -> 
A13: =IFERROR(VLOOKUP(ROW()-6,data!$A$5:$AI$2227,4,0),"") ->  | B13: =IFERROR(VLOOKUP(ROW()-6,data!$A$5:$AI$2227,6,0),"") ->  | C13: =IFERROR(VLOOKUP(ROW()-6,data!$A$5:$AI$2227,20,0),"") ->  | D13: =IFERROR(VLOOKUP(ROW()-6,data!$A$5:$AI$2227,29,0),"") ->  | E13: =IFERROR(VLOOKUP(ROW()-6,data!$A$5:$AI$2227,31,0),"") ->  | F13: =IFERROR(VLOOKUP(ROW()-6,data!$A$5:$AI$2227,27,0),"") ->  | G13: =IFERROR(VLOOKUP(ROW()-6,data!$A$5:$AI$2227,24,0),"") ->  | H13: =IFERROR(VLOOKUP(ROW()-6,data!$A$5:$AI$2227,19,0),"") ->  | I13: =IFERROR(VLOOKUP(ROW()-6,data!$A$5:$AI$2227,10,0),"") ->  | J13: =IFERROR(VLOOKUP(ROW()-6,data!$A$5:$AI$2227,14,0),"") ->  | K13: =IFERROR(VLOOKUP(ROW()-6,data!$A$5:$AI$2227,12,0),"") ->  | L13: =IFERROR(VLOOKUP(ROW()-6,data!$A$5:$AI$2227,18,0),"") ->  | M13: =IFERROR(VLOOKUP(ROW()-6,data!$A$5:$AI$2227,21,0),"") -> 
A14: =IFERROR(VLOOKUP(ROW()-6,data!$A$5:$AI$2227,4,0),"") ->  | B14: =IFERROR(VLOOKUP(ROW()-6,data!$A$5:$AI$2227,6,0),"") ->  | C14: =IFERROR(VLOOKUP(ROW()-6,data!$A$5:$AI$2227,20,0),"") ->  | D14: =IFERROR(VLOOKUP(ROW()-6,data!$A$5:$AI$2227,29,0),"") ->  | E14: =IFERROR(VLOOKUP(ROW()-6,data!$A$5:$AI$2227,31,0),"") ->  | F14: =IFERROR(VLOOKUP(ROW()-6,data!$A$5:$AI$2227,27,0),"") ->  | G14: =IFERROR(VLOOKUP(ROW()-6,data!$A$5:$AI$2227,24,0),"") ->  | H14: =IFERROR(VLOOKUP(ROW()-6,data!$A$5:$AI$2227,19,0),"") ->  | I14: =IFERROR(VLOOKUP(ROW()-6,data!$A$5:$AI$2227,10,0),"") ->  | J14: =IFERROR(VLOOKUP(ROW()-6,data!$A$5:$AI$2227,14,0),"") ->  | K14: =IFERROR(VLOOKUP(ROW()-6,data!$A$5:$AI$2227,12,0),"") ->  | L14: =IFERROR(VLOOKUP(ROW()-6,data!$A$5:$AI$2227,18,0),"") ->  | M14: =IFERROR(VLOOKUP(ROW()-6,data!$A$5:$AI$2227,21,0),"") -> 
A15: =IFERROR(VLOOKUP(ROW()-6,data!$A$5:$AI$2227,4,0),"") ->  | B15: =IFERROR(VLOOKUP(ROW()-6,data!$A$5:$AI$2227,6,0),"") ->  | C15: =IFERROR(VLOOKUP(ROW()-6,data!$A$5:$AI$2227,20,0),"") ->  | D15: =IFERROR(VLOOKUP(ROW()-6,data!$A$5:$AI$2227,29,0),"") ->  | E15: =IFERROR(VLOOKUP(ROW()-6,data!$A$5:$AI$2227,31,0),"") ->  | F15: =IFERROR(VLOOKUP(ROW()-6,data!$A$5:$AI$2227,27,0),"") ->  | G15: =IFERROR(VLOOKUP(ROW()-6,data!$A$5:$AI$2227,24,0),"") ->  | H15: =IFERROR(VLOOKUP(ROW()-6,data!$A$5:$AI$2227,19,0),"") ->  | I15: =IFERROR(VLOOKUP(ROW()-6,data!$A$5:$AI$2227,10,0),"") ->  | J15: =IFERROR(VLOOKUP(ROW()-6,data!$A$5:$AI$2227,14,0),"") ->  | K15: =IFERROR(VLOOKUP(ROW()-6,data!$A$5:$AI$2227,12,0),"") ->  | L15: =IFERROR(VLOOKUP(ROW()-6,data!$A$5:$AI$2227,18,0),"") ->  | M15: =IFERROR(VLOOKUP(ROW()-6,data!$A$5:$AI$2227,21,0),"") -> 
A16: =IFERROR(VLOOKUP(ROW()-6,data!$A$5:$AI$2227,4,0),"") ->  | B16: =IFERROR(VLOOKUP(ROW()-6,data!$A$5:$AI$2227,6,0),"") ->  | C16: =IFERROR(VLOOKUP(ROW()-6,data!$A$5:$AI$2227,20,0),"") ->  | D16: =IFERROR(VLOOKUP(ROW()-6,data!$A$5:$AI$2227,29,0),"") ->  | E16: =IFERROR(VLOOKUP(ROW()-6,data!$A$5:$AI$2227,31,0),"") ->  | F16: =IFERROR(VLOOKUP(ROW()-6,data!$A$5:$AI$2227,27,0),"") ->  | G16: =IFERROR(VLOOKUP(ROW()-6,data!$A$5:$AI$2227,24,0),"") ->  | H16: =IFERROR(VLOOKUP(ROW()-6,data!$A$5:$AI$2227,19,0),"") ->  | I16: =IFERROR(VLOOKUP(ROW()-6,data!$A$5:$AI$2227,10,0),"") ->  | J16: =IFERROR(VLOOKUP(ROW()-6,data!$A$5:$AI$2227,14,0),"") ->  | K16: =IFERROR(VLOOKUP(ROW()-6,data!$A$5:$AI$2227,12,0),"") ->  | L16: =IFERROR(VLOOKUP(ROW()-6,data!$A$5:$AI$2227,18,0),"") ->  | M16: =IFERROR(VLOOKUP(ROW()-6,data!$A$5:$AI$2227,21,0),"") -> 
A17: =IFERROR(VLOOKUP(ROW()-6,data!$A$5:$AI$2227,4,0),"") ->  | B17: =IFERROR(VLOOKUP(ROW()-6,data!$A$5:$AI$2227,6,0),"") ->  | C17: =IFERROR(VLOOKUP(ROW()-6,data!$A$5:$AI$2227,20,0),"") ->  | D17: =IFERROR(VLOOKUP(ROW()-6,data!$A$5:$AI$2227,29,0),"") ->  | E17: =IFERROR(VLOOKUP(ROW()-6,data!$A$5:$AI$2227,31,0),"") ->  | F17: =IFERROR(VLOOKUP(ROW()-6,data!$A$5:$AI$2227,27,0),"") ->  | G17: =IFERROR(VLOOKUP(ROW()-6,data!$A$5:$AI$2227,24,0),"") ->  | H17: =IFERROR(VLOOKUP(ROW()-6,data!$A$5:$AI$2227,19,0),"") ->  | I17: =IFERROR(VLOOKUP(ROW()-6,data!$A$5:$AI$2227,10,0),"") ->  | J17: =IFERROR(VLOOKUP(ROW()-6,data!$A$5:$AI$2227,14,0),"") ->  | K17: =IFERROR(VLOOKUP(ROW()-6,data!$A$5:$AI$2227,12,0),"") ->  | L17: =IFERROR(VLOOKUP(ROW()-6,data!$A$5:$AI$2227,18,0),"") ->  | M17: =IFERROR(VLOOKUP(ROW()-6,data!$A$5:$AI$2227,21,0),"") -> 
A18: =IFERROR(VLOOKUP(ROW()-6,data!$A$5:$AI$2227,4,0),"") ->  | B18: =IFERROR(VLOOKUP(ROW()-6,data!$A$5:$AI$2227,6,0),"") ->  | C18: =IFERROR(VLOOKUP(ROW()-6,data!$A$5:$AI$2227,20,0),"") ->  | D18: =IFERROR(VLOOKUP(ROW()-6,data!$A$5:$AI$2227,29,0),"") ->  | E18: =IFERROR(VLOOKUP(ROW()-6,data!$A$5:$AI$2227,31,0),"") ->  | F18: =IFERROR(VLOOKUP(ROW()-6,data!$A$5:$AI$2227,27,0),"") ->  | G18: =IFERROR(VLOOKUP(ROW()-6,data!$A$5:$AI$2227,24,0),"") ->  | H18: =IFERROR(VLOOKUP(ROW()-6,data!$A$5:$AI$2227,19,0),"") ->  | I18: =IFERROR(VLOOKUP(ROW()-6,data!$A$5:$AI$2227,10,0),"") ->  | J18: =IFERROR(VLOOKUP(ROW()-6,data!$A$5:$AI$2227,14,0),"") ->  | K18: =IFERROR(VLOOKUP(ROW()-6,data!$A$5:$AI$2227,12,0),"") ->  | L18: =IFERROR(VLOOKUP(ROW()-6,data!$A$5:$AI$2227,18,0),"") ->  | M18: =IFERROR(VLOOKUP(ROW()-6,data!$A$5:$AI$2227,21,0),"") -> 
A19: =IFERROR(VLOOKUP(ROW()-6,data!$A$5:$AI$2227,4,0),"") ->  | B19: =IFERROR(VLOOKUP(ROW()-6,data!$A$5:$AI$2227,6,0),"") ->  | C19: =IFERROR(VLOOKUP(ROW()-6,data!$A$5:$AI$2227,20,0),"") ->  | D19: =IFERROR(VLOOKUP(ROW()-6,data!$A$5:$AI$2227,29,0),"") ->  | E19: =IFERROR(VLOOKUP(ROW()-6,data!$A$5:$AI$2227,31,0),"") ->  | F19: =IFERROR(VLOOKUP(ROW()-6,data!$A$5:$AI$2227,27,0),"") ->  | G19: =IFERROR(VLOOKUP(ROW()-6,data!$A$5:$AI$2227,24,0),"") ->  | H19: =IFERROR(VLOOKUP(ROW()-6,data!$A$5:$AI$2227,19,0),"") ->  | I19: =IFERROR(VLOOKUP(ROW()-6,data!$A$5:$AI$2227,10,0),"") ->  | J19: =IFERROR(VLOOKUP(ROW()-6,data!$A$5:$AI$2227,14,0),"") ->  | K19: =IFERROR(VLOOKUP(ROW()-6,data!$A$5:$AI$2227,12,0),"") ->  | L19: =IFERROR(VLOOKUP(ROW()-6,data!$A$5:$AI$2227,18,0),"") ->  | M19: =IFERROR(VLOOKUP(ROW()-6,data!$A$5:$AI$2227,21,0),"") -> 
A20: =IFERROR(VLOOKUP(ROW()-6,data!$A$5:$AI$2227,4,0),"") ->  | B20: =IFERROR(VLOOKUP(ROW()-6,data!$A$5:$AI$2227,6,0),"") ->  | C20: =IFERROR(VLOOKUP(ROW()-6,data!$A$5:$AI$2227,20,0),"") ->  | D20: =IFERROR(VLOOKUP(ROW()-6,data!$A$5:$AI$2227,29,0),"") ->  | E20: =IFERROR(VLOOKUP(ROW()-6,data!$A$5:$AI$2227,31,0),"") ->  | F20: =IFERROR(VLOOKUP(ROW()-6,data!$A$5:$AI$2227,27,0),"") ->  | G20: =IFERROR(VLOOKUP(ROW()-6,data!$A$5:$AI$2227,24,0),"") ->  | H20: =IFERROR(VLOOKUP(ROW()-6,data!$A$5:$AI$2227,19,0),"") ->  | I20: =IFERROR(VLOOKUP(ROW()-6,data!$A$5:$AI$2227,10,0),"") ->  | J20: =IFERROR(VLOOKUP(ROW()-6,data!$A$5:$AI$2227,14,0),"") ->  | K20: =IFERROR(VLOOKUP(ROW()-6,data!$A$5:$AI$2227,12,0),"") ->  | L20: =IFERROR(VLOOKUP(ROW()-6,data!$A$5:$AI$2227,18,0),"") ->  | M20: =IFERROR(VLOOKUP(ROW()-6,data!$A$5:$AI$2227,21,0),"") -> 
A21: =IFERROR(VLOOKUP(ROW()-6,data!$A$5:$AI$2227,4,0),"") ->  | B21: =IFERROR(VLOOKUP(ROW()-6,data!$A$5:$AI$2227,6,0),"") ->  | C21: =IFERROR(VLOOKUP(ROW()-6,data!$A$5:$AI$2227,20,0),"") ->  | D21: =IFERROR(VLOOKUP(ROW()-6,data!$A$5:$AI$2227,29,0),"") ->  | E21: =IFERROR(VLOOKUP(ROW()-6,data!$A$5:$AI$2227,31,0),"") ->  | F21: =IFERROR(VLOOKUP(ROW()-6,data!$A$5:$AI$2227,27,0),"") ->  | G21: =IFERROR(VLOOKUP(ROW()-6,data!$A$5:$AI$2227,24,0),"") ->  | H21: =IFERROR(VLOOKUP(ROW()-6,data!$A$5:$AI$2227,19,0),"") ->  | I21: =IFERROR(VLOOKUP(ROW()-6,data!$A$5:$AI$2227,10,0),"") ->  | J21: =IFERROR(VLOOKUP(ROW()-6,data!$A$5:$AI$2227,14,0),"") ->  | K21: =IFERROR(VLOOKUP(ROW()-6,data!$A$5:$AI$2227,12,0),"") ->  | L21: =IFERROR(VLOOKUP(ROW()-6,data!$A$5:$AI$2227,18,0),"") ->  | M21: =IFERROR(VLOOKUP(ROW()-6,data!$A$5:$AI$2227,21,0),"") -> 
A22: =IFERROR(VLOOKUP(ROW()-6,data!$A$5:$AI$2227,4,0),"") ->  | B22: =IFERROR(VLOOKUP(ROW()-6,data!$A$5:$AI$2227,6,0),"") ->  | C22: =IFERROR(VLOOKUP(ROW()-6,data!$A$5:$AI$2227,20,0),"") ->  | D22: =IFERROR(VLOOKUP(ROW()-6,data!$A$5:$AI$2227,29,0),"") ->  | E22: =IFERROR(VLOOKUP(ROW()-6,data!$A$5:$AI$2227,31,0),"") ->  | F22: =IFERROR(VLOOKUP(ROW()-6,data!$A$5:$AI$2227,27,0),"") ->  | G22: =IFERROR(VLOOKUP(ROW()-6,data!$A$5:$AI$2227,24,0),"") ->  | H22: =IFERROR(VLOOKUP(ROW()-6,data!$A$5:$AI$2227,19,0),"") ->  | I22: =IFERROR(VLOOKUP(ROW()-6,data!$A$5:$AI$2227,10,0),"") ->  | J22: =IFERROR(VLOOKUP(ROW()-6,data!$A$5:$AI$2227,14,0),"") ->  | K22: =IFERROR(VLOOKUP(ROW()-6,data!$A$5:$AI$2227,12,0),"") ->  | L22: =IFERROR(VLOOKUP(ROW()-6,data!$A$5:$AI$2227,18,0),"") ->  | M22: =IFERROR(VLOOKUP(ROW()-6,data!$A$5:$AI$2227,21,0),"") -> 
A23: =IFERROR(VLOOKUP(ROW()-6,data!$A$5:$AI$2227,4,0),"") ->  | B23: =IFERROR(VLOOKUP(ROW()-6,data!$A$5:$AI$2227,6,0),"") ->  | C23: =IFERROR(VLOOKUP(ROW()-6,data!$A$5:$AI$2227,20,0),"") ->  | D23: =IFERROR(VLOOKUP(ROW()-6,data!$A$5:$AI$2227,29,0),"") ->  | E23: =IFERROR(VLOOKUP(ROW()-6,data!$A$5:$AI$2227,31,0),"") ->  | F23: =IFERROR(VLOOKUP(ROW()-6,data!$A$5:$AI$2227,27,0),"") ->  | G23: =IFERROR(VLOOKUP(ROW()-6,data!$A$5:$AI$2227,24,0),"") ->  | H23: =IFERROR(VLOOKUP(ROW()-6,data!$A$5:$AI$2227,19,0),"") ->  | I23: =IFERROR(VLOOKUP(ROW()-6,data!$A$5:$AI$2227,10,0),"") ->  | J23: =IFERROR(VLOOKUP(ROW()-6,data!$A$5:$AI$2227,14,0),"") ->  | K23: =IFERROR(VLOOKUP(ROW()-6,data!$A$5:$AI$2227,12,0),"") ->  | L23: =IFERROR(VLOOKUP(ROW()-6,data!$A$5:$AI$2227,18,0),"") ->  | M23: =IFERROR(VLOOKUP(ROW()-6,data!$A$5:$AI$2227,21,0),"") -> 
A24: =IFERROR(VLOOKUP(ROW()-6,data!$A$5:$AI$2227,4,0),"") ->  | B24: =IFERROR(VLOOKUP(ROW()-6,data!$A$5:$AI$2227,6,0),"") ->  | C24: =IFERROR(VLOOKUP(ROW()-6,data!$A$5:$AI$2227,20,0),"") ->  | D24: =IFERROR(VLOOKUP(ROW()-6,data!$A$5:$AI$2227,29,0),"") ->  | E24: =IFERROR(VLOOKUP(ROW()-6,data!$A$5:$AI$2227,31,0),"") ->  | F24: =IFERROR(VLOOKUP(ROW()-6,data!$A$5:$AI$2227,27,0),"") ->  | G24: =IFERROR(VLOOKUP(ROW()-6,data!$A$5:$AI$2227,24,0),"") ->  | H24: =IFERROR(VLOOKUP(ROW()-6,data!$A$5:$AI$2227,19,0),"") ->  | I24: =IFERROR(VLOOKUP(ROW()-6,data!$A$5:$AI$2227,10,0),"") ->  | J24: =IFERROR(VLOOKUP(ROW()-6,data!$A$5:$AI$2227,14,0),"") ->  | K24: =IFERROR(VLOOKUP(ROW()-6,data!$A$5:$AI$2227,12,0),"") ->  | L24: =IFERROR(VLOOKUP(ROW()-6,data!$A$5:$AI$2227,18,0),"") ->  | M24: =IFERROR(VLOOKUP(ROW()-6,data!$A$5:$AI$2227,21,0),"") -> 
A25: =IFERROR(VLOOKUP(ROW()-6,data!$A$5:$AI$2227,4,0),"") ->  | B25: =IFERROR(VLOOKUP(ROW()-6,data!$A$5:$AI$2227,6,0),"") ->  | C25: =IFERROR(VLOOKUP(ROW()-6,data!$A$5:$AI$2227,20,0),"") ->  | D25: =IFERROR(VLOOKUP(ROW()-6,data!$A$5:$AI$2227,29,0),"") ->  | E25: =IFERROR(VLOOKUP(ROW()-6,data!$A$5:$AI$2227,31,0),"") ->  | F25: =IFERROR(VLOOKUP(ROW()-6,data!$A$5:$AI$2227,27,0),"") ->  | G25: =IFERROR(VLOOKUP(ROW()-6,data!$A$5:$AI$2227,24,0),"") ->  | H25: =IFERROR(VLOOKUP(ROW()-6,data!$A$5:$AI$2227,19,0),"") ->  | I25: =IFERROR(VLOOKUP(ROW()-6,data!$A$5:$AI$2227,10,0),"") ->  | J25: =IFERROR(VLOOKUP(ROW()-6,data!$A$5:$AI$2227,14,0),"") ->  | K25: =IFERROR(VLOOKUP(ROW()-6,data!$A$5:$AI$2227,12,0),"") ->  | L25: =IFERROR(VLOOKUP(ROW()-6,data!$A$5:$AI$2227,18,0),"") ->  | M25: =IFERROR(VLOOKUP(ROW()-6,data!$A$5:$AI$2227,21,0),"") -> 
A26: =IFERROR(VLOOKUP(ROW()-6,data!$A$5:$AI$2227,4,0),"") ->  | B26: =IFERROR(VLOOKUP(ROW()-6,data!$A$5:$AI$2227,6,0),"") ->  | C26: =IFERROR(VLOOKUP(ROW()-6,data!$A$5:$AI$2227,20,0),"") ->  | D26: =IFERROR(VLOOKUP(ROW()-6,data!$A$5:$AI$2227,29,0),"") ->  | E26: =IFERROR(VLOOKUP(ROW()-6,data!$A$5:$AI$2227,31,0),"") ->  | F26: =IFERROR(VLOOKUP(ROW()-6,data!$A$5:$AI$2227,27,0),"") ->  | G26: =IFERROR(VLOOKUP(ROW()-6,data!$A$5:$AI$2227,24,0),"") ->  | H26: =IFERROR(VLOOKUP(ROW()-6,data!$A$5:$AI$2227,19,0),"") ->  | I26: =IFERROR(VLOOKUP(ROW()-6,data!$A$5:$AI$2227,10,0),"") ->  | J26: =IFERROR(VLOOKUP(ROW()-6,data!$A$5:$AI$2227,14,0),"") ->  | K26: =IFERROR(VLOOKUP(ROW()-6,data!$A$5:$AI$2227,12,0),"") ->  | L26: =IFERROR(VLOOKUP(ROW()-6,data!$A$5:$AI$2227,18,0),"") ->  | M26: =IFERROR(VLOOKUP(ROW()-6,data!$A$5:$AI$2227,21,0),"") -> 
A27: =IFERROR(VLOOKUP(ROW()-6,data!$A$5:$AI$2227,4,0),"") ->  | B27: =IFERROR(VLOOKUP(ROW()-6,data!$A$5:$AI$2227,6,0),"") ->  | C27: =IFERROR(VLOOKUP(ROW()-6,data!$A$5:$AI$2227,20,0),"") ->  | D27: =IFERROR(VLOOKUP(ROW()-6,data!$A$5:$AI$2227,29,0),"") ->  | E27: =IFERROR(VLOOKUP(ROW()-6,data!$A$5:$AI$2227,31,0),"") ->  | F27: =IFERROR(VLOOKUP(ROW()-6,data!$A$5:$AI$2227,27,0),"") ->  | G27: =IFERROR(VLOOKUP(ROW()-6,data!$A$5:$AI$2227,24,0),"") ->  | H27: =IFERROR(VLOOKUP(ROW()-6,data!$A$5:$AI$2227,19,0),"") ->  | I27: =IFERROR(VLOOKUP(ROW()-6,data!$A$5:$AI$2227,10,0),"") ->  | J27: =IFERROR(VLOOKUP(ROW()-6,data!$A$5:$AI$2227,14,0),"") ->  | K27: =IFERROR(VLOOKUP(ROW()-6,data!$A$5:$AI$2227,12,0),"") ->  | L27: =IFERROR(VLOOKUP(ROW()-6,data!$A$5:$AI$2227,18,0),"") ->  | M27: =IFERROR(VLOOKUP(ROW()-6,data!$A$5:$AI$2227,21,0),"") -> 
A28: =IFERROR(VLOOKUP(ROW()-6,data!$A$5:$AI$2227,4,0),"") ->  | B28: =IFERROR(VLOOKUP(ROW()-6,data!$A$5:$AI$2227,6,0),"") ->  | C28: =IFERROR(VLOOKUP(ROW()-6,data!$A$5:$AI$2227,20,0),"") ->  | D28: =IFERROR(VLOOKUP(ROW()-6,data!$A$5:$AI$2227,29,0),"") ->  | E28: =IFERROR(VLOOKUP(ROW()-6,data!$A$5:$AI$2227,31,0),"") ->  | F28: =IFERROR(VLOOKUP(ROW()-6,data!$A$5:$AI$2227,27,0),"") ->  | G28: =IFERROR(VLOOKUP(ROW()-6,data!$A$5:$AI$2227,24,0),"") ->  | H28: =IFERROR(VLOOKUP(ROW()-6,data!$A$5:$AI$2227,19,0),"") ->  | I28: =IFERROR(VLOOKUP(ROW()-6,data!$A$5:$AI$2227,10,0),"") ->  | J28: =IFERROR(VLOOKUP(ROW()-6,data!$A$5:$AI$2227,14,0),"") ->  | K28: =IFERROR(VLOOKUP(ROW()-6,data!$A$5:$AI$2227,12,0),"") ->  | L28: =IFERROR(VLOOKUP(ROW()-6,data!$A$5:$AI$2227,18,0),"") ->  | M28: =IFERROR(VLOOKUP(ROW()-6,data!$A$5:$AI$2227,21,0),"") -> 
A29: =IFERROR(VLOOKUP(ROW()-6,data!$A$5:$AI$2227,4,0),"") ->  | B29: =IFERROR(VLOOKUP(ROW()-6,data!$A$5:$AI$2227,6,0),"") ->  | C29: =IFERROR(VLOOKUP(ROW()-6,data!$A$5:$AI$2227,20,0),"") ->  | D29: =IFERROR(VLOOKUP(ROW()-6,data!$A$5:$AI$2227,29,0),"") ->  | E29: =IFERROR(VLOOKUP(ROW()-6,data!$A$5:$AI$2227,31,0),"") ->  | F29: =IFERROR(VLOOKUP(ROW()-6,data!$A$5:$AI$2227,27,0),"") ->  | G29: =IFERROR(VLOOKUP(ROW()-6,data!$A$5:$AI$2227,24,0),"") ->  | H29: =IFERROR(VLOOKUP(ROW()-6,data!$A$5:$AI$2227,19,0),"") ->  | I29: =IFERROR(VLOOKUP(ROW()-6,data!$A$5:$AI$2227,10,0),"") ->  | J29: =IFERROR(VLOOKUP(ROW()-6,data!$A$5:$AI$2227,14,0),"") ->  | K29: =IFERROR(VLOOKUP(ROW()-6,data!$A$5:$AI$2227,12,0),"") ->  | L29: =IFERROR(VLOOKUP(ROW()-6,data!$A$5:$AI$2227,18,0),"") ->  | M29: =IFERROR(VLOOKUP(ROW()-6,data!$A$5:$AI$2227,21,0),"") -> 
A30: =IFERROR(VLOOKUP(ROW()-6,data!$A$5:$AI$2227,4,0),"") ->  | B30: =IFERROR(VLOOKUP(ROW()-6,data!$A$5:$AI$2227,6,0),"") ->  | C30: =IFERROR(VLOOKUP(ROW()-6,data!$A$5:$AI$2227,20,0),"") ->  | D30: =IFERROR(VLOOKUP(ROW()-6,data!$A$5:$AI$2227,29,0),"") ->  | E30: =IFERROR(VLOOKUP(ROW()-6,data!$A$5:$AI$2227,31,0),"") ->  | F30: =IFERROR(VLOOKUP(ROW()-6,data!$A$5:$AI$2227,27,0),"") ->  | G30: =IFERROR(VLOOKUP(ROW()-6,data!$A$5:$AI$2227,24,0),"") ->  | H30: =IFERROR(VLOOKUP(ROW()-6,data!$A$5:$AI$2227,19,0),"") ->  | I30: =IFERROR(VLOOKUP(ROW()-6,data!$A$5:$AI$2227,10,0),"") ->  | J30: =IFERROR(VLOOKUP(ROW()-6,data!$A$5:$AI$2227,14,0),"") ->  | K30: =IFERROR(VLOOKUP(ROW()-6,data!$A$5:$AI$2227,12,0),"") ->  | L30: =IFERROR(VLOOKUP(ROW()-6,data!$A$5:$AI$2227,18,0),"") ->  | M30: =IFERROR(VLOOKUP(ROW()-6,data!$A$5:$AI$2227,21,0),"") -> 
A31: =IFERROR(VLOOKUP(ROW()-6,data!$A$5:$AI$2227,4,0),"") ->  | B31: =IFERROR(VLOOKUP(ROW()-6,data!$A$5:$AI$2227,6,0),"") ->  | C31: =IFERROR(VLOOKUP(ROW()-6,data!$A$5:$AI$2227,20,0),"") ->  | D31: =IFERROR(VLOOKUP(ROW()-6,data!$A$5:$AI$2227,29,0),"") ->  | E31: =IFERROR(VLOOKUP(ROW()-6,data!$A$5:$AI$2227,31,0),"") ->  | F31: =IFERROR(VLOOKUP(ROW()-6,data!$A$5:$AI$2227,27,0),"") ->  | G31: =IFERROR(VLOOKUP(ROW()-6,data!$A$5:$AI$2227,24,0),"") ->  | H31: =IFERROR(VLOOKUP(ROW()-6,data!$A$5:$AI$2227,19,0),"") ->  | I31: =IFERROR(VLOOKUP(ROW()-6,data!$A$5:$AI$2227,10,0),"") ->  | J31: =IFERROR(VLOOKUP(ROW()-6,data!$A$5:$AI$2227,14,0),"") ->  | K31: =IFERROR(VLOOKUP(ROW()-6,data!$A$5:$AI$2227,12,0),"") ->  | L31: =IFERROR(VLOOKUP(ROW()-6,data!$A$5:$AI$2227,18,0),"") ->  | M31: =IFERROR(VLOOKUP(ROW()-6,data!$A$5:$AI$2227,21,0),"") -> 
A32: =IFERROR(VLOOKUP(ROW()-6,data!$A$5:$AI$2227,4,0),"") ->  | B32: =IFERROR(VLOOKUP(ROW()-6,data!$A$5:$AI$2227,6,0),"") ->  | C32: =IFERROR(VLOOKUP(ROW()-6,data!$A$5:$AI$2227,20,0),"") ->  | D32: =IFERROR(VLOOKUP(ROW()-6,data!$A$5:$AI$2227,29,0),"") ->  | E32: =IFERROR(VLOOKUP(ROW()-6,data!$A$5:$AI$2227,31,0),"") ->  | F32: =IFERROR(VLOOKUP(ROW()-6,data!$A$5:$AI$2227,27,0),"") ->  | G32: =IFERROR(VLOOKUP(ROW()-6,data!$A$5:$AI$2227,24,0),"") ->  | H32: =IFERROR(VLOOKUP(ROW()-6,data!$A$5:$AI$2227,19,0),"") ->  | I32: =IFERROR(VLOOKUP(ROW()-6,data!$A$5:$AI$2227,10,0),"") ->  | J32: =IFERROR(VLOOKUP(ROW()-6,data!$A$5:$AI$2227,14,0),"") ->  | K32: =IFERROR(VLOOKUP(ROW()-6,data!$A$5:$AI$2227,12,0),"") ->  | L32: =IFERROR(VLOOKUP(ROW()-6,data!$A$5:$AI$2227,18,0),"") ->  | M32: =IFERROR(VLOOKUP(ROW()-6,data!$A$5:$AI$2227,21,0),"") -> 
A33: =IFERROR(VLOOKUP(ROW()-6,data!$A$5:$AI$2227,4,0),"") ->  | B33: =IFERROR(VLOOKUP(ROW()-6,data!$A$5:$AI$2227,6,0),"") ->  | C33: =IFERROR(VLOOKUP(ROW()-6,data!$A$5:$AI$2227,20,0),"") ->  | D33: =IFERROR(VLOOKUP(ROW()-6,data!$A$5:$AI$2227,29,0),"") ->  | E33: =IFERROR(VLOOKUP(ROW()-6,data!$A$5:$AI$2227,31,0),"") ->  | F33: =IFERROR(VLOOKUP(ROW()-6,data!$A$5:$AI$2227,27,0),"") ->  | G33: =IFERROR(VLOOKUP(ROW()-6,data!$A$5:$AI$2227,24,0),"") ->  | H33: =IFERROR(VLOOKUP(ROW()-6,data!$A$5:$AI$2227,19,0),"") ->  | I33: =IFERROR(VLOOKUP(ROW()-6,data!$A$5:$AI$2227,10,0),"") ->  | J33: =IFERROR(VLOOKUP(ROW()-6,data!$A$5:$AI$2227,14,0),"") ->  | K33: =IFERROR(VLOOKUP(ROW()-6,data!$A$5:$AI$2227,12,0),"") ->  | L33: =IFERROR(VLOOKUP(ROW()-6,data!$A$5:$AI$2227,18,0),"") ->  | M33: =IFERROR(VLOOKUP(ROW()-6,data!$A$5:$AI$2227,21,0),"") -> 
A34: =IFERROR(VLOOKUP(ROW()-6,data!$A$5:$AI$2227,4,0),"") ->  | B34: =IFERROR(VLOOKUP(ROW()-6,data!$A$5:$AI$2227,6,0),"") ->  | C34: =IFERROR(VLOOKUP(ROW()-6,data!$A$5:$AI$2227,20,0),"") ->  | D34: =IFERROR(VLOOKUP(ROW()-6,data!$A$5:$AI$2227,29,0),"") ->  | E34: =IFERROR(VLOOKUP(ROW()-6,data!$A$5:$AI$2227,31,0),"") ->  | F34: =IFERROR(VLOOKUP(ROW()-6,data!$A$5:$AI$2227,27,0),"") ->  | G34: =IFERROR(VLOOKUP(ROW()-6,data!$A$5:$AI$2227,24,0),"") ->  | H34: =IFERROR(VLOOKUP(ROW()-6,data!$A$5:$AI$2227,19,0),"") ->  | I34: =IFERROR(VLOOKUP(ROW()-6,data!$A$5:$AI$2227,10,0),"") ->  | J34: =IFERROR(VLOOKUP(ROW()-6,data!$A$5:$AI$2227,14,0),"") ->  | K34: =IFERROR(VLOOKUP(ROW()-6,data!$A$5:$AI$2227,12,0),"") ->  | L34: =IFERROR(VLOOKUP(ROW()-6,data!$A$5:$AI$2227,18,0),"") ->  | M34: =IFERROR(VLOOKUP(ROW()-6,data!$A$5:$AI$2227,21,0),"") -> 
A35: =IFERROR(VLOOKUP(ROW()-6,data!$A$5:$AI$2227,4,0),"") ->  | B35: =IFERROR(VLOOKUP(ROW()-6,data!$A$5:$AI$2227,6,0),"") ->  | C35: =IFERROR(VLOOKUP(ROW()-6,data!$A$5:$AI$2227,20,0),"") ->  | D35: =IFERROR(VLOOKUP(ROW()-6,data!$A$5:$AI$2227,29,0),"") ->  | E35: =IFERROR(VLOOKUP(ROW()-6,data!$A$5:$AI$2227,31,0),"") ->  | F35: =IFERROR(VLOOKUP(ROW()-6,data!$A$5:$AI$2227,27,0),"") ->  | G35: =IFERROR(VLOOKUP(ROW()-6,data!$A$5:$AI$2227,24,0),"") ->  | H35: =IFERROR(VLOOKUP(ROW()-6,data!$A$5:$AI$2227,19,0),"") ->  | I35: =IFERROR(VLOOKUP(ROW()-6,data!$A$5:$AI$2227,10,0),"") ->  | J35: =IFERROR(VLOOKUP(ROW()-6,data!$A$5:$AI$2227,14,0),"") ->  | K35: =IFERROR(VLOOKUP(ROW()-6,data!$A$5:$AI$2227,12,0),"") ->  | L35: =IFERROR(VLOOKUP(ROW()-6,data!$A$5:$AI$2227,18,0),"") ->  | M35: =IFERROR(VLOOKUP(ROW()-6,data!$A$5:$AI$2227,21,0),"") -> 
A36: =IFERROR(VLOOKUP(ROW()-6,data!$A$5:$AI$2227,4,0),"") ->  | B36: =IFERROR(VLOOKUP(ROW()-6,data!$A$5:$AI$2227,6,0),"") ->  | C36: =IFERROR(VLOOKUP(ROW()-6,data!$A$5:$AI$2227,20,0),"") ->  | D36: =IFERROR(VLOOKUP(ROW()-6,data!$A$5:$AI$2227,29,0),"") ->  | E36: =IFERROR(VLOOKUP(ROW()-6,data!$A$5:$AI$2227,31,0),"") ->  | F36: =IFERROR(VLOOKUP(ROW()-6,data!$A$5:$AI$2227,27,0),"") ->  | G36: =IFERROR(VLOOKUP(ROW()-6,data!$A$5:$AI$2227,24,0),"") ->  | H36: =IFERROR(VLOOKUP(ROW()-6,data!$A$5:$AI$2227,19,0),"") ->  | I36: =IFERROR(VLOOKUP(ROW()-6,data!$A$5:$AI$2227,10,0),"") ->  | J36: =IFERROR(VLOOKUP(ROW()-6,data!$A$5:$AI$2227,14,0),"") ->  | K36: =IFERROR(VLOOKUP(ROW()-6,data!$A$5:$AI$2227,12,0),"") ->  | L36: =IFERROR(VLOOKUP(ROW()-6,data!$A$5:$AI$2227,18,0),"") ->  | M36: =IFERROR(VLOOKUP(ROW()-6,data!$A$5:$AI$2227,21,0),"") -> 
A37: =IFERROR(VLOOKUP(ROW()-6,data!$A$5:$AI$2227,4,0),"") ->  | B37: =IFERROR(VLOOKUP(ROW()-6,data!$A$5:$AI$2227,6,0),"") ->  | C37: =IFERROR(VLOOKUP(ROW()-6,data!$A$5:$AI$2227,20,0),"") ->  | D37: =IFERROR(VLOOKUP(ROW()-6,data!$A$5:$AI$2227,29,0),"") ->  | E37: =IFERROR(VLOOKUP(ROW()-6,data!$A$5:$AI$2227,31,0),"") ->  | F37: =IFERROR(VLOOKUP(ROW()-6,data!$A$5:$AI$2227,27,0),"") ->  | G37: =IFERROR(VLOOKUP(ROW()-6,data!$A$5:$AI$2227,24,0),"") ->  | H37: =IFERROR(VLOOKUP(ROW()-6,data!$A$5:$AI$2227,19,0),"") ->  | I37: =IFERROR(VLOOKUP(ROW()-6,data!$A$5:$AI$2227,10,0),"") ->  | J37: =IFERROR(VLOOKUP(ROW()-6,data!$A$5:$AI$2227,14,0),"") ->  | K37: =IFERROR(VLOOKUP(ROW()-6,data!$A$5:$AI$2227,12,0),"") ->  | L37: =IFERROR(VLOOKUP(ROW()-6,data!$A$5:$AI$2227,18,0),"") ->  | M37: =IFERROR(VLOOKUP(ROW()-6,data!$A$5:$AI$2227,21,0),"") -> 
A38: =IFERROR(VLOOKUP(ROW()-6,data!$A$5:$AI$2227,4,0),"") ->  | B38: =IFERROR(VLOOKUP(ROW()-6,data!$A$5:$AI$2227,6,0),"") ->  | C38: =IFERROR(VLOOKUP(ROW()-6,data!$A$5:$AI$2227,20,0),"") ->  | D38: =IFERROR(VLOOKUP(ROW()-6,data!$A$5:$AI$2227,29,0),"") ->  | E38: =IFERROR(VLOOKUP(ROW()-6,data!$A$5:$AI$2227,31,0),"") ->  | F38: =IFERROR(VLOOKUP(ROW()-6,data!$A$5:$AI$2227,27,0),"") ->  | G38: =IFERROR(VLOOKUP(ROW()-6,data!$A$5:$AI$2227,24,0),"") ->  | H38: =IFERROR(VLOOKUP(ROW()-6,data!$A$5:$AI$2227,19,0),"") ->  | I38: =IFERROR(VLOOKUP(ROW()-6,data!$A$5:$AI$2227,10,0),"") ->  | J38: =IFERROR(VLOOKUP(ROW()-6,data!$A$5:$AI$2227,14,0),"") ->  | K38: =IFERROR(VLOOKUP(ROW()-6,data!$A$5:$AI$2227,12,0),"") ->  | L38: =IFERROR(VLOOKUP(ROW()-6,data!$A$5:$AI$2227,18,0),"") ->  | M38: =IFERROR(VLOOKUP(ROW()-6,data!$A$5:$AI$2227,21,0),"") -> 
A39: =IFERROR(VLOOKUP(ROW()-6,data!$A$5:$AI$2227,4,0),"") ->  | B39: =IFERROR(VLOOKUP(ROW()-6,data!$A$5:$AI$2227,6,0),"") ->  | C39: =IFERROR(VLOOKUP(ROW()-6,data!$A$5:$AI$2227,20,0),"") ->  | D39: =IFERROR(VLOOKUP(ROW()-6,data!$A$5:$AI$2227,29,0),"") ->  | E39: =IFERROR(VLOOKUP(ROW()-6,data!$A$5:$AI$2227,31,0),"") ->  | F39: =IFERROR(VLOOKUP(ROW()-6,data!$A$5:$AI$2227,27,0),"") ->  | G39: =IFERROR(VLOOKUP(ROW()-6,data!$A$5:$AI$2227,24,0),"") ->  | H39: =IFERROR(VLOOKUP(ROW()-6,data!$A$5:$AI$2227,19,0),"") ->  | I39: =IFERROR(VLOOKUP(ROW()-6,data!$A$5:$AI$2227,10,0),"") ->  | J39: =IFERROR(VLOOKUP(ROW()-6,data!$A$5:$AI$2227,14,0),"") ->  | K39: =IFERROR(VLOOKUP(ROW()-6,data!$A$5:$AI$2227,12,0),"") ->  | L39: =IFERROR(VLOOKUP(ROW()-6,data!$A$5:$AI$2227,18,0),"") ->  | M39: =IFERROR(VLOOKUP(ROW()-6,data!$A$5:$AI$2227,21,0),"") -> 
A40: =IFERROR(VLOOKUP(ROW()-6,data!$A$5:$AI$2227,4,0),"") ->  | B40: =IFERROR(VLOOKUP(ROW()-6,data!$A$5:$AI$2227,6,0),"") ->  | C40: =IFERROR(VLOOKUP(ROW()-6,data!$A$5:$AI$2227,20,0),"") ->  | D40: =IFERROR(VLOOKUP(ROW()-6,data!$A$5:$AI$2227,29,0),"") ->  | E40: =IFERROR(VLOOKUP(ROW()-6,data!$A$5:$AI$2227,31,0),"") ->  | F40: =IFERROR(VLOOKUP(ROW()-6,data!$A$5:$AI$2227,27,0),"") ->  | G40: =IFERROR(VLOOKUP(ROW()-6,data!$A$5:$AI$2227,24,0),"") ->  | H40: =IFERROR(VLOOKUP(ROW()-6,data!$A$5:$AI$2227,19,0),"") ->  | I40: =IFERROR(VLOOKUP(ROW()-6,data!$A$5:$AI$2227,10,0),"") ->  | J40: =IFERROR(VLOOKUP(ROW()-6,data!$A$5:$AI$2227,14,0),"") ->  | K40: =IFERROR(VLOOKUP(ROW()-6,data!$A$5:$AI$2227,12,0),"") ->  | L40: =IFERROR(VLOOKUP(ROW()-6,data!$A$5:$AI$2227,18,0),"") ->  | M40: =IFERROR(VLOOKUP(ROW()-6,data!$A$5:$AI$2227,21,0),"") -> 
A41: =IFERROR(VLOOKUP(ROW()-6,data!$A$5:$AI$2227,4,0),"") ->  | B41: =IFERROR(VLOOKUP(ROW()-6,data!$A$5:$AI$2227,6,0),"") ->  | C41: =IFERROR(VLOOKUP(ROW()-6,data!$A$5:$AI$2227,20,0),"") ->  | D41: =IFERROR(VLOOKUP(ROW()-6,data!$A$5:$AI$2227,29,0),"") ->  | E41: =IFERROR(VLOOKUP(ROW()-6,data!$A$5:$AI$2227,31,0),"") ->  | F41: =IFERROR(VLOOKUP(ROW()-6,data!$A$5:$AI$2227,27,0),"") ->  | G41: =IFERROR(VLOOKUP(ROW()-6,data!$A$5:$AI$2227,24,0),"") ->  | H41: =IFERROR(VLOOKUP(ROW()-6,data!$A$5:$AI$2227,19,0),"") ->  | I41: =IFERROR(VLOOKUP(ROW()-6,data!$A$5:$AI$2227,10,0),"") ->  | J41: =IFERROR(VLOOKUP(ROW()-6,data!$A$5:$AI$2227,14,0),"") ->  | K41: =IFERROR(VLOOKUP(ROW()-6,data!$A$5:$AI$2227,12,0),"") ->  | L41: =IFERROR(VLOOKUP(ROW()-6,data!$A$5:$AI$2227,18,0),"") ->  | M41: =IFERROR(VLOOKUP(ROW()-6,data!$A$5:$AI$2227,21,0),"") -> 
A42: =IFERROR(VLOOKUP(ROW()-6,data!$A$5:$AI$2227,4,0),"") ->  | B42: =IFERROR(VLOOKUP(ROW()-6,data!$A$5:$AI$2227,6,0),"") ->  | C42: =IFERROR(VLOOKUP(ROW()-6,data!$A$5:$AI$2227,20,0),"") ->  | D42: =IFERROR(VLOOKUP(ROW()-6,data!$A$5:$AI$2227,29,0),"") ->  | E42: =IFERROR(VLOOKUP(ROW()-6,data!$A$5:$AI$2227,31,0),"") ->  | F42: =IFERROR(VLOOKUP(ROW()-6,data!$A$5:$AI$2227,27,0),"") ->  | G42: =IFERROR(VLOOKUP(ROW()-6,data!$A$5:$AI$2227,24,0),"") ->  | H42: =IFERROR(VLOOKUP(ROW()-6,data!$A$5:$AI$2227,19,0),"") ->  | I42: =IFERROR(VLOOKUP(ROW()-6,data!$A$5:$AI$2227,10,0),"") ->  | J42: =IFERROR(VLOOKUP(ROW()-6,data!$A$5:$AI$2227,14,0),"") ->  | K42: =IFERROR(VLOOKUP(ROW()-6,data!$A$5:$AI$2227,12,0),"") ->  | L42: =IFERROR(VLOOKUP(ROW()-6,data!$A$5:$AI$2227,18,0),"") ->  | M42: =IFERROR(VLOOKUP(ROW()-6,data!$A$5:$AI$2227,21,0),"") -> 
A43: =IFERROR(VLOOKUP(ROW()-6,data!$A$5:$AI$2227,4,0),"") ->  | B43: =IFERROR(VLOOKUP(ROW()-6,data!$A$5:$AI$2227,6,0),"") ->  | C43: =IFERROR(VLOOKUP(ROW()-6,data!$A$5:$AI$2227,20,0),"") ->  | D43: =IFERROR(VLOOKUP(ROW()-6,data!$A$5:$AI$2227,29,0),"") ->  | E43: =IFERROR(VLOOKUP(ROW()-6,data!$A$5:$AI$2227,31,0),"") ->  | F43: =IFERROR(VLOOKUP(ROW()-6,data!$A$5:$AI$2227,27,0),"") ->  | G43: =IFERROR(VLOOKUP(ROW()-6,data!$A$5:$AI$2227,24,0),"") ->  | H43: =IFERROR(VLOOKUP(ROW()-6,data!$A$5:$AI$2227,19,0),"") ->  | I43: =IFERROR(VLOOKUP(ROW()-6,data!$A$5:$AI$2227,10,0),"") ->  | J43: =IFERROR(VLOOKUP(ROW()-6,data!$A$5:$AI$2227,14,0),"") ->  | K43: =IFERROR(VLOOKUP(ROW()-6,data!$A$5:$AI$2227,12,0),"") ->  | L43: =IFERROR(VLOOKUP(ROW()-6,data!$A$5:$AI$2227,18,0),"") ->  | M43: =IFERROR(VLOOKUP(ROW()-6,data!$A$5:$AI$2227,21,0),"") -> 
A44: =IFERROR(VLOOKUP(ROW()-6,data!$A$5:$AI$2227,4,0),"") ->  | B44: =IFERROR(VLOOKUP(ROW()-6,data!$A$5:$AI$2227,6,0),"") ->  | C44: =IFERROR(VLOOKUP(ROW()-6,data!$A$5:$AI$2227,20,0),"") ->  | D44: =IFERROR(VLOOKUP(ROW()-6,data!$A$5:$AI$2227,29,0),"") ->  | E44: =IFERROR(VLOOKUP(ROW()-6,data!$A$5:$AI$2227,31,0),"") ->  | F44: =IFERROR(VLOOKUP(ROW()-6,data!$A$5:$AI$2227,27,0),"") ->  | G44: =IFERROR(VLOOKUP(ROW()-6,data!$A$5:$AI$2227,24,0),"") ->  | H44: =IFERROR(VLOOKUP(ROW()-6,data!$A$5:$AI$2227,19,0),"") ->  | I44: =IFERROR(VLOOKUP(ROW()-6,data!$A$5:$AI$2227,10,0),"") ->  | J44: =IFERROR(VLOOKUP(ROW()-6,data!$A$5:$AI$2227,14,0),"") ->  | K44: =IFERROR(VLOOKUP(ROW()-6,data!$A$5:$AI$2227,12,0),"") ->  | L44: =IFERROR(VLOOKUP(ROW()-6,data!$A$5:$AI$2227,18,0),"") ->  | M44: =IFERROR(VLOOKUP(ROW()-6,data!$A$5:$AI$2227,21,0),"") -> 
A45: =IFERROR(VLOOKUP(ROW()-6,data!$A$5:$AI$2227,4,0),"") ->  | B45: =IFERROR(VLOOKUP(ROW()-6,data!$A$5:$AI$2227,6,0),"") ->  | C45: =IFERROR(VLOOKUP(ROW()-6,data!$A$5:$AI$2227,20,0),"") ->  | D45: =IFERROR(VLOOKUP(ROW()-6,data!$A$5:$AI$2227,29,0),"") ->  | E45: =IFERROR(VLOOKUP(ROW()-6,data!$A$5:$AI$2227,31,0),"") ->  | F45: =IFERROR(VLOOKUP(ROW()-6,data!$A$5:$AI$2227,27,0),"") ->  | G45: =IFERROR(VLOOKUP(ROW()-6,data!$A$5:$AI$2227,24,0),"") ->  | H45: =IFERROR(VLOOKUP(ROW()-6,data!$A$5:$AI$2227,19,0),"") ->  | I45: =IFERROR(VLOOKUP(ROW()-6,data!$A$5:$AI$2227,10,0),"") ->  | J45: =IFERROR(VLOOKUP(ROW()-6,data!$A$5:$AI$2227,14,0),"") ->  | K45: =IFERROR(VLOOKUP(ROW()-6,data!$A$5:$AI$2227,12,0),"") ->  | L45: =IFERROR(VLOOKUP(ROW()-6,data!$A$5:$AI$2227,18,0),"") ->  | M45: =IFERROR(VLOOKUP(ROW()-6,data!$A$5:$AI$2227,21,0),"") -> 
A46: =IFERROR(VLOOKUP(ROW()-6,data!$A$5:$AI$2227,4,0),"") ->  | B46: =IFERROR(VLOOKUP(ROW()-6,data!$A$5:$AI$2227,6,0),"") ->  | C46: =IFERROR(VLOOKUP(ROW()-6,data!$A$5:$AI$2227,20,0),"") ->  | D46: =IFERROR(VLOOKUP(ROW()-6,data!$A$5:$AI$2227,29,0),"") ->  | E46: =IFERROR(VLOOKUP(ROW()-6,data!$A$5:$AI$2227,31,0),"") ->  | F46: =IFERROR(VLOOKUP(ROW()-6,data!$A$5:$AI$2227,27,0),"") ->  | G46: =IFERROR(VLOOKUP(ROW()-6,data!$A$5:$AI$2227,24,0),"") ->  | H46: =IFERROR(VLOOKUP(ROW()-6,data!$A$5:$AI$2227,19,0),"") ->  | I46: =IFERROR(VLOOKUP(ROW()-6,data!$A$5:$AI$2227,10,0),"") ->  | J46: =IFERROR(VLOOKUP(ROW()-6,data!$A$5:$AI$2227,14,0),"") ->  | K46: =IFERROR(VLOOKUP(ROW()-6,data!$A$5:$AI$2227,12,0),"") ->  | L46: =IFERROR(VLOOKUP(ROW()-6,data!$A$5:$AI$2227,18,0),"") ->  | M46: =IFERROR(VLOOKUP(ROW()-6,data!$A$5:$AI$2227,21,0),"") -> 
A47: =IFERROR(VLOOKUP(ROW()-6,data!$A$5:$AI$2227,4,0),"") ->  | B47: =IFERROR(VLOOKUP(ROW()-6,data!$A$5:$AI$2227,6,0),"") ->  | C47: =IFERROR(VLOOKUP(ROW()-6,data!$A$5:$AI$2227,20,0),"") ->  | D47: =IFERROR(VLOOKUP(ROW()-6,data!$A$5:$AI$2227,29,0),"") ->  | E47: =IFERROR(VLOOKUP(ROW()-6,data!$A$5:$AI$2227,31,0),"") ->  | F47: =IFERROR(VLOOKUP(ROW()-6,data!$A$5:$AI$2227,27,0),"") ->  | G47: =IFERROR(VLOOKUP(ROW()-6,data!$A$5:$AI$2227,24,0),"") ->  | H47: =IFERROR(VLOOKUP(ROW()-6,data!$A$5:$AI$2227,19,0),"") ->  | I47: =IFERROR(VLOOKUP(ROW()-6,data!$A$5:$AI$2227,10,0),"") ->  | J47: =IFERROR(VLOOKUP(ROW()-6,data!$A$5:$AI$2227,14,0),"") ->  | K47: =IFERROR(VLOOKUP(ROW()-6,data!$A$5:$AI$2227,12,0),"") ->  | L47: =IFERROR(VLOOKUP(ROW()-6,data!$A$5:$AI$2227,18,0),"") ->  | M47: =IFERROR(VLOOKUP(ROW()-6,data!$A$5:$AI$2227,21,0),"") -> 
A48: =IFERROR(VLOOKUP(ROW()-6,data!$A$5:$AI$2227,4,0),"") ->  | B48: =IFERROR(VLOOKUP(ROW()-6,data!$A$5:$AI$2227,6,0),"") ->  | C48: =IFERROR(VLOOKUP(ROW()-6,data!$A$5:$AI$2227,20,0),"") ->  | D48: =IFERROR(VLOOKUP(ROW()-6,data!$A$5:$AI$2227,29,0),"") ->  | E48: =IFERROR(VLOOKUP(ROW()-6,data!$A$5:$AI$2227,31,0),"") ->  | F48: =IFERROR(VLOOKUP(ROW()-6,data!$A$5:$AI$2227,27,0),"") ->  | G48: =IFERROR(VLOOKUP(ROW()-6,data!$A$5:$AI$2227,24,0),"") ->  | H48: =IFERROR(VLOOKUP(ROW()-6,data!$A$5:$AI$2227,19,0),"") ->  | I48: =IFERROR(VLOOKUP(ROW()-6,data!$A$5:$AI$2227,10,0),"") ->  | J48: =IFERROR(VLOOKUP(ROW()-6,data!$A$5:$AI$2227,14,0),"") ->  | K48: =IFERROR(VLOOKUP(ROW()-6,data!$A$5:$AI$2227,12,0),"") ->  | L48: =IFERROR(VLOOKUP(ROW()-6,data!$A$5:$AI$2227,18,0),"") ->  | M48: =IFERROR(VLOOKUP(ROW()-6,data!$A$5:$AI$2227,21,0),"") -> 
A49: =IFERROR(VLOOKUP(ROW()-6,data!$A$5:$AI$2227,4,0),"") ->  | B49: =IFERROR(VLOOKUP(ROW()-6,data!$A$5:$AI$2227,6,0),"") ->  | C49: =IFERROR(VLOOKUP(ROW()-6,data!$A$5:$AI$2227,20,0),"") ->  | D49: =IFERROR(VLOOKUP(ROW()-6,data!$A$5:$AI$2227,29,0),"") ->  | E49: =IFERROR(VLOOKUP(ROW()-6,data!$A$5:$AI$2227,31,0),"") ->  | F49: =IFERROR(VLOOKUP(ROW()-6,data!$A$5:$AI$2227,27,0),"") ->  | G49: =IFERROR(VLOOKUP(ROW()-6,data!$A$5:$AI$2227,24,0),"") ->  | H49: =IFERROR(VLOOKUP(ROW()-6,data!$A$5:$AI$2227,19,0),"") ->  | I49: =IFERROR(VLOOKUP(ROW()-6,data!$A$5:$AI$2227,10,0),"") ->  | J49: =IFERROR(VLOOKUP(ROW()-6,data!$A$5:$AI$2227,14,0),"") ->  | K49: =IFERROR(VLOOKUP(ROW()-6,data!$A$5:$AI$2227,12,0),"") ->  | L49: =IFERROR(VLOOKUP(ROW()-6,data!$A$5:$AI$2227,18,0),"") ->  | M49: =IFERROR(VLOOKUP(ROW()-6,data!$A$5:$AI$2227,21,0),"") -> 
A50: =IFERROR(VLOOKUP(ROW()-6,data!$A$5:$AI$2227,4,0),"") ->  | B50: =IFERROR(VLOOKUP(ROW()-6,data!$A$5:$AI$2227,6,0),"") ->  | C50: =IFERROR(VLOOKUP(ROW()-6,data!$A$5:$AI$2227,20,0),"") ->  | D50: =IFERROR(VLOOKUP(ROW()-6,data!$A$5:$AI$2227,29,0),"") ->  | E50: =IFERROR(VLOOKUP(ROW()-6,data!$A$5:$AI$2227,31,0),"") ->  | F50: =IFERROR(VLOOKUP(ROW()-6,data!$A$5:$AI$2227,27,0),"") ->  | G50: =IFERROR(VLOOKUP(ROW()-6,data!$A$5:$AI$2227,24,0),"") ->  | H50: =IFERROR(VLOOKUP(ROW()-6,data!$A$5:$AI$2227,19,0),"") ->  | I50: =IFERROR(VLOOKUP(ROW()-6,data!$A$5:$AI$2227,10,0),"") ->  | J50: =IFERROR(VLOOKUP(ROW()-6,data!$A$5:$AI$2227,14,0),"") ->  | K50: =IFERROR(VLOOKUP(ROW()-6,data!$A$5:$AI$2227,12,0),"") ->  | L50: =IFERROR(VLOOKUP(ROW()-6,data!$A$5:$AI$2227,18,0),"") ->  | M50: =IFERROR(VLOOKUP(ROW()-6,data!$A$5:$AI$2227,21,0),"") -> 
A51: =IFERROR(VLOOKUP(ROW()-6,data!$A$5:$AI$2227,4,0),"") ->  | B51: =IFERROR(VLOOKUP(ROW()-6,data!$A$5:$AI$2227,6,0),"") ->  | C51: =IFERROR(VLOOKUP(ROW()-6,data!$A$5:$AI$2227,20,0),"") ->  | D51: =IFERROR(VLOOKUP(ROW()-6,data!$A$5:$AI$2227,29,0),"") ->  | E51: =IFERROR(VLOOKUP(ROW()-6,data!$A$5:$AI$2227,31,0),"") ->  | F51: =IFERROR(VLOOKUP(ROW()-6,data!$A$5:$AI$2227,27,0),"") ->  | G51: =IFERROR(VLOOKUP(ROW()-6,data!$A$5:$AI$2227,24,0),"") ->  | H51: =IFERROR(VLOOKUP(ROW()-6,data!$A$5:$AI$2227,19,0),"") ->  | I51: =IFERROR(VLOOKUP(ROW()-6,data!$A$5:$AI$2227,10,0),"") ->  | J51: =IFERROR(VLOOKUP(ROW()-6,data!$A$5:$AI$2227,14,0),"") ->  | K51: =IFERROR(VLOOKUP(ROW()-6,data!$A$5:$AI$2227,12,0),"") ->  | L51: =IFERROR(VLOOKUP(ROW()-6,data!$A$5:$AI$2227,18,0),"") ->  | M51: =IFERROR(VLOOKUP(ROW()-6,data!$A$5:$AI$2227,21,0),"") -> 
A52: =IFERROR(VLOOKUP(ROW()-6,data!$A$5:$AI$2227,4,0),"") ->  | B52: =IFERROR(VLOOKUP(ROW()-6,data!$A$5:$AI$2227,6,0),"") ->  | C52: =IFERROR(VLOOKUP(ROW()-6,data!$A$5:$AI$2227,20,0),"") ->  | D52: =IFERROR(VLOOKUP(ROW()-6,data!$A$5:$AI$2227,29,0),"") ->  | E52: =IFERROR(VLOOKUP(ROW()-6,data!$A$5:$AI$2227,31,0),"") ->  | F52: =IFERROR(VLOOKUP(ROW()-6,data!$A$5:$AI$2227,27,0),"") ->  | G52: =IFERROR(VLOOKUP(ROW()-6,data!$A$5:$AI$2227,24,0),"") ->  | H52: =IFERROR(VLOOKUP(ROW()-6,data!$A$5:$AI$2227,19,0),"") ->  | I52: =IFERROR(VLOOKUP(ROW()-6,data!$A$5:$AI$2227,10,0),"") ->  | J52: =IFERROR(VLOOKUP(ROW()-6,data!$A$5:$AI$2227,14,0),"") ->  | K52: =IFERROR(VLOOKUP(ROW()-6,data!$A$5:$AI$2227,12,0),"") ->  | L52: =IFERROR(VLOOKUP(ROW()-6,data!$A$5:$AI$2227,18,0),"") ->  | M52: =IFERROR(VLOOKUP(ROW()-6,data!$A$5:$AI$2227,21,0),"") -> 
A53: =IFERROR(VLOOKUP(ROW()-6,data!$A$5:$AI$2227,4,0),"") ->  | B53: =IFERROR(VLOOKUP(ROW()-6,data!$A$5:$AI$2227,6,0),"") ->  | C53: =IFERROR(VLOOKUP(ROW()-6,data!$A$5:$AI$2227,20,0),"") ->  | D53: =IFERROR(VLOOKUP(ROW()-6,data!$A$5:$AI$2227,29,0),"") ->  | E53: =IFERROR(VLOOKUP(ROW()-6,data!$A$5:$AI$2227,31,0),"") ->  | F53: =IFERROR(VLOOKUP(ROW()-6,data!$A$5:$AI$2227,27,0),"") ->  | G53: =IFERROR(VLOOKUP(ROW()-6,data!$A$5:$AI$2227,24,0),"") ->  | H53: =IFERROR(VLOOKUP(ROW()-6,data!$A$5:$AI$2227,19,0),"") ->  | I53: =IFERROR(VLOOKUP(ROW()-6,data!$A$5:$AI$2227,10,0),"") ->  | J53: =IFERROR(VLOOKUP(ROW()-6,data!$A$5:$AI$2227,14,0),"") ->  | K53: =IFERROR(VLOOKUP(ROW()-6,data!$A$5:$AI$2227,12,0),"") ->  | L53: =IFERROR(VLOOKUP(ROW()-6,data!$A$5:$AI$2227,18,0),"") ->  | M53: =IFERROR(VLOOKUP(ROW()-6,data!$A$5:$AI$2227,21,0),"") -> 
A54: =IFERROR(VLOOKUP(ROW()-6,data!$A$5:$AI$2227,4,0),"") ->  | B54: =IFERROR(VLOOKUP(ROW()-6,data!$A$5:$AI$2227,6,0),"") ->  | C54: =IFERROR(VLOOKUP(ROW()-6,data!$A$5:$AI$2227,20,0),"") ->  | D54: =IFERROR(VLOOKUP(ROW()-6,data!$A$5:$AI$2227,29,0),"") ->  | E54: =IFERROR(VLOOKUP(ROW()-6,data!$A$5:$AI$2227,31,0),"") ->  | F54: =IFERROR(VLOOKUP(ROW()-6,data!$A$5:$AI$2227,27,0),"") ->  | G54: =IFERROR(VLOOKUP(ROW()-6,data!$A$5:$AI$2227,24,0),"") ->  | H54: =IFERROR(VLOOKUP(ROW()-6,data!$A$5:$AI$2227,19,0),"") ->  | I54: =IFERROR(VLOOKUP(ROW()-6,data!$A$5:$AI$2227,10,0),"") ->  | J54: =IFERROR(VLOOKUP(ROW()-6,data!$A$5:$AI$2227,14,0),"") ->  | K54: =IFERROR(VLOOKUP(ROW()-6,data!$A$5:$AI$2227,12,0),"") ->  | L54: =IFERROR(VLOOKUP(ROW()-6,data!$A$5:$AI$2227,18,0),"") ->  | M54: =IFERROR(VLOOKUP(ROW()-6,data!$A$5:$AI$2227,21,0),"") -> 
A55: =IFERROR(VLOOKUP(ROW()-6,data!$A$5:$AI$2227,4,0),"") ->  | B55: =IFERROR(VLOOKUP(ROW()-6,data!$A$5:$AI$2227,6,0),"") ->  | C55: =IFERROR(VLOOKUP(ROW()-6,data!$A$5:$AI$2227,20,0),"") ->  | D55: =IFERROR(VLOOKUP(ROW()-6,data!$A$5:$AI$2227,29,0),"") ->  | E55: =IFERROR(VLOOKUP(ROW()-6,data!$A$5:$AI$2227,31,0),"") ->  | F55: =IFERROR(VLOOKUP(ROW()-6,data!$A$5:$AI$2227,27,0),"") ->  | G55: =IFERROR(VLOOKUP(ROW()-6,data!$A$5:$AI$2227,24,0),"") ->  | H55: =IFERROR(VLOOKUP(ROW()-6,data!$A$5:$AI$2227,19,0),"") ->  | I55: =IFERROR(VLOOKUP(ROW()-6,data!$A$5:$AI$2227,10,0),"") ->  | J55: =IFERROR(VLOOKUP(ROW()-6,data!$A$5:$AI$2227,14,0),"") ->  | K55: =IFERROR(VLOOKUP(ROW()-6,data!$A$5:$AI$2227,12,0),"") ->  | L55: =IFERROR(VLOOKUP(ROW()-6,data!$A$5:$AI$2227,18,0),"") ->  | M55: =IFERROR(VLOOKUP(ROW()-6,data!$A$5:$AI$2227,21,0),"") -> 
A56: =IFERROR(VLOOKUP(ROW()-6,data!$A$5:$AI$2227,4,0),"") ->  | B56: =IFERROR(VLOOKUP(ROW()-6,data!$A$5:$AI$2227,6,0),"") ->  | C56: =IFERROR(VLOOKUP(ROW()-6,data!$A$5:$AI$2227,20,0),"") ->  | D56: =IFERROR(VLOOKUP(ROW()-6,data!$A$5:$AI$2227,29,0),"") ->  | E56: =IFERROR(VLOOKUP(ROW()-6,data!$A$5:$AI$2227,31,0),"") ->  | F56: =IFERROR(VLOOKUP(ROW()-6,data!$A$5:$AI$2227,27,0),"") ->  | G56: =IFERROR(VLOOKUP(ROW()-6,data!$A$5:$AI$2227,24,0),"") ->  | H56: =IFERROR(VLOOKUP(ROW()-6,data!$A$5:$AI$2227,19,0),"") ->  | I56: =IFERROR(VLOOKUP(ROW()-6,data!$A$5:$AI$2227,10,0),"") ->  | J56: =IFERROR(VLOOKUP(ROW()-6,data!$A$5:$AI$2227,14,0),"") ->  | K56: =IFERROR(VLOOKUP(ROW()-6,data!$A$5:$AI$2227,12,0),"") ->  | L56: =IFERROR(VLOOKUP(ROW()-6,data!$A$5:$AI$2227,18,0),"") ->  | M56: =IFERROR(VLOOKUP(ROW()-6,data!$A$5:$AI$2227,21,0),"") -> 
A57: =IFERROR(VLOOKUP(ROW()-6,data!$A$5:$AI$2227,4,0),"") ->  | B57: =IFERROR(VLOOKUP(ROW()-6,data!$A$5:$AI$2227,6,0),"") ->  | C57: =IFERROR(VLOOKUP(ROW()-6,data!$A$5:$AI$2227,20,0),"") ->  | D57: =IFERROR(VLOOKUP(ROW()-6,data!$A$5:$AI$2227,29,0),"") ->  | E57: =IFERROR(VLOOKUP(ROW()-6,data!$A$5:$AI$2227,31,0),"") ->  | F57: =IFERROR(VLOOKUP(ROW()-6,data!$A$5:$AI$2227,27,0),"") ->  | G57: =IFERROR(VLOOKUP(ROW()-6,data!$A$5:$AI$2227,24,0),"") ->  | H57: =IFERROR(VLOOKUP(ROW()-6,data!$A$5:$AI$2227,19,0),"") ->  | I57: =IFERROR(VLOOKUP(ROW()-6,data!$A$5:$AI$2227,10,0),"") ->  | J57: =IFERROR(VLOOKUP(ROW()-6,data!$A$5:$AI$2227,14,0),"") ->  | K57: =IFERROR(VLOOKUP(ROW()-6,data!$A$5:$AI$2227,12,0),"") ->  | L57: =IFERROR(VLOOKUP(ROW()-6,data!$A$5:$AI$2227,18,0),"") ->  | M57: =IFERROR(VLOOKUP(ROW()-6,data!$A$5:$AI$2227,21,0),"") -> 
A58: =IFERROR(VLOOKUP(ROW()-6,data!$A$5:$AI$2227,4,0),"") ->  | B58: =IFERROR(VLOOKUP(ROW()-6,data!$A$5:$AI$2227,6,0),"") ->  | C58: =IFERROR(VLOOKUP(ROW()-6,data!$A$5:$AI$2227,20,0),"") ->  | D58: =IFERROR(VLOOKUP(ROW()-6,data!$A$5:$AI$2227,29,0),"") ->  | E58: =IFERROR(VLOOKUP(ROW()-6,data!$A$5:$AI$2227,31,0),"") ->  | F58: =IFERROR(VLOOKUP(ROW()-6,data!$A$5:$AI$2227,27,0),"") ->  | G58: =IFERROR(VLOOKUP(ROW()-6,data!$A$5:$AI$2227,24,0),"") ->  | H58: =IFERROR(VLOOKUP(ROW()-6,data!$A$5:$AI$2227,19,0),"") ->  | I58: =IFERROR(VLOOKUP(ROW()-6,data!$A$5:$AI$2227,10,0),"") ->  | J58: =IFERROR(VLOOKUP(ROW()-6,data!$A$5:$AI$2227,14,0),"") ->  | K58: =IFERROR(VLOOKUP(ROW()-6,data!$A$5:$AI$2227,12,0),"") ->  | L58: =IFERROR(VLOOKUP(ROW()-6,data!$A$5:$AI$2227,18,0),"") ->  | M58: =IFERROR(VLOOKUP(ROW()-6,data!$A$5:$AI$2227,21,0),"") -> 
A59: =IFERROR(VLOOKUP(ROW()-6,data!$A$5:$AI$2227,4,0),"") ->  | B59: =IFERROR(VLOOKUP(ROW()-6,data!$A$5:$AI$2227,6,0),"") ->  | C59: =IFERROR(VLOOKUP(ROW()-6,data!$A$5:$AI$2227,20,0),"") ->  | D59: =IFERROR(VLOOKUP(ROW()-6,data!$A$5:$AI$2227,29,0),"") ->  | E59: =IFERROR(VLOOKUP(ROW()-6,data!$A$5:$AI$2227,31,0),"") ->  | F59: =IFERROR(VLOOKUP(ROW()-6,data!$A$5:$AI$2227,27,0),"") ->  | G59: =IFERROR(VLOOKUP(ROW()-6,data!$A$5:$AI$2227,24,0),"") ->  | H59: =IFERROR(VLOOKUP(ROW()-6,data!$A$5:$AI$2227,19,0),"") ->  | I59: =IFERROR(VLOOKUP(ROW()-6,data!$A$5:$AI$2227,10,0),"") ->  | J59: =IFERROR(VLOOKUP(ROW()-6,data!$A$5:$AI$2227,14,0),"") ->  | K59: =IFERROR(VLOOKUP(ROW()-6,data!$A$5:$AI$2227,12,0),"") ->  | L59: =IFERROR(VLOOKUP(ROW()-6,data!$A$5:$AI$2227,18,0),"") ->  | M59: =IFERROR(VLOOKUP(ROW()-6,data!$A$5:$AI$2227,21,0),"") -> 
A60: =IFERROR(VLOOKUP(ROW()-6,data!$A$5:$AI$2227,4,0),"") ->  | B60: =IFERROR(VLOOKUP(ROW()-6,data!$A$5:$AI$2227,6,0),"") ->  | C60: =IFERROR(VLOOKUP(ROW()-6,data!$A$5:$AI$2227,20,0),"") ->  | D60: =IFERROR(VLOOKUP(ROW()-6,data!$A$5:$AI$2227,29,0),"") ->  | E60: =IFERROR(VLOOKUP(ROW()-6,data!$A$5:$AI$2227,31,0),"") ->  | F60: =IFERROR(VLOOKUP(ROW()-6,data!$A$5:$AI$2227,27,0),"") ->  | G60: =IFERROR(VLOOKUP(ROW()-6,data!$A$5:$AI$2227,24,0),"") ->  | H60: =IFERROR(VLOOKUP(ROW()-6,data!$A$5:$AI$2227,19,0),"") ->  | I60: =IFERROR(VLOOKUP(ROW()-6,data!$A$5:$AI$2227,10,0),"") ->  | J60: =IFERROR(VLOOKUP(ROW()-6,data!$A$5:$AI$2227,14,0),"") ->  | K60: =IFERROR(VLOOKUP(ROW()-6,data!$A$5:$AI$2227,12,0),"") ->  | L60: =IFERROR(VLOOKUP(ROW()-6,data!$A$5:$AI$2227,18,0),"") ->  | M60: =IFERROR(VLOOKUP(ROW()-6,data!$A$5:$AI$2227,21,0),"") -> 
A61: =IFERROR(VLOOKUP(ROW()-6,data!$A$5:$AI$2227,4,0),"") ->  | B61: =IFERROR(VLOOKUP(ROW()-6,data!$A$5:$AI$2227,6,0),"") ->  | C61: =IFERROR(VLOOKUP(ROW()-6,data!$A$5:$AI$2227,20,0),"") ->  | D61: =IFERROR(VLOOKUP(ROW()-6,data!$A$5:$AI$2227,29,0),"") ->  | E61: =IFERROR(VLOOKUP(ROW()-6,data!$A$5:$AI$2227,31,0),"") ->  | F61: =IFERROR(VLOOKUP(ROW()-6,data!$A$5:$AI$2227,27,0),"") ->  | G61: =IFERROR(VLOOKUP(ROW()-6,data!$A$5:$AI$2227,24,0),"") ->  | H61: =IFERROR(VLOOKUP(ROW()-6,data!$A$5:$AI$2227,19,0),"") ->  | I61: =IFERROR(VLOOKUP(ROW()-6,data!$A$5:$AI$2227,10,0),"") ->  | J61: =IFERROR(VLOOKUP(ROW()-6,data!$A$5:$AI$2227,14,0),"") ->  | K61: =IFERROR(VLOOKUP(ROW()-6,data!$A$5:$AI$2227,12,0),"") ->  | L61: =IFERROR(VLOOKUP(ROW()-6,data!$A$5:$AI$2227,18,0),"") ->  | M61: =IFERROR(VLOOKUP(ROW()-6,data!$A$5:$AI$2227,21,0),"") -> 
A62: =IFERROR(VLOOKUP(ROW()-6,data!$A$5:$AI$2227,4,0),"") ->  | B62: =IFERROR(VLOOKUP(ROW()-6,data!$A$5:$AI$2227,6,0),"") ->  | C62: =IFERROR(VLOOKUP(ROW()-6,data!$A$5:$AI$2227,20,0),"") ->  | D62: =IFERROR(VLOOKUP(ROW()-6,data!$A$5:$AI$2227,29,0),"") ->  | E62: =IFERROR(VLOOKUP(ROW()-6,data!$A$5:$AI$2227,31,0),"") ->  | F62: =IFERROR(VLOOKUP(ROW()-6,data!$A$5:$AI$2227,27,0),"") ->  | G62: =IFERROR(VLOOKUP(ROW()-6,data!$A$5:$AI$2227,24,0),"") ->  | H62: =IFERROR(VLOOKUP(ROW()-6,data!$A$5:$AI$2227,19,0),"") ->  | I62: =IFERROR(VLOOKUP(ROW()-6,data!$A$5:$AI$2227,10,0),"") ->  | J62: =IFERROR(VLOOKUP(ROW()-6,data!$A$5:$AI$2227,14,0),"") ->  | K62: =IFERROR(VLOOKUP(ROW()-6,data!$A$5:$AI$2227,12,0),"") ->  | L62: =IFERROR(VLOOKUP(ROW()-6,data!$A$5:$AI$2227,18,0),"") ->  | M62: =IFERROR(VLOOKUP(ROW()-6,data!$A$5:$AI$2227,21,0),"") -> 
A63: =IFERROR(VLOOKUP(ROW()-6,data!$A$5:$AI$2227,4,0),"") ->  | B63: =IFERROR(VLOOKUP(ROW()-6,data!$A$5:$AI$2227,6,0),"") ->  | C63: =IFERROR(VLOOKUP(ROW()-6,data!$A$5:$AI$2227,20,0),"") ->  | D63: =IFERROR(VLOOKUP(ROW()-6,data!$A$5:$AI$2227,29,0),"") ->  | E63: =IFERROR(VLOOKUP(ROW()-6,data!$A$5:$AI$2227,31,0),"") ->  | F63: =IFERROR(VLOOKUP(ROW()-6,data!$A$5:$AI$2227,27,0),"") ->  | G63: =IFERROR(VLOOKUP(ROW()-6,data!$A$5:$AI$2227,24,0),"") ->  | H63: =IFERROR(VLOOKUP(ROW()-6,data!$A$5:$AI$2227,19,0),"") ->  | I63: =IFERROR(VLOOKUP(ROW()-6,data!$A$5:$AI$2227,10,0),"") ->  | J63: =IFERROR(VLOOKUP(ROW()-6,data!$A$5:$AI$2227,14,0),"") ->  | K63: =IFERROR(VLOOKUP(ROW()-6,data!$A$5:$AI$2227,12,0),"") ->  | L63: =IFERROR(VLOOKUP(ROW()-6,data!$A$5:$AI$2227,18,0),"") ->  | M63: =IFERROR(VLOOKUP(ROW()-6,data!$A$5:$AI$2227,21,0),"") -> 
A64: =IFERROR(VLOOKUP(ROW()-6,data!$A$5:$AI$2227,4,0),"") ->  | B64: =IFERROR(VLOOKUP(ROW()-6,data!$A$5:$AI$2227,6,0),"") ->  | C64: =IFERROR(VLOOKUP(ROW()-6,data!$A$5:$AI$2227,20,0),"") ->  | D64: =IFERROR(VLOOKUP(ROW()-6,data!$A$5:$AI$2227,29,0),"") ->  | E64: =IFERROR(VLOOKUP(ROW()-6,data!$A$5:$AI$2227,31,0),"") ->  | F64: =IFERROR(VLOOKUP(ROW()-6,data!$A$5:$AI$2227,27,0),"") ->  | G64: =IFERROR(VLOOKUP(ROW()-6,data!$A$5:$AI$2227,24,0),"") ->  | H64: =IFERROR(VLOOKUP(ROW()-6,data!$A$5:$AI$2227,19,0),"") ->  | I64: =IFERROR(VLOOKUP(ROW()-6,data!$A$5:$AI$2227,10,0),"") ->  | J64: =IFERROR(VLOOKUP(ROW()-6,data!$A$5:$AI$2227,14,0),"") ->  | K64: =IFERROR(VLOOKUP(ROW()-6,data!$A$5:$AI$2227,12,0),"") ->  | L64: =IFERROR(VLOOKUP(ROW()-6,data!$A$5:$AI$2227,18,0),"") ->  | M64: =IFERROR(VLOOKUP(ROW()-6,data!$A$5:$AI$2227,21,0),"") -> 
A65: =IFERROR(VLOOKUP(ROW()-6,data!$A$5:$AI$2227,4,0),"") ->  | B65: =IFERROR(VLOOKUP(ROW()-6,data!$A$5:$AI$2227,6,0),"") ->  | C65: =IFERROR(VLOOKUP(ROW()-6,data!$A$5:$AI$2227,20,0),"") ->  | D65: =IFERROR(VLOOKUP(ROW()-6,data!$A$5:$AI$2227,29,0),"") ->  | E65: =IFERROR(VLOOKUP(ROW()-6,data!$A$5:$AI$2227,31,0),"") ->  | F65: =IFERROR(VLOOKUP(ROW()-6,data!$A$5:$AI$2227,27,0),"") ->  | G65: =IFERROR(VLOOKUP(ROW()-6,data!$A$5:$AI$2227,24,0),"") ->  | H65: =IFERROR(VLOOKUP(ROW()-6,data!$A$5:$AI$2227,19,0),"") ->  | I65: =IFERROR(VLOOKUP(ROW()-6,data!$A$5:$AI$2227,10,0),"") ->  | J65: =IFERROR(VLOOKUP(ROW()-6,data!$A$5:$AI$2227,14,0),"") ->  | K65: =IFERROR(VLOOKUP(ROW()-6,data!$A$5:$AI$2227,12,0),"") ->  | L65: =IFERROR(VLOOKUP(ROW()-6,data!$A$5:$AI$2227,18,0),"") ->  | M65: =IFERROR(VLOOKUP(ROW()-6,data!$A$5:$AI$2227,21,0),"") -> 
A66: =IFERROR(VLOOKUP(ROW()-6,data!$A$5:$AI$2227,4,0),"") ->  | B66: =IFERROR(VLOOKUP(ROW()-6,data!$A$5:$AI$2227,6,0),"") ->  | C66: =IFERROR(VLOOKUP(ROW()-6,data!$A$5:$AI$2227,20,0),"") ->  | D66: =IFERROR(VLOOKUP(ROW()-6,data!$A$5:$AI$2227,29,0),"") ->  | E66: =IFERROR(VLOOKUP(ROW()-6,data!$A$5:$AI$2227,31,0),"") ->  | F66: =IFERROR(VLOOKUP(ROW()-6,data!$A$5:$AI$2227,27,0),"") ->  | G66: =IFERROR(VLOOKUP(ROW()-6,data!$A$5:$AI$2227,24,0),"") ->  | H66: =IFERROR(VLOOKUP(ROW()-6,data!$A$5:$AI$2227,19,0),"") ->  | I66: =IFERROR(VLOOKUP(ROW()-6,data!$A$5:$AI$2227,10,0),"") ->  | J66: =IFERROR(VLOOKUP(ROW()-6,data!$A$5:$AI$2227,14,0),"") ->  | K66: =IFERROR(VLOOKUP(ROW()-6,data!$A$5:$AI$2227,12,0),"") ->  | L66: =IFERROR(VLOOKUP(ROW()-6,data!$A$5:$AI$2227,18,0),"") ->  | M66: =IFERROR(VLOOKUP(ROW()-6,data!$A$5:$AI$2227,21,0),"") -> 
A67: =IFERROR(VLOOKUP(ROW()-6,data!$A$5:$AI$2227,4,0),"") ->  | B67: =IFERROR(VLOOKUP(ROW()-6,data!$A$5:$AI$2227,6,0),"") ->  | C67: =IFERROR(VLOOKUP(ROW()-6,data!$A$5:$AI$2227,20,0),"") ->  | D67: =IFERROR(VLOOKUP(ROW()-6,data!$A$5:$AI$2227,29,0),"") ->  | E67: =IFERROR(VLOOKUP(ROW()-6,data!$A$5:$AI$2227,31,0),"") ->  | F67: =IFERROR(VLOOKUP(ROW()-6,data!$A$5:$AI$2227,27,0),"") ->  | G67: =IFERROR(VLOOKUP(ROW()-6,data!$A$5:$AI$2227,24,0),"") ->  | H67: =IFERROR(VLOOKUP(ROW()-6,data!$A$5:$AI$2227,19,0),"") ->  | I67: =IFERROR(VLOOKUP(ROW()-6,data!$A$5:$AI$2227,10,0),"") ->  | J67: =IFERROR(VLOOKUP(ROW()-6,data!$A$5:$AI$2227,14,0),"") ->  | K67: =IFERROR(VLOOKUP(ROW()-6,data!$A$5:$AI$2227,12,0),"") ->  | L67: =IFERROR(VLOOKUP(ROW()-6,data!$A$5:$AI$2227,18,0),"") ->  | M67: =IFERROR(VLOOKUP(ROW()-6,data!$A$5:$AI$2227,21,0),"") -> 
A68: =IFERROR(VLOOKUP(ROW()-6,data!$A$5:$AI$2227,4,0),"") ->  | B68: =IFERROR(VLOOKUP(ROW()-6,data!$A$5:$AI$2227,6,0),"") ->  | C68: =IFERROR(VLOOKUP(ROW()-6,data!$A$5:$AI$2227,20,0),"") ->  | D68: =IFERROR(VLOOKUP(ROW()-6,data!$A$5:$AI$2227,29,0),"") ->  | E68: =IFERROR(VLOOKUP(ROW()-6,data!$A$5:$AI$2227,31,0),"") ->  | F68: =IFERROR(VLOOKUP(ROW()-6,data!$A$5:$AI$2227,27,0),"") ->  | G68: =IFERROR(VLOOKUP(ROW()-6,data!$A$5:$AI$2227,24,0),"") ->  | H68: =IFERROR(VLOOKUP(ROW()-6,data!$A$5:$AI$2227,19,0),"") ->  | I68: =IFERROR(VLOOKUP(ROW()-6,data!$A$5:$AI$2227,10,0),"") ->  | J68: =IFERROR(VLOOKUP(ROW()-6,data!$A$5:$AI$2227,14,0),"") ->  | K68: =IFERROR(VLOOKUP(ROW()-6,data!$A$5:$AI$2227,12,0),"") ->  | L68: =IFERROR(VLOOKUP(ROW()-6,data!$A$5:$AI$2227,18,0),"") ->  | M68: =IFERROR(VLOOKUP(ROW()-6,data!$A$5:$AI$2227,21,0),"") -> 
A69: =IFERROR(VLOOKUP(ROW()-6,data!$A$5:$AI$2227,4,0),"") ->  | B69: =IFERROR(VLOOKUP(ROW()-6,data!$A$5:$AI$2227,6,0),"") ->  | C69: =IFERROR(VLOOKUP(ROW()-6,data!$A$5:$AI$2227,20,0),"") ->  | D69: =IFERROR(VLOOKUP(ROW()-6,data!$A$5:$AI$2227,29,0),"") ->  | E69: =IFERROR(VLOOKUP(ROW()-6,data!$A$5:$AI$2227,31,0),"") ->  | F69: =IFERROR(VLOOKUP(ROW()-6,data!$A$5:$AI$2227,27,0),"") ->  | G69: =IFERROR(VLOOKUP(ROW()-6,data!$A$5:$AI$2227,24,0),"") ->  | H69: =IFERROR(VLOOKUP(ROW()-6,data!$A$5:$AI$2227,19,0),"") ->  | I69: =IFERROR(VLOOKUP(ROW()-6,data!$A$5:$AI$2227,10,0),"") ->  | J69: =IFERROR(VLOOKUP(ROW()-6,data!$A$5:$AI$2227,14,0),"") ->  | K69: =IFERROR(VLOOKUP(ROW()-6,data!$A$5:$AI$2227,12,0),"") ->  | L69: =IFERROR(VLOOKUP(ROW()-6,data!$A$5:$AI$2227,18,0),"") ->  | M69: =IFERROR(VLOOKUP(ROW()-6,data!$A$5:$AI$2227,21,0),"") -> 
A70: =IFERROR(VLOOKUP(ROW()-6,data!$A$5:$AI$2227,4,0),"") ->  | B70: =IFERROR(VLOOKUP(ROW()-6,data!$A$5:$AI$2227,6,0),"") ->  | C70: =IFERROR(VLOOKUP(ROW()-6,data!$A$5:$AI$2227,20,0),"") ->  | D70: =IFERROR(VLOOKUP(ROW()-6,data!$A$5:$AI$2227,29,0),"") ->  | E70: =IFERROR(VLOOKUP(ROW()-6,data!$A$5:$AI$2227,31,0),"") ->  | F70: =IFERROR(VLOOKUP(ROW()-6,data!$A$5:$AI$2227,27,0),"") ->  | G70: =IFERROR(VLOOKUP(ROW()-6,data!$A$5:$AI$2227,24,0),"") ->  | H70: =IFERROR(VLOOKUP(ROW()-6,data!$A$5:$AI$2227,19,0),"") ->  | I70: =IFERROR(VLOOKUP(ROW()-6,data!$A$5:$AI$2227,10,0),"") ->  | J70: =IFERROR(VLOOKUP(ROW()-6,data!$A$5:$AI$2227,14,0),"") ->  | K70: =IFERROR(VLOOKUP(ROW()-6,data!$A$5:$AI$2227,12,0),"") ->  | L70: =IFERROR(VLOOKUP(ROW()-6,data!$A$5:$AI$2227,18,0),"") ->  | M70: =IFERROR(VLOOKUP(ROW()-6,data!$A$5:$AI$2227,21,0),"") -> 
A71: =IFERROR(VLOOKUP(ROW()-6,data!$A$5:$AI$2227,4,0),"") ->  | B71: =IFERROR(VLOOKUP(ROW()-6,data!$A$5:$AI$2227,6,0),"") ->  | C71: =IFERROR(VLOOKUP(ROW()-6,data!$A$5:$AI$2227,20,0),"") ->  | D71: =IFERROR(VLOOKUP(ROW()-6,data!$A$5:$AI$2227,29,0),"") ->  | E71: =IFERROR(VLOOKUP(ROW()-6,data!$A$5:$AI$2227,31,0),"") ->  | F71: =IFERROR(VLOOKUP(ROW()-6,data!$A$5:$AI$2227,27,0),"") ->  | G71: =IFERROR(VLOOKUP(ROW()-6,data!$A$5:$AI$2227,24,0),"") ->  | H71: =IFERROR(VLOOKUP(ROW()-6,data!$A$5:$AI$2227,19,0),"") ->  | I71: =IFERROR(VLOOKUP(ROW()-6,data!$A$5:$AI$2227,10,0),"") ->  | J71: =IFERROR(VLOOKUP(ROW()-6,data!$A$5:$AI$2227,14,0),"") ->  | K71: =IFERROR(VLOOKUP(ROW()-6,data!$A$5:$AI$2227,12,0),"") ->  | L71: =IFERROR(VLOOKUP(ROW()-6,data!$A$5:$AI$2227,18,0),"") ->  | M71: =IFERROR(VLOOKUP(ROW()-6,data!$A$5:$AI$2227,21,0),"") -> 
A72: =IFERROR(VLOOKUP(ROW()-6,data!$A$5:$AI$2227,4,0),"") ->  | B72: =IFERROR(VLOOKUP(ROW()-6,data!$A$5:$AI$2227,6,0),"") ->  | C72: =IFERROR(VLOOKUP(ROW()-6,data!$A$5:$AI$2227,20,0),"") ->  | D72: =IFERROR(VLOOKUP(ROW()-6,data!$A$5:$AI$2227,29,0),"") ->  | E72: =IFERROR(VLOOKUP(ROW()-6,data!$A$5:$AI$2227,31,0),"") ->  | F72: =IFERROR(VLOOKUP(ROW()-6,data!$A$5:$AI$2227,27,0),"") ->  | G72: =IFERROR(VLOOKUP(ROW()-6,data!$A$5:$AI$2227,24,0),"") ->  | H72: =IFERROR(VLOOKUP(ROW()-6,data!$A$5:$AI$2227,19,0),"") ->  | I72: =IFERROR(VLOOKUP(ROW()-6,data!$A$5:$AI$2227,10,0),"") ->  | J72: =IFERROR(VLOOKUP(ROW()-6,data!$A$5:$AI$2227,14,0),"") ->  | K72: =IFERROR(VLOOKUP(ROW()-6,data!$A$5:$AI$2227,12,0),"") ->  | L72: =IFERROR(VLOOKUP(ROW()-6,data!$A$5:$AI$2227,18,0),"") ->  | M72: =IFERROR(VLOOKUP(ROW()-6,data!$A$5:$AI$2227,21,0),"") -> 
A73: =IFERROR(VLOOKUP(ROW()-6,data!$A$5:$AI$2227,4,0),"") ->  | B73: =IFERROR(VLOOKUP(ROW()-6,data!$A$5:$AI$2227,6,0),"") ->  | C73: =IFERROR(VLOOKUP(ROW()-6,data!$A$5:$AI$2227,20,0),"") ->  | D73: =IFERROR(VLOOKUP(ROW()-6,data!$A$5:$AI$2227,29,0),"") ->  | E73: =IFERROR(VLOOKUP(ROW()-6,data!$A$5:$AI$2227,31,0),"") ->  | F73: =IFERROR(VLOOKUP(ROW()-6,data!$A$5:$AI$2227,27,0),"") ->  | G73: =IFERROR(VLOOKUP(ROW()-6,data!$A$5:$AI$2227,24,0),"") ->  | H73: =IFERROR(VLOOKUP(ROW()-6,data!$A$5:$AI$2227,19,0),"") ->  | I73: =IFERROR(VLOOKUP(ROW()-6,data!$A$5:$AI$2227,10,0),"") ->  | J73: =IFERROR(VLOOKUP(ROW()-6,data!$A$5:$AI$2227,14,0),"") ->  | K73: =IFERROR(VLOOKUP(ROW()-6,data!$A$5:$AI$2227,12,0),"") ->  | L73: =IFERROR(VLOOKUP(ROW()-6,data!$A$5:$AI$2227,18,0),"") ->  | M73: =IFERROR(VLOOKUP(ROW()-6,data!$A$5:$AI$2227,21,0),"") -> 
A74: =IFERROR(VLOOKUP(ROW()-6,data!$A$5:$AI$2227,4,0),"") ->  | B74: =IFERROR(VLOOKUP(ROW()-6,data!$A$5:$AI$2227,6,0),"") ->  | C74: =IFERROR(VLOOKUP(ROW()-6,data!$A$5:$AI$2227,20,0),"") ->  | D74: =IFERROR(VLOOKUP(ROW()-6,data!$A$5:$AI$2227,29,0),"") ->  | E74: =IFERROR(VLOOKUP(ROW()-6,data!$A$5:$AI$2227,31,0),"") ->  | F74: =IFERROR(VLOOKUP(ROW()-6,data!$A$5:$AI$2227,27,0),"") ->  | G74: =IFERROR(VLOOKUP(ROW()-6,data!$A$5:$AI$2227,24,0),"") ->  | H74: =IFERROR(VLOOKUP(ROW()-6,data!$A$5:$AI$2227,19,0),"") ->  | I74: =IFERROR(VLOOKUP(ROW()-6,data!$A$5:$AI$2227,10,0),"") ->  | J74: =IFERROR(VLOOKUP(ROW()-6,data!$A$5:$AI$2227,14,0),"") ->  | K74: =IFERROR(VLOOKUP(ROW()-6,data!$A$5:$AI$2227,12,0),"") ->  | L74: =IFERROR(VLOOKUP(ROW()-6,data!$A$5:$AI$2227,18,0),"") ->  | M74: =IFERROR(VLOOKUP(ROW()-6,data!$A$5:$AI$2227,21,0),"") -> 
A75: =IFERROR(VLOOKUP(ROW()-6,data!$A$5:$AI$2227,4,0),"") ->  | B75: =IFERROR(VLOOKUP(ROW()-6,data!$A$5:$AI$2227,6,0),"") ->  | C75: =IFERROR(VLOOKUP(ROW()-6,data!$A$5:$AI$2227,20,0),"") ->  | D75: =IFERROR(VLOOKUP(ROW()-6,data!$A$5:$AI$2227,29,0),"") ->  | E75: =IFERROR(VLOOKUP(ROW()-6,data!$A$5:$AI$2227,31,0),"") ->  | F75: =IFERROR(VLOOKUP(ROW()-6,data!$A$5:$AI$2227,27,0),"") ->  | G75: =IFERROR(VLOOKUP(ROW()-6,data!$A$5:$AI$2227,24,0),"") ->  | H75: =IFERROR(VLOOKUP(ROW()-6,data!$A$5:$AI$2227,19,0),"") ->  | I75: =IFERROR(VLOOKUP(ROW()-6,data!$A$5:$AI$2227,10,0),"") ->  | J75: =IFERROR(VLOOKUP(ROW()-6,data!$A$5:$AI$2227,14,0),"") ->  | K75: =IFERROR(VLOOKUP(ROW()-6,data!$A$5:$AI$2227,12,0),"") ->  | L75: =IFERROR(VLOOKUP(ROW()-6,data!$A$5:$AI$2227,18,0),"") ->  | M75: =IFERROR(VLOOKUP(ROW()-6,data!$A$5:$AI$2227,21,0),"") -> 
A76: =IFERROR(VLOOKUP(ROW()-6,data!$A$5:$AI$2227,4,0),"") ->  | B76: =IFERROR(VLOOKUP(ROW()-6,data!$A$5:$AI$2227,6,0),"") ->  | C76: =IFERROR(VLOOKUP(ROW()-6,data!$A$5:$AI$2227,20,0),"") ->  | D76: =IFERROR(VLOOKUP(ROW()-6,data!$A$5:$AI$2227,29,0),"") ->  | E76: =IFERROR(VLOOKUP(ROW()-6,data!$A$5:$AI$2227,31,0),"") ->  | F76: =IFERROR(VLOOKUP(ROW()-6,data!$A$5:$AI$2227,27,0),"") ->  | G76: =IFERROR(VLOOKUP(ROW()-6,data!$A$5:$AI$2227,24,0),"") ->  | H76: =IFERROR(VLOOKUP(ROW()-6,data!$A$5:$AI$2227,19,0),"") ->  | I76: =IFERROR(VLOOKUP(ROW()-6,data!$A$5:$AI$2227,10,0),"") ->  | J76: =IFERROR(VLOOKUP(ROW()-6,data!$A$5:$AI$2227,14,0),"") ->  | K76: =IFERROR(VLOOKUP(ROW()-6,data!$A$5:$AI$2227,12,0),"") ->  | L76: =IFERROR(VLOOKUP(ROW()-6,data!$A$5:$AI$2227,18,0),"") ->  | M76: =IFERROR(VLOOKUP(ROW()-6,data!$A$5:$AI$2227,21,0),"") -> 
A77: =IFERROR(VLOOKUP(ROW()-6,data!$A$5:$AI$2227,4,0),"") ->  | B77: =IFERROR(VLOOKUP(ROW()-6,data!$A$5:$AI$2227,6,0),"") ->  | C77: =IFERROR(VLOOKUP(ROW()-6,data!$A$5:$AI$2227,20,0),"") ->  | D77: =IFERROR(VLOOKUP(ROW()-6,data!$A$5:$AI$2227,29,0),"") ->  | E77: =IFERROR(VLOOKUP(ROW()-6,data!$A$5:$AI$2227,31,0),"") ->  | F77: =IFERROR(VLOOKUP(ROW()-6,data!$A$5:$AI$2227,27,0),"") ->  | G77: =IFERROR(VLOOKUP(ROW()-6,data!$A$5:$AI$2227,24,0),"") ->  | H77: =IFERROR(VLOOKUP(ROW()-6,data!$A$5:$AI$2227,19,0),"") ->  | I77: =IFERROR(VLOOKUP(ROW()-6,data!$A$5:$AI$2227,10,0),"") ->  | J77: =IFERROR(VLOOKUP(ROW()-6,data!$A$5:$AI$2227,14,0),"") ->  | K77: =IFERROR(VLOOKUP(ROW()-6,data!$A$5:$AI$2227,12,0),"") ->  | L77: =IFERROR(VLOOKUP(ROW()-6,data!$A$5:$AI$2227,18,0),"") ->  | M77: =IFERROR(VLOOKUP(ROW()-6,data!$A$5:$AI$2227,21,0),"") -> 
A78: =IFERROR(VLOOKUP(ROW()-6,data!$A$5:$AI$2227,4,0),"") ->  | B78: =IFERROR(VLOOKUP(ROW()-6,data!$A$5:$AI$2227,6,0),"") ->  | C78: =IFERROR(VLOOKUP(ROW()-6,data!$A$5:$AI$2227,20,0),"") ->  | D78: =IFERROR(VLOOKUP(ROW()-6,data!$A$5:$AI$2227,29,0),"") ->  | E78: =IFERROR(VLOOKUP(ROW()-6,data!$A$5:$AI$2227,31,0),"") ->  | F78: =IFERROR(VLOOKUP(ROW()-6,data!$A$5:$AI$2227,27,0),"") ->  | G78: =IFERROR(VLOOKUP(ROW()-6,data!$A$5:$AI$2227,24,0),"") ->  | H78: =IFERROR(VLOOKUP(ROW()-6,data!$A$5:$AI$2227,19,0),"") ->  | I78: =IFERROR(VLOOKUP(ROW()-6,data!$A$5:$AI$2227,10,0),"") ->  | J78: =IFERROR(VLOOKUP(ROW()-6,data!$A$5:$AI$2227,14,0),"") ->  | K78: =IFERROR(VLOOKUP(ROW()-6,data!$A$5:$AI$2227,12,0),"") ->  | L78: =IFERROR(VLOOKUP(ROW()-6,data!$A$5:$AI$2227,18,0),"") ->  | M78: =IFERROR(VLOOKUP(ROW()-6,data!$A$5:$AI$2227,21,0),"") -> 
A79: =IFERROR(VLOOKUP(ROW()-6,data!$A$5:$AI$2227,4,0),"") ->  | B79: =IFERROR(VLOOKUP(ROW()-6,data!$A$5:$AI$2227,6,0),"") ->  | C79: =IFERROR(VLOOKUP(ROW()-6,data!$A$5:$AI$2227,20,0),"") ->  | D79: =IFERROR(VLOOKUP(ROW()-6,data!$A$5:$AI$2227,29,0),"") ->  | E79: =IFERROR(VLOOKUP(ROW()-6,data!$A$5:$AI$2227,31,0),"") ->  | F79: =IFERROR(VLOOKUP(ROW()-6,data!$A$5:$AI$2227,27,0),"") ->  | G79: =IFERROR(VLOOKUP(ROW()-6,data!$A$5:$AI$2227,24,0),"") ->  | H79: =IFERROR(VLOOKUP(ROW()-6,data!$A$5:$AI$2227,19,0),"") ->  | I79: =IFERROR(VLOOKUP(ROW()-6,data!$A$5:$AI$2227,10,0),"") ->  | J79: =IFERROR(VLOOKUP(ROW()-6,data!$A$5:$AI$2227,14,0),"") ->  | K79: =IFERROR(VLOOKUP(ROW()-6,data!$A$5:$AI$2227,12,0),"") ->  | L79: =IFERROR(VLOOKUP(ROW()-6,data!$A$5:$AI$2227,18,0),"") ->  | M79: =IFERROR(VLOOKUP(ROW()-6,data!$A$5:$AI$2227,21,0),"") -> 
A80: =IFERROR(VLOOKUP(ROW()-6,data!$A$5:$AI$2227,4,0),"") ->  | B80: =IFERROR(VLOOKUP(ROW()-6,data!$A$5:$AI$2227,6,0),"") ->  | C80: =IFERROR(VLOOKUP(ROW()-6,data!$A$5:$AI$2227,20,0),"") ->  | D80: =IFERROR(VLOOKUP(ROW()-6,data!$A$5:$AI$2227,29,0),"") ->  | E80: =IFERROR(VLOOKUP(ROW()-6,data!$A$5:$AI$2227,31,0),"") ->  | F80: =IFERROR(VLOOKUP(ROW()-6,data!$A$5:$AI$2227,27,0),"") ->  | G80: =IFERROR(VLOOKUP(ROW()-6,data!$A$5:$AI$2227,24,0),"") ->  | H80: =IFERROR(VLOOKUP(ROW()-6,data!$A$5:$AI$2227,19,0),"") ->  | I80: =IFERROR(VLOOKUP(ROW()-6,data!$A$5:$AI$2227,10,0),"") ->  | J80: =IFERROR(VLOOKUP(ROW()-6,data!$A$5:$AI$2227,14,0),"") ->  | K80: =IFERROR(VLOOKUP(ROW()-6,data!$A$5:$AI$2227,12,0),"") ->  | L80: =IFERROR(VLOOKUP(ROW()-6,data!$A$5:$AI$2227,18,0),"") ->  | M80: =IFERROR(VLOOKUP(ROW()-6,data!$A$5:$AI$2227,21,0),"") -> 
A81: =IFERROR(VLOOKUP(ROW()-6,data!$A$5:$AI$2227,4,0),"") ->  | B81: =IFERROR(VLOOKUP(ROW()-6,data!$A$5:$AI$2227,6,0),"") ->  | C81: =IFERROR(VLOOKUP(ROW()-6,data!$A$5:$AI$2227,20,0),"") ->  | D81: =IFERROR(VLOOKUP(ROW()-6,data!$A$5:$AI$2227,29,0),"") ->  | E81: =IFERROR(VLOOKUP(ROW()-6,data!$A$5:$AI$2227,31,0),"") ->  | F81: =IFERROR(VLOOKUP(ROW()-6,data!$A$5:$AI$2227,27,0),"") ->  | G81: =IFERROR(VLOOKUP(ROW()-6,data!$A$5:$AI$2227,24,0),"") ->  | H81: =IFERROR(VLOOKUP(ROW()-6,data!$A$5:$AI$2227,19,0),"") ->  | I81: =IFERROR(VLOOKUP(ROW()-6,data!$A$5:$AI$2227,10,0),"") ->  | J81: =IFERROR(VLOOKUP(ROW()-6,data!$A$5:$AI$2227,14,0),"") ->  | K81: =IFERROR(VLOOKUP(ROW()-6,data!$A$5:$AI$2227,12,0),"") ->  | L81: =IFERROR(VLOOKUP(ROW()-6,data!$A$5:$AI$2227,18,0),"") ->  | M81: =IFERROR(VLOOKUP(ROW()-6,data!$A$5:$AI$2227,21,0),"") -> 
A82: =IFERROR(VLOOKUP(ROW()-6,data!$A$5:$AI$2227,4,0),"") ->  | B82: =IFERROR(VLOOKUP(ROW()-6,data!$A$5:$AI$2227,6,0),"") ->  | C82: =IFERROR(VLOOKUP(ROW()-6,data!$A$5:$AI$2227,20,0),"") ->  | D82: =IFERROR(VLOOKUP(ROW()-6,data!$A$5:$AI$2227,29,0),"") ->  | E82: =IFERROR(VLOOKUP(ROW()-6,data!$A$5:$AI$2227,31,0),"") ->  | F82: =IFERROR(VLOOKUP(ROW()-6,data!$A$5:$AI$2227,27,0),"") ->  | G82: =IFERROR(VLOOKUP(ROW()-6,data!$A$5:$AI$2227,24,0),"") ->  | H82: =IFERROR(VLOOKUP(ROW()-6,data!$A$5:$AI$2227,19,0),"") ->  | I82: =IFERROR(VLOOKUP(ROW()-6,data!$A$5:$AI$2227,10,0),"") ->  | J82: =IFERROR(VLOOKUP(ROW()-6,data!$A$5:$AI$2227,14,0),"") ->  | K82: =IFERROR(VLOOKUP(ROW()-6,data!$A$5:$AI$2227,12,0),"") ->  | L82: =IFERROR(VLOOKUP(ROW()-6,data!$A$5:$AI$2227,18,0),"") ->  | M82: =IFERROR(VLOOKUP(ROW()-6,data!$A$5:$AI$2227,21,0),"") -> 
A83: =IFERROR(VLOOKUP(ROW()-6,data!$A$5:$AI$2227,4,0),"") ->  | B83: =IFERROR(VLOOKUP(ROW()-6,data!$A$5:$AI$2227,6,0),"") ->  | C83: =IFERROR(VLOOKUP(ROW()-6,data!$A$5:$AI$2227,20,0),"") ->  | D83: =IFERROR(VLOOKUP(ROW()-6,data!$A$5:$AI$2227,29,0),"") ->  | E83: =IFERROR(VLOOKUP(ROW()-6,data!$A$5:$AI$2227,31,0),"") ->  | F83: =IFERROR(VLOOKUP(ROW()-6,data!$A$5:$AI$2227,27,0),"") ->  | G83: =IFERROR(VLOOKUP(ROW()-6,data!$A$5:$AI$2227,24,0),"") ->  | H83: =IFERROR(VLOOKUP(ROW()-6,data!$A$5:$AI$2227,19,0),"") ->  | I83: =IFERROR(VLOOKUP(ROW()-6,data!$A$5:$AI$2227,10,0),"") ->  | J83: =IFERROR(VLOOKUP(ROW()-6,data!$A$5:$AI$2227,14,0),"") ->  | K83: =IFERROR(VLOOKUP(ROW()-6,data!$A$5:$AI$2227,12,0),"") ->  | L83: =IFERROR(VLOOKUP(ROW()-6,data!$A$5:$AI$2227,18,0),"") ->  | M83: =IFERROR(VLOOKUP(ROW()-6,data!$A$5:$AI$2227,21,0),"") -> 
A84: =IFERROR(VLOOKUP(ROW()-6,data!$A$5:$AI$2227,4,0),"") ->  | B84: =IFERROR(VLOOKUP(ROW()-6,data!$A$5:$AI$2227,6,0),"") ->  | C84: =IFERROR(VLOOKUP(ROW()-6,data!$A$5:$AI$2227,20,0),"") ->  | D84: =IFERROR(VLOOKUP(ROW()-6,data!$A$5:$AI$2227,29,0),"") ->  | E84: =IFERROR(VLOOKUP(ROW()-6,data!$A$5:$AI$2227,31,0),"") ->  | F84: =IFERROR(VLOOKUP(ROW()-6,data!$A$5:$AI$2227,27,0),"") ->  | G84: =IFERROR(VLOOKUP(ROW()-6,data!$A$5:$AI$2227,24,0),"") ->  | H84: =IFERROR(VLOOKUP(ROW()-6,data!$A$5:$AI$2227,19,0),"") ->  | I84: =IFERROR(VLOOKUP(ROW()-6,data!$A$5:$AI$2227,10,0),"") ->  | J84: =IFERROR(VLOOKUP(ROW()-6,data!$A$5:$AI$2227,14,0),"") ->  | K84: =IFERROR(VLOOKUP(ROW()-6,data!$A$5:$AI$2227,12,0),"") ->  | L84: =IFERROR(VLOOKUP(ROW()-6,data!$A$5:$AI$2227,18,0),"") ->  | M84: =IFERROR(VLOOKUP(ROW()-6,data!$A$5:$AI$2227,21,0),"") -> 
A85: =IFERROR(VLOOKUP(ROW()-6,data!$A$5:$AI$2227,4,0),"") ->  | B85: =IFERROR(VLOOKUP(ROW()-6,data!$A$5:$AI$2227,6,0),"") ->  | C85: =IFERROR(VLOOKUP(ROW()-6,data!$A$5:$AI$2227,20,0),"") ->  | D85: =IFERROR(VLOOKUP(ROW()-6,data!$A$5:$AI$2227,29,0),"") ->  | E85: =IFERROR(VLOOKUP(ROW()-6,data!$A$5:$AI$2227,31,0),"") ->  | F85: =IFERROR(VLOOKUP(ROW()-6,data!$A$5:$AI$2227,27,0),"") ->  | G85: =IFERROR(VLOOKUP(ROW()-6,data!$A$5:$AI$2227,24,0),"") ->  | H85: =IFERROR(VLOOKUP(ROW()-6,data!$A$5:$AI$2227,19,0),"") ->  | I85: =IFERROR(VLOOKUP(ROW()-6,data!$A$5:$AI$2227,10,0),"") ->  | J85: =IFERROR(VLOOKUP(ROW()-6,data!$A$5:$AI$2227,14,0),"") ->  | K85: =IFERROR(VLOOKUP(ROW()-6,data!$A$5:$AI$2227,12,0),"") ->  | L85: =IFERROR(VLOOKUP(ROW()-6,data!$A$5:$AI$2227,18,0),"") ->  | M85: =IFERROR(VLOOKUP(ROW()-6,data!$A$5:$AI$2227,21,0),"") -> 
A86: =IFERROR(VLOOKUP(ROW()-6,data!$A$5:$AI$2227,4,0),"") ->  | B86: =IFERROR(VLOOKUP(ROW()-6,data!$A$5:$AI$2227,6,0),"") ->  | C86: =IFERROR(VLOOKUP(ROW()-6,data!$A$5:$AI$2227,20,0),"") ->  | D86: =IFERROR(VLOOKUP(ROW()-6,data!$A$5:$AI$2227,29,0),"") ->  | E86: =IFERROR(VLOOKUP(ROW()-6,data!$A$5:$AI$2227,31,0),"") ->  | F86: =IFERROR(VLOOKUP(ROW()-6,data!$A$5:$AI$2227,27,0),"") ->  | G86: =IFERROR(VLOOKUP(ROW()-6,data!$A$5:$AI$2227,24,0),"") ->  | H86: =IFERROR(VLOOKUP(ROW()-6,data!$A$5:$AI$2227,19,0),"") ->  | I86: =IFERROR(VLOOKUP(ROW()-6,data!$A$5:$AI$2227,10,0),"") ->  | J86: =IFERROR(VLOOKUP(ROW()-6,data!$A$5:$AI$2227,14,0),"") ->  | K86: =IFERROR(VLOOKUP(ROW()-6,data!$A$5:$AI$2227,12,0),"") ->  | L86: =IFERROR(VLOOKUP(ROW()-6,data!$A$5:$AI$2227,18,0),"") ->  | M86: =IFERROR(VLOOKUP(ROW()-6,data!$A$5:$AI$2227,21,0),"") -> 
A87: =IFERROR(VLOOKUP(ROW()-6,data!$A$5:$AI$2227,4,0),"") ->  | B87: =IFERROR(VLOOKUP(ROW()-6,data!$A$5:$AI$2227,6,0),"") ->  | C87: =IFERROR(VLOOKUP(ROW()-6,data!$A$5:$AI$2227,20,0),"") ->  | D87: =IFERROR(VLOOKUP(ROW()-6,data!$A$5:$AI$2227,29,0),"") ->  | E87: =IFERROR(VLOOKUP(ROW()-6,data!$A$5:$AI$2227,31,0),"") ->  | F87: =IFERROR(VLOOKUP(ROW()-6,data!$A$5:$AI$2227,27,0),"") ->  | G87: =IFERROR(VLOOKUP(ROW()-6,data!$A$5:$AI$2227,24,0),"") ->  | H87: =IFERROR(VLOOKUP(ROW()-6,data!$A$5:$AI$2227,19,0),"") ->  | I87: =IFERROR(VLOOKUP(ROW()-6,data!$A$5:$AI$2227,10,0),"") ->  | J87: =IFERROR(VLOOKUP(ROW()-6,data!$A$5:$AI$2227,14,0),"") ->  | K87: =IFERROR(VLOOKUP(ROW()-6,data!$A$5:$AI$2227,12,0),"") ->  | L87: =IFERROR(VLOOKUP(ROW()-6,data!$A$5:$AI$2227,18,0),"") ->  | M87: =IFERROR(VLOOKUP(ROW()-6,data!$A$5:$AI$2227,21,0),"") -> 
A88: =IFERROR(VLOOKUP(ROW()-6,data!$A$5:$AI$2227,4,0),"") ->  | B88: =IFERROR(VLOOKUP(ROW()-6,data!$A$5:$AI$2227,6,0),"") ->  | C88: =IFERROR(VLOOKUP(ROW()-6,data!$A$5:$AI$2227,20,0),"") ->  | D88: =IFERROR(VLOOKUP(ROW()-6,data!$A$5:$AI$2227,29,0),"") ->  | E88: =IFERROR(VLOOKUP(ROW()-6,data!$A$5:$AI$2227,31,0),"") ->  | F88: =IFERROR(VLOOKUP(ROW()-6,data!$A$5:$AI$2227,27,0),"") ->  | G88: =IFERROR(VLOOKUP(ROW()-6,data!$A$5:$AI$2227,24,0),"") ->  | H88: =IFERROR(VLOOKUP(ROW()-6,data!$A$5:$AI$2227,19,0),"") ->  | I88: =IFERROR(VLOOKUP(ROW()-6,data!$A$5:$AI$2227,10,0),"") ->  | J88: =IFERROR(VLOOKUP(ROW()-6,data!$A$5:$AI$2227,14,0),"") ->  | K88: =IFERROR(VLOOKUP(ROW()-6,data!$A$5:$AI$2227,12,0),"") ->  | L88: =IFERROR(VLOOKUP(ROW()-6,data!$A$5:$AI$2227,18,0),"") ->  | M88: =IFERROR(VLOOKUP(ROW()-6,data!$A$5:$AI$2227,21,0),"") -> 
A89: =IFERROR(VLOOKUP(ROW()-6,data!$A$5:$AI$2227,4,0),"") ->  | B89: =IFERROR(VLOOKUP(ROW()-6,data!$A$5:$AI$2227,6,0),"") ->  | C89: =IFERROR(VLOOKUP(ROW()-6,data!$A$5:$AI$2227,20,0),"") ->  | D89: =IFERROR(VLOOKUP(ROW()-6,data!$A$5:$AI$2227,29,0),"") ->  | E89: =IFERROR(VLOOKUP(ROW()-6,data!$A$5:$AI$2227,31,0),"") ->  | F89: =IFERROR(VLOOKUP(ROW()-6,data!$A$5:$AI$2227,27,0),"") ->  | G89: =IFERROR(VLOOKUP(ROW()-6,data!$A$5:$AI$2227,24,0),"") ->  | H89: =IFERROR(VLOOKUP(ROW()-6,data!$A$5:$AI$2227,19,0),"") ->  | I89: =IFERROR(VLOOKUP(ROW()-6,data!$A$5:$AI$2227,10,0),"") ->  | J89: =IFERROR(VLOOKUP(ROW()-6,data!$A$5:$AI$2227,14,0),"") ->  | K89: =IFERROR(VLOOKUP(ROW()-6,data!$A$5:$AI$2227,12,0),"") ->  | L89: =IFERROR(VLOOKUP(ROW()-6,data!$A$5:$AI$2227,18,0),"") ->  | M89: =IFERROR(VLOOKUP(ROW()-6,data!$A$5:$AI$2227,21,0),"") -> 
A90: =IFERROR(VLOOKUP(ROW()-6,data!$A$5:$AI$2227,4,0),"") ->  | B90: =IFERROR(VLOOKUP(ROW()-6,data!$A$5:$AI$2227,6,0),"") ->  | C90: =IFERROR(VLOOKUP(ROW()-6,data!$A$5:$AI$2227,20,0),"") ->  | D90: =IFERROR(VLOOKUP(ROW()-6,data!$A$5:$AI$2227,29,0),"") ->  | E90: =IFERROR(VLOOKUP(ROW()-6,data!$A$5:$AI$2227,31,0),"") ->  | F90: =IFERROR(VLOOKUP(ROW()-6,data!$A$5:$AI$2227,27,0),"") ->  | G90: =IFERROR(VLOOKUP(ROW()-6,data!$A$5:$AI$2227,24,0),"") ->  | H90: =IFERROR(VLOOKUP(ROW()-6,data!$A$5:$AI$2227,19,0),"") ->  | I90: =IFERROR(VLOOKUP(ROW()-6,data!$A$5:$AI$2227,10,0),"") ->  | J90: =IFERROR(VLOOKUP(ROW()-6,data!$A$5:$AI$2227,14,0),"") ->  | K90: =IFERROR(VLOOKUP(ROW()-6,data!$A$5:$AI$2227,12,0),"") ->  | L90: =IFERROR(VLOOKUP(ROW()-6,data!$A$5:$AI$2227,18,0),"") ->  | M90: =IFERROR(VLOOKUP(ROW()-6,data!$A$5:$AI$2227,21,0),"") -> 
A91: =IFERROR(VLOOKUP(ROW()-6,data!$A$5:$AI$2227,4,0),"") ->  | B91: =IFERROR(VLOOKUP(ROW()-6,data!$A$5:$AI$2227,6,0),"") ->  | C91: =IFERROR(VLOOKUP(ROW()-6,data!$A$5:$AI$2227,20,0),"") ->  | D91: =IFERROR(VLOOKUP(ROW()-6,data!$A$5:$AI$2227,29,0),"") ->  | E91: =IFERROR(VLOOKUP(ROW()-6,data!$A$5:$AI$2227,31,0),"") ->  | F91: =IFERROR(VLOOKUP(ROW()-6,data!$A$5:$AI$2227,27,0),"") ->  | G91: =IFERROR(VLOOKUP(ROW()-6,data!$A$5:$AI$2227,24,0),"") ->  | H91: =IFERROR(VLOOKUP(ROW()-6,data!$A$5:$AI$2227,19,0),"") ->  | I91: =IFERROR(VLOOKUP(ROW()-6,data!$A$5:$AI$2227,10,0),"") ->  | J91: =IFERROR(VLOOKUP(ROW()-6,data!$A$5:$AI$2227,14,0),"") ->  | K91: =IFERROR(VLOOKUP(ROW()-6,data!$A$5:$AI$2227,12,0),"") ->  | L91: =IFERROR(VLOOKUP(ROW()-6,data!$A$5:$AI$2227,18,0),"") ->  | M91: =IFERROR(VLOOKUP(ROW()-6,data!$A$5:$AI$2227,21,0),"") -> 
A92: =IFERROR(VLOOKUP(ROW()-6,data!$A$5:$AI$2227,4,0),"") ->  | B92: =IFERROR(VLOOKUP(ROW()-6,data!$A$5:$AI$2227,6,0),"") ->  | C92: =IFERROR(VLOOKUP(ROW()-6,data!$A$5:$AI$2227,20,0),"") ->  | D92: =IFERROR(VLOOKUP(ROW()-6,data!$A$5:$AI$2227,29,0),"") ->  | E92: =IFERROR(VLOOKUP(ROW()-6,data!$A$5:$AI$2227,31,0),"") ->  | F92: =IFERROR(VLOOKUP(ROW()-6,data!$A$5:$AI$2227,27,0),"") ->  | G92: =IFERROR(VLOOKUP(ROW()-6,data!$A$5:$AI$2227,24,0),"") ->  | H92: =IFERROR(VLOOKUP(ROW()-6,data!$A$5:$AI$2227,19,0),"") ->  | I92: =IFERROR(VLOOKUP(ROW()-6,data!$A$5:$AI$2227,10,0),"") ->  | J92: =IFERROR(VLOOKUP(ROW()-6,data!$A$5:$AI$2227,14,0),"") ->  | K92: =IFERROR(VLOOKUP(ROW()-6,data!$A$5:$AI$2227,12,0),"") ->  | L92: =IFERROR(VLOOKUP(ROW()-6,data!$A$5:$AI$2227,18,0),"") ->  | M92: =IFERROR(VLOOKUP(ROW()-6,data!$A$5:$AI$2227,21,0),"") -> 
A93: =IFERROR(VLOOKUP(ROW()-6,data!$A$5:$AI$2227,4,0),"") ->  | B93: =IFERROR(VLOOKUP(ROW()-6,data!$A$5:$AI$2227,6,0),"") ->  | C93: =IFERROR(VLOOKUP(ROW()-6,data!$A$5:$AI$2227,20,0),"") ->  | D93: =IFERROR(VLOOKUP(ROW()-6,data!$A$5:$AI$2227,29,0),"") ->  | E93: =IFERROR(VLOOKUP(ROW()-6,data!$A$5:$AI$2227,31,0),"") ->  | F93: =IFERROR(VLOOKUP(ROW()-6,data!$A$5:$AI$2227,27,0),"") ->  | G93: =IFERROR(VLOOKUP(ROW()-6,data!$A$5:$AI$2227,24,0),"") ->  | H93: =IFERROR(VLOOKUP(ROW()-6,data!$A$5:$AI$2227,19,0),"") ->  | I93: =IFERROR(VLOOKUP(ROW()-6,data!$A$5:$AI$2227,10,0),"") ->  | J93: =IFERROR(VLOOKUP(ROW()-6,data!$A$5:$AI$2227,14,0),"") ->  | K93: =IFERROR(VLOOKUP(ROW()-6,data!$A$5:$AI$2227,12,0),"") ->  | L93: =IFERROR(VLOOKUP(ROW()-6,data!$A$5:$AI$2227,18,0),"") ->  | M93: =IFERROR(VLOOKUP(ROW()-6,data!$A$5:$AI$2227,21,0),"") -> 
A94: =IFERROR(VLOOKUP(ROW()-6,data!$A$5:$AI$2227,4,0),"") ->  | B94: =IFERROR(VLOOKUP(ROW()-6,data!$A$5:$AI$2227,6,0),"") ->  | C94: =IFERROR(VLOOKUP(ROW()-6,data!$A$5:$AI$2227,20,0),"") ->  | D94: =IFERROR(VLOOKUP(ROW()-6,data!$A$5:$AI$2227,29,0),"") ->  | E94: =IFERROR(VLOOKUP(ROW()-6,data!$A$5:$AI$2227,31,0),"") ->  | F94: =IFERROR(VLOOKUP(ROW()-6,data!$A$5:$AI$2227,27,0),"") ->  | G94: =IFERROR(VLOOKUP(ROW()-6,data!$A$5:$AI$2227,24,0),"") ->  | H94: =IFERROR(VLOOKUP(ROW()-6,data!$A$5:$AI$2227,19,0),"") ->  | I94: =IFERROR(VLOOKUP(ROW()-6,data!$A$5:$AI$2227,10,0),"") ->  | J94: =IFERROR(VLOOKUP(ROW()-6,data!$A$5:$AI$2227,14,0),"") ->  | K94: =IFERROR(VLOOKUP(ROW()-6,data!$A$5:$AI$2227,12,0),"") ->  | L94: =IFERROR(VLOOKUP(ROW()-6,data!$A$5:$AI$2227,18,0),"") ->  | M94: =IFERROR(VLOOKUP(ROW()-6,data!$A$5:$AI$2227,21,0),"") -> 
A95: =IFERROR(VLOOKUP(ROW()-6,data!$A$5:$AI$2227,4,0),"") ->  | B95: =IFERROR(VLOOKUP(ROW()-6,data!$A$5:$AI$2227,6,0),"") ->  | C95: =IFERROR(VLOOKUP(ROW()-6,data!$A$5:$AI$2227,20,0),"") ->  | D95: =IFERROR(VLOOKUP(ROW()-6,data!$A$5:$AI$2227,29,0),"") ->  | E95: =IFERROR(VLOOKUP(ROW()-6,data!$A$5:$AI$2227,31,0),"") ->  | F95: =IFERROR(VLOOKUP(ROW()-6,data!$A$5:$AI$2227,27,0),"") ->  | G95: =IFERROR(VLOOKUP(ROW()-6,data!$A$5:$AI$2227,24,0),"") ->  | H95: =IFERROR(VLOOKUP(ROW()-6,data!$A$5:$AI$2227,19,0),"") ->  | I95: =IFERROR(VLOOKUP(ROW()-6,data!$A$5:$AI$2227,10,0),"") ->  | J95: =IFERROR(VLOOKUP(ROW()-6,data!$A$5:$AI$2227,14,0),"") ->  | K95: =IFERROR(VLOOKUP(ROW()-6,data!$A$5:$AI$2227,12,0),"") ->  | L95: =IFERROR(VLOOKUP(ROW()-6,data!$A$5:$AI$2227,18,0),"") ->  | M95: =IFERROR(VLOOKUP(ROW()-6,data!$A$5:$AI$2227,21,0),"") -> 
A96: =IFERROR(VLOOKUP(ROW()-6,data!$A$5:$AI$2227,4,0),"") ->  | B96: =IFERROR(VLOOKUP(ROW()-6,data!$A$5:$AI$2227,6,0),"") ->  | C96: =IFERROR(VLOOKUP(ROW()-6,data!$A$5:$AI$2227,20,0),"") ->  | D96: =IFERROR(VLOOKUP(ROW()-6,data!$A$5:$AI$2227,29,0),"") ->  | E96: =IFERROR(VLOOKUP(ROW()-6,data!$A$5:$AI$2227,31,0),"") ->  | F96: =IFERROR(VLOOKUP(ROW()-6,data!$A$5:$AI$2227,27,0),"") ->  | G96: =IFERROR(VLOOKUP(ROW()-6,data!$A$5:$AI$2227,24,0),"") ->  | H96: =IFERROR(VLOOKUP(ROW()-6,data!$A$5:$AI$2227,19,0),"") ->  | I96: =IFERROR(VLOOKUP(ROW()-6,data!$A$5:$AI$2227,10,0),"") ->  | J96: =IFERROR(VLOOKUP(ROW()-6,data!$A$5:$AI$2227,14,0),"") ->  | K96: =IFERROR(VLOOKUP(ROW()-6,data!$A$5:$AI$2227,12,0),"") ->  | L96: =IFERROR(VLOOKUP(ROW()-6,data!$A$5:$AI$2227,18,0),"") ->  | M96: =IFERROR(VLOOKUP(ROW()-6,data!$A$5:$AI$2227,21,0),"") -> 
A97: =IFERROR(VLOOKUP(ROW()-6,data!$A$5:$AI$2227,4,0),"") ->  | B97: =IFERROR(VLOOKUP(ROW()-6,data!$A$5:$AI$2227,6,0),"") ->  | C97: =IFERROR(VLOOKUP(ROW()-6,data!$A$5:$AI$2227,20,0),"") ->  | D97: =IFERROR(VLOOKUP(ROW()-6,data!$A$5:$AI$2227,29,0),"") ->  | E97: =IFERROR(VLOOKUP(ROW()-6,data!$A$5:$AI$2227,31,0),"") ->  | F97: =IFERROR(VLOOKUP(ROW()-6,data!$A$5:$AI$2227,27,0),"") ->  | G97: =IFERROR(VLOOKUP(ROW()-6,data!$A$5:$AI$2227,24,0),"") ->  | H97: =IFERROR(VLOOKUP(ROW()-6,data!$A$5:$AI$2227,19,0),"") ->  | I97: =IFERROR(VLOOKUP(ROW()-6,data!$A$5:$AI$2227,10,0),"") ->  | J97: =IFERROR(VLOOKUP(ROW()-6,data!$A$5:$AI$2227,14,0),"") ->  | K97: =IFERROR(VLOOKUP(ROW()-6,data!$A$5:$AI$2227,12,0),"") ->  | L97: =IFERROR(VLOOKUP(ROW()-6,data!$A$5:$AI$2227,18,0),"") ->  | M97: =IFERROR(VLOOKUP(ROW()-6,data!$A$5:$AI$2227,21,0),"") -> 
A98: =IFERROR(VLOOKUP(ROW()-6,data!$A$5:$AI$2227,4,0),"") ->  | B98: =IFERROR(VLOOKUP(ROW()-6,data!$A$5:$AI$2227,6,0),"") ->  | C98: =IFERROR(VLOOKUP(ROW()-6,data!$A$5:$AI$2227,20,0),"") ->  | D98: =IFERROR(VLOOKUP(ROW()-6,data!$A$5:$AI$2227,29,0),"") ->  | E98: =IFERROR(VLOOKUP(ROW()-6,data!$A$5:$AI$2227,31,0),"") ->  | F98: =IFERROR(VLOOKUP(ROW()-6,data!$A$5:$AI$2227,27,0),"") ->  | G98: =IFERROR(VLOOKUP(ROW()-6,data!$A$5:$AI$2227,24,0),"") ->  | H98: =IFERROR(VLOOKUP(ROW()-6,data!$A$5:$AI$2227,19,0),"") ->  | I98: =IFERROR(VLOOKUP(ROW()-6,data!$A$5:$AI$2227,10,0),"") ->  | J98: =IFERROR(VLOOKUP(ROW()-6,data!$A$5:$AI$2227,14,0),"") ->  | K98: =IFERROR(VLOOKUP(ROW()-6,data!$A$5:$AI$2227,12,0),"") ->  | L98: =IFERROR(VLOOKUP(ROW()-6,data!$A$5:$AI$2227,18,0),"") ->  | M98: =IFERROR(VLOOKUP(ROW()-6,data!$A$5:$AI$2227,21,0),"") -> 
A99: =IFERROR(VLOOKUP(ROW()-6,data!$A$5:$AI$2227,4,0),"") ->  | B99: =IFERROR(VLOOKUP(ROW()-6,data!$A$5:$AI$2227,6,0),"") ->  | C99: =IFERROR(VLOOKUP(ROW()-6,data!$A$5:$AI$2227,20,0),"") ->  | D99: =IFERROR(VLOOKUP(ROW()-6,data!$A$5:$AI$2227,29,0),"") ->  | E99: =IFERROR(VLOOKUP(ROW()-6,data!$A$5:$AI$2227,31,0),"") ->  | F99: =IFERROR(VLOOKUP(ROW()-6,data!$A$5:$AI$2227,27,0),"") ->  | G99: =IFERROR(VLOOKUP(ROW()-6,data!$A$5:$AI$2227,24,0),"") ->  | H99: =IFERROR(VLOOKUP(ROW()-6,data!$A$5:$AI$2227,19,0),"") ->  | I99: =IFERROR(VLOOKUP(ROW()-6,data!$A$5:$AI$2227,10,0),"") ->  | J99: =IFERROR(VLOOKUP(ROW()-6,data!$A$5:$AI$2227,14,0),"") ->  | K99: =IFERROR(VLOOKUP(ROW()-6,data!$A$5:$AI$2227,12,0),"") ->  | L99: =IFERROR(VLOOKUP(ROW()-6,data!$A$5:$AI$2227,18,0),"") ->  | M99: =IFERROR(VLOOKUP(ROW()-6,data!$A$5:$AI$2227,21,0),"") -> 
A100: =IFERROR(VLOOKUP(ROW()-6,data!$A$5:$AI$2227,4,0),"") ->  | B100: =IFERROR(VLOOKUP(ROW()-6,data!$A$5:$AI$2227,6,0),"") ->  | C100: =IFERROR(VLOOKUP(ROW()-6,data!$A$5:$AI$2227,20,0),"") ->  | D100: =IFERROR(VLOOKUP(ROW()-6,data!$A$5:$AI$2227,29,0),"") ->  | E100: =IFERROR(VLOOKUP(ROW()-6,data!$A$5:$AI$2227,31,0),"") ->  | F100: =IFERROR(VLOOKUP(ROW()-6,data!$A$5:$AI$2227,27,0),"") ->  | G100: =IFERROR(VLOOKUP(ROW()-6,data!$A$5:$AI$2227,24,0),"") ->  | H100: =IFERROR(VLOOKUP(ROW()-6,data!$A$5:$AI$2227,19,0),"") ->  | I100: =IFERROR(VLOOKUP(ROW()-6,data!$A$5:$AI$2227,10,0),"") ->  | J100: =IFERROR(VLOOKUP(ROW()-6,data!$A$5:$AI$2227,14,0),"") ->  | K100: =IFERROR(VLOOKUP(ROW()-6,data!$A$5:$AI$2227,12,0),"") ->  | L100: =IFERROR(VLOOKUP(ROW()-6,data!$A$5:$AI$2227,18,0),"") ->  | M100: =IFERROR(VLOOKUP(ROW()-6,data!$A$5:$AI$2227,21,0),"") -> 
A101: =IFERROR(VLOOKUP(ROW()-6,data!$A$5:$AI$2227,4,0),"") ->  | B101: =IFERROR(VLOOKUP(ROW()-6,data!$A$5:$AI$2227,6,0),"") ->  | C101: =IFERROR(VLOOKUP(ROW()-6,data!$A$5:$AI$2227,20,0),"") ->  | D101: =IFERROR(VLOOKUP(ROW()-6,data!$A$5:$AI$2227,29,0),"") ->  | E101: =IFERROR(VLOOKUP(ROW()-6,data!$A$5:$AI$2227,31,0),"") ->  | F101: =IFERROR(VLOOKUP(ROW()-6,data!$A$5:$AI$2227,27,0),"") ->  | G101: =IFERROR(VLOOKUP(ROW()-6,data!$A$5:$AI$2227,24,0),"") ->  | H101: =IFERROR(VLOOKUP(ROW()-6,data!$A$5:$AI$2227,19,0),"") ->  | I101: =IFERROR(VLOOKUP(ROW()-6,data!$A$5:$AI$2227,10,0),"") ->  | J101: =IFERROR(VLOOKUP(ROW()-6,data!$A$5:$AI$2227,14,0),"") ->  | K101: =IFERROR(VLOOKUP(ROW()-6,data!$A$5:$AI$2227,12,0),"") ->  | L101: =IFERROR(VLOOKUP(ROW()-6,data!$A$5:$AI$2227,18,0),"") ->  | M101: =IFERROR(VLOOKUP(ROW()-6,data!$A$5:$AI$2227,21,0),"") -> 
A102: =IFERROR(VLOOKUP(ROW()-6,data!$A$5:$AI$2227,4,0),"") ->  | B102: =IFERROR(VLOOKUP(ROW()-6,data!$A$5:$AI$2227,6,0),"") ->  | C102: =IFERROR(VLOOKUP(ROW()-6,data!$A$5:$AI$2227,20,0),"") ->  | D102: =IFERROR(VLOOKUP(ROW()-6,data!$A$5:$AI$2227,29,0),"") ->  | E102: =IFERROR(VLOOKUP(ROW()-6,data!$A$5:$AI$2227,31,0),"") ->  | F102: =IFERROR(VLOOKUP(ROW()-6,data!$A$5:$AI$2227,27,0),"") ->  | G102: =IFERROR(VLOOKUP(ROW()-6,data!$A$5:$AI$2227,24,0),"") ->  | H102: =IFERROR(VLOOKUP(ROW()-6,data!$A$5:$AI$2227,19,0),"") ->  | I102: =IFERROR(VLOOKUP(ROW()-6,data!$A$5:$AI$2227,10,0),"") ->  | J102: =IFERROR(VLOOKUP(ROW()-6,data!$A$5:$AI$2227,14,0),"") ->  | K102: =IFERROR(VLOOKUP(ROW()-6,data!$A$5:$AI$2227,12,0),"") ->  | L102: =IFERROR(VLOOKUP(ROW()-6,data!$A$5:$AI$2227,18,0),"") ->  | M102: =IFERROR(VLOOKUP(ROW()-6,data!$A$5:$AI$2227,21,0),"") -> 
A103: =IFERROR(VLOOKUP(ROW()-6,data!$A$5:$AI$2227,4,0),"") ->  | B103: =IFERROR(VLOOKUP(ROW()-6,data!$A$5:$AI$2227,6,0),"") ->  | C103: =IFERROR(VLOOKUP(ROW()-6,data!$A$5:$AI$2227,20,0),"") ->  | D103: =IFERROR(VLOOKUP(ROW()-6,data!$A$5:$AI$2227,29,0),"") ->  | E103: =IFERROR(VLOOKUP(ROW()-6,data!$A$5:$AI$2227,31,0),"") ->  | F103: =IFERROR(VLOOKUP(ROW()-6,data!$A$5:$AI$2227,27,0),"") ->  | G103: =IFERROR(VLOOKUP(ROW()-6,data!$A$5:$AI$2227,24,0),"") ->  | H103: =IFERROR(VLOOKUP(ROW()-6,data!$A$5:$AI$2227,19,0),"") ->  | I103: =IFERROR(VLOOKUP(ROW()-6,data!$A$5:$AI$2227,10,0),"") ->  | J103: =IFERROR(VLOOKUP(ROW()-6,data!$A$5:$AI$2227,14,0),"") ->  | K103: =IFERROR(VLOOKUP(ROW()-6,data!$A$5:$AI$2227,12,0),"") ->  | L103: =IFERROR(VLOOKUP(ROW()-6,data!$A$5:$AI$2227,18,0),"") ->  | M103: =IFERROR(VLOOKUP(ROW()-6,data!$A$5:$AI$2227,21,0),"") -> 
A104: =IFERROR(VLOOKUP(ROW()-6,data!$A$5:$AI$2227,4,0),"") ->  | B104: =IFERROR(VLOOKUP(ROW()-6,data!$A$5:$AI$2227,6,0),"") ->  | C104: =IFERROR(VLOOKUP(ROW()-6,data!$A$5:$AI$2227,20,0),"") ->  | D104: =IFERROR(VLOOKUP(ROW()-6,data!$A$5:$AI$2227,29,0),"") ->  | E104: =IFERROR(VLOOKUP(ROW()-6,data!$A$5:$AI$2227,31,0),"") ->  | F104: =IFERROR(VLOOKUP(ROW()-6,data!$A$5:$AI$2227,27,0),"") ->  | G104: =IFERROR(VLOOKUP(ROW()-6,data!$A$5:$AI$2227,24,0),"") ->  | H104: =IFERROR(VLOOKUP(ROW()-6,data!$A$5:$AI$2227,19,0),"") ->  | I104: =IFERROR(VLOOKUP(ROW()-6,data!$A$5:$AI$2227,10,0),"") ->  | J104: =IFERROR(VLOOKUP(ROW()-6,data!$A$5:$AI$2227,14,0),"") ->  | K104: =IFERROR(VLOOKUP(ROW()-6,data!$A$5:$AI$2227,12,0),"") ->  | L104: =IFERROR(VLOOKUP(ROW()-6,data!$A$5:$AI$2227,18,0),"") ->  | M104: =IFERROR(VLOOKUP(ROW()-6,data!$A$5:$AI$2227,21,0),"") -> 
A105: =IFERROR(VLOOKUP(ROW()-6,data!$A$5:$AI$2227,4,0),"") ->  | B105: =IFERROR(VLOOKUP(ROW()-6,data!$A$5:$AI$2227,6,0),"") ->  | C105: =IFERROR(VLOOKUP(ROW()-6,data!$A$5:$AI$2227,20,0),"") ->  | D105: =IFERROR(VLOOKUP(ROW()-6,data!$A$5:$AI$2227,29,0),"") ->  | E105: =IFERROR(VLOOKUP(ROW()-6,data!$A$5:$AI$2227,31,0),"") ->  | F105: =IFERROR(VLOOKUP(ROW()-6,data!$A$5:$AI$2227,27,0),"") ->  | G105: =IFERROR(VLOOKUP(ROW()-6,data!$A$5:$AI$2227,24,0),"") ->  | H105: =IFERROR(VLOOKUP(ROW()-6,data!$A$5:$AI$2227,19,0),"") ->  | I105: =IFERROR(VLOOKUP(ROW()-6,data!$A$5:$AI$2227,10,0),"") ->  | J105: =IFERROR(VLOOKUP(ROW()-6,data!$A$5:$AI$2227,14,0),"") ->  | K105: =IFERROR(VLOOKUP(ROW()-6,data!$A$5:$AI$2227,12,0),"") ->  | L105: =IFERROR(VLOOKUP(ROW()-6,data!$A$5:$AI$2227,18,0),"") ->  | M105: =IFERROR(VLOOKUP(ROW()-6,data!$A$5:$AI$2227,21,0),"") -> 
A106: =IFERROR(VLOOKUP(ROW()-6,data!$A$5:$AI$2227,4,0),"") ->  | B106: =IFERROR(VLOOKUP(ROW()-6,data!$A$5:$AI$2227,6,0),"") ->  | C106: =IFERROR(VLOOKUP(ROW()-6,data!$A$5:$AI$2227,20,0),"") ->  | D106: =IFERROR(VLOOKUP(ROW()-6,data!$A$5:$AI$2227,29,0),"") ->  | E106: =IFERROR(VLOOKUP(ROW()-6,data!$A$5:$AI$2227,31,0),"") ->  | F106: =IFERROR(VLOOKUP(ROW()-6,data!$A$5:$AI$2227,27,0),"") ->  | G106: =IFERROR(VLOOKUP(ROW()-6,data!$A$5:$AI$2227,24,0),"") ->  | H106: =IFERROR(VLOOKUP(ROW()-6,data!$A$5:$AI$2227,19,0),"") ->  | I106: =IFERROR(VLOOKUP(ROW()-6,data!$A$5:$AI$2227,10,0),"") ->  | J106: =IFERROR(VLOOKUP(ROW()-6,data!$A$5:$AI$2227,14,0),"") ->  | K106: =IFERROR(VLOOKUP(ROW()-6,data!$A$5:$AI$2227,12,0),"") ->  | L106: =IFERROR(VLOOKUP(ROW()-6,data!$A$5:$AI$2227,18,0),"") ->  | M106: =IFERROR(VLOOKUP(ROW()-6,data!$A$5:$AI$2227,21,0),"") -> 
A107: =IFERROR(VLOOKUP(ROW()-6,data!$A$5:$AI$2227,4,0),"") ->  | B107: =IFERROR(VLOOKUP(ROW()-6,data!$A$5:$AI$2227,6,0),"") ->  | C107: =IFERROR(VLOOKUP(ROW()-6,data!$A$5:$AI$2227,20,0),"") ->  | D107: =IFERROR(VLOOKUP(ROW()-6,data!$A$5:$AI$2227,29,0),"") ->  | E107: =IFERROR(VLOOKUP(ROW()-6,data!$A$5:$AI$2227,31,0),"") ->  | F107: =IFERROR(VLOOKUP(ROW()-6,data!$A$5:$AI$2227,27,0),"") ->  | G107: =IFERROR(VLOOKUP(ROW()-6,data!$A$5:$AI$2227,24,0),"") ->  | H107: =IFERROR(VLOOKUP(ROW()-6,data!$A$5:$AI$2227,19,0),"") ->  | I107: =IFERROR(VLOOKUP(ROW()-6,data!$A$5:$AI$2227,10,0),"") ->  | J107: =IFERROR(VLOOKUP(ROW()-6,data!$A$5:$AI$2227,14,0),"") ->  | K107: =IFERROR(VLOOKUP(ROW()-6,data!$A$5:$AI$2227,12,0),"") ->  | L107: =IFERROR(VLOOKUP(ROW()-6,data!$A$5:$AI$2227,18,0),"") ->  | M107: =IFERROR(VLOOKUP(ROW()-6,data!$A$5:$AI$2227,21,0),"") -> 
A108: =IFERROR(VLOOKUP(ROW()-6,data!$A$5:$AI$2227,4,0),"") ->  | B108: =IFERROR(VLOOKUP(ROW()-6,data!$A$5:$AI$2227,6,0),"") ->  | C108: =IFERROR(VLOOKUP(ROW()-6,data!$A$5:$AI$2227,20,0),"") ->  | D108: =IFERROR(VLOOKUP(ROW()-6,data!$A$5:$AI$2227,29,0),"") ->  | E108: =IFERROR(VLOOKUP(ROW()-6,data!$A$5:$AI$2227,31,0),"") ->  | F108: =IFERROR(VLOOKUP(ROW()-6,data!$A$5:$AI$2227,27,0),"") ->  | G108: =IFERROR(VLOOKUP(ROW()-6,data!$A$5:$AI$2227,24,0),"") ->  | H108: =IFERROR(VLOOKUP(ROW()-6,data!$A$5:$AI$2227,19,0),"") ->  | I108: =IFERROR(VLOOKUP(ROW()-6,data!$A$5:$AI$2227,10,0),"") ->  | J108: =IFERROR(VLOOKUP(ROW()-6,data!$A$5:$AI$2227,14,0),"") ->  | K108: =IFERROR(VLOOKUP(ROW()-6,data!$A$5:$AI$2227,12,0),"") ->  | L108: =IFERROR(VLOOKUP(ROW()-6,data!$A$5:$AI$2227,18,0),"") ->  | M108: =IFERROR(VLOOKUP(ROW()-6,data!$A$5:$AI$2227,21,0),"") -> 
A109: =IFERROR(VLOOKUP(ROW()-6,data!$A$5:$AI$2227,4,0),"") ->  | B109: =IFERROR(VLOOKUP(ROW()-6,data!$A$5:$AI$2227,6,0),"") ->  | C109: =IFERROR(VLOOKUP(ROW()-6,data!$A$5:$AI$2227,20,0),"") ->  | D109: =IFERROR(VLOOKUP(ROW()-6,data!$A$5:$AI$2227,29,0),"") ->  | E109: =IFERROR(VLOOKUP(ROW()-6,data!$A$5:$AI$2227,31,0),"") ->  | F109: =IFERROR(VLOOKUP(ROW()-6,data!$A$5:$AI$2227,27,0),"") ->  | G109: =IFERROR(VLOOKUP(ROW()-6,data!$A$5:$AI$2227,24,0),"") ->  | H109: =IFERROR(VLOOKUP(ROW()-6,data!$A$5:$AI$2227,19,0),"") ->  | I109: =IFERROR(VLOOKUP(ROW()-6,data!$A$5:$AI$2227,10,0),"") ->  | J109: =IFERROR(VLOOKUP(ROW()-6,data!$A$5:$AI$2227,14,0),"") ->  | K109: =IFERROR(VLOOKUP(ROW()-6,data!$A$5:$AI$2227,12,0),"") ->  | L109: =IFERROR(VLOOKUP(ROW()-6,data!$A$5:$AI$2227,18,0),"") ->  | M109: =IFERROR(VLOOKUP(ROW()-6,data!$A$5:$AI$2227,21,0),"") -> 
A110: =IFERROR(VLOOKUP(ROW()-6,data!$A$5:$AI$2227,4,0),"") ->  | B110: =IFERROR(VLOOKUP(ROW()-6,data!$A$5:$AI$2227,6,0),"") ->  | C110: =IFERROR(VLOOKUP(ROW()-6,data!$A$5:$AI$2227,20,0),"") ->  | D110: =IFERROR(VLOOKUP(ROW()-6,data!$A$5:$AI$2227,29,0),"") ->  | E110: =IFERROR(VLOOKUP(ROW()-6,data!$A$5:$AI$2227,31,0),"") ->  | F110: =IFERROR(VLOOKUP(ROW()-6,data!$A$5:$AI$2227,27,0),"") ->  | G110: =IFERROR(VLOOKUP(ROW()-6,data!$A$5:$AI$2227,24,0),"") ->  | H110: =IFERROR(VLOOKUP(ROW()-6,data!$A$5:$AI$2227,19,0),"") ->  | I110: =IFERROR(VLOOKUP(ROW()-6,data!$A$5:$AI$2227,10,0),"") ->  | J110: =IFERROR(VLOOKUP(ROW()-6,data!$A$5:$AI$2227,14,0),"") ->  | K110: =IFERROR(VLOOKUP(ROW()-6,data!$A$5:$AI$2227,12,0),"") ->  | L110: =IFERROR(VLOOKUP(ROW()-6,data!$A$5:$AI$2227,18,0),"") ->  | M110: =IFERROR(VLOOKUP(ROW()-6,data!$A$5:$AI$2227,21,0),"") -> 
A111: =IFERROR(VLOOKUP(ROW()-6,data!$A$5:$AI$2227,4,0),"") ->  | B111: =IFERROR(VLOOKUP(ROW()-6,data!$A$5:$AI$2227,6,0),"") ->  | C111: =IFERROR(VLOOKUP(ROW()-6,data!$A$5:$AI$2227,20,0),"") ->  | D111: =IFERROR(VLOOKUP(ROW()-6,data!$A$5:$AI$2227,29,0),"") ->  | E111: =IFERROR(VLOOKUP(ROW()-6,data!$A$5:$AI$2227,31,0),"") ->  | F111: =IFERROR(VLOOKUP(ROW()-6,data!$A$5:$AI$2227,27,0),"") ->  | G111: =IFERROR(VLOOKUP(ROW()-6,data!$A$5:$AI$2227,24,0),"") ->  | H111: =IFERROR(VLOOKUP(ROW()-6,data!$A$5:$AI$2227,19,0),"") ->  | I111: =IFERROR(VLOOKUP(ROW()-6,data!$A$5:$AI$2227,10,0),"") ->  | J111: =IFERROR(VLOOKUP(ROW()-6,data!$A$5:$AI$2227,14,0),"") ->  | K111: =IFERROR(VLOOKUP(ROW()-6,data!$A$5:$AI$2227,12,0),"") ->  | L111: =IFERROR(VLOOKUP(ROW()-6,data!$A$5:$AI$2227,18,0),"") ->  | M111: =IFERROR(VLOOKUP(ROW()-6,data!$A$5:$AI$2227,21,0),"") -> 
A112: =IFERROR(VLOOKUP(ROW()-6,data!$A$5:$AI$2227,4,0),"") ->  | B112: =IFERROR(VLOOKUP(ROW()-6,data!$A$5:$AI$2227,6,0),"") ->  | C112: =IFERROR(VLOOKUP(ROW()-6,data!$A$5:$AI$2227,20,0),"") ->  | D112: =IFERROR(VLOOKUP(ROW()-6,data!$A$5:$AI$2227,29,0),"") ->  | E112: =IFERROR(VLOOKUP(ROW()-6,data!$A$5:$AI$2227,31,0),"") ->  | F112: =IFERROR(VLOOKUP(ROW()-6,data!$A$5:$AI$2227,27,0),"") ->  | G112: =IFERROR(VLOOKUP(ROW()-6,data!$A$5:$AI$2227,24,0),"") ->  | H112: =IFERROR(VLOOKUP(ROW()-6,data!$A$5:$AI$2227,19,0),"") ->  | I112: =IFERROR(VLOOKUP(ROW()-6,data!$A$5:$AI$2227,10,0),"") ->  | J112: =IFERROR(VLOOKUP(ROW()-6,data!$A$5:$AI$2227,14,0),"") ->  | K112: =IFERROR(VLOOKUP(ROW()-6,data!$A$5:$AI$2227,12,0),"") ->  | L112: =IFERROR(VLOOKUP(ROW()-6,data!$A$5:$AI$2227,18,0),"") ->  | M112: =IFERROR(VLOOKUP(ROW()-6,data!$A$5:$AI$2227,21,0),"") -> 
A113: =IFERROR(VLOOKUP(ROW()-6,data!$A$5:$AI$2227,4,0),"") ->  | B113: =IFERROR(VLOOKUP(ROW()-6,data!$A$5:$AI$2227,6,0),"") ->  | C113: =IFERROR(VLOOKUP(ROW()-6,data!$A$5:$AI$2227,20,0),"") ->  | D113: =IFERROR(VLOOKUP(ROW()-6,data!$A$5:$AI$2227,29,0),"") ->  | E113: =IFERROR(VLOOKUP(ROW()-6,data!$A$5:$AI$2227,31,0),"") ->  | F113: =IFERROR(VLOOKUP(ROW()-6,data!$A$5:$AI$2227,27,0),"") ->  | G113: =IFERROR(VLOOKUP(ROW()-6,data!$A$5:$AI$2227,24,0),"") ->  | H113: =IFERROR(VLOOKUP(ROW()-6,data!$A$5:$AI$2227,19,0),"") ->  | I113: =IFERROR(VLOOKUP(ROW()-6,data!$A$5:$AI$2227,10,0),"") ->  | J113: =IFERROR(VLOOKUP(ROW()-6,data!$A$5:$AI$2227,14,0),"") ->  | K113: =IFERROR(VLOOKUP(ROW()-6,data!$A$5:$AI$2227,12,0),"") ->  | L113: =IFERROR(VLOOKUP(ROW()-6,data!$A$5:$AI$2227,18,0),"") ->  | M113: =IFERROR(VLOOKUP(ROW()-6,data!$A$5:$AI$2227,21,0),"") -> 
A114: =IFERROR(VLOOKUP(ROW()-6,data!$A$5:$AI$2227,4,0),"") ->  | B114: =IFERROR(VLOOKUP(ROW()-6,data!$A$5:$AI$2227,6,0),"") ->  | C114: =IFERROR(VLOOKUP(ROW()-6,data!$A$5:$AI$2227,20,0),"") ->  | D114: =IFERROR(VLOOKUP(ROW()-6,data!$A$5:$AI$2227,29,0),"") ->  | E114: =IFERROR(VLOOKUP(ROW()-6,data!$A$5:$AI$2227,31,0),"") ->  | F114: =IFERROR(VLOOKUP(ROW()-6,data!$A$5:$AI$2227,27,0),"") ->  | G114: =IFERROR(VLOOKUP(ROW()-6,data!$A$5:$AI$2227,24,0),"") ->  | H114: =IFERROR(VLOOKUP(ROW()-6,data!$A$5:$AI$2227,19,0),"") ->  | I114: =IFERROR(VLOOKUP(ROW()-6,data!$A$5:$AI$2227,10,0),"") ->  | J114: =IFERROR(VLOOKUP(ROW()-6,data!$A$5:$AI$2227,14,0),"") ->  | K114: =IFERROR(VLOOKUP(ROW()-6,data!$A$5:$AI$2227,12,0),"") ->  | L114: =IFERROR(VLOOKUP(ROW()-6,data!$A$5:$AI$2227,18,0),"") ->  | M114: =IFERROR(VLOOKUP(ROW()-6,data!$A$5:$AI$2227,21,0),"") -> 
A115: =IFERROR(VLOOKUP(ROW()-6,data!$A$5:$AI$2227,4,0),"") ->  | B115: =IFERROR(VLOOKUP(ROW()-6,data!$A$5:$AI$2227,6,0),"") ->  | C115: =IFERROR(VLOOKUP(ROW()-6,data!$A$5:$AI$2227,20,0),"") ->  | D115: =IFERROR(VLOOKUP(ROW()-6,data!$A$5:$AI$2227,29,0),"") ->  | E115: =IFERROR(VLOOKUP(ROW()-6,data!$A$5:$AI$2227,31,0),"") ->  | F115: =IFERROR(VLOOKUP(ROW()-6,data!$A$5:$AI$2227,27,0),"") ->  | G115: =IFERROR(VLOOKUP(ROW()-6,data!$A$5:$AI$2227,24,0),"") ->  | H115: =IFERROR(VLOOKUP(ROW()-6,data!$A$5:$AI$2227,19,0),"") ->  | I115: =IFERROR(VLOOKUP(ROW()-6,data!$A$5:$AI$2227,10,0),"") ->  | J115: =IFERROR(VLOOKUP(ROW()-6,data!$A$5:$AI$2227,14,0),"") ->  | K115: =IFERROR(VLOOKUP(ROW()-6,data!$A$5:$AI$2227,12,0),"") ->  | L115: =IFERROR(VLOOKUP(ROW()-6,data!$A$5:$AI$2227,18,0),"") ->  | M115: =IFERROR(VLOOKUP(ROW()-6,data!$A$5:$AI$2227,21,0),"") -> 
A116: =IFERROR(VLOOKUP(ROW()-6,data!$A$5:$AI$2227,4,0),"") ->  | B116: =IFERROR(VLOOKUP(ROW()-6,data!$A$5:$AI$2227,6,0),"") ->  | C116: =IFERROR(VLOOKUP(ROW()-6,data!$A$5:$AI$2227,20,0),"") ->  | D116: =IFERROR(VLOOKUP(ROW()-6,data!$A$5:$AI$2227,29,0),"") ->  | E116: =IFERROR(VLOOKUP(ROW()-6,data!$A$5:$AI$2227,31,0),"") ->  | F116: =IFERROR(VLOOKUP(ROW()-6,data!$A$5:$AI$2227,27,0),"") ->  | G116: =IFERROR(VLOOKUP(ROW()-6,data!$A$5:$AI$2227,24,0),"") ->  | H116: =IFERROR(VLOOKUP(ROW()-6,data!$A$5:$AI$2227,19,0),"") ->  | I116: =IFERROR(VLOOKUP(ROW()-6,data!$A$5:$AI$2227,10,0),"") ->  | J116: =IFERROR(VLOOKUP(ROW()-6,data!$A$5:$AI$2227,14,0),"") ->  | K116: =IFERROR(VLOOKUP(ROW()-6,data!$A$5:$AI$2227,12,0),"") ->  | L116: =IFERROR(VLOOKUP(ROW()-6,data!$A$5:$AI$2227,18,0),"") ->  | M116: =IFERROR(VLOOKUP(ROW()-6,data!$A$5:$AI$2227,21,0),"") -> 
A117: =IFERROR(VLOOKUP(ROW()-6,data!$A$5:$AI$2227,4,0),"") ->  | B117: =IFERROR(VLOOKUP(ROW()-6,data!$A$5:$AI$2227,6,0),"") ->  | C117: =IFERROR(VLOOKUP(ROW()-6,data!$A$5:$AI$2227,20,0),"") ->  | D117: =IFERROR(VLOOKUP(ROW()-6,data!$A$5:$AI$2227,29,0),"") ->  | E117: =IFERROR(VLOOKUP(ROW()-6,data!$A$5:$AI$2227,31,0),"") ->  | F117: =IFERROR(VLOOKUP(ROW()-6,data!$A$5:$AI$2227,27,0),"") ->  | G117: =IFERROR(VLOOKUP(ROW()-6,data!$A$5:$AI$2227,24,0),"") ->  | H117: =IFERROR(VLOOKUP(ROW()-6,data!$A$5:$AI$2227,19,0),"") ->  | I117: =IFERROR(VLOOKUP(ROW()-6,data!$A$5:$AI$2227,10,0),"") ->  | J117: =IFERROR(VLOOKUP(ROW()-6,data!$A$5:$AI$2227,14,0),"") ->  | K117: =IFERROR(VLOOKUP(ROW()-6,data!$A$5:$AI$2227,12,0),"") ->  | L117: =IFERROR(VLOOKUP(ROW()-6,data!$A$5:$AI$2227,18,0),"") ->  | M117: =IFERROR(VLOOKUP(ROW()-6,data!$A$5:$AI$2227,21,0),"") -> 
A118: =IFERROR(VLOOKUP(ROW()-6,data!$A$5:$AI$2227,4,0),"") ->  | B118: =IFERROR(VLOOKUP(ROW()-6,data!$A$5:$AI$2227,6,0),"") ->  | C118: =IFERROR(VLOOKUP(ROW()-6,data!$A$5:$AI$2227,20,0),"") ->  | D118: =IFERROR(VLOOKUP(ROW()-6,data!$A$5:$AI$2227,29,0),"") ->  | E118: =IFERROR(VLOOKUP(ROW()-6,data!$A$5:$AI$2227,31,0),"") ->  | F118: =IFERROR(VLOOKUP(ROW()-6,data!$A$5:$AI$2227,27,0),"") ->  | G118: =IFERROR(VLOOKUP(ROW()-6,data!$A$5:$AI$2227,24,0),"") ->  | H118: =IFERROR(VLOOKUP(ROW()-6,data!$A$5:$AI$2227,19,0),"") ->  | I118: =IFERROR(VLOOKUP(ROW()-6,data!$A$5:$AI$2227,10,0),"") ->  | J118: =IFERROR(VLOOKUP(ROW()-6,data!$A$5:$AI$2227,14,0),"") ->  | K118: =IFERROR(VLOOKUP(ROW()-6,data!$A$5:$AI$2227,12,0),"") ->  | L118: =IFERROR(VLOOKUP(ROW()-6,data!$A$5:$AI$2227,18,0),"") ->  | M118: =IFERROR(VLOOKUP(ROW()-6,data!$A$5:$AI$2227,21,0),"") -> 
A119: =IFERROR(VLOOKUP(ROW()-6,data!$A$5:$AI$2227,4,0),"") ->  | B119: =IFERROR(VLOOKUP(ROW()-6,data!$A$5:$AI$2227,6,0),"") ->  | C119: =IFERROR(VLOOKUP(ROW()-6,data!$A$5:$AI$2227,20,0),"") ->  | D119: =IFERROR(VLOOKUP(ROW()-6,data!$A$5:$AI$2227,29,0),"") ->  | E119: =IFERROR(VLOOKUP(ROW()-6,data!$A$5:$AI$2227,31,0),"") ->  | F119: =IFERROR(VLOOKUP(ROW()-6,data!$A$5:$AI$2227,27,0),"") ->  | G119: =IFERROR(VLOOKUP(ROW()-6,data!$A$5:$AI$2227,24,0),"") ->  | H119: =IFERROR(VLOOKUP(ROW()-6,data!$A$5:$AI$2227,19,0),"") ->  | I119: =IFERROR(VLOOKUP(ROW()-6,data!$A$5:$AI$2227,10,0),"") ->  | J119: =IFERROR(VLOOKUP(ROW()-6,data!$A$5:$AI$2227,14,0),"") ->  | K119: =IFERROR(VLOOKUP(ROW()-6,data!$A$5:$AI$2227,12,0),"") ->  | L119: =IFERROR(VLOOKUP(ROW()-6,data!$A$5:$AI$2227,18,0),"") ->  | M119: =IFERROR(VLOOKUP(ROW()-6,data!$A$5:$AI$2227,21,0),"") -> 
A120: =IFERROR(VLOOKUP(ROW()-6,data!$A$5:$AI$2227,4,0),"") ->  | B120: =IFERROR(VLOOKUP(ROW()-6,data!$A$5:$AI$2227,6,0),"") ->  | C120: =IFERROR(VLOOKUP(ROW()-6,data!$A$5:$AI$2227,20,0),"") ->  | D120: =IFERROR(VLOOKUP(ROW()-6,data!$A$5:$AI$2227,29,0),"") ->  | E120: =IFERROR(VLOOKUP(ROW()-6,data!$A$5:$AI$2227,31,0),"") ->  | F120: =IFERROR(VLOOKUP(ROW()-6,data!$A$5:$AI$2227,27,0),"") ->  | G120: =IFERROR(VLOOKUP(ROW()-6,data!$A$5:$AI$2227,24,0),"") ->  | H120: =IFERROR(VLOOKUP(ROW()-6,data!$A$5:$AI$2227,19,0),"") ->  | I120: =IFERROR(VLOOKUP(ROW()-6,data!$A$5:$AI$2227,10,0),"") ->  | J120: =IFERROR(VLOOKUP(ROW()-6,data!$A$5:$AI$2227,14,0),"") ->  | K120: =IFERROR(VLOOKUP(ROW()-6,data!$A$5:$AI$2227,12,0),"") ->  | L120: =IFERROR(VLOOKUP(ROW()-6,data!$A$5:$AI$2227,18,0),"") ->  | M120: =IFERROR(VLOOKUP(ROW()-6,data!$A$5:$AI$2227,21,0),"") -> 
A121: =IFERROR(VLOOKUP(ROW()-6,data!$A$5:$AI$2227,4,0),"") ->  | B121: =IFERROR(VLOOKUP(ROW()-6,data!$A$5:$AI$2227,6,0),"") ->  | C121: =IFERROR(VLOOKUP(ROW()-6,data!$A$5:$AI$2227,20,0),"") ->  | D121: =IFERROR(VLOOKUP(ROW()-6,data!$A$5:$AI$2227,29,0),"") ->  | E121: =IFERROR(VLOOKUP(ROW()-6,data!$A$5:$AI$2227,31,0),"") ->  | F121: =IFERROR(VLOOKUP(ROW()-6,data!$A$5:$AI$2227,27,0),"") ->  | G121: =IFERROR(VLOOKUP(ROW()-6,data!$A$5:$AI$2227,24,0),"") ->  | H121: =IFERROR(VLOOKUP(ROW()-6,data!$A$5:$AI$2227,19,0),"") ->  | I121: =IFERROR(VLOOKUP(ROW()-6,data!$A$5:$AI$2227,10,0),"") ->  | J121: =IFERROR(VLOOKUP(ROW()-6,data!$A$5:$AI$2227,14,0),"") ->  | K121: =IFERROR(VLOOKUP(ROW()-6,data!$A$5:$AI$2227,12,0),"") ->  | L121: =IFERROR(VLOOKUP(ROW()-6,data!$A$5:$AI$2227,18,0),"") ->  | M121: =IFERROR(VLOOKUP(ROW()-6,data!$A$5:$AI$2227,21,0),"") -> 
A122: =IFERROR(VLOOKUP(ROW()-6,data!$A$5:$AI$2227,4,0),"") ->  | B122: =IFERROR(VLOOKUP(ROW()-6,data!$A$5:$AI$2227,6,0),"") ->  | C122: =IFERROR(VLOOKUP(ROW()-6,data!$A$5:$AI$2227,20,0),"") ->  | D122: =IFERROR(VLOOKUP(ROW()-6,data!$A$5:$AI$2227,29,0),"") ->  | E122: =IFERROR(VLOOKUP(ROW()-6,data!$A$5:$AI$2227,31,0),"") ->  | F122: =IFERROR(VLOOKUP(ROW()-6,data!$A$5:$AI$2227,27,0),"") ->  | G122: =IFERROR(VLOOKUP(ROW()-6,data!$A$5:$AI$2227,24,0),"") ->  | H122: =IFERROR(VLOOKUP(ROW()-6,data!$A$5:$AI$2227,19,0),"") ->  | I122: =IFERROR(VLOOKUP(ROW()-6,data!$A$5:$AI$2227,10,0),"") ->  | J122: =IFERROR(VLOOKUP(ROW()-6,data!$A$5:$AI$2227,14,0),"") ->  | K122: =IFERROR(VLOOKUP(ROW()-6,data!$A$5:$AI$2227,12,0),"") ->  | L122: =IFERROR(VLOOKUP(ROW()-6,data!$A$5:$AI$2227,18,0),"") ->  | M122: =IFERROR(VLOOKUP(ROW()-6,data!$A$5:$AI$2227,21,0),"") -> 
A123: =IFERROR(VLOOKUP(ROW()-6,data!$A$5:$AI$2227,4,0),"") ->  | B123: =IFERROR(VLOOKUP(ROW()-6,data!$A$5:$AI$2227,6,0),"") ->  | C123: =IFERROR(VLOOKUP(ROW()-6,data!$A$5:$AI$2227,20,0),"") ->  | D123: =IFERROR(VLOOKUP(ROW()-6,data!$A$5:$AI$2227,29,0),"") ->  | E123: =IFERROR(VLOOKUP(ROW()-6,data!$A$5:$AI$2227,31,0),"") ->  | F123: =IFERROR(VLOOKUP(ROW()-6,data!$A$5:$AI$2227,27,0),"") ->  | G123: =IFERROR(VLOOKUP(ROW()-6,data!$A$5:$AI$2227,24,0),"") ->  | H123: =IFERROR(VLOOKUP(ROW()-6,data!$A$5:$AI$2227,19,0),"") ->  | I123: =IFERROR(VLOOKUP(ROW()-6,data!$A$5:$AI$2227,10,0),"") ->  | J123: =IFERROR(VLOOKUP(ROW()-6,data!$A$5:$AI$2227,14,0),"") ->  | K123: =IFERROR(VLOOKUP(ROW()-6,data!$A$5:$AI$2227,12,0),"") ->  | L123: =IFERROR(VLOOKUP(ROW()-6,data!$A$5:$AI$2227,18,0),"") ->  | M123: =IFERROR(VLOOKUP(ROW()-6,data!$A$5:$AI$2227,21,0),"") -> 
A124: =IFERROR(VLOOKUP(ROW()-6,data!$A$5:$AI$2227,4,0),"") ->  | B124: =IFERROR(VLOOKUP(ROW()-6,data!$A$5:$AI$2227,6,0),"") ->  | C124: =IFERROR(VLOOKUP(ROW()-6,data!$A$5:$AI$2227,20,0),"") ->  | D124: =IFERROR(VLOOKUP(ROW()-6,data!$A$5:$AI$2227,29,0),"") ->  | E124: =IFERROR(VLOOKUP(ROW()-6,data!$A$5:$AI$2227,31,0),"") ->  | F124: =IFERROR(VLOOKUP(ROW()-6,data!$A$5:$AI$2227,27,0),"") ->  | G124: =IFERROR(VLOOKUP(ROW()-6,data!$A$5:$AI$2227,24,0),"") ->  | H124: =IFERROR(VLOOKUP(ROW()-6,data!$A$5:$AI$2227,19,0),"") ->  | I124: =IFERROR(VLOOKUP(ROW()-6,data!$A$5:$AI$2227,10,0),"") ->  | J124: =IFERROR(VLOOKUP(ROW()-6,data!$A$5:$AI$2227,14,0),"") ->  | K124: =IFERROR(VLOOKUP(ROW()-6,data!$A$5:$AI$2227,12,0),"") ->  | L124: =IFERROR(VLOOKUP(ROW()-6,data!$A$5:$AI$2227,18,0),"") ->  | M124: =IFERROR(VLOOKUP(ROW()-6,data!$A$5:$AI$2227,21,0),"") -> 
A125: =IFERROR(VLOOKUP(ROW()-6,data!$A$5:$AI$2227,4,0),"") ->  | B125: =IFERROR(VLOOKUP(ROW()-6,data!$A$5:$AI$2227,6,0),"") ->  | C125: =IFERROR(VLOOKUP(ROW()-6,data!$A$5:$AI$2227,20,0),"") ->  | D125: =IFERROR(VLOOKUP(ROW()-6,data!$A$5:$AI$2227,29,0),"") ->  | E125: =IFERROR(VLOOKUP(ROW()-6,data!$A$5:$AI$2227,31,0),"") ->  | F125: =IFERROR(VLOOKUP(ROW()-6,data!$A$5:$AI$2227,27,0),"") ->  | G125: =IFERROR(VLOOKUP(ROW()-6,data!$A$5:$AI$2227,24,0),"") ->  | H125: =IFERROR(VLOOKUP(ROW()-6,data!$A$5:$AI$2227,19,0),"") ->  | I125: =IFERROR(VLOOKUP(ROW()-6,data!$A$5:$AI$2227,10,0),"") ->  | J125: =IFERROR(VLOOKUP(ROW()-6,data!$A$5:$AI$2227,14,0),"") ->  | K125: =IFERROR(VLOOKUP(ROW()-6,data!$A$5:$AI$2227,12,0),"") ->  | L125: =IFERROR(VLOOKUP(ROW()-6,data!$A$5:$AI$2227,18,0),"") ->  | M125: =IFERROR(VLOOKUP(ROW()-6,data!$A$5:$AI$2227,21,0),"") -> 
A126: =IFERROR(VLOOKUP(ROW()-6,data!$A$5:$AI$2227,4,0),"") ->  | B126: =IFERROR(VLOOKUP(ROW()-6,data!$A$5:$AI$2227,6,0),"") ->  | C126: =IFERROR(VLOOKUP(ROW()-6,data!$A$5:$AI$2227,20,0),"") ->  | D126: =IFERROR(VLOOKUP(ROW()-6,data!$A$5:$AI$2227,29,0),"") ->  | E126: =IFERROR(VLOOKUP(ROW()-6,data!$A$5:$AI$2227,31,0),"") ->  | F126: =IFERROR(VLOOKUP(ROW()-6,data!$A$5:$AI$2227,27,0),"") ->  | G126: =IFERROR(VLOOKUP(ROW()-6,data!$A$5:$AI$2227,24,0),"") ->  | H126: =IFERROR(VLOOKUP(ROW()-6,data!$A$5:$AI$2227,19,0),"") ->  | I126: =IFERROR(VLOOKUP(ROW()-6,data!$A$5:$AI$2227,10,0),"") ->  | J126: =IFERROR(VLOOKUP(ROW()-6,data!$A$5:$AI$2227,14,0),"") ->  | K126: =IFERROR(VLOOKUP(ROW()-6,data!$A$5:$AI$2227,12,0),"") ->  | L126: =IFERROR(VLOOKUP(ROW()-6,data!$A$5:$AI$2227,18,0),"") ->  | M126: =IFERROR(VLOOKUP(ROW()-6,data!$A$5:$AI$2227,21,0),"") -> 
A127: =IFERROR(VLOOKUP(ROW()-6,data!$A$5:$AI$2227,4,0),"") ->  | B127: =IFERROR(VLOOKUP(ROW()-6,data!$A$5:$AI$2227,6,0),"") ->  | C127: =IFERROR(VLOOKUP(ROW()-6,data!$A$5:$AI$2227,20,0),"") ->  | D127: =IFERROR(VLOOKUP(ROW()-6,data!$A$5:$AI$2227,29,0),"") ->  | E127: =IFERROR(VLOOKUP(ROW()-6,data!$A$5:$AI$2227,31,0),"") ->  | F127: =IFERROR(VLOOKUP(ROW()-6,data!$A$5:$AI$2227,27,0),"") ->  | G127: =IFERROR(VLOOKUP(ROW()-6,data!$A$5:$AI$2227,24,0),"") ->  | H127: =IFERROR(VLOOKUP(ROW()-6,data!$A$5:$AI$2227,19,0),"") ->  | I127: =IFERROR(VLOOKUP(ROW()-6,data!$A$5:$AI$2227,10,0),"") ->  | J127: =IFERROR(VLOOKUP(ROW()-6,data!$A$5:$AI$2227,14,0),"") ->  | K127: =IFERROR(VLOOKUP(ROW()-6,data!$A$5:$AI$2227,12,0),"") ->  | L127: =IFERROR(VLOOKUP(ROW()-6,data!$A$5:$AI$2227,18,0),"") ->  | M127: =IFERROR(VLOOKUP(ROW()-6,data!$A$5:$AI$2227,21,0),"") -> 
A128: =IFERROR(VLOOKUP(ROW()-6,data!$A$5:$AI$2227,4,0),"") ->  | B128: =IFERROR(VLOOKUP(ROW()-6,data!$A$5:$AI$2227,6,0),"") ->  | C128: =IFERROR(VLOOKUP(ROW()-6,data!$A$5:$AI$2227,20,0),"") ->  | D128: =IFERROR(VLOOKUP(ROW()-6,data!$A$5:$AI$2227,29,0),"") ->  | E128: =IFERROR(VLOOKUP(ROW()-6,data!$A$5:$AI$2227,31,0),"") ->  | F128: =IFERROR(VLOOKUP(ROW()-6,data!$A$5:$AI$2227,27,0),"") ->  | G128: =IFERROR(VLOOKUP(ROW()-6,data!$A$5:$AI$2227,24,0),"") ->  | H128: =IFERROR(VLOOKUP(ROW()-6,data!$A$5:$AI$2227,19,0),"") ->  | I128: =IFERROR(VLOOKUP(ROW()-6,data!$A$5:$AI$2227,10,0),"") ->  | J128: =IFERROR(VLOOKUP(ROW()-6,data!$A$5:$AI$2227,14,0),"") ->  | K128: =IFERROR(VLOOKUP(ROW()-6,data!$A$5:$AI$2227,12,0),"") ->  | L128: =IFERROR(VLOOKUP(ROW()-6,data!$A$5:$AI$2227,18,0),"") ->  | M128: =IFERROR(VLOOKUP(ROW()-6,data!$A$5:$AI$2227,21,0),"") -> 
A129: =IFERROR(VLOOKUP(ROW()-6,data!$A$5:$AI$2227,4,0),"") ->  | B129: =IFERROR(VLOOKUP(ROW()-6,data!$A$5:$AI$2227,6,0),"") ->  | C129: =IFERROR(VLOOKUP(ROW()-6,data!$A$5:$AI$2227,20,0),"") ->  | D129: =IFERROR(VLOOKUP(ROW()-6,data!$A$5:$AI$2227,29,0),"") ->  | E129: =IFERROR(VLOOKUP(ROW()-6,data!$A$5:$AI$2227,31,0),"") ->  | F129: =IFERROR(VLOOKUP(ROW()-6,data!$A$5:$AI$2227,27,0),"") ->  | G129: =IFERROR(VLOOKUP(ROW()-6,data!$A$5:$AI$2227,24,0),"") ->  | H129: =IFERROR(VLOOKUP(ROW()-6,data!$A$5:$AI$2227,19,0),"") ->  | I129: =IFERROR(VLOOKUP(ROW()-6,data!$A$5:$AI$2227,10,0),"") ->  | J129: =IFERROR(VLOOKUP(ROW()-6,data!$A$5:$AI$2227,14,0),"") ->  | K129: =IFERROR(VLOOKUP(ROW()-6,data!$A$5:$AI$2227,12,0),"") ->  | L129: =IFERROR(VLOOKUP(ROW()-6,data!$A$5:$AI$2227,18,0),"") ->  | M129: =IFERROR(VLOOKUP(ROW()-6,data!$A$5:$AI$2227,21,0),"") -> 
A130: =IFERROR(VLOOKUP(ROW()-6,data!$A$5:$AI$2227,4,0),"") ->  | B130: =IFERROR(VLOOKUP(ROW()-6,data!$A$5:$AI$2227,6,0),"") ->  | C130: =IFERROR(VLOOKUP(ROW()-6,data!$A$5:$AI$2227,20,0),"") ->  | D130: =IFERROR(VLOOKUP(ROW()-6,data!$A$5:$AI$2227,29,0),"") ->  | E130: =IFERROR(VLOOKUP(ROW()-6,data!$A$5:$AI$2227,31,0),"") ->  | F130: =IFERROR(VLOOKUP(ROW()-6,data!$A$5:$AI$2227,27,0),"") ->  | G130: =IFERROR(VLOOKUP(ROW()-6,data!$A$5:$AI$2227,24,0),"") ->  | H130: =IFERROR(VLOOKUP(ROW()-6,data!$A$5:$AI$2227,19,0),"") ->  | I130: =IFERROR(VLOOKUP(ROW()-6,data!$A$5:$AI$2227,10,0),"") ->  | J130: =IFERROR(VLOOKUP(ROW()-6,data!$A$5:$AI$2227,14,0),"") ->  | K130: =IFERROR(VLOOKUP(ROW()-6,data!$A$5:$AI$2227,12,0),"") ->  | L130: =IFERROR(VLOOKUP(ROW()-6,data!$A$5:$AI$2227,18,0),"") ->  | M130: =IFERROR(VLOOKUP(ROW()-6,data!$A$5:$AI$2227,21,0),"") -> 
A131: =IFERROR(VLOOKUP(ROW()-6,data!$A$5:$AI$2227,4,0),"") ->  | B131: =IFERROR(VLOOKUP(ROW()-6,data!$A$5:$AI$2227,6,0),"") ->  | C131: =IFERROR(VLOOKUP(ROW()-6,data!$A$5:$AI$2227,20,0),"") ->  | D131: =IFERROR(VLOOKUP(ROW()-6,data!$A$5:$AI$2227,29,0),"") ->  | E131: =IFERROR(VLOOKUP(ROW()-6,data!$A$5:$AI$2227,31,0),"") ->  | F131: =IFERROR(VLOOKUP(ROW()-6,data!$A$5:$AI$2227,27,0),"") ->  | G131: =IFERROR(VLOOKUP(ROW()-6,data!$A$5:$AI$2227,24,0),"") ->  | H131: =IFERROR(VLOOKUP(ROW()-6,data!$A$5:$AI$2227,19,0),"") ->  | I131: =IFERROR(VLOOKUP(ROW()-6,data!$A$5:$AI$2227,10,0),"") ->  | J131: =IFERROR(VLOOKUP(ROW()-6,data!$A$5:$AI$2227,14,0),"") ->  | K131: =IFERROR(VLOOKUP(ROW()-6,data!$A$5:$AI$2227,12,0),"") ->  | L131: =IFERROR(VLOOKUP(ROW()-6,data!$A$5:$AI$2227,18,0),"") ->  | M131: =IFERROR(VLOOKUP(ROW()-6,data!$A$5:$AI$2227,21,0),"") -> 
A132: =IFERROR(VLOOKUP(ROW()-6,data!$A$5:$AI$2227,4,0),"") ->  | B132: =IFERROR(VLOOKUP(ROW()-6,data!$A$5:$AI$2227,6,0),"") ->  | C132: =IFERROR(VLOOKUP(ROW()-6,data!$A$5:$AI$2227,20,0),"") ->  | D132: =IFERROR(VLOOKUP(ROW()-6,data!$A$5:$AI$2227,29,0),"") ->  | E132: =IFERROR(VLOOKUP(ROW()-6,data!$A$5:$AI$2227,31,0),"") ->  | F132: =IFERROR(VLOOKUP(ROW()-6,data!$A$5:$AI$2227,27,0),"") ->  | G132: =IFERROR(VLOOKUP(ROW()-6,data!$A$5:$AI$2227,24,0),"") ->  | H132: =IFERROR(VLOOKUP(ROW()-6,data!$A$5:$AI$2227,19,0),"") ->  | I132: =IFERROR(VLOOKUP(ROW()-6,data!$A$5:$AI$2227,10,0),"") ->  | J132: =IFERROR(VLOOKUP(ROW()-6,data!$A$5:$AI$2227,14,0),"") ->  | K132: =IFERROR(VLOOKUP(ROW()-6,data!$A$5:$AI$2227,12,0),"") ->  | L132: =IFERROR(VLOOKUP(ROW()-6,data!$A$5:$AI$2227,18,0),"") ->  | M132: =IFERROR(VLOOKUP(ROW()-6,data!$A$5:$AI$2227,21,0),"") -> 
A133: =IFERROR(VLOOKUP(ROW()-6,data!$A$5:$AI$2227,4,0),"") ->  | B133: =IFERROR(VLOOKUP(ROW()-6,data!$A$5:$AI$2227,6,0),"") ->  | C133: =IFERROR(VLOOKUP(ROW()-6,data!$A$5:$AI$2227,20,0),"") ->  | D133: =IFERROR(VLOOKUP(ROW()-6,data!$A$5:$AI$2227,29,0),"") ->  | E133: =IFERROR(VLOOKUP(ROW()-6,data!$A$5:$AI$2227,31,0),"") ->  | F133: =IFERROR(VLOOKUP(ROW()-6,data!$A$5:$AI$2227,27,0),"") ->  | G133: =IFERROR(VLOOKUP(ROW()-6,data!$A$5:$AI$2227,24,0),"") ->  | H133: =IFERROR(VLOOKUP(ROW()-6,data!$A$5:$AI$2227,19,0),"") ->  | I133: =IFERROR(VLOOKUP(ROW()-6,data!$A$5:$AI$2227,10,0),"") ->  | J133: =IFERROR(VLOOKUP(ROW()-6,data!$A$5:$AI$2227,14,0),"") ->  | K133: =IFERROR(VLOOKUP(ROW()-6,data!$A$5:$AI$2227,12,0),"") ->  | L133: =IFERROR(VLOOKUP(ROW()-6,data!$A$5:$AI$2227,18,0),"") ->  | M133: =IFERROR(VLOOKUP(ROW()-6,data!$A$5:$AI$2227,21,0),"") -> 
A134: =IFERROR(VLOOKUP(ROW()-6,data!$A$5:$AI$2227,4,0),"") ->  | B134: =IFERROR(VLOOKUP(ROW()-6,data!$A$5:$AI$2227,6,0),"") ->  | C134: =IFERROR(VLOOKUP(ROW()-6,data!$A$5:$AI$2227,20,0),"") ->  | D134: =IFERROR(VLOOKUP(ROW()-6,data!$A$5:$AI$2227,29,0),"") ->  | E134: =IFERROR(VLOOKUP(ROW()-6,data!$A$5:$AI$2227,31,0),"") ->  | F134: =IFERROR(VLOOKUP(ROW()-6,data!$A$5:$AI$2227,27,0),"") ->  | G134: =IFERROR(VLOOKUP(ROW()-6,data!$A$5:$AI$2227,24,0),"") ->  | H134: =IFERROR(VLOOKUP(ROW()-6,data!$A$5:$AI$2227,19,0),"") ->  | I134: =IFERROR(VLOOKUP(ROW()-6,data!$A$5:$AI$2227,10,0),"") ->  | J134: =IFERROR(VLOOKUP(ROW()-6,data!$A$5:$AI$2227,14,0),"") ->  | K134: =IFERROR(VLOOKUP(ROW()-6,data!$A$5:$AI$2227,12,0),"") ->  | L134: =IFERROR(VLOOKUP(ROW()-6,data!$A$5:$AI$2227,18,0),"") ->  | M134: =IFERROR(VLOOKUP(ROW()-6,data!$A$5:$AI$2227,21,0),"") -> 
A135: =IFERROR(VLOOKUP(ROW()-6,data!$A$5:$AI$2227,4,0),"") ->  | B135: =IFERROR(VLOOKUP(ROW()-6,data!$A$5:$AI$2227,6,0),"") ->  | C135: =IFERROR(VLOOKUP(ROW()-6,data!$A$5:$AI$2227,20,0),"") ->  | D135: =IFERROR(VLOOKUP(ROW()-6,data!$A$5:$AI$2227,29,0),"") ->  | E135: =IFERROR(VLOOKUP(ROW()-6,data!$A$5:$AI$2227,31,0),"") ->  | F135: =IFERROR(VLOOKUP(ROW()-6,data!$A$5:$AI$2227,27,0),"") ->  | G135: =IFERROR(VLOOKUP(ROW()-6,data!$A$5:$AI$2227,24,0),"") ->  | H135: =IFERROR(VLOOKUP(ROW()-6,data!$A$5:$AI$2227,19,0),"") ->  | I135: =IFERROR(VLOOKUP(ROW()-6,data!$A$5:$AI$2227,10,0),"") ->  | J135: =IFERROR(VLOOKUP(ROW()-6,data!$A$5:$AI$2227,14,0),"") ->  | K135: =IFERROR(VLOOKUP(ROW()-6,data!$A$5:$AI$2227,12,0),"") ->  | L135: =IFERROR(VLOOKUP(ROW()-6,data!$A$5:$AI$2227,18,0),"") ->  | M135: =IFERROR(VLOOKUP(ROW()-6,data!$A$5:$AI$2227,21,0),"") -> 
A136: =IFERROR(VLOOKUP(ROW()-6,data!$A$5:$AI$2227,4,0),"") ->  | B136: =IFERROR(VLOOKUP(ROW()-6,data!$A$5:$AI$2227,6,0),"") ->  | C136: =IFERROR(VLOOKUP(ROW()-6,data!$A$5:$AI$2227,20,0),"") ->  | D136: =IFERROR(VLOOKUP(ROW()-6,data!$A$5:$AI$2227,29,0),"") ->  | E136: =IFERROR(VLOOKUP(ROW()-6,data!$A$5:$AI$2227,31,0),"") ->  | F136: =IFERROR(VLOOKUP(ROW()-6,data!$A$5:$AI$2227,27,0),"") ->  | G136: =IFERROR(VLOOKUP(ROW()-6,data!$A$5:$AI$2227,24,0),"") ->  | H136: =IFERROR(VLOOKUP(ROW()-6,data!$A$5:$AI$2227,19,0),"") ->  | I136: =IFERROR(VLOOKUP(ROW()-6,data!$A$5:$AI$2227,10,0),"") ->  | J136: =IFERROR(VLOOKUP(ROW()-6,data!$A$5:$AI$2227,14,0),"") ->  | K136: =IFERROR(VLOOKUP(ROW()-6,data!$A$5:$AI$2227,12,0),"") ->  | L136: =IFERROR(VLOOKUP(ROW()-6,data!$A$5:$AI$2227,18,0),"") ->  | M136: =IFERROR(VLOOKUP(ROW()-6,data!$A$5:$AI$2227,21,0),"") -> 
A137: =IFERROR(VLOOKUP(ROW()-6,data!$A$5:$AI$2227,4,0),"") ->  | B137: =IFERROR(VLOOKUP(ROW()-6,data!$A$5:$AI$2227,6,0),"") ->  | C137: =IFERROR(VLOOKUP(ROW()-6,data!$A$5:$AI$2227,20,0),"") ->  | D137: =IFERROR(VLOOKUP(ROW()-6,data!$A$5:$AI$2227,29,0),"") ->  | E137: =IFERROR(VLOOKUP(ROW()-6,data!$A$5:$AI$2227,31,0),"") ->  | F137: =IFERROR(VLOOKUP(ROW()-6,data!$A$5:$AI$2227,27,0),"") ->  | G137: =IFERROR(VLOOKUP(ROW()-6,data!$A$5:$AI$2227,24,0),"") ->  | H137: =IFERROR(VLOOKUP(ROW()-6,data!$A$5:$AI$2227,19,0),"") ->  | I137: =IFERROR(VLOOKUP(ROW()-6,data!$A$5:$AI$2227,10,0),"") ->  | J137: =IFERROR(VLOOKUP(ROW()-6,data!$A$5:$AI$2227,14,0),"") ->  | K137: =IFERROR(VLOOKUP(ROW()-6,data!$A$5:$AI$2227,12,0),"") ->  | L137: =IFERROR(VLOOKUP(ROW()-6,data!$A$5:$AI$2227,18,0),"") ->  | M137: =IFERROR(VLOOKUP(ROW()-6,data!$A$5:$AI$2227,21,0),"") -> 
A138: =IFERROR(VLOOKUP(ROW()-6,data!$A$5:$AI$2227,4,0),"") ->  | B138: =IFERROR(VLOOKUP(ROW()-6,data!$A$5:$AI$2227,6,0),"") ->  | C138: =IFERROR(VLOOKUP(ROW()-6,data!$A$5:$AI$2227,20,0),"") ->  | D138: =IFERROR(VLOOKUP(ROW()-6,data!$A$5:$AI$2227,29,0),"") ->  | E138: =IFERROR(VLOOKUP(ROW()-6,data!$A$5:$AI$2227,31,0),"") ->  | F138: =IFERROR(VLOOKUP(ROW()-6,data!$A$5:$AI$2227,27,0),"") ->  | G138: =IFERROR(VLOOKUP(ROW()-6,data!$A$5:$AI$2227,24,0),"") ->  | H138: =IFERROR(VLOOKUP(ROW()-6,data!$A$5:$AI$2227,19,0),"") ->  | I138: =IFERROR(VLOOKUP(ROW()-6,data!$A$5:$AI$2227,10,0),"") ->  | J138: =IFERROR(VLOOKUP(ROW()-6,data!$A$5:$AI$2227,14,0),"") ->  | K138: =IFERROR(VLOOKUP(ROW()-6,data!$A$5:$AI$2227,12,0),"") ->  | L138: =IFERROR(VLOOKUP(ROW()-6,data!$A$5:$AI$2227,18,0),"") ->  | M138: =IFERROR(VLOOKUP(ROW()-6,data!$A$5:$AI$2227,21,0),"") -> 
A139: =IFERROR(VLOOKUP(ROW()-6,data!$A$5:$AI$2227,4,0),"") ->  | B139: =IFERROR(VLOOKUP(ROW()-6,data!$A$5:$AI$2227,6,0),"") ->  | C139: =IFERROR(VLOOKUP(ROW()-6,data!$A$5:$AI$2227,20,0),"") ->  | D139: =IFERROR(VLOOKUP(ROW()-6,data!$A$5:$AI$2227,29,0),"") ->  | E139: =IFERROR(VLOOKUP(ROW()-6,data!$A$5:$AI$2227,31,0),"") ->  | F139: =IFERROR(VLOOKUP(ROW()-6,data!$A$5:$AI$2227,27,0),"") ->  | G139: =IFERROR(VLOOKUP(ROW()-6,data!$A$5:$AI$2227,24,0),"") ->  | H139: =IFERROR(VLOOKUP(ROW()-6,data!$A$5:$AI$2227,19,0),"") ->  | I139: =IFERROR(VLOOKUP(ROW()-6,data!$A$5:$AI$2227,10,0),"") ->  | J139: =IFERROR(VLOOKUP(ROW()-6,data!$A$5:$AI$2227,14,0),"") ->  | K139: =IFERROR(VLOOKUP(ROW()-6,data!$A$5:$AI$2227,12,0),"") ->  | L139: =IFERROR(VLOOKUP(ROW()-6,data!$A$5:$AI$2227,18,0),"") ->  | M139: =IFERROR(VLOOKUP(ROW()-6,data!$A$5:$AI$2227,21,0),"") -> 
A140: =IFERROR(VLOOKUP(ROW()-6,data!$A$5:$AI$2227,4,0),"") ->  | B140: =IFERROR(VLOOKUP(ROW()-6,data!$A$5:$AI$2227,6,0),"") ->  | C140: =IFERROR(VLOOKUP(ROW()-6,data!$A$5:$AI$2227,20,0),"") ->  | D140: =IFERROR(VLOOKUP(ROW()-6,data!$A$5:$AI$2227,29,0),"") ->  | E140: =IFERROR(VLOOKUP(ROW()-6,data!$A$5:$AI$2227,31,0),"") ->  | F140: =IFERROR(VLOOKUP(ROW()-6,data!$A$5:$AI$2227,27,0),"") ->  | G140: =IFERROR(VLOOKUP(ROW()-6,data!$A$5:$AI$2227,24,0),"") ->  | H140: =IFERROR(VLOOKUP(ROW()-6,data!$A$5:$AI$2227,19,0),"") ->  | I140: =IFERROR(VLOOKUP(ROW()-6,data!$A$5:$AI$2227,10,0),"") ->  | J140: =IFERROR(VLOOKUP(ROW()-6,data!$A$5:$AI$2227,14,0),"") ->  | K140: =IFERROR(VLOOKUP(ROW()-6,data!$A$5:$AI$2227,12,0),"") ->  | L140: =IFERROR(VLOOKUP(ROW()-6,data!$A$5:$AI$2227,18,0),"") ->  | M140: =IFERROR(VLOOKUP(ROW()-6,data!$A$5:$AI$2227,21,0),"") -> 
A141: =IFERROR(VLOOKUP(ROW()-6,data!$A$5:$AI$2227,4,0),"") ->  | B141: =IFERROR(VLOOKUP(ROW()-6,data!$A$5:$AI$2227,6,0),"") ->  | C141: =IFERROR(VLOOKUP(ROW()-6,data!$A$5:$AI$2227,20,0),"") ->  | D141: =IFERROR(VLOOKUP(ROW()-6,data!$A$5:$AI$2227,29,0),"") ->  | E141: =IFERROR(VLOOKUP(ROW()-6,data!$A$5:$AI$2227,31,0),"") ->  | F141: =IFERROR(VLOOKUP(ROW()-6,data!$A$5:$AI$2227,27,0),"") ->  | G141: =IFERROR(VLOOKUP(ROW()-6,data!$A$5:$AI$2227,24,0),"") ->  | H141: =IFERROR(VLOOKUP(ROW()-6,data!$A$5:$AI$2227,19,0),"") ->  | I141: =IFERROR(VLOOKUP(ROW()-6,data!$A$5:$AI$2227,10,0),"") ->  | J141: =IFERROR(VLOOKUP(ROW()-6,data!$A$5:$AI$2227,14,0),"") ->  | K141: =IFERROR(VLOOKUP(ROW()-6,data!$A$5:$AI$2227,12,0),"") ->  | L141: =IFERROR(VLOOKUP(ROW()-6,data!$A$5:$AI$2227,18,0),"") ->  | M141: =IFERROR(VLOOKUP(ROW()-6,data!$A$5:$AI$2227,21,0),"") -> 
A142: =IFERROR(VLOOKUP(ROW()-6,data!$A$5:$AI$2227,4,0),"") ->  | B142: =IFERROR(VLOOKUP(ROW()-6,data!$A$5:$AI$2227,6,0),"") ->  | C142: =IFERROR(VLOOKUP(ROW()-6,data!$A$5:$AI$2227,20,0),"") ->  | D142: =IFERROR(VLOOKUP(ROW()-6,data!$A$5:$AI$2227,29,0),"") ->  | E142: =IFERROR(VLOOKUP(ROW()-6,data!$A$5:$AI$2227,31,0),"") ->  | F142: =IFERROR(VLOOKUP(ROW()-6,data!$A$5:$AI$2227,27,0),"") ->  | G142: =IFERROR(VLOOKUP(ROW()-6,data!$A$5:$AI$2227,24,0),"") ->  | H142: =IFERROR(VLOOKUP(ROW()-6,data!$A$5:$AI$2227,19,0),"") ->  | I142: =IFERROR(VLOOKUP(ROW()-6,data!$A$5:$AI$2227,10,0),"") ->  | J142: =IFERROR(VLOOKUP(ROW()-6,data!$A$5:$AI$2227,14,0),"") ->  | K142: =IFERROR(VLOOKUP(ROW()-6,data!$A$5:$AI$2227,12,0),"") ->  | L142: =IFERROR(VLOOKUP(ROW()-6,data!$A$5:$AI$2227,18,0),"") ->  | M142: =IFERROR(VLOOKUP(ROW()-6,data!$A$5:$AI$2227,21,0),"") -> 
A143: =IFERROR(VLOOKUP(ROW()-6,data!$A$5:$AI$2227,4,0),"") ->  | B143: =IFERROR(VLOOKUP(ROW()-6,data!$A$5:$AI$2227,6,0),"") ->  | C143: =IFERROR(VLOOKUP(ROW()-6,data!$A$5:$AI$2227,20,0),"") ->  | D143: =IFERROR(VLOOKUP(ROW()-6,data!$A$5:$AI$2227,29,0),"") ->  | E143: =IFERROR(VLOOKUP(ROW()-6,data!$A$5:$AI$2227,31,0),"") ->  | F143: =IFERROR(VLOOKUP(ROW()-6,data!$A$5:$AI$2227,27,0),"") ->  | G143: =IFERROR(VLOOKUP(ROW()-6,data!$A$5:$AI$2227,24,0),"") ->  | H143: =IFERROR(VLOOKUP(ROW()-6,data!$A$5:$AI$2227,19,0),"") ->  | I143: =IFERROR(VLOOKUP(ROW()-6,data!$A$5:$AI$2227,10,0),"") ->  | J143: =IFERROR(VLOOKUP(ROW()-6,data!$A$5:$AI$2227,14,0),"") ->  | K143: =IFERROR(VLOOKUP(ROW()-6,data!$A$5:$AI$2227,12,0),"") ->  | L143: =IFERROR(VLOOKUP(ROW()-6,data!$A$5:$AI$2227,18,0),"") ->  | M143: =IFERROR(VLOOKUP(ROW()-6,data!$A$5:$AI$2227,21,0),"") -> 
A144: =IFERROR(VLOOKUP(ROW()-6,data!$A$5:$AI$2227,4,0),"") ->  | B144: =IFERROR(VLOOKUP(ROW()-6,data!$A$5:$AI$2227,6,0),"") ->  | C144: =IFERROR(VLOOKUP(ROW()-6,data!$A$5:$AI$2227,20,0),"") ->  | D144: =IFERROR(VLOOKUP(ROW()-6,data!$A$5:$AI$2227,29,0),"") ->  | E144: =IFERROR(VLOOKUP(ROW()-6,data!$A$5:$AI$2227,31,0),"") ->  | F144: =IFERROR(VLOOKUP(ROW()-6,data!$A$5:$AI$2227,27,0),"") ->  | G144: =IFERROR(VLOOKUP(ROW()-6,data!$A$5:$AI$2227,24,0),"") ->  | H144: =IFERROR(VLOOKUP(ROW()-6,data!$A$5:$AI$2227,19,0),"") ->  | I144: =IFERROR(VLOOKUP(ROW()-6,data!$A$5:$AI$2227,10,0),"") ->  | J144: =IFERROR(VLOOKUP(ROW()-6,data!$A$5:$AI$2227,14,0),"") ->  | K144: =IFERROR(VLOOKUP(ROW()-6,data!$A$5:$AI$2227,12,0),"") ->  | L144: =IFERROR(VLOOKUP(ROW()-6,data!$A$5:$AI$2227,18,0),"") ->  | M144: =IFERROR(VLOOKUP(ROW()-6,data!$A$5:$AI$2227,21,0),"") -> 
A145: =IFERROR(VLOOKUP(ROW()-6,data!$A$5:$AI$2227,4,0),"") ->  | B145: =IFERROR(VLOOKUP(ROW()-6,data!$A$5:$AI$2227,6,0),"") ->  | C145: =IFERROR(VLOOKUP(ROW()-6,data!$A$5:$AI$2227,20,0),"") ->  | D145: =IFERROR(VLOOKUP(ROW()-6,data!$A$5:$AI$2227,29,0),"") ->  | E145: =IFERROR(VLOOKUP(ROW()-6,data!$A$5:$AI$2227,31,0),"") ->  | F145: =IFERROR(VLOOKUP(ROW()-6,data!$A$5:$AI$2227,27,0),"") ->  | G145: =IFERROR(VLOOKUP(ROW()-6,data!$A$5:$AI$2227,24,0),"") ->  | H145: =IFERROR(VLOOKUP(ROW()-6,data!$A$5:$AI$2227,19,0),"") ->  | I145: =IFERROR(VLOOKUP(ROW()-6,data!$A$5:$AI$2227,10,0),"") ->  | J145: =IFERROR(VLOOKUP(ROW()-6,data!$A$5:$AI$2227,14,0),"") ->  | K145: =IFERROR(VLOOKUP(ROW()-6,data!$A$5:$AI$2227,12,0),"") ->  | L145: =IFERROR(VLOOKUP(ROW()-6,data!$A$5:$AI$2227,18,0),"") ->  | M145: =IFERROR(VLOOKUP(ROW()-6,data!$A$5:$AI$2227,21,0),"") -> 
A146: =IFERROR(VLOOKUP(ROW()-6,data!$A$5:$AI$2227,4,0),"") ->  | B146: =IFERROR(VLOOKUP(ROW()-6,data!$A$5:$AI$2227,6,0),"") ->  | C146: =IFERROR(VLOOKUP(ROW()-6,data!$A$5:$AI$2227,20,0),"") ->  | D146: =IFERROR(VLOOKUP(ROW()-6,data!$A$5:$AI$2227,29,0),"") ->  | E146: =IFERROR(VLOOKUP(ROW()-6,data!$A$5:$AI$2227,31,0),"") ->  | F146: =IFERROR(VLOOKUP(ROW()-6,data!$A$5:$AI$2227,27,0),"") ->  | G146: =IFERROR(VLOOKUP(ROW()-6,data!$A$5:$AI$2227,24,0),"") ->  | H146: =IFERROR(VLOOKUP(ROW()-6,data!$A$5:$AI$2227,19,0),"") ->  | I146: =IFERROR(VLOOKUP(ROW()-6,data!$A$5:$AI$2227,10,0),"") ->  | J146: =IFERROR(VLOOKUP(ROW()-6,data!$A$5:$AI$2227,14,0),"") ->  | K146: =IFERROR(VLOOKUP(ROW()-6,data!$A$5:$AI$2227,12,0),"") ->  | L146: =IFERROR(VLOOKUP(ROW()-6,data!$A$5:$AI$2227,18,0),"") ->  | M146: =IFERROR(VLOOKUP(ROW()-6,data!$A$5:$AI$2227,21,0),"") -> 
A147: =IFERROR(VLOOKUP(ROW()-6,data!$A$5:$AI$2227,4,0),"") ->  | B147: =IFERROR(VLOOKUP(ROW()-6,data!$A$5:$AI$2227,6,0),"") ->  | C147: =IFERROR(VLOOKUP(ROW()-6,data!$A$5:$AI$2227,20,0),"") ->  | D147: =IFERROR(VLOOKUP(ROW()-6,data!$A$5:$AI$2227,29,0),"") ->  | E147: =IFERROR(VLOOKUP(ROW()-6,data!$A$5:$AI$2227,31,0),"") ->  | F147: =IFERROR(VLOOKUP(ROW()-6,data!$A$5:$AI$2227,27,0),"") ->  | G147: =IFERROR(VLOOKUP(ROW()-6,data!$A$5:$AI$2227,24,0),"") ->  | H147: =IFERROR(VLOOKUP(ROW()-6,data!$A$5:$AI$2227,19,0),"") ->  | I147: =IFERROR(VLOOKUP(ROW()-6,data!$A$5:$AI$2227,10,0),"") ->  | J147: =IFERROR(VLOOKUP(ROW()-6,data!$A$5:$AI$2227,14,0),"") ->  | K147: =IFERROR(VLOOKUP(ROW()-6,data!$A$5:$AI$2227,12,0),"") ->  | L147: =IFERROR(VLOOKUP(ROW()-6,data!$A$5:$AI$2227,18,0),"") ->  | M147: =IFERROR(VLOOKUP(ROW()-6,data!$A$5:$AI$2227,21,0),"") -> 
A148: =IFERROR(VLOOKUP(ROW()-6,data!$A$5:$AI$2227,4,0),"") ->  | B148: =IFERROR(VLOOKUP(ROW()-6,data!$A$5:$AI$2227,6,0),"") ->  | C148: =IFERROR(VLOOKUP(ROW()-6,data!$A$5:$AI$2227,20,0),"") ->  | D148: =IFERROR(VLOOKUP(ROW()-6,data!$A$5:$AI$2227,29,0),"") ->  | E148: =IFERROR(VLOOKUP(ROW()-6,data!$A$5:$AI$2227,31,0),"") ->  | F148: =IFERROR(VLOOKUP(ROW()-6,data!$A$5:$AI$2227,27,0),"") ->  | G148: =IFERROR(VLOOKUP(ROW()-6,data!$A$5:$AI$2227,24,0),"") ->  | H148: =IFERROR(VLOOKUP(ROW()-6,data!$A$5:$AI$2227,19,0),"") ->  | I148: =IFERROR(VLOOKUP(ROW()-6,data!$A$5:$AI$2227,10,0),"") ->  | J148: =IFERROR(VLOOKUP(ROW()-6,data!$A$5:$AI$2227,14,0),"") ->  | K148: =IFERROR(VLOOKUP(ROW()-6,data!$A$5:$AI$2227,12,0),"") ->  | L148: =IFERROR(VLOOKUP(ROW()-6,data!$A$5:$AI$2227,18,0),"") ->  | M148: =IFERROR(VLOOKUP(ROW()-6,data!$A$5:$AI$2227,21,0),"") -> 
A149: =IFERROR(VLOOKUP(ROW()-6,data!$A$5:$AI$2227,4,0),"") ->  | B149: =IFERROR(VLOOKUP(ROW()-6,data!$A$5:$AI$2227,6,0),"") ->  | C149: =IFERROR(VLOOKUP(ROW()-6,data!$A$5:$AI$2227,20,0),"") ->  | D149: =IFERROR(VLOOKUP(ROW()-6,data!$A$5:$AI$2227,29,0),"") ->  | E149: =IFERROR(VLOOKUP(ROW()-6,data!$A$5:$AI$2227,31,0),"") ->  | F149: =IFERROR(VLOOKUP(ROW()-6,data!$A$5:$AI$2227,27,0),"") ->  | G149: =IFERROR(VLOOKUP(ROW()-6,data!$A$5:$AI$2227,24,0),"") ->  | H149: =IFERROR(VLOOKUP(ROW()-6,data!$A$5:$AI$2227,19,0),"") ->  | I149: =IFERROR(VLOOKUP(ROW()-6,data!$A$5:$AI$2227,10,0),"") ->  | J149: =IFERROR(VLOOKUP(ROW()-6,data!$A$5:$AI$2227,14,0),"") ->  | K149: =IFERROR(VLOOKUP(ROW()-6,data!$A$5:$AI$2227,12,0),"") ->  | L149: =IFERROR(VLOOKUP(ROW()-6,data!$A$5:$AI$2227,18,0),"") ->  | M149: =IFERROR(VLOOKUP(ROW()-6,data!$A$5:$AI$2227,21,0),"") -> 
A150: =IFERROR(VLOOKUP(ROW()-6,data!$A$5:$AI$2227,4,0),"") ->  | B150: =IFERROR(VLOOKUP(ROW()-6,data!$A$5:$AI$2227,6,0),"") ->  | C150: =IFERROR(VLOOKUP(ROW()-6,data!$A$5:$AI$2227,20,0),"") ->  | D150: =IFERROR(VLOOKUP(ROW()-6,data!$A$5:$AI$2227,29,0),"") ->  | E150: =IFERROR(VLOOKUP(ROW()-6,data!$A$5:$AI$2227,31,0),"") ->  | F150: =IFERROR(VLOOKUP(ROW()-6,data!$A$5:$AI$2227,27,0),"") ->  | G150: =IFERROR(VLOOKUP(ROW()-6,data!$A$5:$AI$2227,24,0),"") ->  | H150: =IFERROR(VLOOKUP(ROW()-6,data!$A$5:$AI$2227,19,0),"") ->  | I150: =IFERROR(VLOOKUP(ROW()-6,data!$A$5:$AI$2227,10,0),"") ->  | J150: =IFERROR(VLOOKUP(ROW()-6,data!$A$5:$AI$2227,14,0),"") ->  | K150: =IFERROR(VLOOKUP(ROW()-6,data!$A$5:$AI$2227,12,0),"") ->  | L150: =IFERROR(VLOOKUP(ROW()-6,data!$A$5:$AI$2227,18,0),"") ->  | M150: =IFERROR(VLOOKUP(ROW()-6,data!$A$5:$AI$2227,21,0),"") -> 
A151: =IFERROR(VLOOKUP(ROW()-6,data!$A$5:$AI$2227,4,0),"") ->  | B151: =IFERROR(VLOOKUP(ROW()-6,data!$A$5:$AI$2227,6,0),"") ->  | C151: =IFERROR(VLOOKUP(ROW()-6,data!$A$5:$AI$2227,20,0),"") ->  | D151: =IFERROR(VLOOKUP(ROW()-6,data!$A$5:$AI$2227,29,0),"") ->  | E151: =IFERROR(VLOOKUP(ROW()-6,data!$A$5:$AI$2227,31,0),"") ->  | F151: =IFERROR(VLOOKUP(ROW()-6,data!$A$5:$AI$2227,27,0),"") ->  | G151: =IFERROR(VLOOKUP(ROW()-6,data!$A$5:$AI$2227,24,0),"") ->  | H151: =IFERROR(VLOOKUP(ROW()-6,data!$A$5:$AI$2227,19,0),"") ->  | I151: =IFERROR(VLOOKUP(ROW()-6,data!$A$5:$AI$2227,10,0),"") ->  | J151: =IFERROR(VLOOKUP(ROW()-6,data!$A$5:$AI$2227,14,0),"") ->  | K151: =IFERROR(VLOOKUP(ROW()-6,data!$A$5:$AI$2227,12,0),"") ->  | L151: =IFERROR(VLOOKUP(ROW()-6,data!$A$5:$AI$2227,18,0),"") ->  | M151: =IFERROR(VLOOKUP(ROW()-6,data!$A$5:$AI$2227,21,0),"") -> 
A152: =IFERROR(VLOOKUP(ROW()-6,data!$A$5:$AI$2227,4,0),"") ->  | B152: =IFERROR(VLOOKUP(ROW()-6,data!$A$5:$AI$2227,6,0),"") ->  | C152: =IFERROR(VLOOKUP(ROW()-6,data!$A$5:$AI$2227,20,0),"") ->  | D152: =IFERROR(VLOOKUP(ROW()-6,data!$A$5:$AI$2227,29,0),"") ->  | E152: =IFERROR(VLOOKUP(ROW()-6,data!$A$5:$AI$2227,31,0),"") ->  | F152: =IFERROR(VLOOKUP(ROW()-6,data!$A$5:$AI$2227,27,0),"") ->  | G152: =IFERROR(VLOOKUP(ROW()-6,data!$A$5:$AI$2227,24,0),"") ->  | H152: =IFERROR(VLOOKUP(ROW()-6,data!$A$5:$AI$2227,19,0),"") ->  | I152: =IFERROR(VLOOKUP(ROW()-6,data!$A$5:$AI$2227,10,0),"") ->  | J152: =IFERROR(VLOOKUP(ROW()-6,data!$A$5:$AI$2227,14,0),"") ->  | K152: =IFERROR(VLOOKUP(ROW()-6,data!$A$5:$AI$2227,12,0),"") ->  | L152: =IFERROR(VLOOKUP(ROW()-6,data!$A$5:$AI$2227,18,0),"") ->  | M152: =IFERROR(VLOOKUP(ROW()-6,data!$A$5:$AI$2227,21,0),"") -> 
A153: =IFERROR(VLOOKUP(ROW()-6,data!$A$5:$AI$2227,4,0),"") ->  | B153: =IFERROR(VLOOKUP(ROW()-6,data!$A$5:$AI$2227,6,0),"") ->  | C153: =IFERROR(VLOOKUP(ROW()-6,data!$A$5:$AI$2227,20,0),"") ->  | D153: =IFERROR(VLOOKUP(ROW()-6,data!$A$5:$AI$2227,29,0),"") ->  | E153: =IFERROR(VLOOKUP(ROW()-6,data!$A$5:$AI$2227,31,0),"") ->  | F153: =IFERROR(VLOOKUP(ROW()-6,data!$A$5:$AI$2227,27,0),"") ->  | G153: =IFERROR(VLOOKUP(ROW()-6,data!$A$5:$AI$2227,24,0),"") ->  | H153: =IFERROR(VLOOKUP(ROW()-6,data!$A$5:$AI$2227,19,0),"") ->  | I153: =IFERROR(VLOOKUP(ROW()-6,data!$A$5:$AI$2227,10,0),"") ->  | J153: =IFERROR(VLOOKUP(ROW()-6,data!$A$5:$AI$2227,14,0),"") ->  | K153: =IFERROR(VLOOKUP(ROW()-6,data!$A$5:$AI$2227,12,0),"") ->  | L153: =IFERROR(VLOOKUP(ROW()-6,data!$A$5:$AI$2227,18,0),"") ->  | M153: =IFERROR(VLOOKUP(ROW()-6,data!$A$5:$AI$2227,21,0),"") -> 
A154: =IFERROR(VLOOKUP(ROW()-6,data!$A$5:$AI$2227,4,0),"") ->  | B154: =IFERROR(VLOOKUP(ROW()-6,data!$A$5:$AI$2227,6,0),"") ->  | C154: =IFERROR(VLOOKUP(ROW()-6,data!$A$5:$AI$2227,20,0),"") ->  | D154: =IFERROR(VLOOKUP(ROW()-6,data!$A$5:$AI$2227,29,0),"") ->  | E154: =IFERROR(VLOOKUP(ROW()-6,data!$A$5:$AI$2227,31,0),"") ->  | F154: =IFERROR(VLOOKUP(ROW()-6,data!$A$5:$AI$2227,27,0),"") ->  | G154: =IFERROR(VLOOKUP(ROW()-6,data!$A$5:$AI$2227,24,0),"") ->  | H154: =IFERROR(VLOOKUP(ROW()-6,data!$A$5:$AI$2227,19,0),"") ->  | I154: =IFERROR(VLOOKUP(ROW()-6,data!$A$5:$AI$2227,10,0),"") ->  | J154: =IFERROR(VLOOKUP(ROW()-6,data!$A$5:$AI$2227,14,0),"") ->  | K154: =IFERROR(VLOOKUP(ROW()-6,data!$A$5:$AI$2227,12,0),"") ->  | L154: =IFERROR(VLOOKUP(ROW()-6,data!$A$5:$AI$2227,18,0),"") ->  | M154: =IFERROR(VLOOKUP(ROW()-6,data!$A$5:$AI$2227,21,0),"") -> 
A155: =IFERROR(VLOOKUP(ROW()-6,data!$A$5:$AI$2227,4,0),"") ->  | B155: =IFERROR(VLOOKUP(ROW()-6,data!$A$5:$AI$2227,6,0),"") ->  | C155: =IFERROR(VLOOKUP(ROW()-6,data!$A$5:$AI$2227,20,0),"") ->  | D155: =IFERROR(VLOOKUP(ROW()-6,data!$A$5:$AI$2227,29,0),"") ->  | E155: =IFERROR(VLOOKUP(ROW()-6,data!$A$5:$AI$2227,31,0),"") ->  | F155: =IFERROR(VLOOKUP(ROW()-6,data!$A$5:$AI$2227,27,0),"") ->  | G155: =IFERROR(VLOOKUP(ROW()-6,data!$A$5:$AI$2227,24,0),"") ->  | H155: =IFERROR(VLOOKUP(ROW()-6,data!$A$5:$AI$2227,19,0),"") ->  | I155: =IFERROR(VLOOKUP(ROW()-6,data!$A$5:$AI$2227,10,0),"") ->  | J155: =IFERROR(VLOOKUP(ROW()-6,data!$A$5:$AI$2227,14,0),"") ->  | K155: =IFERROR(VLOOKUP(ROW()-6,data!$A$5:$AI$2227,12,0),"") ->  | L155: =IFERROR(VLOOKUP(ROW()-6,data!$A$5:$AI$2227,18,0),"") ->  | M155: =IFERROR(VLOOKUP(ROW()-6,data!$A$5:$AI$2227,21,0),"") -> 
A156: =IFERROR(VLOOKUP(ROW()-6,data!$A$5:$AI$2227,4,0),"") ->  | B156: =IFERROR(VLOOKUP(ROW()-6,data!$A$5:$AI$2227,6,0),"") ->  | C156: =IFERROR(VLOOKUP(ROW()-6,data!$A$5:$AI$2227,20,0),"") ->  | D156: =IFERROR(VLOOKUP(ROW()-6,data!$A$5:$AI$2227,29,0),"") ->  | E156: =IFERROR(VLOOKUP(ROW()-6,data!$A$5:$AI$2227,31,0),"") ->  | F156: =IFERROR(VLOOKUP(ROW()-6,data!$A$5:$AI$2227,27,0),"") ->  | G156: =IFERROR(VLOOKUP(ROW()-6,data!$A$5:$AI$2227,24,0),"") ->  | H156: =IFERROR(VLOOKUP(ROW()-6,data!$A$5:$AI$2227,19,0),"") ->  | I156: =IFERROR(VLOOKUP(ROW()-6,data!$A$5:$AI$2227,10,0),"") ->  | J156: =IFERROR(VLOOKUP(ROW()-6,data!$A$5:$AI$2227,14,0),"") ->  | K156: =IFERROR(VLOOKUP(ROW()-6,data!$A$5:$AI$2227,12,0),"") ->  | L156: =IFERROR(VLOOKUP(ROW()-6,data!$A$5:$AI$2227,18,0),"") ->  | M156: =IFERROR(VLOOKUP(ROW()-6,data!$A$5:$AI$2227,21,0),"") -> 
A157: =IFERROR(VLOOKUP(ROW()-6,data!$A$5:$AI$2227,4,0),"") ->  | B157: =IFERROR(VLOOKUP(ROW()-6,data!$A$5:$AI$2227,6,0),"") ->  | C157: =IFERROR(VLOOKUP(ROW()-6,data!$A$5:$AI$2227,20,0),"") ->  | D157: =IFERROR(VLOOKUP(ROW()-6,data!$A$5:$AI$2227,29,0),"") ->  | E157: =IFERROR(VLOOKUP(ROW()-6,data!$A$5:$AI$2227,31,0),"") ->  | F157: =IFERROR(VLOOKUP(ROW()-6,data!$A$5:$AI$2227,27,0),"") ->  | G157: =IFERROR(VLOOKUP(ROW()-6,data!$A$5:$AI$2227,24,0),"") ->  | H157: =IFERROR(VLOOKUP(ROW()-6,data!$A$5:$AI$2227,19,0),"") ->  | I157: =IFERROR(VLOOKUP(ROW()-6,data!$A$5:$AI$2227,10,0),"") ->  | J157: =IFERROR(VLOOKUP(ROW()-6,data!$A$5:$AI$2227,14,0),"") ->  | K157: =IFERROR(VLOOKUP(ROW()-6,data!$A$5:$AI$2227,12,0),"") ->  | L157: =IFERROR(VLOOKUP(ROW()-6,data!$A$5:$AI$2227,18,0),"") ->  | M157: =IFERROR(VLOOKUP(ROW()-6,data!$A$5:$AI$2227,21,0),"") -> 
A158: =IFERROR(VLOOKUP(ROW()-6,data!$A$5:$AI$2227,4,0),"") ->  | B158: =IFERROR(VLOOKUP(ROW()-6,data!$A$5:$AI$2227,6,0),"") ->  | C158: =IFERROR(VLOOKUP(ROW()-6,data!$A$5:$AI$2227,20,0),"") ->  | D158: =IFERROR(VLOOKUP(ROW()-6,data!$A$5:$AI$2227,29,0),"") ->  | E158: =IFERROR(VLOOKUP(ROW()-6,data!$A$5:$AI$2227,31,0),"") ->  | F158: =IFERROR(VLOOKUP(ROW()-6,data!$A$5:$AI$2227,27,0),"") ->  | G158: =IFERROR(VLOOKUP(ROW()-6,data!$A$5:$AI$2227,24,0),"") ->  | H158: =IFERROR(VLOOKUP(ROW()-6,data!$A$5:$AI$2227,19,0),"") ->  | I158: =IFERROR(VLOOKUP(ROW()-6,data!$A$5:$AI$2227,10,0),"") ->  | J158: =IFERROR(VLOOKUP(ROW()-6,data!$A$5:$AI$2227,14,0),"") ->  | K158: =IFERROR(VLOOKUP(ROW()-6,data!$A$5:$AI$2227,12,0),"") ->  | L158: =IFERROR(VLOOKUP(ROW()-6,data!$A$5:$AI$2227,18,0),"") ->  | M158: =IFERROR(VLOOKUP(ROW()-6,data!$A$5:$AI$2227,21,0),"") -> 
A159: =IFERROR(VLOOKUP(ROW()-6,data!$A$5:$AI$2227,4,0),"") ->  | B159: =IFERROR(VLOOKUP(ROW()-6,data!$A$5:$AI$2227,6,0),"") ->  | C159: =IFERROR(VLOOKUP(ROW()-6,data!$A$5:$AI$2227,20,0),"") ->  | D159: =IFERROR(VLOOKUP(ROW()-6,data!$A$5:$AI$2227,29,0),"") ->  | E159: =IFERROR(VLOOKUP(ROW()-6,data!$A$5:$AI$2227,31,0),"") ->  | F159: =IFERROR(VLOOKUP(ROW()-6,data!$A$5:$AI$2227,27,0),"") ->  | G159: =IFERROR(VLOOKUP(ROW()-6,data!$A$5:$AI$2227,24,0),"") ->  | H159: =IFERROR(VLOOKUP(ROW()-6,data!$A$5:$AI$2227,19,0),"") ->  | I159: =IFERROR(VLOOKUP(ROW()-6,data!$A$5:$AI$2227,10,0),"") ->  | J159: =IFERROR(VLOOKUP(ROW()-6,data!$A$5:$AI$2227,14,0),"") ->  | K159: =IFERROR(VLOOKUP(ROW()-6,data!$A$5:$AI$2227,12,0),"") ->  | L159: =IFERROR(VLOOKUP(ROW()-6,data!$A$5:$AI$2227,18,0),"") ->  | M159: =IFERROR(VLOOKUP(ROW()-6,data!$A$5:$AI$2227,21,0),"") -> 
A160: =IFERROR(VLOOKUP(ROW()-6,data!$A$5:$AI$2227,4,0),"") ->  | B160: =IFERROR(VLOOKUP(ROW()-6,data!$A$5:$AI$2227,6,0),"") ->  | C160: =IFERROR(VLOOKUP(ROW()-6,data!$A$5:$AI$2227,20,0),"") ->  | D160: =IFERROR(VLOOKUP(ROW()-6,data!$A$5:$AI$2227,29,0),"") ->  | E160: =IFERROR(VLOOKUP(ROW()-6,data!$A$5:$AI$2227,31,0),"") ->  | F160: =IFERROR(VLOOKUP(ROW()-6,data!$A$5:$AI$2227,27,0),"") ->  | G160: =IFERROR(VLOOKUP(ROW()-6,data!$A$5:$AI$2227,24,0),"") ->  | H160: =IFERROR(VLOOKUP(ROW()-6,data!$A$5:$AI$2227,19,0),"") ->  | I160: =IFERROR(VLOOKUP(ROW()-6,data!$A$5:$AI$2227,10,0),"") ->  | J160: =IFERROR(VLOOKUP(ROW()-6,data!$A$5:$AI$2227,14,0),"") ->  | K160: =IFERROR(VLOOKUP(ROW()-6,data!$A$5:$AI$2227,12,0),"") ->  | L160: =IFERROR(VLOOKUP(ROW()-6,data!$A$5:$AI$2227,18,0),"") ->  | M160: =IFERROR(VLOOKUP(ROW()-6,data!$A$5:$AI$2227,21,0),"") -> 
A161: =IFERROR(VLOOKUP(ROW()-6,data!$A$5:$AI$2227,4,0),"") ->  | B161: =IFERROR(VLOOKUP(ROW()-6,data!$A$5:$AI$2227,6,0),"") ->  | C161: =IFERROR(VLOOKUP(ROW()-6,data!$A$5:$AI$2227,20,0),"") ->  | D161: =IFERROR(VLOOKUP(ROW()-6,data!$A$5:$AI$2227,29,0),"") ->  | E161: =IFERROR(VLOOKUP(ROW()-6,data!$A$5:$AI$2227,31,0),"") ->  | F161: =IFERROR(VLOOKUP(ROW()-6,data!$A$5:$AI$2227,27,0),"") ->  | G161: =IFERROR(VLOOKUP(ROW()-6,data!$A$5:$AI$2227,24,0),"") ->  | H161: =IFERROR(VLOOKUP(ROW()-6,data!$A$5:$AI$2227,19,0),"") ->  | I161: =IFERROR(VLOOKUP(ROW()-6,data!$A$5:$AI$2227,10,0),"") ->  | J161: =IFERROR(VLOOKUP(ROW()-6,data!$A$5:$AI$2227,14,0),"") ->  | K161: =IFERROR(VLOOKUP(ROW()-6,data!$A$5:$AI$2227,12,0),"") ->  | L161: =IFERROR(VLOOKUP(ROW()-6,data!$A$5:$AI$2227,18,0),"") ->  | M161: =IFERROR(VLOOKUP(ROW()-6,data!$A$5:$AI$2227,21,0),"") -> 
A162: =IFERROR(VLOOKUP(ROW()-6,data!$A$5:$AI$2227,4,0),"") ->  | B162: =IFERROR(VLOOKUP(ROW()-6,data!$A$5:$AI$2227,6,0),"") ->  | C162: =IFERROR(VLOOKUP(ROW()-6,data!$A$5:$AI$2227,20,0),"") ->  | D162: =IFERROR(VLOOKUP(ROW()-6,data!$A$5:$AI$2227,29,0),"") ->  | E162: =IFERROR(VLOOKUP(ROW()-6,data!$A$5:$AI$2227,31,0),"") ->  | F162: =IFERROR(VLOOKUP(ROW()-6,data!$A$5:$AI$2227,27,0),"") ->  | G162: =IFERROR(VLOOKUP(ROW()-6,data!$A$5:$AI$2227,24,0),"") ->  | H162: =IFERROR(VLOOKUP(ROW()-6,data!$A$5:$AI$2227,19,0),"") ->  | I162: =IFERROR(VLOOKUP(ROW()-6,data!$A$5:$AI$2227,10,0),"") ->  | J162: =IFERROR(VLOOKUP(ROW()-6,data!$A$5:$AI$2227,14,0),"") ->  | K162: =IFERROR(VLOOKUP(ROW()-6,data!$A$5:$AI$2227,12,0),"") ->  | L162: =IFERROR(VLOOKUP(ROW()-6,data!$A$5:$AI$2227,18,0),"") ->  | M162: =IFERROR(VLOOKUP(ROW()-6,data!$A$5:$AI$2227,21,0),"") -> 
A163: =IFERROR(VLOOKUP(ROW()-6,data!$A$5:$AI$2227,4,0),"") ->  | B163: =IFERROR(VLOOKUP(ROW()-6,data!$A$5:$AI$2227,6,0),"") ->  | C163: =IFERROR(VLOOKUP(ROW()-6,data!$A$5:$AI$2227,20,0),"") ->  | D163: =IFERROR(VLOOKUP(ROW()-6,data!$A$5:$AI$2227,29,0),"") ->  | E163: =IFERROR(VLOOKUP(ROW()-6,data!$A$5:$AI$2227,31,0),"") ->  | F163: =IFERROR(VLOOKUP(ROW()-6,data!$A$5:$AI$2227,27,0),"") ->  | G163: =IFERROR(VLOOKUP(ROW()-6,data!$A$5:$AI$2227,24,0),"") ->  | H163: =IFERROR(VLOOKUP(ROW()-6,data!$A$5:$AI$2227,19,0),"") ->  | I163: =IFERROR(VLOOKUP(ROW()-6,data!$A$5:$AI$2227,10,0),"") ->  | J163: =IFERROR(VLOOKUP(ROW()-6,data!$A$5:$AI$2227,14,0),"") ->  | K163: =IFERROR(VLOOKUP(ROW()-6,data!$A$5:$AI$2227,12,0),"") ->  | L163: =IFERROR(VLOOKUP(ROW()-6,data!$A$5:$AI$2227,18,0),"") ->  | M163: =IFERROR(VLOOKUP(ROW()-6,data!$A$5:$AI$2227,21,0),"") -> 
A164: =IFERROR(VLOOKUP(ROW()-6,data!$A$5:$AI$2227,4,0),"") ->  | B164: =IFERROR(VLOOKUP(ROW()-6,data!$A$5:$AI$2227,6,0),"") ->  | C164: =IFERROR(VLOOKUP(ROW()-6,data!$A$5:$AI$2227,20,0),"") ->  | D164: =IFERROR(VLOOKUP(ROW()-6,data!$A$5:$AI$2227,29,0),"") ->  | E164: =IFERROR(VLOOKUP(ROW()-6,data!$A$5:$AI$2227,31,0),"") ->  | F164: =IFERROR(VLOOKUP(ROW()-6,data!$A$5:$AI$2227,27,0),"") ->  | G164: =IFERROR(VLOOKUP(ROW()-6,data!$A$5:$AI$2227,24,0),"") ->  | H164: =IFERROR(VLOOKUP(ROW()-6,data!$A$5:$AI$2227,19,0),"") ->  | I164: =IFERROR(VLOOKUP(ROW()-6,data!$A$5:$AI$2227,10,0),"") ->  | J164: =IFERROR(VLOOKUP(ROW()-6,data!$A$5:$AI$2227,14,0),"") ->  | K164: =IFERROR(VLOOKUP(ROW()-6,data!$A$5:$AI$2227,12,0),"") ->  | L164: =IFERROR(VLOOKUP(ROW()-6,data!$A$5:$AI$2227,18,0),"") ->  | M164: =IFERROR(VLOOKUP(ROW()-6,data!$A$5:$AI$2227,21,0),"") -> 
A165: =IFERROR(VLOOKUP(ROW()-6,data!$A$5:$AI$2227,4,0),"") ->  | B165: =IFERROR(VLOOKUP(ROW()-6,data!$A$5:$AI$2227,6,0),"") ->  | C165: =IFERROR(VLOOKUP(ROW()-6,data!$A$5:$AI$2227,20,0),"") ->  | D165: =IFERROR(VLOOKUP(ROW()-6,data!$A$5:$AI$2227,29,0),"") ->  | E165: =IFERROR(VLOOKUP(ROW()-6,data!$A$5:$AI$2227,31,0),"") ->  | F165: =IFERROR(VLOOKUP(ROW()-6,data!$A$5:$AI$2227,27,0),"") ->  | G165: =IFERROR(VLOOKUP(ROW()-6,data!$A$5:$AI$2227,24,0),"") ->  | H165: =IFERROR(VLOOKUP(ROW()-6,data!$A$5:$AI$2227,19,0),"") ->  | I165: =IFERROR(VLOOKUP(ROW()-6,data!$A$5:$AI$2227,10,0),"") ->  | J165: =IFERROR(VLOOKUP(ROW()-6,data!$A$5:$AI$2227,14,0),"") ->  | K165: =IFERROR(VLOOKUP(ROW()-6,data!$A$5:$AI$2227,12,0),"") ->  | L165: =IFERROR(VLOOKUP(ROW()-6,data!$A$5:$AI$2227,18,0),"") ->  | M165: =IFERROR(VLOOKUP(ROW()-6,data!$A$5:$AI$2227,21,0),"") -> 
A166: =IFERROR(VLOOKUP(ROW()-6,data!$A$5:$AI$2227,4,0),"") ->  | B166: =IFERROR(VLOOKUP(ROW()-6,data!$A$5:$AI$2227,6,0),"") ->  | C166: =IFERROR(VLOOKUP(ROW()-6,data!$A$5:$AI$2227,20,0),"") ->  | D166: =IFERROR(VLOOKUP(ROW()-6,data!$A$5:$AI$2227,29,0),"") ->  | E166: =IFERROR(VLOOKUP(ROW()-6,data!$A$5:$AI$2227,31,0),"") ->  | F166: =IFERROR(VLOOKUP(ROW()-6,data!$A$5:$AI$2227,27,0),"") ->  | G166: =IFERROR(VLOOKUP(ROW()-6,data!$A$5:$AI$2227,24,0),"") ->  | H166: =IFERROR(VLOOKUP(ROW()-6,data!$A$5:$AI$2227,19,0),"") ->  | I166: =IFERROR(VLOOKUP(ROW()-6,data!$A$5:$AI$2227,10,0),"") ->  | J166: =IFERROR(VLOOKUP(ROW()-6,data!$A$5:$AI$2227,14,0),"") ->  | K166: =IFERROR(VLOOKUP(ROW()-6,data!$A$5:$AI$2227,12,0),"") ->  | L166: =IFERROR(VLOOKUP(ROW()-6,data!$A$5:$AI$2227,18,0),"") ->  | M166: =IFERROR(VLOOKUP(ROW()-6,data!$A$5:$AI$2227,21,0),"") -> 
A167: =IFERROR(VLOOKUP(ROW()-6,data!$A$5:$AI$2227,4,0),"") ->  | B167: =IFERROR(VLOOKUP(ROW()-6,data!$A$5:$AI$2227,6,0),"") ->  | C167: =IFERROR(VLOOKUP(ROW()-6,data!$A$5:$AI$2227,20,0),"") ->  | D167: =IFERROR(VLOOKUP(ROW()-6,data!$A$5:$AI$2227,29,0),"") ->  | E167: =IFERROR(VLOOKUP(ROW()-6,data!$A$5:$AI$2227,31,0),"") ->  | F167: =IFERROR(VLOOKUP(ROW()-6,data!$A$5:$AI$2227,27,0),"") ->  | G167: =IFERROR(VLOOKUP(ROW()-6,data!$A$5:$AI$2227,24,0),"") ->  | H167: =IFERROR(VLOOKUP(ROW()-6,data!$A$5:$AI$2227,19,0),"") ->  | I167: =IFERROR(VLOOKUP(ROW()-6,data!$A$5:$AI$2227,10,0),"") ->  | J167: =IFERROR(VLOOKUP(ROW()-6,data!$A$5:$AI$2227,14,0),"") ->  | K167: =IFERROR(VLOOKUP(ROW()-6,data!$A$5:$AI$2227,12,0),"") ->  | L167: =IFERROR(VLOOKUP(ROW()-6,data!$A$5:$AI$2227,18,0),"") ->  | M167: =IFERROR(VLOOKUP(ROW()-6,data!$A$5:$AI$2227,21,0),"") -> 
A168: =IFERROR(VLOOKUP(ROW()-6,data!$A$5:$AI$2227,4,0),"") ->  | B168: =IFERROR(VLOOKUP(ROW()-6,data!$A$5:$AI$2227,6,0),"") ->  | C168: =IFERROR(VLOOKUP(ROW()-6,data!$A$5:$AI$2227,20,0),"") ->  | D168: =IFERROR(VLOOKUP(ROW()-6,data!$A$5:$AI$2227,29,0),"") ->  | E168: =IFERROR(VLOOKUP(ROW()-6,data!$A$5:$AI$2227,31,0),"") ->  | F168: =IFERROR(VLOOKUP(ROW()-6,data!$A$5:$AI$2227,27,0),"") ->  | G168: =IFERROR(VLOOKUP(ROW()-6,data!$A$5:$AI$2227,24,0),"") ->  | H168: =IFERROR(VLOOKUP(ROW()-6,data!$A$5:$AI$2227,19,0),"") ->  | I168: =IFERROR(VLOOKUP(ROW()-6,data!$A$5:$AI$2227,10,0),"") ->  | J168: =IFERROR(VLOOKUP(ROW()-6,data!$A$5:$AI$2227,14,0),"") ->  | K168: =IFERROR(VLOOKUP(ROW()-6,data!$A$5:$AI$2227,12,0),"") ->  | L168: =IFERROR(VLOOKUP(ROW()-6,data!$A$5:$AI$2227,18,0),"") ->  | M168: =IFERROR(VLOOKUP(ROW()-6,data!$A$5:$AI$2227,21,0),"") -> 
A169: =IFERROR(VLOOKUP(ROW()-6,data!$A$5:$AI$2227,4,0),"") ->  | B169: =IFERROR(VLOOKUP(ROW()-6,data!$A$5:$AI$2227,6,0),"") ->  | C169: =IFERROR(VLOOKUP(ROW()-6,data!$A$5:$AI$2227,20,0),"") ->  | D169: =IFERROR(VLOOKUP(ROW()-6,data!$A$5:$AI$2227,29,0),"") ->  | E169: =IFERROR(VLOOKUP(ROW()-6,data!$A$5:$AI$2227,31,0),"") ->  | F169: =IFERROR(VLOOKUP(ROW()-6,data!$A$5:$AI$2227,27,0),"") ->  | G169: =IFERROR(VLOOKUP(ROW()-6,data!$A$5:$AI$2227,24,0),"") ->  | H169: =IFERROR(VLOOKUP(ROW()-6,data!$A$5:$AI$2227,19,0),"") ->  | I169: =IFERROR(VLOOKUP(ROW()-6,data!$A$5:$AI$2227,10,0),"") ->  | J169: =IFERROR(VLOOKUP(ROW()-6,data!$A$5:$AI$2227,14,0),"") ->  | K169: =IFERROR(VLOOKUP(ROW()-6,data!$A$5:$AI$2227,12,0),"") ->  | L169: =IFERROR(VLOOKUP(ROW()-6,data!$A$5:$AI$2227,18,0),"") ->  | M169: =IFERROR(VLOOKUP(ROW()-6,data!$A$5:$AI$2227,21,0),"") -> 
A170: =IFERROR(VLOOKUP(ROW()-6,data!$A$5:$AI$2227,4,0),"") ->  | B170: =IFERROR(VLOOKUP(ROW()-6,data!$A$5:$AI$2227,6,0),"") ->  | C170: =IFERROR(VLOOKUP(ROW()-6,data!$A$5:$AI$2227,20,0),"") ->  | D170: =IFERROR(VLOOKUP(ROW()-6,data!$A$5:$AI$2227,29,0),"") ->  | E170: =IFERROR(VLOOKUP(ROW()-6,data!$A$5:$AI$2227,31,0),"") ->  | F170: =IFERROR(VLOOKUP(ROW()-6,data!$A$5:$AI$2227,27,0),"") ->  | G170: =IFERROR(VLOOKUP(ROW()-6,data!$A$5:$AI$2227,24,0),"") ->  | H170: =IFERROR(VLOOKUP(ROW()-6,data!$A$5:$AI$2227,19,0),"") ->  | I170: =IFERROR(VLOOKUP(ROW()-6,data!$A$5:$AI$2227,10,0),"") ->  | J170: =IFERROR(VLOOKUP(ROW()-6,data!$A$5:$AI$2227,14,0),"") ->  | K170: =IFERROR(VLOOKUP(ROW()-6,data!$A$5:$AI$2227,12,0),"") ->  | L170: =IFERROR(VLOOKUP(ROW()-6,data!$A$5:$AI$2227,18,0),"") ->  | M170: =IFERROR(VLOOKUP(ROW()-6,data!$A$5:$AI$2227,21,0),"") -> 
A171: =IFERROR(VLOOKUP(ROW()-6,data!$A$5:$AI$2227,4,0),"") ->  | B171: =IFERROR(VLOOKUP(ROW()-6,data!$A$5:$AI$2227,6,0),"") ->  | C171: =IFERROR(VLOOKUP(ROW()-6,data!$A$5:$AI$2227,20,0),"") ->  | D171: =IFERROR(VLOOKUP(ROW()-6,data!$A$5:$AI$2227,29,0),"") ->  | E171: =IFERROR(VLOOKUP(ROW()-6,data!$A$5:$AI$2227,31,0),"") ->  | F171: =IFERROR(VLOOKUP(ROW()-6,data!$A$5:$AI$2227,27,0),"") ->  | G171: =IFERROR(VLOOKUP(ROW()-6,data!$A$5:$AI$2227,24,0),"") ->  | H171: =IFERROR(VLOOKUP(ROW()-6,data!$A$5:$AI$2227,19,0),"") ->  | I171: =IFERROR(VLOOKUP(ROW()-6,data!$A$5:$AI$2227,10,0),"") ->  | J171: =IFERROR(VLOOKUP(ROW()-6,data!$A$5:$AI$2227,14,0),"") ->  | K171: =IFERROR(VLOOKUP(ROW()-6,data!$A$5:$AI$2227,12,0),"") ->  | L171: =IFERROR(VLOOKUP(ROW()-6,data!$A$5:$AI$2227,18,0),"") ->  | M171: =IFERROR(VLOOKUP(ROW()-6,data!$A$5:$AI$2227,21,0),"") -> 
A172: =IFERROR(VLOOKUP(ROW()-6,data!$A$5:$AI$2227,4,0),"") ->  | B172: =IFERROR(VLOOKUP(ROW()-6,data!$A$5:$AI$2227,6,0),"") ->  | C172: =IFERROR(VLOOKUP(ROW()-6,data!$A$5:$AI$2227,20,0),"") ->  | D172: =IFERROR(VLOOKUP(ROW()-6,data!$A$5:$AI$2227,29,0),"") ->  | E172: =IFERROR(VLOOKUP(ROW()-6,data!$A$5:$AI$2227,31,0),"") ->  | F172: =IFERROR(VLOOKUP(ROW()-6,data!$A$5:$AI$2227,27,0),"") ->  | G172: =IFERROR(VLOOKUP(ROW()-6,data!$A$5:$AI$2227,24,0),"") ->  | H172: =IFERROR(VLOOKUP(ROW()-6,data!$A$5:$AI$2227,19,0),"") ->  | I172: =IFERROR(VLOOKUP(ROW()-6,data!$A$5:$AI$2227,10,0),"") ->  | J172: =IFERROR(VLOOKUP(ROW()-6,data!$A$5:$AI$2227,14,0),"") ->  | K172: =IFERROR(VLOOKUP(ROW()-6,data!$A$5:$AI$2227,12,0),"") ->  | L172: =IFERROR(VLOOKUP(ROW()-6,data!$A$5:$AI$2227,18,0),"") ->  | M172: =IFERROR(VLOOKUP(ROW()-6,data!$A$5:$AI$2227,21,0),"") -> 
A173: =IFERROR(VLOOKUP(ROW()-6,data!$A$5:$AI$2227,4,0),"") ->  | B173: =IFERROR(VLOOKUP(ROW()-6,data!$A$5:$AI$2227,6,0),"") ->  | C173: =IFERROR(VLOOKUP(ROW()-6,data!$A$5:$AI$2227,20,0),"") ->  | D173: =IFERROR(VLOOKUP(ROW()-6,data!$A$5:$AI$2227,29,0),"") ->  | E173: =IFERROR(VLOOKUP(ROW()-6,data!$A$5:$AI$2227,31,0),"") ->  | F173: =IFERROR(VLOOKUP(ROW()-6,data!$A$5:$AI$2227,27,0),"") ->  | G173: =IFERROR(VLOOKUP(ROW()-6,data!$A$5:$AI$2227,24,0),"") ->  | H173: =IFERROR(VLOOKUP(ROW()-6,data!$A$5:$AI$2227,19,0),"") ->  | I173: =IFERROR(VLOOKUP(ROW()-6,data!$A$5:$AI$2227,10,0),"") ->  | J173: =IFERROR(VLOOKUP(ROW()-6,data!$A$5:$AI$2227,14,0),"") ->  | K173: =IFERROR(VLOOKUP(ROW()-6,data!$A$5:$AI$2227,12,0),"") ->  | L173: =IFERROR(VLOOKUP(ROW()-6,data!$A$5:$AI$2227,18,0),"") ->  | M173: =IFERROR(VLOOKUP(ROW()-6,data!$A$5:$AI$2227,21,0),"") -> 
A174: =IFERROR(VLOOKUP(ROW()-6,data!$A$5:$AI$2227,4,0),"") ->  | B174: =IFERROR(VLOOKUP(ROW()-6,data!$A$5:$AI$2227,6,0),"") ->  | C174: =IFERROR(VLOOKUP(ROW()-6,data!$A$5:$AI$2227,20,0),"") ->  | D174: =IFERROR(VLOOKUP(ROW()-6,data!$A$5:$AI$2227,29,0),"") ->  | E174: =IFERROR(VLOOKUP(ROW()-6,data!$A$5:$AI$2227,31,0),"") ->  | F174: =IFERROR(VLOOKUP(ROW()-6,data!$A$5:$AI$2227,27,0),"") ->  | G174: =IFERROR(VLOOKUP(ROW()-6,data!$A$5:$AI$2227,24,0),"") ->  | H174: =IFERROR(VLOOKUP(ROW()-6,data!$A$5:$AI$2227,19,0),"") ->  | I174: =IFERROR(VLOOKUP(ROW()-6,data!$A$5:$AI$2227,10,0),"") ->  | J174: =IFERROR(VLOOKUP(ROW()-6,data!$A$5:$AI$2227,14,0),"") ->  | K174: =IFERROR(VLOOKUP(ROW()-6,data!$A$5:$AI$2227,12,0),"") ->  | L174: =IFERROR(VLOOKUP(ROW()-6,data!$A$5:$AI$2227,18,0),"") ->  | M174: =IFERROR(VLOOKUP(ROW()-6,data!$A$5:$AI$2227,21,0),"") -> 
A175: =IFERROR(VLOOKUP(ROW()-6,data!$A$5:$AI$2227,4,0),"") ->  | B175: =IFERROR(VLOOKUP(ROW()-6,data!$A$5:$AI$2227,6,0),"") ->  | C175: =IFERROR(VLOOKUP(ROW()-6,data!$A$5:$AI$2227,20,0),"") ->  | D175: =IFERROR(VLOOKUP(ROW()-6,data!$A$5:$AI$2227,29,0),"") ->  | E175: =IFERROR(VLOOKUP(ROW()-6,data!$A$5:$AI$2227,31,0),"") ->  | F175: =IFERROR(VLOOKUP(ROW()-6,data!$A$5:$AI$2227,27,0),"") ->  | G175: =IFERROR(VLOOKUP(ROW()-6,data!$A$5:$AI$2227,24,0),"") ->  | H175: =IFERROR(VLOOKUP(ROW()-6,data!$A$5:$AI$2227,19,0),"") ->  | I175: =IFERROR(VLOOKUP(ROW()-6,data!$A$5:$AI$2227,10,0),"") ->  | J175: =IFERROR(VLOOKUP(ROW()-6,data!$A$5:$AI$2227,14,0),"") ->  | K175: =IFERROR(VLOOKUP(ROW()-6,data!$A$5:$AI$2227,12,0),"") ->  | L175: =IFERROR(VLOOKUP(ROW()-6,data!$A$5:$AI$2227,18,0),"") ->  | M175: =IFERROR(VLOOKUP(ROW()-6,data!$A$5:$AI$2227,21,0),"") -> 
A176: =IFERROR(VLOOKUP(ROW()-6,data!$A$5:$AI$2227,4,0),"") ->  | B176: =IFERROR(VLOOKUP(ROW()-6,data!$A$5:$AI$2227,6,0),"") ->  | C176: =IFERROR(VLOOKUP(ROW()-6,data!$A$5:$AI$2227,20,0),"") ->  | D176: =IFERROR(VLOOKUP(ROW()-6,data!$A$5:$AI$2227,29,0),"") ->  | E176: =IFERROR(VLOOKUP(ROW()-6,data!$A$5:$AI$2227,31,0),"") ->  | F176: =IFERROR(VLOOKUP(ROW()-6,data!$A$5:$AI$2227,27,0),"") ->  | G176: =IFERROR(VLOOKUP(ROW()-6,data!$A$5:$AI$2227,24,0),"") ->  | H176: =IFERROR(VLOOKUP(ROW()-6,data!$A$5:$AI$2227,19,0),"") ->  | I176: =IFERROR(VLOOKUP(ROW()-6,data!$A$5:$AI$2227,10,0),"") ->  | J176: =IFERROR(VLOOKUP(ROW()-6,data!$A$5:$AI$2227,14,0),"") ->  | K176: =IFERROR(VLOOKUP(ROW()-6,data!$A$5:$AI$2227,12,0),"") ->  | L176: =IFERROR(VLOOKUP(ROW()-6,data!$A$5:$AI$2227,18,0),"") ->  | M176: =IFERROR(VLOOKUP(ROW()-6,data!$A$5:$AI$2227,21,0),"") -> 
A177: =IFERROR(VLOOKUP(ROW()-6,data!$A$5:$AI$2227,4,0),"") ->  | B177: =IFERROR(VLOOKUP(ROW()-6,data!$A$5:$AI$2227,6,0),"") ->  | C177: =IFERROR(VLOOKUP(ROW()-6,data!$A$5:$AI$2227,20,0),"") ->  | D177: =IFERROR(VLOOKUP(ROW()-6,data!$A$5:$AI$2227,29,0),"") ->  | E177: =IFERROR(VLOOKUP(ROW()-6,data!$A$5:$AI$2227,31,0),"") ->  | F177: =IFERROR(VLOOKUP(ROW()-6,data!$A$5:$AI$2227,27,0),"") ->  | G177: =IFERROR(VLOOKUP(ROW()-6,data!$A$5:$AI$2227,24,0),"") ->  | H177: =IFERROR(VLOOKUP(ROW()-6,data!$A$5:$AI$2227,19,0),"") ->  | I177: =IFERROR(VLOOKUP(ROW()-6,data!$A$5:$AI$2227,10,0),"") ->  | J177: =IFERROR(VLOOKUP(ROW()-6,data!$A$5:$AI$2227,14,0),"") ->  | K177: =IFERROR(VLOOKUP(ROW()-6,data!$A$5:$AI$2227,12,0),"") ->  | L177: =IFERROR(VLOOKUP(ROW()-6,data!$A$5:$AI$2227,18,0),"") ->  | M177: =IFERROR(VLOOKUP(ROW()-6,data!$A$5:$AI$2227,21,0),"") -> 
A178: =IFERROR(VLOOKUP(ROW()-6,data!$A$5:$AI$2227,4,0),"") ->  | B178: =IFERROR(VLOOKUP(ROW()-6,data!$A$5:$AI$2227,6,0),"") ->  | C178: =IFERROR(VLOOKUP(ROW()-6,data!$A$5:$AI$2227,20,0),"") ->  | D178: =IFERROR(VLOOKUP(ROW()-6,data!$A$5:$AI$2227,29,0),"") ->  | E178: =IFERROR(VLOOKUP(ROW()-6,data!$A$5:$AI$2227,31,0),"") ->  | F178: =IFERROR(VLOOKUP(ROW()-6,data!$A$5:$AI$2227,27,0),"") ->  | G178: =IFERROR(VLOOKUP(ROW()-6,data!$A$5:$AI$2227,24,0),"") ->  | H178: =IFERROR(VLOOKUP(ROW()-6,data!$A$5:$AI$2227,19,0),"") ->  | I178: =IFERROR(VLOOKUP(ROW()-6,data!$A$5:$AI$2227,10,0),"") ->  | J178: =IFERROR(VLOOKUP(ROW()-6,data!$A$5:$AI$2227,14,0),"") ->  | K178: =IFERROR(VLOOKUP(ROW()-6,data!$A$5:$AI$2227,12,0),"") ->  | L178: =IFERROR(VLOOKUP(ROW()-6,data!$A$5:$AI$2227,18,0),"") ->  | M178: =IFERROR(VLOOKUP(ROW()-6,data!$A$5:$AI$2227,21,0),"") -> 
A179: =IFERROR(VLOOKUP(ROW()-6,data!$A$5:$AI$2227,4,0),"") ->  | B179: =IFERROR(VLOOKUP(ROW()-6,data!$A$5:$AI$2227,6,0),"") ->  | C179: =IFERROR(VLOOKUP(ROW()-6,data!$A$5:$AI$2227,20,0),"") ->  | D179: =IFERROR(VLOOKUP(ROW()-6,data!$A$5:$AI$2227,29,0),"") ->  | E179: =IFERROR(VLOOKUP(ROW()-6,data!$A$5:$AI$2227,31,0),"") ->  | F179: =IFERROR(VLOOKUP(ROW()-6,data!$A$5:$AI$2227,27,0),"") ->  | G179: =IFERROR(VLOOKUP(ROW()-6,data!$A$5:$AI$2227,24,0),"") ->  | H179: =IFERROR(VLOOKUP(ROW()-6,data!$A$5:$AI$2227,19,0),"") ->  | I179: =IFERROR(VLOOKUP(ROW()-6,data!$A$5:$AI$2227,10,0),"") ->  | J179: =IFERROR(VLOOKUP(ROW()-6,data!$A$5:$AI$2227,14,0),"") ->  | K179: =IFERROR(VLOOKUP(ROW()-6,data!$A$5:$AI$2227,12,0),"") ->  | L179: =IFERROR(VLOOKUP(ROW()-6,data!$A$5:$AI$2227,18,0),"") ->  | M179: =IFERROR(VLOOKUP(ROW()-6,data!$A$5:$AI$2227,21,0),"") -> 
A180: =IFERROR(VLOOKUP(ROW()-6,data!$A$5:$AI$2227,4,0),"") ->  | B180: =IFERROR(VLOOKUP(ROW()-6,data!$A$5:$AI$2227,6,0),"") ->  | C180: =IFERROR(VLOOKUP(ROW()-6,data!$A$5:$AI$2227,20,0),"") ->  | D180: =IFERROR(VLOOKUP(ROW()-6,data!$A$5:$AI$2227,29,0),"") ->  | E180: =IFERROR(VLOOKUP(ROW()-6,data!$A$5:$AI$2227,31,0),"") ->  | F180: =IFERROR(VLOOKUP(ROW()-6,data!$A$5:$AI$2227,27,0),"") ->  | G180: =IFERROR(VLOOKUP(ROW()-6,data!$A$5:$AI$2227,24,0),"") ->  | H180: =IFERROR(VLOOKUP(ROW()-6,data!$A$5:$AI$2227,19,0),"") ->  | I180: =IFERROR(VLOOKUP(ROW()-6,data!$A$5:$AI$2227,10,0),"") ->  | J180: =IFERROR(VLOOKUP(ROW()-6,data!$A$5:$AI$2227,14,0),"") ->  | K180: =IFERROR(VLOOKUP(ROW()-6,data!$A$5:$AI$2227,12,0),"") ->  | L180: =IFERROR(VLOOKUP(ROW()-6,data!$A$5:$AI$2227,18,0),"") ->  | M180: =IFERROR(VLOOKUP(ROW()-6,data!$A$5:$AI$2227,21,0),"") -> 
A181: =IFERROR(VLOOKUP(ROW()-6,data!$A$5:$AI$2227,4,0),"") ->  | B181: =IFERROR(VLOOKUP(ROW()-6,data!$A$5:$AI$2227,6,0),"") ->  | C181: =IFERROR(VLOOKUP(ROW()-6,data!$A$5:$AI$2227,20,0),"") ->  | D181: =IFERROR(VLOOKUP(ROW()-6,data!$A$5:$AI$2227,29,0),"") ->  | E181: =IFERROR(VLOOKUP(ROW()-6,data!$A$5:$AI$2227,31,0),"") ->  | F181: =IFERROR(VLOOKUP(ROW()-6,data!$A$5:$AI$2227,27,0),"") ->  | G181: =IFERROR(VLOOKUP(ROW()-6,data!$A$5:$AI$2227,24,0),"") ->  | H181: =IFERROR(VLOOKUP(ROW()-6,data!$A$5:$AI$2227,19,0),"") ->  | I181: =IFERROR(VLOOKUP(ROW()-6,data!$A$5:$AI$2227,10,0),"") ->  | J181: =IFERROR(VLOOKUP(ROW()-6,data!$A$5:$AI$2227,14,0),"") ->  | K181: =IFERROR(VLOOKUP(ROW()-6,data!$A$5:$AI$2227,12,0),"") ->  | L181: =IFERROR(VLOOKUP(ROW()-6,data!$A$5:$AI$2227,18,0),"") ->  | M181: =IFERROR(VLOOKUP(ROW()-6,data!$A$5:$AI$2227,21,0),"") -> 
A182: =IFERROR(VLOOKUP(ROW()-6,data!$A$5:$AI$2227,4,0),"") ->  | B182: =IFERROR(VLOOKUP(ROW()-6,data!$A$5:$AI$2227,6,0),"") ->  | C182: =IFERROR(VLOOKUP(ROW()-6,data!$A$5:$AI$2227,20,0),"") ->  | D182: =IFERROR(VLOOKUP(ROW()-6,data!$A$5:$AI$2227,29,0),"") ->  | E182: =IFERROR(VLOOKUP(ROW()-6,data!$A$5:$AI$2227,31,0),"") ->  | F182: =IFERROR(VLOOKUP(ROW()-6,data!$A$5:$AI$2227,27,0),"") ->  | G182: =IFERROR(VLOOKUP(ROW()-6,data!$A$5:$AI$2227,24,0),"") ->  | H182: =IFERROR(VLOOKUP(ROW()-6,data!$A$5:$AI$2227,19,0),"") ->  | I182: =IFERROR(VLOOKUP(ROW()-6,data!$A$5:$AI$2227,10,0),"") ->  | J182: =IFERROR(VLOOKUP(ROW()-6,data!$A$5:$AI$2227,14,0),"") ->  | K182: =IFERROR(VLOOKUP(ROW()-6,data!$A$5:$AI$2227,12,0),"") ->  | L182: =IFERROR(VLOOKUP(ROW()-6,data!$A$5:$AI$2227,18,0),"") ->  | M182: =IFERROR(VLOOKUP(ROW()-6,data!$A$5:$AI$2227,21,0),"") -> 
A183: =IFERROR(VLOOKUP(ROW()-6,data!$A$5:$AI$2227,4,0),"") ->  | B183: =IFERROR(VLOOKUP(ROW()-6,data!$A$5:$AI$2227,6,0),"") ->  | C183: =IFERROR(VLOOKUP(ROW()-6,data!$A$5:$AI$2227,20,0),"") ->  | D183: =IFERROR(VLOOKUP(ROW()-6,data!$A$5:$AI$2227,29,0),"") ->  | E183: =IFERROR(VLOOKUP(ROW()-6,data!$A$5:$AI$2227,31,0),"") ->  | F183: =IFERROR(VLOOKUP(ROW()-6,data!$A$5:$AI$2227,27,0),"") ->  | G183: =IFERROR(VLOOKUP(ROW()-6,data!$A$5:$AI$2227,24,0),"") ->  | H183: =IFERROR(VLOOKUP(ROW()-6,data!$A$5:$AI$2227,19,0),"") ->  | I183: =IFERROR(VLOOKUP(ROW()-6,data!$A$5:$AI$2227,10,0),"") ->  | J183: =IFERROR(VLOOKUP(ROW()-6,data!$A$5:$AI$2227,14,0),"") ->  | K183: =IFERROR(VLOOKUP(ROW()-6,data!$A$5:$AI$2227,12,0),"") ->  | L183: =IFERROR(VLOOKUP(ROW()-6,data!$A$5:$AI$2227,18,0),"") ->  | M183: =IFERROR(VLOOKUP(ROW()-6,data!$A$5:$AI$2227,21,0),"") -> 
A184: =IFERROR(VLOOKUP(ROW()-6,data!$A$5:$AI$2227,4,0),"") ->  | B184: =IFERROR(VLOOKUP(ROW()-6,data!$A$5:$AI$2227,6,0),"") ->  | C184: =IFERROR(VLOOKUP(ROW()-6,data!$A$5:$AI$2227,20,0),"") ->  | D184: =IFERROR(VLOOKUP(ROW()-6,data!$A$5:$AI$2227,29,0),"") ->  | E184: =IFERROR(VLOOKUP(ROW()-6,data!$A$5:$AI$2227,31,0),"") ->  | F184: =IFERROR(VLOOKUP(ROW()-6,data!$A$5:$AI$2227,27,0),"") ->  | G184: =IFERROR(VLOOKUP(ROW()-6,data!$A$5:$AI$2227,24,0),"") ->  | H184: =IFERROR(VLOOKUP(ROW()-6,data!$A$5:$AI$2227,19,0),"") ->  | I184: =IFERROR(VLOOKUP(ROW()-6,data!$A$5:$AI$2227,10,0),"") ->  | J184: =IFERROR(VLOOKUP(ROW()-6,data!$A$5:$AI$2227,14,0),"") ->  | K184: =IFERROR(VLOOKUP(ROW()-6,data!$A$5:$AI$2227,12,0),"") ->  | L184: =IFERROR(VLOOKUP(ROW()-6,data!$A$5:$AI$2227,18,0),"") ->  | M184: =IFERROR(VLOOKUP(ROW()-6,data!$A$5:$AI$2227,21,0),"") -> 
A185: =IFERROR(VLOOKUP(ROW()-6,data!$A$5:$AI$2227,4,0),"") ->  | B185: =IFERROR(VLOOKUP(ROW()-6,data!$A$5:$AI$2227,6,0),"") ->  | C185: =IFERROR(VLOOKUP(ROW()-6,data!$A$5:$AI$2227,20,0),"") ->  | D185: =IFERROR(VLOOKUP(ROW()-6,data!$A$5:$AI$2227,29,0),"") ->  | E185: =IFERROR(VLOOKUP(ROW()-6,data!$A$5:$AI$2227,31,0),"") ->  | F185: =IFERROR(VLOOKUP(ROW()-6,data!$A$5:$AI$2227,27,0),"") ->  | G185: =IFERROR(VLOOKUP(ROW()-6,data!$A$5:$AI$2227,24,0),"") ->  | H185: =IFERROR(VLOOKUP(ROW()-6,data!$A$5:$AI$2227,19,0),"") ->  | I185: =IFERROR(VLOOKUP(ROW()-6,data!$A$5:$AI$2227,10,0),"") ->  | J185: =IFERROR(VLOOKUP(ROW()-6,data!$A$5:$AI$2227,14,0),"") ->  | K185: =IFERROR(VLOOKUP(ROW()-6,data!$A$5:$AI$2227,12,0),"") ->  | L185: =IFERROR(VLOOKUP(ROW()-6,data!$A$5:$AI$2227,18,0),"") ->  | M185: =IFERROR(VLOOKUP(ROW()-6,data!$A$5:$AI$2227,21,0),"") -> 
A186: =IFERROR(VLOOKUP(ROW()-6,data!$A$5:$AI$2227,4,0),"") ->  | B186: =IFERROR(VLOOKUP(ROW()-6,data!$A$5:$AI$2227,6,0),"") ->  | C186: =IFERROR(VLOOKUP(ROW()-6,data!$A$5:$AI$2227,20,0),"") ->  | D186: =IFERROR(VLOOKUP(ROW()-6,data!$A$5:$AI$2227,29,0),"") ->  | E186: =IFERROR(VLOOKUP(ROW()-6,data!$A$5:$AI$2227,31,0),"") ->  | F186: =IFERROR(VLOOKUP(ROW()-6,data!$A$5:$AI$2227,27,0),"") ->  | G186: =IFERROR(VLOOKUP(ROW()-6,data!$A$5:$AI$2227,24,0),"") ->  | H186: =IFERROR(VLOOKUP(ROW()-6,data!$A$5:$AI$2227,19,0),"") ->  | I186: =IFERROR(VLOOKUP(ROW()-6,data!$A$5:$AI$2227,10,0),"") ->  | J186: =IFERROR(VLOOKUP(ROW()-6,data!$A$5:$AI$2227,14,0),"") ->  | K186: =IFERROR(VLOOKUP(ROW()-6,data!$A$5:$AI$2227,12,0),"") ->  | L186: =IFERROR(VLOOKUP(ROW()-6,data!$A$5:$AI$2227,18,0),"") ->  | M186: =IFERROR(VLOOKUP(ROW()-6,data!$A$5:$AI$2227,21,0),"") -> 
A187: =IFERROR(VLOOKUP(ROW()-6,data!$A$5:$AI$2227,4,0),"") ->  | B187: =IFERROR(VLOOKUP(ROW()-6,data!$A$5:$AI$2227,6,0),"") ->  | C187: =IFERROR(VLOOKUP(ROW()-6,data!$A$5:$AI$2227,20,0),"") ->  | D187: =IFERROR(VLOOKUP(ROW()-6,data!$A$5:$AI$2227,29,0),"") ->  | E187: =IFERROR(VLOOKUP(ROW()-6,data!$A$5:$AI$2227,31,0),"") ->  | F187: =IFERROR(VLOOKUP(ROW()-6,data!$A$5:$AI$2227,27,0),"") ->  | G187: =IFERROR(VLOOKUP(ROW()-6,data!$A$5:$AI$2227,24,0),"") ->  | H187: =IFERROR(VLOOKUP(ROW()-6,data!$A$5:$AI$2227,19,0),"") ->  | I187: =IFERROR(VLOOKUP(ROW()-6,data!$A$5:$AI$2227,10,0),"") ->  | J187: =IFERROR(VLOOKUP(ROW()-6,data!$A$5:$AI$2227,14,0),"") ->  | K187: =IFERROR(VLOOKUP(ROW()-6,data!$A$5:$AI$2227,12,0),"") ->  | L187: =IFERROR(VLOOKUP(ROW()-6,data!$A$5:$AI$2227,18,0),"") ->  | M187: =IFERROR(VLOOKUP(ROW()-6,data!$A$5:$AI$2227,21,0),"") -> 
A188: =IFERROR(VLOOKUP(ROW()-6,data!$A$5:$AI$2227,4,0),"") ->  | B188: =IFERROR(VLOOKUP(ROW()-6,data!$A$5:$AI$2227,6,0),"") ->  | C188: =IFERROR(VLOOKUP(ROW()-6,data!$A$5:$AI$2227,20,0),"") ->  | D188: =IFERROR(VLOOKUP(ROW()-6,data!$A$5:$AI$2227,29,0),"") ->  | E188: =IFERROR(VLOOKUP(ROW()-6,data!$A$5:$AI$2227,31,0),"") ->  | F188: =IFERROR(VLOOKUP(ROW()-6,data!$A$5:$AI$2227,27,0),"") ->  | G188: =IFERROR(VLOOKUP(ROW()-6,data!$A$5:$AI$2227,24,0),"") ->  | H188: =IFERROR(VLOOKUP(ROW()-6,data!$A$5:$AI$2227,19,0),"") ->  | I188: =IFERROR(VLOOKUP(ROW()-6,data!$A$5:$AI$2227,10,0),"") ->  | J188: =IFERROR(VLOOKUP(ROW()-6,data!$A$5:$AI$2227,14,0),"") ->  | K188: =IFERROR(VLOOKUP(ROW()-6,data!$A$5:$AI$2227,12,0),"") ->  | L188: =IFERROR(VLOOKUP(ROW()-6,data!$A$5:$AI$2227,18,0),"") ->  | M188: =IFERROR(VLOOKUP(ROW()-6,data!$A$5:$AI$2227,21,0),"") -> 
A189: =IFERROR(VLOOKUP(ROW()-6,data!$A$5:$AI$2227,4,0),"") ->  | B189: =IFERROR(VLOOKUP(ROW()-6,data!$A$5:$AI$2227,6,0),"") ->  | C189: =IFERROR(VLOOKUP(ROW()-6,data!$A$5:$AI$2227,20,0),"") ->  | D189: =IFERROR(VLOOKUP(ROW()-6,data!$A$5:$AI$2227,29,0),"") ->  | E189: =IFERROR(VLOOKUP(ROW()-6,data!$A$5:$AI$2227,31,0),"") ->  | F189: =IFERROR(VLOOKUP(ROW()-6,data!$A$5:$AI$2227,27,0),"") ->  | G189: =IFERROR(VLOOKUP(ROW()-6,data!$A$5:$AI$2227,24,0),"") ->  | H189: =IFERROR(VLOOKUP(ROW()-6,data!$A$5:$AI$2227,19,0),"") ->  | I189: =IFERROR(VLOOKUP(ROW()-6,data!$A$5:$AI$2227,10,0),"") ->  | J189: =IFERROR(VLOOKUP(ROW()-6,data!$A$5:$AI$2227,14,0),"") ->  | K189: =IFERROR(VLOOKUP(ROW()-6,data!$A$5:$AI$2227,12,0),"") ->  | L189: =IFERROR(VLOOKUP(ROW()-6,data!$A$5:$AI$2227,18,0),"") ->  | M189: =IFERROR(VLOOKUP(ROW()-6,data!$A$5:$AI$2227,21,0),"") -> 
A190: =IFERROR(VLOOKUP(ROW()-6,data!$A$5:$AI$2227,4,0),"") ->  | B190: =IFERROR(VLOOKUP(ROW()-6,data!$A$5:$AI$2227,6,0),"") ->  | C190: =IFERROR(VLOOKUP(ROW()-6,data!$A$5:$AI$2227,20,0),"") ->  | D190: =IFERROR(VLOOKUP(ROW()-6,data!$A$5:$AI$2227,29,0),"") ->  | E190: =IFERROR(VLOOKUP(ROW()-6,data!$A$5:$AI$2227,31,0),"") ->  | F190: =IFERROR(VLOOKUP(ROW()-6,data!$A$5:$AI$2227,27,0),"") ->  | G190: =IFERROR(VLOOKUP(ROW()-6,data!$A$5:$AI$2227,24,0),"") ->  | H190: =IFERROR(VLOOKUP(ROW()-6,data!$A$5:$AI$2227,19,0),"") ->  | I190: =IFERROR(VLOOKUP(ROW()-6,data!$A$5:$AI$2227,10,0),"") ->  | J190: =IFERROR(VLOOKUP(ROW()-6,data!$A$5:$AI$2227,14,0),"") ->  | K190: =IFERROR(VLOOKUP(ROW()-6,data!$A$5:$AI$2227,12,0),"") ->  | L190: =IFERROR(VLOOKUP(ROW()-6,data!$A$5:$AI$2227,18,0),"") ->  | M190: =IFERROR(VLOOKUP(ROW()-6,data!$A$5:$AI$2227,21,0),"") -> 
A191: =IFERROR(VLOOKUP(ROW()-6,data!$A$5:$AI$2227,4,0),"") ->  | B191: =IFERROR(VLOOKUP(ROW()-6,data!$A$5:$AI$2227,6,0),"") ->  | C191: =IFERROR(VLOOKUP(ROW()-6,data!$A$5:$AI$2227,20,0),"") ->  | D191: =IFERROR(VLOOKUP(ROW()-6,data!$A$5:$AI$2227,29,0),"") ->  | E191: =IFERROR(VLOOKUP(ROW()-6,data!$A$5:$AI$2227,31,0),"") ->  | F191: =IFERROR(VLOOKUP(ROW()-6,data!$A$5:$AI$2227,27,0),"") ->  | G191: =IFERROR(VLOOKUP(ROW()-6,data!$A$5:$AI$2227,24,0),"") ->  | H191: =IFERROR(VLOOKUP(ROW()-6,data!$A$5:$AI$2227,19,0),"") ->  | I191: =IFERROR(VLOOKUP(ROW()-6,data!$A$5:$AI$2227,10,0),"") ->  | J191: =IFERROR(VLOOKUP(ROW()-6,data!$A$5:$AI$2227,14,0),"") ->  | K191: =IFERROR(VLOOKUP(ROW()-6,data!$A$5:$AI$2227,12,0),"") ->  | L191: =IFERROR(VLOOKUP(ROW()-6,data!$A$5:$AI$2227,18,0),"") ->  | M191: =IFERROR(VLOOKUP(ROW()-6,data!$A$5:$AI$2227,21,0),"") -> 
A192: =IFERROR(VLOOKUP(ROW()-6,data!$A$5:$AI$2227,4,0),"") ->  | B192: =IFERROR(VLOOKUP(ROW()-6,data!$A$5:$AI$2227,6,0),"") ->  | C192: =IFERROR(VLOOKUP(ROW()-6,data!$A$5:$AI$2227,20,0),"") ->  | D192: =IFERROR(VLOOKUP(ROW()-6,data!$A$5:$AI$2227,29,0),"") ->  | E192: =IFERROR(VLOOKUP(ROW()-6,data!$A$5:$AI$2227,31,0),"") ->  | F192: =IFERROR(VLOOKUP(ROW()-6,data!$A$5:$AI$2227,27,0),"") ->  | G192: =IFERROR(VLOOKUP(ROW()-6,data!$A$5:$AI$2227,24,0),"") ->  | H192: =IFERROR(VLOOKUP(ROW()-6,data!$A$5:$AI$2227,19,0),"") ->  | I192: =IFERROR(VLOOKUP(ROW()-6,data!$A$5:$AI$2227,10,0),"") ->  | J192: =IFERROR(VLOOKUP(ROW()-6,data!$A$5:$AI$2227,14,0),"") ->  | K192: =IFERROR(VLOOKUP(ROW()-6,data!$A$5:$AI$2227,12,0),"") ->  | L192: =IFERROR(VLOOKUP(ROW()-6,data!$A$5:$AI$2227,18,0),"") ->  | M192: =IFERROR(VLOOKUP(ROW()-6,data!$A$5:$AI$2227,21,0),"") -> 
A193: =IFERROR(VLOOKUP(ROW()-6,data!$A$5:$AI$2227,4,0),"") ->  | B193: =IFERROR(VLOOKUP(ROW()-6,data!$A$5:$AI$2227,6,0),"") ->  | C193: =IFERROR(VLOOKUP(ROW()-6,data!$A$5:$AI$2227,20,0),"") ->  | D193: =IFERROR(VLOOKUP(ROW()-6,data!$A$5:$AI$2227,29,0),"") ->  | E193: =IFERROR(VLOOKUP(ROW()-6,data!$A$5:$AI$2227,31,0),"") ->  | F193: =IFERROR(VLOOKUP(ROW()-6,data!$A$5:$AI$2227,27,0),"") ->  | G193: =IFERROR(VLOOKUP(ROW()-6,data!$A$5:$AI$2227,24,0),"") ->  | H193: =IFERROR(VLOOKUP(ROW()-6,data!$A$5:$AI$2227,19,0),"") ->  | I193: =IFERROR(VLOOKUP(ROW()-6,data!$A$5:$AI$2227,10,0),"") ->  | J193: =IFERROR(VLOOKUP(ROW()-6,data!$A$5:$AI$2227,14,0),"") ->  | K193: =IFERROR(VLOOKUP(ROW()-6,data!$A$5:$AI$2227,12,0),"") ->  | L193: =IFERROR(VLOOKUP(ROW()-6,data!$A$5:$AI$2227,18,0),"") ->  | M193: =IFERROR(VLOOKUP(ROW()-6,data!$A$5:$AI$2227,21,0),"") -> 
A194: =IFERROR(VLOOKUP(ROW()-6,data!$A$5:$AI$2227,4,0),"") ->  | B194: =IFERROR(VLOOKUP(ROW()-6,data!$A$5:$AI$2227,6,0),"") ->  | C194: =IFERROR(VLOOKUP(ROW()-6,data!$A$5:$AI$2227,20,0),"") ->  | D194: =IFERROR(VLOOKUP(ROW()-6,data!$A$5:$AI$2227,29,0),"") ->  | E194: =IFERROR(VLOOKUP(ROW()-6,data!$A$5:$AI$2227,31,0),"") ->  | F194: =IFERROR(VLOOKUP(ROW()-6,data!$A$5:$AI$2227,27,0),"") ->  | G194: =IFERROR(VLOOKUP(ROW()-6,data!$A$5:$AI$2227,24,0),"") ->  | H194: =IFERROR(VLOOKUP(ROW()-6,data!$A$5:$AI$2227,19,0),"") ->  | I194: =IFERROR(VLOOKUP(ROW()-6,data!$A$5:$AI$2227,10,0),"") ->  | J194: =IFERROR(VLOOKUP(ROW()-6,data!$A$5:$AI$2227,14,0),"") ->  | K194: =IFERROR(VLOOKUP(ROW()-6,data!$A$5:$AI$2227,12,0),"") ->  | L194: =IFERROR(VLOOKUP(ROW()-6,data!$A$5:$AI$2227,18,0),"") ->  | M194: =IFERROR(VLOOKUP(ROW()-6,data!$A$5:$AI$2227,21,0),"") -> 
A195: =IFERROR(VLOOKUP(ROW()-6,data!$A$5:$AI$2227,4,0),"") ->  | B195: =IFERROR(VLOOKUP(ROW()-6,data!$A$5:$AI$2227,6,0),"") ->  | C195: =IFERROR(VLOOKUP(ROW()-6,data!$A$5:$AI$2227,20,0),"") ->  | D195: =IFERROR(VLOOKUP(ROW()-6,data!$A$5:$AI$2227,29,0),"") ->  | E195: =IFERROR(VLOOKUP(ROW()-6,data!$A$5:$AI$2227,31,0),"") ->  | F195: =IFERROR(VLOOKUP(ROW()-6,data!$A$5:$AI$2227,27,0),"") ->  | G195: =IFERROR(VLOOKUP(ROW()-6,data!$A$5:$AI$2227,24,0),"") ->  | H195: =IFERROR(VLOOKUP(ROW()-6,data!$A$5:$AI$2227,19,0),"") ->  | I195: =IFERROR(VLOOKUP(ROW()-6,data!$A$5:$AI$2227,10,0),"") ->  | J195: =IFERROR(VLOOKUP(ROW()-6,data!$A$5:$AI$2227,14,0),"") ->  | K195: =IFERROR(VLOOKUP(ROW()-6,data!$A$5:$AI$2227,12,0),"") ->  | L195: =IFERROR(VLOOKUP(ROW()-6,data!$A$5:$AI$2227,18,0),"") ->  | M195: =IFERROR(VLOOKUP(ROW()-6,data!$A$5:$AI$2227,21,0),"") -> 
A196: =IFERROR(VLOOKUP(ROW()-6,data!$A$5:$AI$2227,4,0),"") ->  | B196: =IFERROR(VLOOKUP(ROW()-6,data!$A$5:$AI$2227,6,0),"") ->  | C196: =IFERROR(VLOOKUP(ROW()-6,data!$A$5:$AI$2227,20,0),"") ->  | D196: =IFERROR(VLOOKUP(ROW()-6,data!$A$5:$AI$2227,29,0),"") ->  | E196: =IFERROR(VLOOKUP(ROW()-6,data!$A$5:$AI$2227,31,0),"") ->  | F196: =IFERROR(VLOOKUP(ROW()-6,data!$A$5:$AI$2227,27,0),"") ->  | G196: =IFERROR(VLOOKUP(ROW()-6,data!$A$5:$AI$2227,24,0),"") ->  | H196: =IFERROR(VLOOKUP(ROW()-6,data!$A$5:$AI$2227,19,0),"") ->  | I196: =IFERROR(VLOOKUP(ROW()-6,data!$A$5:$AI$2227,10,0),"") ->  | J196: =IFERROR(VLOOKUP(ROW()-6,data!$A$5:$AI$2227,14,0),"") ->  | K196: =IFERROR(VLOOKUP(ROW()-6,data!$A$5:$AI$2227,12,0),"") ->  | L196: =IFERROR(VLOOKUP(ROW()-6,data!$A$5:$AI$2227,18,0),"") ->  | M196: =IFERROR(VLOOKUP(ROW()-6,data!$A$5:$AI$2227,21,0),"") -> 
A197: =IFERROR(VLOOKUP(ROW()-6,data!$A$5:$AI$2227,4,0),"") ->  | B197: =IFERROR(VLOOKUP(ROW()-6,data!$A$5:$AI$2227,6,0),"") ->  | C197: =IFERROR(VLOOKUP(ROW()-6,data!$A$5:$AI$2227,20,0),"") ->  | D197: =IFERROR(VLOOKUP(ROW()-6,data!$A$5:$AI$2227,29,0),"") ->  | E197: =IFERROR(VLOOKUP(ROW()-6,data!$A$5:$AI$2227,31,0),"") ->  | F197: =IFERROR(VLOOKUP(ROW()-6,data!$A$5:$AI$2227,27,0),"") ->  | G197: =IFERROR(VLOOKUP(ROW()-6,data!$A$5:$AI$2227,24,0),"") ->  | H197: =IFERROR(VLOOKUP(ROW()-6,data!$A$5:$AI$2227,19,0),"") ->  | I197: =IFERROR(VLOOKUP(ROW()-6,data!$A$5:$AI$2227,10,0),"") ->  | J197: =IFERROR(VLOOKUP(ROW()-6,data!$A$5:$AI$2227,14,0),"") ->  | K197: =IFERROR(VLOOKUP(ROW()-6,data!$A$5:$AI$2227,12,0),"") ->  | L197: =IFERROR(VLOOKUP(ROW()-6,data!$A$5:$AI$2227,18,0),"") ->  | M197: =IFERROR(VLOOKUP(ROW()-6,data!$A$5:$AI$2227,21,0),"") -> 
A198: =IFERROR(VLOOKUP(ROW()-6,data!$A$5:$AI$2227,4,0),"") ->  | B198: =IFERROR(VLOOKUP(ROW()-6,data!$A$5:$AI$2227,6,0),"") ->  | C198: =IFERROR(VLOOKUP(ROW()-6,data!$A$5:$AI$2227,20,0),"") ->  | D198: =IFERROR(VLOOKUP(ROW()-6,data!$A$5:$AI$2227,29,0),"") ->  | E198: =IFERROR(VLOOKUP(ROW()-6,data!$A$5:$AI$2227,31,0),"") ->  | F198: =IFERROR(VLOOKUP(ROW()-6,data!$A$5:$AI$2227,27,0),"") ->  | G198: =IFERROR(VLOOKUP(ROW()-6,data!$A$5:$AI$2227,24,0),"") ->  | H198: =IFERROR(VLOOKUP(ROW()-6,data!$A$5:$AI$2227,19,0),"") ->  | I198: =IFERROR(VLOOKUP(ROW()-6,data!$A$5:$AI$2227,10,0),"") ->  | J198: =IFERROR(VLOOKUP(ROW()-6,data!$A$5:$AI$2227,14,0),"") ->  | K198: =IFERROR(VLOOKUP(ROW()-6,data!$A$5:$AI$2227,12,0),"") ->  | L198: =IFERROR(VLOOKUP(ROW()-6,data!$A$5:$AI$2227,18,0),"") ->  | M198: =IFERROR(VLOOKUP(ROW()-6,data!$A$5:$AI$2227,21,0),"") -> 
A199: =IFERROR(VLOOKUP(ROW()-6,data!$A$5:$AI$2227,4,0),"") ->  | B199: =IFERROR(VLOOKUP(ROW()-6,data!$A$5:$AI$2227,6,0),"") ->  | C199: =IFERROR(VLOOKUP(ROW()-6,data!$A$5:$AI$2227,20,0),"") ->  | D199: =IFERROR(VLOOKUP(ROW()-6,data!$A$5:$AI$2227,29,0),"") ->  | E199: =IFERROR(VLOOKUP(ROW()-6,data!$A$5:$AI$2227,31,0),"") ->  | F199: =IFERROR(VLOOKUP(ROW()-6,data!$A$5:$AI$2227,27,0),"") ->  | G199: =IFERROR(VLOOKUP(ROW()-6,data!$A$5:$AI$2227,24,0),"") ->  | H199: =IFERROR(VLOOKUP(ROW()-6,data!$A$5:$AI$2227,19,0),"") ->  | I199: =IFERROR(VLOOKUP(ROW()-6,data!$A$5:$AI$2227,10,0),"") ->  | J199: =IFERROR(VLOOKUP(ROW()-6,data!$A$5:$AI$2227,14,0),"") ->  | K199: =IFERROR(VLOOKUP(ROW()-6,data!$A$5:$AI$2227,12,0),"") ->  | L199: =IFERROR(VLOOKUP(ROW()-6,data!$A$5:$AI$2227,18,0),"") ->  | M199: =IFERROR(VLOOKUP(ROW()-6,data!$A$5:$AI$2227,21,0),"") -> 
A200: =IFERROR(VLOOKUP(ROW()-6,data!$A$5:$AI$2227,4,0),"") ->  | B200: =IFERROR(VLOOKUP(ROW()-6,data!$A$5:$AI$2227,6,0),"") ->  | C200: =IFERROR(VLOOKUP(ROW()-6,data!$A$5:$AI$2227,20,0),"") ->  | D200: =IFERROR(VLOOKUP(ROW()-6,data!$A$5:$AI$2227,29,0),"") ->  | E200: =IFERROR(VLOOKUP(ROW()-6,data!$A$5:$AI$2227,31,0),"") ->  | F200: =IFERROR(VLOOKUP(ROW()-6,data!$A$5:$AI$2227,27,0),"") ->  | G200: =IFERROR(VLOOKUP(ROW()-6,data!$A$5:$AI$2227,24,0),"") ->  | H200: =IFERROR(VLOOKUP(ROW()-6,data!$A$5:$AI$2227,19,0),"") ->  | I200: =IFERROR(VLOOKUP(ROW()-6,data!$A$5:$AI$2227,10,0),"") ->  | J200: =IFERROR(VLOOKUP(ROW()-6,data!$A$5:$AI$2227,14,0),"") ->  | K200: =IFERROR(VLOOKUP(ROW()-6,data!$A$5:$AI$2227,12,0),"") ->  | L200: =IFERROR(VLOOKUP(ROW()-6,data!$A$5:$AI$2227,18,0),"") ->  | M200: =IFERROR(VLOOKUP(ROW()-6,data!$A$5:$AI$2227,21,0),"") -> 
... 40 more rows
